Workbook

Sheet Introduction

Sheet Contents (hidden)
C2: Introduction | M2: For questions, email me at:
F3: Colour Codes | K3: File Name: | M3: edwardbodmer@gmail.com
C4: Contents | G4: Inputs | I4: 1234567890
G5: Section Titles | I5: TITLE ROW | K5: Last Save Date | M5: Video
C6: Summary | G6: Sum Column | I6: 1000000000 | M6: https://www.youtube.com/watch?v=TrkTLmk5n4E&t=39s
G7: True or 1 | I7: =1=1 -> TRUE | K7: Last Save By | M7: =IFERROR(last_save_by(),"") -> 
C8: InputC - Structure | G8: False or 0 | I8: =1=2 -> FALSE
D9: Structuring Index Code | G9: Other Sheet Links | I9: |||||||||||||||||||
D10: Dates and Cap Exp
D11: Structuring - Operations
D12: Structuring - Financing
C14: InputS- Structure
D15: Construction
D16: Operations
D17: Financing
C19: Structuring Model
D20: Capitlal Expenditure, EBITDA, Project IRR
D21: Summary Sources and Uses
D22: Periodic Funding Needs
D23: Debt Balance and Repayment
D24: Debt Service Reserve
D25: Graphs
C27: InputC - Risk
D28: Operations
D29: Credit Protections
D30: Statistical
C32: InputS - Risk
D33: EBITDA
D34: Construction
C36: Cash Flow Waterfall
D37: Base Cash Flow
D38: Structuring Summary
D39: Adjusted Debt Balance and Reserve Balances Connected to Cash Flow
D40: Cash Flow Waterfall
D41: DSCR, PLCR, LLCR
D42: Graphs
C44: UDFInputs
D45: Flags and Switches - Make Very Clear What Sections Will Be Calculated and Displayed
D46: Operating Inputs from Your Model
D47: General Debt Parameters (Not Issue by Issue)
D48: Issue by Issue
D49: DSRA Flags and Inputs
D50: Taxes, Development and Initial Working Capital
D51: Flags for Report
C53: UDFOutput
C55: Debt Structuring
D56: Aggregate Senior Debt Service
D57: EAIF & Proparco Allocation of Debt Service
D58: AFDB Allocation
D59: GFW Allocation
D60: IFC Allocation
D61: Weighted Average Interest Rate
D62: DATA FOR CHARTS

Sheet Summary (hidden)
D2: Debt Sizing | K2: Risk Analysis
O3: Credit Enhancements
D5: Project IRR | G5: ='Structuring Model'!H22 -> 0.06552456319 | K5: Project IRR | M5: ='Cash Flow Waterfall'!H29 -> 0.07608135045 | O5: Cash Sweep | Q5: ='InputC - Risk'!F16 -> 0
D6: Equity IRR | G6: ='Structuring Model'!H206 -> 0.06678883731 | K6: Equity IRR | M6: ='Cash Flow Waterfall'!H103 -> 0.09116995633 | O6: Cash Trap Flag | Q6: ='InputC - Risk'!F18 -> FALSE
D7: Debt to Capital | G7: ='Structuring Model'!I45 -> 0.7308723418 | K7: Debt to Capital | M7: =G7 -> 0.7308723418 | O7: Cash Trap Covenant | Q7: ='InputC - Risk'!F19 -> 1.2
D8: DSCR | G8: ='Structuring Model'!H207 -> 1.2 | K8: DSCR (Min) | M8: ='Cash Flow Waterfall'!H110 -> 1.337083292 | O8: Apply DSR LC | Q8: ='InputC - Risk'!F22=5 -> TRUE
D9: Total Debt | G9: ='Structuring Model'!H45 -> 49204.89963 | K9: LLCR | M9: ='Cash Flow Waterfall'!H125 -> 1.337083293
D10: Sizing Method | E10: =UDFInputs!N318 -> Cash Flow | G10: ='InputC - Structure'!G29 -> 3 | K10: PLCR | M10: ='Cash Flow Waterfall'!H118 -> 1.570337139
D11: Sculpting Method | E11: ='InputC - Structure'!F26 -> Flat DSCR | G11: ='InputC - Structure'!G26 -> 2 | O11: Questions:
D12: Int Rate | E12: ='InputC - Structure'!E52 -> Base Interest Rates | G12: ='InputC - Structure'!G52 -> 1 | K12: Cash Sensitivity | M12: ='InputC - Risk'!F13 -> 1 | O12: edwardbodmer@gmail.com
D13: Debt Tenor | E13: Semi-annual | G13: ='InputC - Structure'!$I$41 -> 35 | K13: Volatility | M13: ='InputC - Risk'!F25 -> 0
K14: Mean Reversion | M14: ='InputC - Risk'!F27 -> 0 | O14: Video:
D15: Seasonality | E15: ='InputC - Structure'!F19 -> Flat Seasonal Factor | G15: ='InputC - Structure'!G19 -> 2 | O15: https://www.youtube.com/watch?v=TrkTLmk5n4E&t=39s
D16: Base Case Cash | E16: ='InputC - Structure'!$F$13 -> Base Case | G16: ='InputC - Structure'!G13 -> 1
K19: Same Diagram with Actual Cases -- eg P50 Base Case

Sheet InputC - Structure (hidden)
B2: Structuring Index Code | E2: =O2 -> 2 | O2: 2
G3: Applied | H3: C Index
G4: P90 - DSCR and Cash Flow | H4: =INDEX(J4:O4,$E$2) -> P90 - DSCR and Cash Flow | J4: P50 - DSCR and Cash Flow | K4: P90 - DSCR and Cash Flow | L4: P99 - DSCR and Cash Flow | M4: Debt/Cap - Sculpting from Flat DSCR | N4: Debt to Capital with P50 Flexible DSCR | O4: Debt to Capital with P90 Flexible DSCR
B5: Dates and Cap Exp
C6: COD Date | E6: Dat | G6: 2024-01-01 | H6: =INDEX(J6:O6,$E$2) -> 2024-01-01 | J6: 2024-01-01 | K6: 2024-01-01 | L6: 2024-01-01 | M6: 2024-01-01 | N6: 2024-01-01 | O6: 2024-01-01
C8: Capital Expenditures | E8: Euro 000's | G8: 65000 | H8: =INDEX(J8:O8,$E$2) -> 65000 | I8: 50 | J8: 65000 | K8: 65000 | L8: 65000 | M8: 65000 | N8: 65000 | O8: 65000
C9: S-Cure Code | E9: Code | G9: 1 | H9: =INDEX(J9:O9,$E$2) -> 1 | J9: 1 | K9: 1 | L9: 1 | M9: 1 | N9: 1 | O9: 1
B11: Structuring - Operations
C13: Base Cash Flow Code | F13: =INDEX('InputS- Structure'!D18:D22,'InputC - Structure'!G13) -> Base Case | G13: 1 | H13: =INDEX(J13:O13,$E$2) -> 1 | J13: 1 | K13: 1 | L13: 1 | M13: 1 | N13: 1 | O13: 1
C15: Probability | E15: % | G15: 0.1 | H15: =INDEX(J15:O15,$E$2) -> 0.1 | J15: 0.5 | K15: 0.1 | L15: 0.01 | M15: 0.5 | N15: 0.5 | O15: 0.1
C16: P50 | E16: % | G16: 1 | H16: =INDEX(J16:O16,$E$2) -> 1 | J16: 1 | K16: 1 | L16: 1 | M16: 1 | N16: 1 | O16: 1
C17: Standard Deviation | E17: % of P50 | G17: 0.15 | H17: =INDEX(J17:O17,$E$2) -> 0.15 | J17: 0.15 | K17: 0.15 | L17: 0.15 | M17: 0.15 | N17: 0.15 | O17: 0.15
C18: Factor to Apply to Cash Flow | E18: % of P50 | G18: 0.8077672652 | H18: =INDEX(J18:O18,$E$2) -> 0.8077672652 | J18: =NORMINV(J15,J16,J17) -> 1 | K18: =NORMINV(K15,K16,K17) -> 0.8077672652 | L18: 0.6510478189 | M18: 1 | N18: 1 | O18: 0.8077672652
C19: Seasonality Code | E19: Code | F19: ='InputS- Structure'!D34 -> Flat Seasonal Factor | G19: 2 | H19: =INDEX(J19:O19,$E$2) -> 2 | J19: 2 | K19: 2 | L19: 2 | M19: 2 | N19: 2 | O19: 2
C20: Growth | G20: 0.02 | H20: =INDEX(J20:O20,$E$2) -> 0.02 | J20: 0.02 | K20: 0.02 | L20: 0.02 | M20: 0.02 | N20: 0.02 | O20: 0.02
B22: Structuring - Financing
C24: Debt Size
D25: Total Debt Gearing | E25: % | G25: 0.8 | H25: =INDEX(J25:O25,$E$2) -> 0.8 | J25: 0.8 | K25: 0.8 | L25: 0.8 | M25: 0.8 | N25: 0.8 | O25: 0.8
D26: Method | E26: Code | F26: =INDEX(H90:H92,G26) -> Flat DSCR | G26: 2 | H26: =INDEX(J26:O26,$E$2) -> 2 | J26: 2 | K26: 2 | L26: 2 | M26: 2 | N26: 3 | O26: 3
D28: Minimum DSCR | E28: x | G28: 1.2 | H28: =INDEX(J28:O28,$E$2) -> 1.2 | J28: 1.3 | K28: 1.2 | L28: 1 | M28: 1.25 | N28: 1.2 | O28: 1.2
D29: Debt Sizing Method | E29: Code | G29: 3 | H29: =INDEX(J29:O29,$E$2) -> 3 | J29: 3 | K29: 3 | L29: 3 | M29: 2 | N29: 2 | O29: 2
C31: Equity First | E31: Flag | G31: TRUE | H31: =INDEX(J31:O31,$E$2) -> TRUE | J31: TRUE | K31: TRUE | L31: TRUE | M31: TRUE | N31: TRUE | O31: TRUE
C32: Pro-Rata | E32: Flag | G32: FALSE | H32: =INDEX(J32:O32,$E$2) -> FALSE | J32: =NOT(J31) -> FALSE | K32: =NOT(K31) -> FALSE | L32: FALSE | M32: FALSE | N32: FALSE | O32: FALSE
C34: Start of Payment (1 is grace period)
D35: EIAF | E35: Period | G35: 1 | H35: =INDEX(J35:O35,$E$2) -> 1 | J35: 1 | K35: 1 | L35: 1 | M35: 1 | N35: 1 | O35: 1
D36: AFDB | E36: Period | G36: 1 | H36: =INDEX(J36:O36,$E$2) -> 1 | J36: 1 | K36: 1 | L36: 1 | M36: 1 | N36: 1 | O36: 1
D37: IFC | E37: Period | G37: 1 | H37: =INDEX(J37:O37,$E$2) -> 1 | J37: 1 | K37: 1 | L37: 1 | M37: 1 | N37: 1 | O37: 1
D38: GWF | E38: Period | G38: 1 | H38: =INDEX(J38:O38,$E$2) -> 1 | J38: 1 | K38: 1 | L38: 1 | M38: 1 | N38: 1 | O38: 1
C40: End of Payment
D41: EIAF | E41: Period | G41: =I41 -> 35 | H41: =INDEX(J41:O41,$E$2) -> 35 | I41: 35 | J41: 40 | K41: 35 | L41: 35 | M41: 35 | N41: 35 | O41: 35
D42: AFDB | E42: Period | G42: =I42 -> 40 | H42: =INDEX(J42:O42,$E$2) -> 40 | I42: 40 | J42: 40 | K42: 40 | L42: 40 | M42: 40 | N42: 40 | O42: 40
D43: IFC | E43: Period | G43: =I43 -> 35 | H43: =INDEX(J43:O43,$E$2) -> 35 | I43: 35 | J43: 40 | K43: 35 | L43: 35 | M43: 35 | N43: 35 | O43: 35
D44: GFW | E44: Period | G44: =I44 -> 37 | H44: =INDEX(J44:O44,$E$2) -> 37 | I44: 37 | J44: 40 | K44: 37 | L44: 37 | M44: 37 | N44: 37 | O44: 37
C46: Percent of Issue
D47: EIAF | E47: % | G47: 0.4 | H47: =INDEX(J47:O47,$E$2) -> 0.4 | J47: 0.2 | K47: 0.4 | L47: 0.4 | M47: 0.4 | N47: 0.4 | O47: 0.4
D48: AFDB | E48: % | G48: 0.3 | H48: =INDEX(J48:O48,$E$2) -> 0.3 | J48: 0.2 | K48: 0.3 | L48: 0.3 | M48: 0.3 | N48: 0.3 | O48: 0.3
D49: IFC | E49: % | G49: 0.1 | H49: =INDEX(J49:O49,$E$2) -> 0.1 | J49: 0.3 | K49: 0.1 | L49: 0.1 | M49: 0.1 | N49: 0.1 | O49: 0.1
D50: GFW | E50: % | G50: 0.2 | H50: =INDEX(J50:O50,$E$2) -> 0.2 | J50: 0.3 | K50: 0.2 | L50: 0.2 | M50: 0.2 | N50: 0.2 | O50: 0.2
C52: Interest Rate Code | E52: =CHOOSE(G52,'InputS- Structure'!C37,'InputS- Structure'!C43,'InputS- Structure'!C49,'InputS- Structure'!C55) -> Base Interest Rates | G52: 1 | H52: =INDEX(J52:O52,$E$2) -> 1 | J52: 1 | K52: 1 | L52: 1 | M52: 1 | N52: 1 | O52: 1
C54: Up-Front Fee
D55: EIAF | E55: % | G55: 0.01 | H55: =INDEX(J55:O55,$E$2) -> 0.01 | J55: 0.01 | K55: 0.01 | L55: 0.01 | M55: 0.01 | N55: 0.01 | O55: 0.01
D56: AFDB | E56: % | G56: 0.009 | H56: =INDEX(J56:O56,$E$2) -> 0.009 | J56: 0.009 | K56: 0.009 | L56: 0.009 | M56: 0.009 | N56: 0.009 | O56: 0.009
D57: IFC | E57: % | G57: 0.011 | H57: =INDEX(J57:O57,$E$2) -> 0.011 | J57: 0.011 | K57: 0.011 | L57: 0.011 | M57: 0.011 | N57: 0.011 | O57: 0.011
D58: GFW | E58: % | G58: 0.012 | H58: =INDEX(J58:O58,$E$2) -> 0.012 | J58: 0.012 | K58: 0.012 | L58: 0.012 | M58: 0.012 | N58: 0.012 | O58: 0.012
C60: Annual Commitment Fee
D61: EIAF | E61: % p.a. | G61: 0.007 | H61: =INDEX(J61:O61,$E$2) -> 0.007 | J61: 0.007 | K61: 0.007 | L61: 0.007 | M61: 0.007 | N61: 0.007 | O61: 0.007
D62: AFDB | E62: % p.a. | G62: 0.008 | H62: =INDEX(J62:O62,$E$2) -> 0.008 | J62: 0.008 | K62: 0.008 | L62: 0.008 | M62: 0.008 | N62: 0.008 | O62: 0.008
D63: IFC | E63: % p.a. | G63: 0.006 | H63: =INDEX(J63:O63,$E$2) -> 0.006 | J63: 0.006 | K63: 0.006 | L63: 0.006 | M63: 0.006 | N63: 0.006 | O63: 0.006
D64: GFW | E64: % p.a. | G64: 0.008 | H64: =INDEX(J64:O64,$E$2) -> 0.008 | J64: 0.008 | K64: 0.008 | L64: 0.008 | M64: 0.008 | N64: 0.008 | O64: 0.008
C66: DSRA
D67: Forward Periods for DSRA | E67: Period | G67: 1 | H67: =INDEX(J67:O67,$E$2) -> 1 | J67: 1 | K67: 1 | L67: 1 | M67: 1 | N67: 1 | O67: 1
D68: Cash DSRA | E68: Flag | G68: FALSE | H68: =INDEX(J68:O68,$E$2) -> FALSE | J68: FALSE | K68: FALSE | L68: FALSE | M68: FALSE | N68: FALSE | O68: FALSE
D69: LC DSRA | E69: Flag | G69: TRUE | H69: =INDEX(J69:O69,$E$2) -> TRUE | J69: =NOT(J68) -> TRUE | K69: =NOT(K68) -> TRUE | L69: TRUE | M69: TRUE | N69: TRUE | O69: TRUE
D70: LC Fees on DSR | E70: % p.p. | G70: 0.008 | H70: =INDEX(J70:O70,$E$2) -> 0.008 | J70: 0.008 | K70: 0.008 | L70: 0.008 | M70: 0.008 | N70: 0.008 | O70: 0.008
C88: UDF Code
G90: Minimum | H90: Minimum | K90: =TRANSPOSE(J4:U4) -> P50 - DSCR and Cash Flow
G91: Flat DSCR | H91: Flat DSCR | K91: P90 - DSCR and Cash Flow
G92: Changing DSCR | H92: Changing DSCR | K92: P99 - DSCR and Cash Flow
K93: Debt/Cap - Sculpting from Flat DSCR
K94: Debt to Capital with P50 Flexible DSCR
K95: Debt to Capital with P90 Flexible DSCR
K96: 0
K97: 0
K98: 0
K99: 0
K100: 0
K101: 0
H140: FALSE | I140: FALSE | J140: =I140*1 -> 0

Sheet InputS- Structure (hidden)
J1: Video:
J2: https://www.youtube.com/watch?v=TrkTLmk5n4E&t=39s
B4: Construction
C5: S-curve Code | E5: 1
F6: 0 | G6: 1 | H6: 2 | I6: 3 | J6: 4 | K6: 5 | L6: 6 | M6: 7 | N6: 8 | O6: 9 | P6: 10 | Q6: 11 | R6: 12 | S6: 13 | T6: 14 | U6: 15
D7: S-Curve Projected for Structuring | F7: 0 | G7: 0.3413086761 | H7: 0.09880368868 | I7: 0 | J7: 0.06586913522 | K7: 0 | L7: 0.1317382704 | M7: 0.1317382704 | N7: 0.1317382704 | O7: 0 | P7: 0 | Q7: 0 | R7: 0.06586913522 | S7: 0.03293455347 | T7: 0 | U7: 0
D8: All at End | F8: 0 | G8: 0 | H8: 0 | I8: 0 | J8: 0 | K8: 0 | L8: 0 | M8: 0 | N8: 0 | O8: 0 | P8: 0 | Q8: 0 | R8: 0 | S8: 0 | T8: 1 | U8: 0
B11: Operations
D12: Standard Deviation | F12: 0.08
D14: Model Period | G14: 0 | H14: 1 | I14: 2 | J14: 3 | K14: 4 | L14: 5 | M14: 6 | N14: 7 | O14: 8 | P14: 9 | Q14: 10 | R14: 11 | S14: 12 | T14: 13 | U14: 14 | V14: 15 | W14: 16 | X14: 17 | Y14: 18 | Z14: 19 | AA14: 20 | AB14: 21 | AC14: 22 | AD14: 23 | AE14: 24 | AF14: 25 | AG14: 26 | AH14: 27 | AI14: 28 | AJ14: 29 | AK14: 30 | AL14: 31 | AM14: 32 | AN14: 33 | AO14: 34 | AP14: 35 | AQ14: 36 | AR14: 37 | AS14: 38 | AT14: 39 | AU14: 40 | AV14: 41 | AW14: 42 | AX14: 43 | AY14: 44 | AZ14: 45 | BA14: 46 | BB14: 47 | BC14: 48 | BD14: 49 | BE14: 50 | BF14: 51 | BG14: 52 | BH14: 53 | BI14: 54 | BJ14: 55 | BK14: 56 | BL14: 57 | BM14: 58 | BN14: 59 | BO14: 60 | BP14: 61 | BQ14: 62 | BR14: 63 | BS14: 64 | BT14: 65 | BU14: 66 | BV14: 67 | BW14: 68 | BX14: 69 | BY14: 70 | BZ14: 71 | CA14: 72 | CB14: 73 | CC14: 74 | CD14: 75 | CE14: 76 | CF14: 77 | CG14: 78 | CH14: 79 | CI14: 80 | CJ14: 81 | CK14: 82 | CL14: 83 | CM14: 84 | CN14: 85 | CO14: 86 | CP14: 87 | CQ14: 88 | CR14: 89 | CS14: 90
D16: Code for Applied Cash Flow Pattern | E16: ='InputC - Structure'!G13 -> 1
G17: 0.8 | H17: =G17*1.2 -> 0.96 | I17: =H17*1.2 -> 1.152 | J17: 1.3824 | K17: =$J$17 -> 1.3824 | L17: =$J$17 -> 1.3824 | M17: 1.3824 | N17: 1.3824 | O17: 1.3824 | P17: 1.3824 | Q17: 1.3824 | R17: 1.3824 | S17: 1.3824 | T17: 1.3824 | U17: 1.3824 | V17: 1.3824 | W17: 1.3824 | X17: 1.3824 | Y17: 1.3824 | Z17: 1.3824 | AA17: 1.3824 | AB17: 1.3824 | AC17: 1.3824 | AD17: 1.3824 | AE17: 1.3824 | AF17: 1.3824 | AG17: 1.3824 | AH17: 1.3824 | AI17: 1.3824 | AJ17: 1.3824 | AK17: 1.3824 | AL17: 1.3824 | AM17: 1.3824 | AN17: 1.3824 | AO17: 1.3824 | AP17: 1.3824 | AQ17: 1.3824 | AR17: 1.3824 | AS17: 1.3824 | AT17: 1.3824 | AU17: 1.3824 | AV17: 1.3824 | AW17: 1.3824 | AX17: 1.3824 | AY17: 1.3824 | AZ17: 1.3824 | BA17: 1.3824 | BB17: 1.3824 | BC17: 1.3824 | BD17: 1.3824 | BE17: 1.3824 | BF17: 1.3824 | BG17: 1.3824 | BH17: 1.3824 | BI17: 1.3824 | BJ17: 1.3824 | BK17: 1.3824 | BL17: 1.3824 | BM17: 1.3824 | BN17: 1.3824 | BO17: 1.3824 | BP17: 1.3824 | BQ17: 1.3824 | BR17: 1.3824 | BS17: 1.3824 | BT17: 1.3824 | BU17: 1.3824 | BV17: 1.3824 | BW17: 1.3824 | BX17: =$J$17 -> 1.3824 | BY17: 1.3824 | BZ17: 1.3824 | CA17: 1.3824 | CB17: 1.3824 | CC17: 1.3824 | CD17: 1.3824 | CE17: 1.3824 | CF17: 1.3824 | CG17: 1.3824 | CH17: 1.3824 | CI17: 1.3824 | CJ17: 1.3824 | CK17: 1.3824 | CL17: 1.3824 | CM17: 1.3824 | CN17: 1.3824 | CO17: 1.3824 | CP17: 1.3824 | CQ17: 1.3824 | CR17: 1.3824 | CS17: 1.3824
D18: Base Case | G18: 0 | H18: 2909.617547 | I18: 2909.617547 | J18: 2989.367044 | K18: 2892.593285 | L18: 3000.021672 | M18: 2909.742019 | N18: 2996.994703 | O18: 2849.226766 | P18: 2931.232153 | Q18: 2839.356195 | R18: 2926.54476 | S18: 2839.109514 | T18: 2926.821182 | U18: 2839.492382 | V18: 2927.385937 | W18: 2840.339271 | X18: 2923.301915 | Y18: 2842.07159 | Z18: 2930.082711 | AA18: 2757.818267 | AB18: 2897.849112 | AC18: 2810.714068 | AD18: 2900.149132 | AE18: 2812.952322 | AF18: 2897.27911 | AG18: 2816.15025 | AH18: 2905.719984 | AI18: 2819.204207 | AJ18: 2909.536179 | AK18: 2823.435827 | AL18: 2914.113146 | AM18: 2828.845051 | AN18: 2839.492382 | AO18: 2927.385937 | AP18: 2840.339271 | AQ18: 2923.301915 | AR18: 2842.07159 | AS18: 2930.082711 | AT18: 2757.818267 | AU18: 2897.849112 | AV18: 2810.714068 | AW18: 2900.149132 | AX18: 2812.952322 | AY18: 2897.27911 | AZ18: 2816.15025 | BA18: 2905.719984 | BB18: 2819.204207 | BC18: 2909.536179 | BD18: 2823.435827 | BE18: 2914.113146 | BF18: 2828.845051 | BG18: 2828.845051 | BH18: 2828.845051 | BI18: 2828.845051 | BJ18: 2828.845051 | BK18: 2828.845051 | BL18: 2828.845051 | BM18: 2828.845051 | BN18: 2828.845051 | BO18: 2828.845051 | BP18: 0 | BQ18: 0 | BR18: 0 | BS18: 0 | BT18: 0 | BU18: 0 | BV18: 0 | BW18: 0 | BX18: 0 | BY18: 0 | BZ18: 0 | CA18: 0 | CB18: 0 | CC18: 0 | CD18: 0 | CE18: 0 | CF18: 0 | CG18: 0 | CH18: 0 | CI18: 0 | CJ18: 0 | CK18: 0 | CL18: 0 | CM18: 0 | CN18: 0 | CO18: 0 | CP18: 0 | CQ18: 0 | CR18: 0 | CS18: 0 | CT18: 0 | CU18: 0 | CV18: 0 | CW18: 0 | CX18: 0 | CY18: 0 | CZ18: 0 | DA18: 0 | DB18: 0 | DC18: 0 | DD18: 0 | DE18: 0 | DF18: 0 | DG18: 0 | DH18: 0 | DI18: 0 | DJ18: 0 | DK18: 0 | DL18: 0 | DM18: 0 | DN18: 0
D19: Early Growth Case | G19: 0 | H19: 2793.232845 | I19: 3351.879415 | J19: 4132.501002 | K19: 3998.720957 | L19: 4147.229959 | M19: 4022.427367 | N19: 4143.045478 | O19: 3938.771081 | P19: 4052.135328 | Q19: 3925.126004 | R19: 4045.655476 | S19: 3924.784991 | T19: 4046.037602 | U19: 3925.314268 | V19: 4046.818319 | W19: 3926.485009 | X19: 4041.172567 | Y19: 3928.879766 | Z19: 4050.54634 | AA19: 3812.407972 | AB19: 4005.986612 | AC19: 3885.531127 | AD19: 4009.166161 | AE19: 3888.625291 | AF19: 4005.198641 | AG19: 3893.046105 | AH19: 4016.867305 | AI19: 3897.267896 | AJ19: 4022.142814 | AK19: 3903.117688 | AL19: 4028.470013 | AM19: 3910.595398 | AN19: 3925.314268 | AO19: 4046.818319 | AP19: 3926.485009 | AQ19: 4041.172567 | AR19: 3928.879766 | AS19: 4050.54634 | AT19: 3812.407972 | AU19: 4005.986612 | AV19: 3885.531127 | AW19: 4009.166161 | AX19: 3888.625291 | AY19: 4005.198641 | AZ19: 3893.046105 | BA19: 4016.867305 | BB19: 3897.267896 | BC19: 4022.142814 | BD19: 3903.117688 | BE19: 4028.470013 | BF19: 3910.595398 | BG19: 3910.595398 | BH19: 3910.595398 | BI19: 3910.595398 | BJ19: 3910.595398 | BK19: 3910.595398 | BL19: 3910.595398 | BM19: 3910.595398 | BN19: 3910.595398 | BO19: 3910.595398 | BP19: 0 | BQ19: 0 | BR19: 0 | BS19: 0 | BT19: 0 | BU19: 0 | BV19: 0 | BW19: 0 | BX19: 0 | BY19: 0 | BZ19: 0 | CA19: 0 | CB19: 0 | CC19: 0 | CD19: 0 | CE19: 0 | CF19: 0 | CG19: 0 | CH19: 0 | CI19: 0 | CJ19: 0 | CK19: 0 | CL19: 0 | CM19: 0 | CN19: 0 | CO19: 0 | CP19: 0 | CQ19: 0 | CR19: 0 | CS19: 0 | CT19: 0 | CU19: 0 | CV19: 0 | CW19: 0 | CX19: 0 | CY19: 0 | CZ19: 0 | DA19: 0 | DB19: 0 | DC19: 0 | DD19: 0 | DE19: 0 | DF19: 0 | DG19: 0 | DH19: 0 | DI19: 0 | DJ19: 0 | DK19: 0 | DL19: 0 | DM19: 0 | DN19: 0
D20: Continual Growth Case | G20: 0 | H20: 2077.466929 | I20: 2119.016267 | J20: 2220.638156 | K20: 2191.725198 | L20: 2318.586436 | M20: 2293.789478 | N20: 2409.823403 | O20: 2336.826288 | P20: 2452.165634 | Q20: 2422.811551 | R20: 2547.153397 | S20: 2520.474141 | T20: 2650.308701 | U20: 2622.654927 | V20: 2757.913233 | W20: 2729.424005 | X20: 2865.329896 | Y20: 2841.424659 | Z20: 2988.004061 | AA20: 2868.581011 | AB20: 3074.520658 | AC20: 3041.714767 | AD20: 3201.270123 | AE20: 3167.120107 | AF20: 3327.305433 | AG20: 3298.817788 | AH20: 3471.813901 | AI20: 3435.811937 | AJ20: 3616.819062 | AK20: 3579.984235 | AL20: 3768.858 | AM20: 3731.751329 | AN20: 3820.712999 | AO20: 4017.75881 | AP20: 3976.255385 | AQ20: 4174.244605 | AR20: 4139.419189 | AS20: 4352.9577 | AT20: 4178.980866 | AU20: 4478.996045 | AV20: 4431.204056 | AW20: 4663.646081 | AX20: 4613.895957 | AY20: 4847.255728 | AZ20: 4805.75461 | BA20: 5057.777281 | BB20: 5005.329217 | BC20: 5269.022419 | BD20: 5215.361031 | BE20: 5490.514442 | BF20: 5436.457029 | BG20: 5545.186169 | BH20: 5656.089893 | BI20: 5769.211691 | BJ20: 5884.595924 | BK20: 6002.287843 | BL20: 6122.3336 | BM20: 6244.780272 | BN20: 6369.675877 | BO20: 6497.069395 | BP20: 0 | BQ20: 0 | BR20: 0 | BS20: 0 | BT20: 0 | BU20: 0 | BV20: 0 | BW20: 0 | BX20: 0 | BY20: 0 | BZ20: 0 | CA20: 0 | CB20: 0 | CC20: 0 | CD20: 0 | CE20: 0 | CF20: 0 | CG20: 0 | CH20: 0 | CI20: 0 | CJ20: 0 | CK20: 0 | CL20: 0 | CM20: 0 | CN20: 0 | CO20: 0 | CP20: 0 | CQ20: 0 | CR20: 0 | CS20: 0 | CT20: 0 | CU20: 0 | CV20: 0 | CW20: 0 | CX20: 0 | CY20: 0 | CZ20: 0 | DA20: 0 | DB20: 0 | DC20: 0 | DD20: 0 | DE20: 0 | DF20: 0 | DG20: 0 | DH20: 0 | DI20: 0 | DJ20: 0 | DK20: 0 | DL20: 0 | DM20: 0 | DN20: 0
D21: Higher Case - 20% | G21: 0 | H21: 3491.541057 | I21: 3491.541057 | J21: 3587.240453 | K21: 3471.111942 | L21: 3600.026006 | M21: 3491.690423 | N21: 3596.393644 | O21: 3419.072119 | P21: 3517.478584 | Q21: 3407.227434 | R21: 3511.853712 | S21: 3406.931416 | T21: 3512.185418 | U21: 3407.390858 | V21: 3512.863124 | W21: 3408.407126 | X21: 3507.962298 | Y21: 3410.485908 | Z21: 3516.099254 | AA21: 3309.38192 | AB21: 3477.418934 | AC21: 3372.856881 | AD21: 3480.178959 | AE21: 3375.542787 | AF21: 3476.734932 | AG21: 3379.3803 | AH21: 3486.86398 | AI21: 3383.045049 | AJ21: 3491.443415 | AK21: 3388.122993 | AL21: 3496.935776 | AM21: 3394.614061 | AN21: 3407.390858 | AO21: 3512.863124 | AP21: 3408.407126 | AQ21: 3507.962298 | AR21: 3410.485908 | AS21: 3516.099254 | AT21: 3309.38192 | AU21: 3477.418934 | AV21: 3372.856881 | AW21: 3480.178959 | AX21: 3375.542787 | AY21: 3476.734932 | AZ21: 3379.3803 | BA21: 3486.86398 | BB21: 3383.045049 | BC21: 3491.443415 | BD21: 3388.122993 | BE21: 3496.935776 | BF21: 3394.614061 | BG21: 3394.614061 | BH21: 3394.614061 | BI21: 3394.614061 | BJ21: 3394.614061 | BK21: 3394.614061 | BL21: 3394.614061 | BM21: 3394.614061 | BN21: 3394.614061 | BO21: 3394.614061 | BP21: 0 | BQ21: 0 | BR21: 0 | BS21: 0 | BT21: 0 | BU21: 0 | BV21: 0 | BW21: 0 | BX21: 0 | BY21: 0 | BZ21: 0 | CA21: 0 | CB21: 0 | CC21: 0 | CD21: 0 | CE21: 0 | CF21: 0 | CG21: 0 | CH21: 0 | CI21: 0 | CJ21: 0 | CK21: 0 | CL21: 0 | CM21: 0 | CN21: 0 | CO21: 0 | CP21: 0 | CQ21: 0 | CR21: 0 | CS21: 0 | CT21: 0 | CU21: 0 | CV21: 0 | CW21: 0 | CX21: 0 | CY21: 0 | CZ21: 0 | DA21: 0 | DB21: 0 | DC21: 0 | DD21: 0 | DE21: 0 | DF21: 0 | DG21: 0 | DH21: 0 | DI21: 0 | DJ21: 0 | DK21: 0 | DL21: 0 | DM21: 0 | DN21: 0
D22: Lower Case - 20% | G22: 0 | H22: 2327.694038 | I22: 2327.694038 | J22: 2391.493635 | K22: 2314.074628 | L22: 2400.017337 | M22: 2327.793615 | N22: 2397.595762 | O22: 2279.381413 | P22: 2344.985722 | Q22: 2271.484956 | R22: 2341.235808 | S22: 2271.287611 | T22: 2341.456945 | U22: 2271.593905 | V22: 2341.90875 | W22: 2272.271417 | X22: 2338.641532 | Y22: 2273.657272 | Z22: 2344.066169 | AA22: 2206.254614 | AB22: 2318.27929 | AC22: 2248.571254 | AD22: 2320.119306 | AE22: 2250.361858 | AF22: 2317.823288 | AG22: 2252.9202 | AH22: 2324.575987 | AI22: 2255.363366 | AJ22: 2327.628943 | AK22: 2258.748662 | AL22: 2331.290517 | AM22: 2263.07604 | AN22: 2271.593905 | AO22: 2341.90875 | AP22: 2272.271417 | AQ22: 2338.641532 | AR22: 2273.657272 | AS22: 2344.066169 | AT22: 2206.254614 | AU22: 2318.27929 | AV22: 2248.571254 | AW22: 2320.119306 | AX22: 2250.361858 | AY22: 2317.823288 | AZ22: 2252.9202 | BA22: 2324.575987 | BB22: 2255.363366 | BC22: 2327.628943 | BD22: 2258.748662 | BE22: 2331.290517 | BF22: 2263.07604 | BG22: 2263.07604 | BH22: 2263.07604 | BI22: 2263.07604 | BJ22: 2263.07604 | BK22: 2263.07604 | BL22: 2263.07604 | BM22: 2263.07604 | BN22: 2263.07604 | BO22: 2263.07604 | BP22: 0 | BQ22: 0 | BR22: 0 | BS22: 0 | BT22: 0 | BU22: 0 | BV22: 0 | BW22: 0 | BX22: 0 | BY22: 0 | BZ22: 0 | CA22: 0 | CB22: 0 | CC22: 0 | CD22: 0 | CE22: 0 | CF22: 0 | CG22: 0 | CH22: 0 | CI22: 0 | CJ22: 0 | CK22: 0 | CL22: 0 | CM22: 0 | CN22: 0 | CO22: 0 | CP22: 0 | CQ22: 0 | CR22: 0 | CS22: 0 | CT22: 0 | CU22: 0 | CV22: 0 | CW22: 0 | CX22: 0 | CY22: 0 | CZ22: 0 | DA22: 0 | DB22: 0 | DC22: 0 | DD22: 0 | DE22: 0 | DF22: 0 | DG22: 0 | DH22: 0 | DI22: 0 | DJ22: 0 | DK22: 0 | DL22: 0 | DM22: 0 | DN22: 0
D24: =INDEX(D18:D23,E16) -> Base Case | G24: =INDEX(G18:G22,$E$16) -> 0 | H24: =INDEX(H18:H22,$E$16) -> 2909.617547 | I24: =INDEX(I18:I22,$E$16) -> 2909.617547 | J24: =INDEX(J18:J22,$E$16) -> 2989.367044 | K24: =INDEX(K18:K22,$E$16) -> 2892.593285 | L24: =INDEX(L18:L22,$E$16) -> 3000.021672 | M24: =INDEX(M18:M22,$E$16) -> 2909.742019 | N24: =INDEX(N18:N22,$E$16) -> 2996.994703 | O24: =INDEX(O18:O22,$E$16) -> 2849.226766 | P24: =INDEX(P18:P22,$E$16) -> 2931.232153 | Q24: =INDEX(Q18:Q22,$E$16) -> 2839.356195 | R24: =INDEX(R18:R22,$E$16) -> 2926.54476 | S24: =INDEX(S18:S22,$E$16) -> 2839.109514 | T24: =INDEX(T18:T22,$E$16) -> 2926.821182 | U24: =INDEX(U18:U22,$E$16) -> 2839.492382 | V24: =INDEX(V18:V22,$E$16) -> 2927.385937 | W24: =INDEX(W18:W22,$E$16) -> 2840.339271 | X24: =INDEX(X18:X22,$E$16) -> 2923.301915 | Y24: =INDEX(Y18:Y22,$E$16) -> 2842.07159 | Z24: =INDEX(Z18:Z22,$E$16) -> 2930.082711 | AA24: =INDEX(AA18:AA22,$E$16) -> 2757.818267 | AB24: =INDEX(AB18:AB22,$E$16) -> 2897.849112 | AC24: =INDEX(AC18:AC22,$E$16) -> 2810.714068 | AD24: =INDEX(AD18:AD22,$E$16) -> 2900.149132 | AE24: =INDEX(AE18:AE22,$E$16) -> 2812.952322 | AF24: =INDEX(AF18:AF22,$E$16) -> 2897.27911 | AG24: =INDEX(AG18:AG22,$E$16) -> 2816.15025 | AH24: =INDEX(AH18:AH22,$E$16) -> 2905.719984 | AI24: =INDEX(AI18:AI22,$E$16) -> 2819.204207 | AJ24: =INDEX(AJ18:AJ22,$E$16) -> 2909.536179 | AK24: =INDEX(AK18:AK22,$E$16) -> 2823.435827 | AL24: =INDEX(AL18:AL22,$E$16) -> 2914.113146 | AM24: =INDEX(AM18:AM22,$E$16) -> 2828.845051 | AN24: =INDEX(AN18:AN22,$E$16) -> 2839.492382 | AO24: =INDEX(AO18:AO22,$E$16) -> 2927.385937 | AP24: =INDEX(AP18:AP22,$E$16) -> 2840.339271 | AQ24: =INDEX(AQ18:AQ22,$E$16) -> 2923.301915 | AR24: =INDEX(AR18:AR22,$E$16) -> 2842.07159 | AS24: =INDEX(AS18:AS22,$E$16) -> 2930.082711 | AT24: =INDEX(AT18:AT22,$E$16) -> 2757.818267 | AU24: =INDEX(AU18:AU22,$E$16) -> 2897.849112 | AV24: =INDEX(AV18:AV22,$E$16) -> 2810.714068 | AW24: =INDEX(AW18:AW22,$E$16) -> 2900.149132 | AX24: =INDEX(AX18:AX22,$E$16) -> 2812.952322 | AY24: =INDEX(AY18:AY22,$E$16) -> 2897.27911 | AZ24: =INDEX(AZ18:AZ22,$E$16) -> 2816.15025 | BA24: =INDEX(BA18:BA22,$E$16) -> 2905.719984 | BB24: =INDEX(BB18:BB22,$E$16) -> 2819.204207 | BC24: =INDEX(BC18:BC22,$E$16) -> 2909.536179 | BD24: =INDEX(BD18:BD22,$E$16) -> 2823.435827 | BE24: =INDEX(BE18:BE22,$E$16) -> 2914.113146 | BF24: =INDEX(BF18:BF22,$E$16) -> 2828.845051 | BG24: =INDEX(BG18:BG22,$E$16) -> 2828.845051 | BH24: =INDEX(BH18:BH22,$E$16) -> 2828.845051 | BI24: =INDEX(BI18:BI22,$E$16) -> 2828.845051 | BJ24: =INDEX(BJ18:BJ22,$E$16) -> 2828.845051 | BK24: =INDEX(BK18:BK22,$E$16) -> 2828.845051 | BL24: =INDEX(BL18:BL22,$E$16) -> 2828.845051 | BM24: =INDEX(BM18:BM22,$E$16) -> 2828.845051 | BN24: =INDEX(BN18:BN22,$E$16) -> 2828.845051 | BO24: =INDEX(BO18:BO22,$E$16) -> 2828.845051 | BP24: =INDEX(BP18:BP22,$E$16) -> 0 | BQ24: =INDEX(BQ18:BQ22,$E$16) -> 0 | BR24: =INDEX(BR18:BR22,$E$16) -> 0 | BS24: =INDEX(BS18:BS22,$E$16) -> 0 | BT24: =INDEX(BT18:BT22,$E$16) -> 0 | BU24: =INDEX(BU18:BU22,$E$16) -> 0 | BV24: =INDEX(BV18:BV22,$E$16) -> 0 | BW24: =INDEX(BW18:BW22,$E$16) -> 0 | BX24: =INDEX(BX18:BX22,$E$16) -> 0 | BY24: =INDEX(BY18:BY22,$E$16) -> 0 | BZ24: =INDEX(BZ18:BZ22,$E$16) -> 0 | CA24: =INDEX(CA18:CA22,$E$16) -> 0 | CB24: =INDEX(CB18:CB22,$E$16) -> 0 | CC24: =INDEX(CC18:CC22,$E$16) -> 0 | CD24: =INDEX(CD18:CD22,$E$16) -> 0 | CE24: =INDEX(CE18:CE22,$E$16) -> 0 | CF24: =INDEX(CF18:CF22,$E$16) -> 0 | CG24: =INDEX(CG18:CG22,$E$16) -> 0 | CH24: =INDEX(CH18:CH22,$E$16) -> 0 | CI24: =INDEX(CI18:CI22,$E$16) -> 0 | CJ24: =INDEX(CJ18:CJ22,$E$16) -> 0 | CK24: =INDEX(CK18:CK22,$E$16) -> 0 | CL24: =INDEX(CL18:CL22,$E$16) -> 0 | CM24: =INDEX(CM18:CM22,$E$16) -> 0 | CN24: =INDEX(CN18:CN22,$E$16) -> 0 | CO24: =INDEX(CO18:CO22,$E$16) -> 0 | CP24: =INDEX(CP18:CP22,$E$16) -> 0 | CQ24: =INDEX(CQ18:CQ22,$E$16) -> 0 | CR24: =INDEX(CR18:CR22,$E$16) -> 0 | CS24: =INDEX(CS18:CS22,$E$16) -> 0 | CT24: =INDEX(CT18:CT22,$E$16) -> 0 | CU24: =INDEX(CU18:CU22,$E$16) -> 0 | CV24: =INDEX(CV18:CV22,$E$16) -> 0 | CW24: =INDEX(CW18:CW22,$E$16) -> 0 | CX24: =INDEX(CX18:CX22,$E$16) -> 0 | CY24: =INDEX(CY18:CY22,$E$16) -> 0 | CZ24: =INDEX(CZ18:CZ22,$E$16) -> 0 | DA24: =INDEX(DA18:DA22,$E$16) -> 0 | DB24: =INDEX(DB18:DB22,$E$16) -> 0 | DC24: =INDEX(DC18:DC22,$E$16) -> 0 | DD24: =INDEX(DD18:DD22,$E$16) -> 0 | DE24: =INDEX(DE18:DE22,$E$16) -> 0 | DF24: =INDEX(DF18:DF22,$E$16) -> 0 | DG24: =INDEX(DG18:DG22,$E$16) -> 0 | DH24: =INDEX(DH18:DH22,$E$16) -> 0 | DI24: =INDEX(DI18:DI22,$E$16) -> 0 | DJ24: =INDEX(DJ18:DJ22,$E$16) -> 0 | DK24: =INDEX(DK18:DK22,$E$16) -> 0 | DL24: =INDEX(DL18:DL22,$E$16) -> 0 | DM24: =INDEX(DM18:DM22,$E$16) -> 0 | DN24: =INDEX(DN18:DN22,$E$16) -> 0
D26: CFADS - Applied after P Value | F26: ='InputC - Structure'!G15 -> 0.1 | H26: =IFERROR(_xlfn.NORM.INV($F$26,H24,H24*$F$12),0) -> 2611.311553 | I26: 2611.311553 | J26: 2682.884803 | K26: 2596.032689 | L26: 2692.447074 | M26: 2611.423264 | N26: 2689.730443 | O26: 2557.112284 | P26: 2630.710141 | Q26: 2548.253685 | R26: 2626.503318 | S26: 2548.032294 | T26: 2626.7514 | U26: 2548.375909 | V26: 2627.258255 | W26: 2549.135972 | X26: 2623.592943 | Y26: 2550.690687 | Z26: 2629.678545 | AA26: 2475.075362 | AB26: 2600.749667 | AC26: 2522.548067 | AD26: 2602.813879 | AE26: 2524.556846 | AF26: 2600.238103 | AG26: 2527.426909 | AH26: 2607.813584 | AI26: 2530.167762 | AJ26: 2611.238527 | AK26: 2533.965539 | AL26: 2615.346245 | AM26: 2538.820186 | AN26: =IFERROR(_xlfn.NORM.INV($F$26,AN24,AN24*$F$12),0) -> 2548.375909 | AO26: 2627.258255 | AP26: 2549.135972 | AQ26: 2623.592943 | AR26: 2550.690687 | AS26: 2629.678545 | AT26: 2475.075362 | AU26: 2600.749667 | AV26: 2522.548067 | AW26: 2602.813879 | AX26: 2524.556846 | AY26: 2600.238103 | AZ26: 2527.426909 | BA26: 2607.813584 | BB26: 2530.167762 | BC26: 2611.238527 | BD26: 2533.965539 | BE26: 2615.346245 | BF26: 2538.820186 | BG26: 2538.820186 | BH26: 2538.820186 | BI26: 2538.820186 | BJ26: 2538.820186 | BK26: 2538.820186 | BL26: 2538.820186 | BM26: 2538.820186 | BN26: 2538.820186 | BO26: 2538.820186 | BP26: 0 | BQ26: 0 | BR26: 0 | BS26: 0 | BT26: =IFERROR(_xlfn.NORM.INV($F$26,BT24,BT24*$F$12),0) -> 0 | BU26: 0 | BV26: 0 | BW26: 0 | BX26: 0 | BY26: 0 | BZ26: 0 | CA26: 0 | CB26: 0 | CC26: 0 | CD26: 0 | CE26: 0 | CF26: 0 | CG26: 0 | CH26: 0 | CI26: 0 | CJ26: 0 | CK26: 0 | CL26: 0 | CM26: 0 | CN26: 0 | CO26: 0 | CP26: 0 | CQ26: 0 | CR26: 0 | CS26: 0 | CT26: 0 | CU26: 0 | CV26: 0 | CW26: 0 | CX26: 0 | CY26: 0 | CZ26: =IFERROR(_xlfn.NORM.INV($F$26,CZ24,CZ24*$F$12),0) -> 0 | DA26: 0 | DB26: 0 | DC26: 0 | DD26: 0 | DE26: 0 | DF26: 0 | DG26: 0 | DH26: 0 | DI26: 0 | DJ26: 0 | DK26: 0 | DL26: 0 | DM26: 0 | DN26: 0
D29: Seasonal Flag | E29: ='InputC - Structure'!G19 -> 2 | G29: =(MOD(G14,2)=0)*1 -> 1 | H29: 0 | I29: 1 | J29: 0 | K29: 1 | L29: 0 | M29: 1 | N29: 0 | O29: 1 | P29: 0 | Q29: 1 | R29: 0 | S29: 1 | T29: 0 | U29: 1 | V29: 0 | W29: 1 | X29: 0 | Y29: 1 | Z29: 0 | AA29: 1 | AB29: 0 | AC29: 1 | AD29: 0 | AE29: 1 | AF29: 0 | AG29: 1 | AH29: 0 | AI29: 1 | AJ29: 0 | AK29: 1 | AL29: 0 | AM29: =(MOD(AM14,2)=0)*1 -> 1 | AN29: 0 | AO29: 1 | AP29: 0 | AQ29: 1 | AR29: 0 | AS29: 1 | AT29: 0 | AU29: 1 | AV29: 0 | AW29: 1 | AX29: 0 | AY29: 1 | AZ29: 0 | BA29: 1 | BB29: 0 | BC29: 1 | BD29: 0 | BE29: 1 | BF29: 0 | BG29: 1 | BH29: 0 | BI29: 1 | BJ29: 0 | BK29: 1 | BL29: 0 | BM29: 1 | BN29: 0 | BO29: 1 | BP29: 0 | BQ29: 1 | BR29: 0 | BS29: =(MOD(BS14,2)=0)*1 -> 1 | BT29: 0 | BU29: 1 | BV29: 0 | BW29: 1 | BX29: 0 | BY29: 1 | BZ29: 0 | CA29: 1 | CB29: 0 | CC29: 1 | CD29: 0 | CE29: 1 | CF29: 0 | CG29: 1 | CH29: 0 | CI29: 1 | CJ29: 0 | CK29: 1 | CL29: 0 | CM29: 1 | CN29: 0 | CO29: 1 | CP29: 0 | CQ29: 1 | CR29: 0 | CS29: 1 | CT29: 1 | CU29: 1 | CV29: 1 | CW29: 1 | CX29: 1 | CY29: =(MOD(CY14,2)=0)*1 -> 1 | CZ29: 1 | DA29: 1 | DB29: 1 | DC29: 1 | DD29: 1 | DE29: 1 | DF29: 1 | DG29: 1 | DH29: 1 | DI29: 1 | DJ29: 1 | DK29: 1 | DL29: 1 | DM29: 1 | DN29: 1
D30: Varying Seasonal Factor | E30: 0.8 | F30: 1 | G30: =IF(G29,$E$30,(1-$E$30+1)) -> 0.8 | H30: 1.2 | I30: 0.8 | J30: 1.2 | K30: 0.8 | L30: 1.2 | M30: 0.8 | N30: 1.2 | O30: 0.8 | P30: 1.2 | Q30: 0.8 | R30: 1.2 | S30: 0.8 | T30: 1.2 | U30: 0.8 | V30: =IF(V29,$E$30,(1-$E$30+1)) -> 1.2 | W30: 0.8 | X30: 1.2 | Y30: 0.8 | Z30: 1.2 | AA30: 0.8 | AB30: 1.2 | AC30: 0.8 | AD30: 1.2 | AE30: 0.8 | AF30: 1.2 | AG30: 0.8 | AH30: 1.2 | AI30: 0.8 | AJ30: 1.2 | AK30: 0.8 | AL30: 1.2 | AM30: 0.8 | AN30: 1.2 | AO30: 0.8 | AP30: 1.2 | AQ30: 0.8 | AR30: 1.2 | AS30: 0.8 | AT30: 1.2 | AU30: 0.8 | AV30: 1.2 | AW30: 0.8 | AX30: 1.2 | AY30: 0.8 | AZ30: 1.2 | BA30: 0.8 | BB30: 1.2 | BC30: 0.8 | BD30: 1.2 | BE30: 0.8 | BF30: 1.2 | BG30: 0.8 | BH30: 1.2 | BI30: 0.8 | BJ30: 1.2 | BK30: 0.8 | BL30: 1.2 | BM30: 0.8 | BN30: 1.2 | BO30: 0.8 | BP30: 1.2 | BQ30: 0.8 | BR30: 1.2 | BS30: 0.8 | BT30: 1.2 | BU30: 0.8 | BV30: 1.2 | BW30: 0.8 | BX30: 1.2 | BY30: 0.8 | BZ30: 1.2 | CA30: 0.8 | CB30: 1.2 | CC30: 0.8 | CD30: 1.2 | CE30: 0.8 | CF30: 1.2 | CG30: 0.8 | CH30: =IF(CH29,$E$30,(1-$E$30+1)) -> 1.2 | CI30: 0.8 | CJ30: 1.2 | CK30: 0.8 | CL30: 1.2 | CM30: 0.8 | CN30: 1.2 | CO30: 0.8 | CP30: 1.2 | CQ30: 0.8 | CR30: 1.2 | CS30: 0.8 | CT30: 0.8 | CU30: 0.8 | CV30: 0.8 | CW30: 0.8 | CX30: 0.8 | CY30: 0.8 | CZ30: 0.8 | DA30: 0.8 | DB30: 0.8 | DC30: 0.8 | DD30: 0.8 | DE30: 0.8 | DF30: 0.8 | DG30: 0.8 | DH30: 0.8 | DI30: 0.8 | DJ30: 0.8 | DK30: 0.8 | DL30: 0.8 | DM30: 0.8 | DN30: 0.8
D31: Flat Seasonal Factor | F31: 2 | G31: 1 | H31: 1 | I31: 1 | J31: 1 | K31: 1 | L31: 1 | M31: 1 | N31: 1 | O31: 1 | P31: 1 | Q31: 1 | R31: 1 | S31: 1 | T31: 1 | U31: 1 | V31: 1 | W31: 1 | X31: 1 | Y31: 1 | Z31: 1 | AA31: 1 | AB31: 1 | AC31: 1 | AD31: 1 | AE31: 1 | AF31: 1 | AG31: 1 | AH31: 1 | AI31: 1 | AJ31: 1 | AK31: 1 | AL31: 1 | AM31: 1 | AN31: 1 | AO31: 1 | AP31: 1 | AQ31: 1 | AR31: 1 | AS31: 1 | AT31: 1 | AU31: 1 | AV31: 1 | AW31: 1 | AX31: 1 | AY31: 1 | AZ31: 1 | BA31: 1 | BB31: 1 | BC31: 1 | BD31: 1 | BE31: 1 | BF31: 1 | BG31: 1 | BH31: 1 | BI31: 1 | BJ31: 1 | BK31: 1 | BL31: 1 | BM31: 1 | BN31: 1 | BO31: 1 | BP31: 1 | BQ31: 1 | BR31: 1 | BS31: 1 | BT31: 1 | BU31: 1 | BV31: 1 | BW31: 1 | BX31: 1 | BY31: 1 | BZ31: 1 | CA31: 1 | CB31: 1 | CC31: 1 | CD31: 1 | CE31: 1 | CF31: 1 | CG31: 1 | CH31: 1 | CI31: 1 | CJ31: 1 | CK31: 1 | CL31: 1 | CM31: 1 | CN31: 1 | CO31: 1 | CP31: 1 | CQ31: 1 | CR31: 1 | CS31: 1 | CT31: 1 | CU31: 1 | CV31: 1 | CW31: 1 | CX31: 1 | CY31: 1 | CZ31: 1 | DA31: 1 | DB31: 1 | DC31: 1 | DD31: 1 | DE31: 1 | DF31: 1 | DG31: 1 | DH31: 1 | DI31: 1 | DJ31: 1 | DK31: 1 | DL31: 1 | DM31: 1 | DN31: 1
D32: High Seasonal Factor | E32: 0.6 | F32: 3 | G32: =IF(G29,$E$32,(1-$E$32+1)) -> 0.6 | H32: =IF(H29,$E$32,(1-$E$32+1)) -> 1.4 | I32: 0.6 | J32: 1.4 | K32: 0.6 | L32: 1.4 | M32: 0.6 | N32: 1.4 | O32: 0.6 | P32: 1.4 | Q32: 0.6 | R32: 1.4 | S32: 0.6 | T32: 1.4 | U32: 0.6 | V32: 1.4 | W32: 0.6 | X32: 1.4 | Y32: 0.6 | Z32: 1.4 | AA32: 0.6 | AB32: 1.4 | AC32: 0.6 | AD32: 1.4 | AE32: 0.6 | AF32: 1.4 | AG32: 0.6 | AH32: 1.4 | AI32: 0.6 | AJ32: 1.4 | AK32: 0.6 | AL32: 1.4 | AM32: 0.6 | AN32: 1.4 | AO32: 0.6 | AP32: 1.4 | AQ32: 0.6 | AR32: 1.4 | AS32: 0.6 | AT32: 1.4 | AU32: 0.6 | AV32: 1.4 | AW32: 0.6 | AX32: 1.4 | AY32: 0.6 | AZ32: 1.4 | BA32: 0.6 | BB32: 1.4 | BC32: 0.6 | BD32: 1.4 | BE32: 0.6 | BF32: 1.4 | BG32: 0.6 | BH32: 1.4 | BI32: 0.6 | BJ32: 1.4 | BK32: 0.6 | BL32: 1.4 | BM32: 0.6 | BN32: 1.4 | BO32: 0.6 | BP32: 1.4 | BQ32: 0.6 | BR32: 1.4 | BS32: 0.6 | BT32: =IF(BT29,$E$32,(1-$E$32+1)) -> 1.4 | BU32: 0.6 | BV32: 1.4 | BW32: 0.6 | BX32: 1.4 | BY32: 0.6 | BZ32: 1.4 | CA32: 0.6 | CB32: 1.4 | CC32: 0.6 | CD32: 1.4 | CE32: 0.6 | CF32: 1.4 | CG32: 0.6 | CH32: 1.4 | CI32: 0.6 | CJ32: 1.4 | CK32: 0.6 | CL32: 1.4 | CM32: 0.6 | CN32: 1.4 | CO32: 0.6 | CP32: 1.4 | CQ32: 0.6 | CR32: 1.4 | CS32: 0.6 | CT32: 0.6 | CU32: 0.6 | CV32: 0.6 | CW32: 0.6 | CX32: 0.6 | CY32: 0.6 | CZ32: 0.6 | DA32: 0.6 | DB32: 0.6 | DC32: 0.6 | DD32: 0.6 | DE32: 0.6 | DF32: 0.6 | DG32: 0.6 | DH32: 0.6 | DI32: 0.6 | DJ32: 0.6 | DK32: 0.6 | DL32: 0.6 | DM32: 0.6 | DN32: 0.6
D34: =INDEX(D30:D32,$E$29) -> Flat Seasonal Factor | F34: =INDEX(F30:F32,$E$29) -> 2 | G34: =INDEX(G30:G32,$E$29) -> 1 | H34: =INDEX(H30:H32,$E$29) -> 1 | I34: =INDEX(I30:I32,$E$29) -> 1 | J34: =INDEX(J30:J32,$E$29) -> 1 | K34: =INDEX(K30:K32,$E$29) -> 1 | L34: =INDEX(L30:L32,$E$29) -> 1 | M34: =INDEX(M30:M32,$E$29) -> 1 | N34: =INDEX(N30:N32,$E$29) -> 1 | O34: =INDEX(O30:O32,$E$29) -> 1 | P34: =INDEX(P30:P32,$E$29) -> 1 | Q34: =INDEX(Q30:Q32,$E$29) -> 1 | R34: =INDEX(R30:R32,$E$29) -> 1 | S34: =INDEX(S30:S32,$E$29) -> 1 | T34: =INDEX(T30:T32,$E$29) -> 1 | U34: =INDEX(U30:U32,$E$29) -> 1 | V34: =INDEX(V30:V32,$E$29) -> 1 | W34: =INDEX(W30:W32,$E$29) -> 1 | X34: =INDEX(X30:X32,$E$29) -> 1 | Y34: =INDEX(Y30:Y32,$E$29) -> 1 | Z34: =INDEX(Z30:Z32,$E$29) -> 1 | AA34: =INDEX(AA30:AA32,$E$29) -> 1 | AB34: =INDEX(AB30:AB32,$E$29) -> 1 | AC34: =INDEX(AC30:AC32,$E$29) -> 1 | AD34: =INDEX(AD30:AD32,$E$29) -> 1 | AE34: =INDEX(AE30:AE32,$E$29) -> 1 | AF34: =INDEX(AF30:AF32,$E$29) -> 1 | AG34: =INDEX(AG30:AG32,$E$29) -> 1 | AH34: =INDEX(AH30:AH32,$E$29) -> 1 | AI34: =INDEX(AI30:AI32,$E$29) -> 1 | AJ34: =INDEX(AJ30:AJ32,$E$29) -> 1 | AK34: =INDEX(AK30:AK32,$E$29) -> 1 | AL34: =INDEX(AL30:AL32,$E$29) -> 1 | AM34: =INDEX(AM30:AM32,$E$29) -> 1 | AN34: =INDEX(AN30:AN32,$E$29) -> 1 | AO34: =INDEX(AO30:AO32,$E$29) -> 1 | AP34: =INDEX(AP30:AP32,$E$29) -> 1 | AQ34: =INDEX(AQ30:AQ32,$E$29) -> 1 | AR34: =INDEX(AR30:AR32,$E$29) -> 1 | AS34: =INDEX(AS30:AS32,$E$29) -> 1 | AT34: =INDEX(AT30:AT32,$E$29) -> 1 | AU34: =INDEX(AU30:AU32,$E$29) -> 1 | AV34: =INDEX(AV30:AV32,$E$29) -> 1 | AW34: =INDEX(AW30:AW32,$E$29) -> 1 | AX34: =INDEX(AX30:AX32,$E$29) -> 1 | AY34: =INDEX(AY30:AY32,$E$29) -> 1 | AZ34: =INDEX(AZ30:AZ32,$E$29) -> 1 | BA34: =INDEX(BA30:BA32,$E$29) -> 1 | BB34: =INDEX(BB30:BB32,$E$29) -> 1 | BC34: =INDEX(BC30:BC32,$E$29) -> 1 | BD34: =INDEX(BD30:BD32,$E$29) -> 1 | BE34: =INDEX(BE30:BE32,$E$29) -> 1 | BF34: =INDEX(BF30:BF32,$E$29) -> 1 | BG34: =INDEX(BG30:BG32,$E$29) -> 1 | BH34: =INDEX(BH30:BH32,$E$29) -> 1 | BI34: =INDEX(BI30:BI32,$E$29) -> 1 | BJ34: =INDEX(BJ30:BJ32,$E$29) -> 1 | BK34: =INDEX(BK30:BK32,$E$29) -> 1 | BL34: =INDEX(BL30:BL32,$E$29) -> 1 | BM34: =INDEX(BM30:BM32,$E$29) -> 1 | BN34: =INDEX(BN30:BN32,$E$29) -> 1 | BO34: =INDEX(BO30:BO32,$E$29) -> 1 | BP34: =INDEX(BP30:BP32,$E$29) -> 1 | BQ34: =INDEX(BQ30:BQ32,$E$29) -> 1 | BR34: =INDEX(BR30:BR32,$E$29) -> 1 | BS34: =INDEX(BS30:BS32,$E$29) -> 1 | BT34: =INDEX(BT30:BT32,$E$29) -> 1 | BU34: =INDEX(BU30:BU32,$E$29) -> 1 | BV34: =INDEX(BV30:BV32,$E$29) -> 1 | BW34: =INDEX(BW30:BW32,$E$29) -> 1 | BX34: =INDEX(BX30:BX32,$E$29) -> 1 | BY34: =INDEX(BY30:BY32,$E$29) -> 1 | BZ34: =INDEX(BZ30:BZ32,$E$29) -> 1 | CA34: =INDEX(CA30:CA32,$E$29) -> 1 | CB34: =INDEX(CB30:CB32,$E$29) -> 1 | CC34: =INDEX(CC30:CC32,$E$29) -> 1 | CD34: =INDEX(CD30:CD32,$E$29) -> 1 | CE34: =INDEX(CE30:CE32,$E$29) -> 1 | CF34: =INDEX(CF30:CF32,$E$29) -> 1 | CG34: =INDEX(CG30:CG32,$E$29) -> 1 | CH34: =INDEX(CH30:CH32,$E$29) -> 1 | CI34: =INDEX(CI30:CI32,$E$29) -> 1 | CJ34: =INDEX(CJ30:CJ32,$E$29) -> 1 | CK34: =INDEX(CK30:CK32,$E$29) -> 1 | CL34: =INDEX(CL30:CL32,$E$29) -> 1 | CM34: =INDEX(CM30:CM32,$E$29) -> 1 | CN34: =INDEX(CN30:CN32,$E$29) -> 1 | CO34: =INDEX(CO30:CO32,$E$29) -> 1 | CP34: =INDEX(CP30:CP32,$E$29) -> 1 | CQ34: =INDEX(CQ30:CQ32,$E$29) -> 1 | CR34: =INDEX(CR30:CR32,$E$29) -> 1 | CS34: =INDEX(CS30:CS32,$E$29) -> 1 | CT34: =INDEX(CT30:CT32,$E$29) -> 1 | CU34: =INDEX(CU30:CU32,$E$29) -> 1 | CV34: =INDEX(CV30:CV32,$E$29) -> 1 | CW34: =INDEX(CW30:CW32,$E$29) -> 1 | CX34: =INDEX(CX30:CX32,$E$29) -> 1 | CY34: =INDEX(CY30:CY32,$E$29) -> 1 | CZ34: =INDEX(CZ30:CZ32,$E$29) -> 1 | DA34: =INDEX(DA30:DA32,$E$29) -> 1 | DB34: =INDEX(DB30:DB32,$E$29) -> 1 | DC34: =INDEX(DC30:DC32,$E$29) -> 1 | DD34: =INDEX(DD30:DD32,$E$29) -> 1 | DE34: =INDEX(DE30:DE32,$E$29) -> 1 | DF34: =INDEX(DF30:DF32,$E$29) -> 1 | DG34: =INDEX(DG30:DG32,$E$29) -> 1 | DH34: =INDEX(DH30:DH32,$E$29) -> 1 | DI34: =INDEX(DI30:DI32,$E$29) -> 1 | DJ34: =INDEX(DJ30:DJ32,$E$29) -> 1 | DK34: =INDEX(DK30:DK32,$E$29) -> 1 | DL34: =INDEX(DL30:DL32,$E$29) -> 1 | DM34: =INDEX(DM30:DM32,$E$29) -> 1 | DN34: =INDEX(DN30:DN32,$E$29) -> 1
B36: Financing
C37: Base Interest Rates | E37: 1 | G37: =E37=$E$55 -> TRUE | H37: =F37=$E$55 -> FALSE | I37: FALSE | J37: FALSE | K37: FALSE | L37: FALSE | M37: FALSE | N37: FALSE | O37: FALSE | P37: FALSE | Q37: FALSE | R37: FALSE | S37: FALSE | T37: FALSE | U37: FALSE | V37: FALSE | W37: FALSE | X37: FALSE | Y37: FALSE | Z37: FALSE | AA37: FALSE | AB37: FALSE | AC37: FALSE | AD37: FALSE | AE37: FALSE | AF37: FALSE | AG37: FALSE | AH37: FALSE | AI37: FALSE | AJ37: FALSE | AK37: FALSE | AL37: FALSE | AM37: FALSE | AN37: FALSE | AO37: FALSE | AP37: FALSE | AQ37: FALSE | AR37: FALSE | AS37: FALSE | AT37: FALSE | AU37: FALSE | AV37: FALSE | AW37: FALSE | AX37: FALSE | AY37: FALSE | AZ37: FALSE | BA37: FALSE | BB37: FALSE | BC37: FALSE | BD37: FALSE | BE37: FALSE | BF37: FALSE | BG37: FALSE | BH37: FALSE | BI37: FALSE | BJ37: FALSE | BK37: FALSE | BL37: FALSE | BM37: FALSE | BN37: FALSE | BO37: FALSE | BP37: FALSE | BQ37: FALSE | BR37: FALSE | BS37: FALSE | BT37: =BR37=$E$55 -> FALSE | BU37: FALSE | BV37: FALSE | BW37: FALSE | BX37: FALSE | BY37: FALSE | BZ37: FALSE | CA37: FALSE | CB37: FALSE | CC37: FALSE | CD37: FALSE | CE37: FALSE | CF37: FALSE | CG37: FALSE | CH37: FALSE | CI37: FALSE | CJ37: FALSE | CK37: FALSE | CL37: FALSE | CM37: FALSE | CN37: FALSE | CO37: FALSE | CP37: FALSE | CQ37: FALSE | CR37: FALSE | CS37: FALSE | CT37: FALSE | CU37: FALSE | CV37: FALSE | CW37: FALSE | CX37: FALSE | CY37: FALSE | CZ37: FALSE | DA37: FALSE | DB37: FALSE | DC37: FALSE | DD37: FALSE | DE37: FALSE | DF37: FALSE | DG37: FALSE | DH37: FALSE | DI37: FALSE | DJ37: FALSE | DK37: FALSE | DL37: FALSE | DM37: FALSE | DN37: FALSE
D38: EAIF & Proparco Periodic Interest Rate | G38: 0.07685467633 | H38: 0.07685467633 | I38: 0.07546798455 | J38: 0.07678515389 | K38: 0.07559879503 | L38: 0.0769050063 | M38: 0.07570345463 | N38: 0.07701127852 | O38: 0.07622696412 | P38: 0.07707128217 | Q38: 0.07582114156 | R38: 0.07717054996 | S38: 0.07600448369 | T38: 0.07737666123 | U38: 0.07622728912 | V38: 0.07749060701 | W38: 0.07664820251 | X38: 0.07749049045 | Y38: 0.07622705854 | Z38: 0.07749049045 | AA38: 0.07622705854 | AB38: 0.07749049045 | AC38: 0.07622705854 | AD38: 0.07749049045 | AE38: 0.07664820251 | AF38: 0.07749049045 | AG38: 0.07622705854 | AH38: 0.07749049045 | AI38: 0.07622705854 | AJ38: 0.07749049045 | AK38: 0.07622705854 | AL38: 0.07749049045 | AM38: 0.07749049045 | AN38: 0.07749049045 | AO38: 0.07749049045 | AP38: 0.07749049045 | AQ38: 0.07749049045 | AR38: 0.07749049045 | AS38: 0.07749049045 | AT38: 0.07749049045 | AU38: 0.07749049045 | AV38: 0.07749049045 | AW38: 0.07749049045 | AX38: 0.07749049045 | AY38: 0.07749049045 | AZ38: 0.07749049045 | BA38: 0.07749049045 | BB38: 0.07749049045 | BC38: 0.07749049045 | BD38: 0.07749049045 | BE38: 0.07749049045 | BF38: 0.07749049045 | BG38: 0.07749049045 | BH38: 0.07749049045 | BI38: 0.07749049045 | BJ38: 0.07749049045 | BK38: 0.07749049045 | BL38: 0.07749049045 | BM38: 0.07749049045 | BN38: 0.07749049045 | BO38: 0.07749049045 | BP38: 0.07749049045 | BQ38: 0.07749049045 | BR38: 0.07749049045 | BS38: 0.07749049045 | BT38: 0.07749049045 | BU38: 0.07749049045 | BV38: 0.07749049045 | BW38: 0.07749049045 | BX38: 0.07749049045 | BY38: 0.07749049045 | BZ38: 0.07749049045 | CA38: 0.07749049045 | CB38: 0.07749049045 | CC38: 0.07749049045 | CD38: 0.07749049045 | CE38: 0.07749049045 | CF38: 0.07749049045 | CG38: 0.07749049045 | CH38: 0.07749049045 | CI38: 0.07749049045 | CJ38: 0.07749049045 | CK38: 0.07749049045 | CL38: 0.07749049045 | CM38: 0.07749049045 | CN38: 0.07749049045 | CO38: 0.07749049045 | CP38: 0.07749049045 | CQ38: 0.07749049045 | CR38: 0.07749049045 | CS38: 0.07749049045 | CT38: 0.07749049045 | CU38: 0.07749049045 | CV38: 0.07749049045 | CW38: 0.07749049045 | CX38: 0.07749049045 | CY38: 0.07749049045 | CZ38: 0.07749049045 | DA38: 0.07749049045 | DB38: 0.07749049045 | DC38: 0.07749049045 | DD38: 0.07749049045 | DE38: 0.07749049045 | DF38: 0.07749049045 | DG38: 0.07749049045 | DH38: 0.07749049045 | DI38: 0.07749049045 | DJ38: 0.07749049045 | DK38: 0.07749049045 | DL38: 0.07749049045 | DM38: 0 | DN38: 0.04
D39: AFDB Periodic Interest Rate | G39: 0.08200409566 | H39: 0.08200409566 | I39: 0.08349912078 | J39: 0.08200409566 | K39: 0.08342959834 | L39: 0.08213490615 | M39: 0.08354945075 | N39: 0.08223956574 | O39: 0.08365572296 | P39: 0.08279918634 | Q39: 0.08371572661 | R39: 0.08235725267 | S39: 0.08381499441 | T39: 0.0825405948 | U39: 0.08402110567 | V39: 0.08276340024 | W39: 0.08413505145 | X39: 0.08322042473 | Y39: 0.08413493489 | Z39: 0.08276316965 | AA39: 0.08413493489 | AB39: 0.08276316965 | AC39: 0.08413493489 | AD39: 0.08276316965 | AE39: 0.08413493489 | AF39: 0.08322042473 | AG39: 0.08413493489 | AH39: 0.08276316965 | AI39: 0.08413493489 | AJ39: 0.08276316965 | AK39: 0.08413493489 | AL39: 0.08276316965 | AM39: 0.08276316965 | AN39: 0.08276316965 | AO39: 0.08276316965 | AP39: 0.08276316965 | AQ39: 0.08276316965 | AR39: 0.08276316965 | AS39: 0.08276316965 | AT39: 0.08276316965 | AU39: 0.08276316965 | AV39: 0.08276316965 | AW39: 0.08276316965 | AX39: 0.08276316965 | AY39: 0.08276316965 | AZ39: 0.08276316965 | BA39: 0.08276316965 | BB39: 0.08276316965 | BC39: 0.08276316965 | BD39: 0.08276316965 | BE39: 0.08276316965 | BF39: 0.08276316965 | BG39: 0.08276316965 | BH39: 0.08276316965 | BI39: 0.08276316965 | BJ39: 0.08276316965 | BK39: 0.08276316965 | BL39: 0.08276316965 | BM39: 0.08276316965 | BN39: 0.08276316965 | BO39: 0.08276316965 | BP39: 0.08276316965 | BQ39: 0.08276316965 | BR39: 0.08276316965 | BS39: 0.08276316965 | BT39: 0.08276316965 | BU39: 0.08276316965 | BV39: 0.08276316965 | BW39: 0.08276316965 | BX39: 0.08276316965 | BY39: 0.08276316965 | BZ39: 0.08276316965 | CA39: 0.08276316965 | CB39: 0.08276316965 | CC39: 0.08276316965 | CD39: 0.08276316965 | CE39: 0.08276316965 | CF39: 0.08276316965 | CG39: 0.08276316965 | CH39: 0.08276316965 | CI39: 0.08276316965 | CJ39: 0.08276316965 | CK39: 0.08276316965 | CL39: 0.08276316965 | CM39: 0.08276316965 | CN39: 0.08276316965 | CO39: 0.08276316965 | CP39: 0.08276316965 | CQ39: 0.08276316965 | CR39: 0.08276316965 | CS39: 0.08276316965 | CT39: 0.08276316965 | CU39: 0.08276316965 | CV39: 0.08276316965 | CW39: 0.08276316965 | CX39: 0.08276316965 | CY39: 0.08276316965 | CZ39: 0.08276316965 | DA39: 0.08276316965 | DB39: 0.08276316965 | DC39: 0.08276316965 | DD39: 0.08276316965 | DE39: 0.08276316965 | DF39: 0.08276316965 | DG39: 0.08276316965 | DH39: 0.08276316965 | DI39: 0.08276316965 | DJ39: 0.08276316965 | DK39: 0.08276316965 | DL39: 0.08276316965 | DM39: 0 | DN39: 0.04
D40: GFW Interest Rate | G40: 0.02 | H40: 0.02 | I40: 0.02 | J40: 0.02 | K40: 0.02 | L40: 0.02 | M40: 0.02 | N40: 0.02 | O40: 0.02 | P40: 0.02 | Q40: 0.02 | R40: 0.02 | S40: 0.02 | T40: 0.02 | U40: 0.02 | V40: 0.02 | W40: 0.02 | X40: 0.02 | Y40: 0.02 | Z40: 0.02 | AA40: 0.02 | AB40: 0.02 | AC40: 0.02 | AD40: 0.02 | AE40: 0.02 | AF40: 0.02 | AG40: 0.02 | AH40: 0.02 | AI40: 0.02 | AJ40: 0.02 | AK40: 0.02 | AL40: 0.02 | AM40: 0.02 | AN40: 0.02 | AO40: 0.02 | AP40: 0.02 | AQ40: 0.02 | AR40: 0.02 | AS40: 0.02 | AT40: 0.02 | AU40: 0.02 | AV40: 0.02 | AW40: 0.02 | AX40: 0.02 | AY40: 0.02 | AZ40: 0.02 | BA40: 0.02 | BB40: 0.02 | BC40: 0.02 | BD40: 0.02 | BE40: 0.02 | BF40: 0.02 | BG40: 0.02 | BH40: 0.02 | BI40: 0.02 | BJ40: 0.02 | BK40: 0.02 | BL40: 0.02 | BM40: 0.02 | BN40: 0.02 | BO40: 0.02 | BP40: 0.02 | BQ40: 0.02 | BR40: 0.02 | BS40: 0.02 | BT40: 0.02 | BU40: 0.02 | BV40: 0.02 | BW40: 0.02 | BX40: 0.02 | BY40: 0.02 | BZ40: 0.02 | CA40: 0.02 | CB40: 0.02 | CC40: 0.02 | CD40: 0.02 | CE40: 0.02 | CF40: 0.02 | CG40: 0.02 | CH40: 0.02 | CI40: 0.02 | CJ40: 0.02 | CK40: 0.02 | CL40: 0.02 | CM40: 0.02 | CN40: 0.02 | CO40: 0.02 | CP40: 0.02 | CQ40: 0.02 | CR40: 0.02 | CS40: 0.02 | CT40: 0.02 | CU40: 0.02 | CV40: 0.02 | CW40: 0.02 | CX40: 0.02 | CY40: 0.02 | CZ40: 0.02 | DA40: 0.02 | DB40: 0.02 | DC40: 0.02 | DD40: 0.02 | DE40: 0.02 | DF40: 0.02 | DG40: 0.02 | DH40: 0.02 | DI40: 0.02 | DJ40: 0.02 | DK40: 0.02 | DL40: 0.02 | DM40: 0.02 | DN40: 0.08
D41: IFC Interest Rate | G41: 0.004 | H41: 0.004 | I41: 0.004 | J41: 0.004 | K41: 0.004 | L41: 0.004 | M41: 0.004 | N41: 0.004 | O41: 0.004 | P41: 0.004 | Q41: 0.004 | R41: 0.004 | S41: 0.004 | T41: 0.004 | U41: 0.004 | V41: 0.004 | W41: 0.004 | X41: 0.004 | Y41: 0.004 | Z41: 0.004 | AA41: 0.004 | AB41: 0.004 | AC41: 0.004 | AD41: 0.004 | AE41: 0.004 | AF41: 0.004 | AG41: 0.004 | AH41: 0.004 | AI41: 0.004 | AJ41: 0.004 | AK41: 0.004 | AL41: 0.004 | AM41: 0.004 | AN41: 0.004 | AO41: 0.004 | AP41: 0.004 | AQ41: 0.004 | AR41: 0.004 | AS41: 0.004 | AT41: 0.004 | AU41: 0.004 | AV41: 0.004 | AW41: 0.004 | AX41: 0.004 | AY41: 0.004 | AZ41: 0.004 | BA41: 0.004 | BB41: 0.004 | BC41: 0.004 | BD41: 0.004 | BE41: 0.004 | BF41: 0.004 | BG41: 0.004 | BH41: 0.004 | BI41: 0.004 | BJ41: 0.004 | BK41: 0.004 | BL41: 0.004 | BM41: 0.004 | BN41: 0.004 | BO41: 0.004 | BP41: 0.004 | BQ41: 0.004 | BR41: 0.004 | BS41: 0.004 | BT41: 0.004 | BU41: 0.004 | BV41: 0.004 | BW41: 0.004 | BX41: 0.004 | BY41: 0.004 | BZ41: 0.004 | CA41: 0.004 | CB41: 0.004 | CC41: 0.004 | CD41: 0.004 | CE41: 0.004 | CF41: 0.004 | CG41: 0.004 | CH41: 0.004 | CI41: 0.004 | CJ41: 0.004 | CK41: 0.004 | CL41: 0.004 | CM41: 0.004 | CN41: 0.004 | CO41: 0.004 | CP41: 0.004 | CQ41: 0.004 | CR41: 0.004 | CS41: 0.004 | CT41: 0.004 | CU41: 0.004 | CV41: 0.004 | CW41: 0.004 | CX41: 0.004 | CY41: 0.004 | CZ41: 0.004 | DA41: 0.004 | DB41: 0.004 | DC41: 0.004 | DD41: 0.004 | DE41: 0.004 | DF41: 0.004 | DG41: 0.004 | DH41: 0.004 | DI41: 0.004 | DJ41: 0.004 | DK41: 0.004 | DL41: 0.004 | DM41: 0.004 | DN41: 0.08
C43: Equal Flat | E43: 2
D44: EAIF & Proparco Periodic Interest Rate | G44: 0.04 | H44: 0.04 | I44: 0.04 | J44: 0.04 | K44: 0.04 | L44: 0.04 | M44: 0.04 | N44: 0.04 | O44: 0.04 | P44: 0.04 | Q44: 0.04 | R44: 0.04 | S44: 0.04 | T44: 0.04 | U44: 0.04 | V44: 0.04 | W44: 0.04 | X44: 0.04 | Y44: 0.04 | Z44: 0.04 | AA44: 0.04 | AB44: 0.04 | AC44: 0.04 | AD44: 0.04 | AE44: 0.04 | AF44: 0.04 | AG44: 0.04 | AH44: 0.04 | AI44: 0.04 | AJ44: 0.04 | AK44: 0.04 | AL44: 0.04 | AM44: 0.04 | AN44: 0.04 | AO44: 0.04 | AP44: 0.04 | AQ44: 0.04 | AR44: 0.04 | AS44: 0.04 | AT44: 0.04 | AU44: 0.04 | AV44: 0.04 | AW44: 0.04 | AX44: 0.04 | AY44: 0.04 | AZ44: 0.04 | BA44: 0.04 | BB44: 0.04 | BC44: 0.04 | BD44: 0.04 | BE44: 0.04 | BF44: 0.04 | BG44: 0.04 | BH44: 0.04 | BI44: 0.04 | BJ44: 0.04 | BK44: 0.04 | BL44: 0.04 | BM44: 0.04 | BN44: 0.04 | BO44: 0.04 | BP44: 0.04 | BQ44: 0.04 | BR44: 0.04 | BS44: 0.04 | BT44: 0.04 | BU44: 0.04 | BV44: 0.04 | BW44: 0.04 | BX44: 0.04 | BY44: 0.04 | BZ44: 0.04 | CA44: 0.04 | CB44: 0.04 | CC44: 0.04 | CD44: 0.04 | CE44: 0.04 | CF44: 0.04 | CG44: 0.04 | CH44: 0.04 | CI44: 0.04 | CJ44: 0.04 | CK44: 0.04 | CL44: 0.04 | CM44: 0.04 | CN44: 0.04 | CO44: 0.04 | CP44: 0.04 | CQ44: 0.04 | CR44: 0.04 | CS44: 0.04 | CT44: 0.04 | CU44: 0.04 | CV44: 0.04 | CW44: 0.04 | CX44: 0.04 | CY44: 0.04 | CZ44: 0.04 | DA44: 0.04 | DB44: 0.04 | DC44: 0.04 | DD44: 0.04 | DE44: 0.04 | DF44: 0.04 | DG44: 0.04 | DH44: 0.04 | DI44: 0.04 | DJ44: 0.04 | DK44: 0.04 | DL44: 0.04 | DM44: 0.04 | DN44: 0.04
D45: AFDB Periodic Interest Rate | G45: 0.04 | H45: 0.04 | I45: 0.04 | J45: 0.04 | K45: 0.04 | L45: 0.04 | M45: 0.04 | N45: 0.04 | O45: 0.04 | P45: 0.04 | Q45: 0.04 | R45: 0.04 | S45: 0.04 | T45: 0.04 | U45: 0.04 | V45: 0.04 | W45: 0.04 | X45: 0.04 | Y45: 0.04 | Z45: 0.04 | AA45: 0.04 | AB45: 0.04 | AC45: 0.04 | AD45: 0.04 | AE45: 0.04 | AF45: 0.04 | AG45: 0.04 | AH45: 0.04 | AI45: 0.04 | AJ45: 0.04 | AK45: 0.04 | AL45: 0.04 | AM45: 0.04 | AN45: 0.04 | AO45: 0.04 | AP45: 0.04 | AQ45: 0.04 | AR45: 0.04 | AS45: 0.04 | AT45: 0.04 | AU45: 0.04 | AV45: 0.04 | AW45: 0.04 | AX45: 0.04 | AY45: 0.04 | AZ45: 0.04 | BA45: 0.04 | BB45: 0.04 | BC45: 0.04 | BD45: 0.04 | BE45: 0.04 | BF45: 0.04 | BG45: 0.04 | BH45: 0.04 | BI45: 0.04 | BJ45: 0.04 | BK45: 0.04 | BL45: 0.04 | BM45: 0.04 | BN45: 0.04 | BO45: 0.04 | BP45: 0.04 | BQ45: 0.04 | BR45: 0.04 | BS45: 0.04 | BT45: 0.04 | BU45: 0.04 | BV45: 0.04 | BW45: 0.04 | BX45: 0.04 | BY45: 0.04 | BZ45: 0.04 | CA45: 0.04 | CB45: 0.04 | CC45: 0.04 | CD45: 0.04 | CE45: 0.04 | CF45: 0.04 | CG45: 0.04 | CH45: 0.04 | CI45: 0.04 | CJ45: 0.04 | CK45: 0.04 | CL45: 0.04 | CM45: 0.04 | CN45: 0.04 | CO45: 0.04 | CP45: 0.04 | CQ45: 0.04 | CR45: 0.04 | CS45: 0.04 | CT45: 0.04 | CU45: 0.04 | CV45: 0.04 | CW45: 0.04 | CX45: 0.04 | CY45: 0.04 | CZ45: 0.04 | DA45: 0.04 | DB45: 0.04 | DC45: 0.04 | DD45: 0.04 | DE45: 0.04 | DF45: 0.04 | DG45: 0.04 | DH45: 0.04 | DI45: 0.04 | DJ45: 0.04 | DK45: 0.04 | DL45: 0.04 | DM45: 0.04 | DN45: 0.04
D46: GFW Interest Rate | G46: 0.04 | H46: 0.04 | I46: 0.04 | J46: 0.04 | K46: 0.04 | L46: 0.04 | M46: 0.04 | N46: 0.04 | O46: 0.04 | P46: 0.04 | Q46: 0.04 | R46: 0.04 | S46: 0.04 | T46: 0.04 | U46: 0.04 | V46: 0.04 | W46: 0.04 | X46: 0.04 | Y46: 0.04 | Z46: 0.04 | AA46: 0.04 | AB46: 0.04 | AC46: 0.04 | AD46: 0.04 | AE46: 0.04 | AF46: 0.04 | AG46: 0.04 | AH46: 0.04 | AI46: 0.04 | AJ46: 0.04 | AK46: 0.04 | AL46: 0.04 | AM46: 0.04 | AN46: 0.04 | AO46: 0.04 | AP46: 0.04 | AQ46: 0.04 | AR46: 0.04 | AS46: 0.04 | AT46: 0.04 | AU46: 0.04 | AV46: 0.04 | AW46: 0.04 | AX46: 0.04 | AY46: 0.04 | AZ46: 0.04 | BA46: 0.04 | BB46: 0.04 | BC46: 0.04 | BD46: 0.04 | BE46: 0.04 | BF46: 0.04 | BG46: 0.04 | BH46: 0.04 | BI46: 0.04 | BJ46: 0.04 | BK46: 0.04 | BL46: 0.04 | BM46: 0.04 | BN46: 0.04 | BO46: 0.04 | BP46: 0.04 | BQ46: 0.04 | BR46: 0.04 | BS46: 0.04 | BT46: 0.04 | BU46: 0.04 | BV46: 0.04 | BW46: 0.04 | BX46: 0.04 | BY46: 0.04 | BZ46: 0.04 | CA46: 0.04 | CB46: 0.04 | CC46: 0.04 | CD46: 0.04 | CE46: 0.04 | CF46: 0.04 | CG46: 0.04 | CH46: 0.04 | CI46: 0.04 | CJ46: 0.04 | CK46: 0.04 | CL46: 0.04 | CM46: 0.04 | CN46: 0.04 | CO46: 0.04 | CP46: 0.04 | CQ46: 0.04 | CR46: 0.04 | CS46: 0.04 | CT46: 0.04 | CU46: 0.04 | CV46: 0.04 | CW46: 0.04 | CX46: 0.04 | CY46: 0.04 | CZ46: 0.04 | DA46: 0.04 | DB46: 0.04 | DC46: 0.04 | DD46: 0.04 | DE46: 0.04 | DF46: 0.04 | DG46: 0.04 | DH46: 0.04 | DI46: 0.04 | DJ46: 0.04 | DK46: 0.04 | DL46: 0.04 | DM46: 0.04 | DN46: 0.04
D47: IFC Interest Rate | G47: 0.04 | H47: 0.04 | I47: 0.04 | J47: 0.04 | K47: 0.04 | L47: 0.04 | M47: 0.04 | N47: 0.04 | O47: 0.04 | P47: 0.04 | Q47: 0.04 | R47: 0.04 | S47: 0.04 | T47: 0.04 | U47: 0.04 | V47: 0.04 | W47: 0.04 | X47: 0.04 | Y47: 0.04 | Z47: 0.04 | AA47: 0.04 | AB47: 0.04 | AC47: 0.04 | AD47: 0.04 | AE47: 0.04 | AF47: 0.04 | AG47: 0.04 | AH47: 0.04 | AI47: 0.04 | AJ47: 0.04 | AK47: 0.04 | AL47: 0.04 | AM47: 0.04 | AN47: 0.04 | AO47: 0.04 | AP47: 0.04 | AQ47: 0.04 | AR47: 0.04 | AS47: 0.04 | AT47: 0.04 | AU47: 0.04 | AV47: 0.04 | AW47: 0.04 | AX47: 0.04 | AY47: 0.04 | AZ47: 0.04 | BA47: 0.04 | BB47: 0.04 | BC47: 0.04 | BD47: 0.04 | BE47: 0.04 | BF47: 0.04 | BG47: 0.04 | BH47: 0.04 | BI47: 0.04 | BJ47: 0.04 | BK47: 0.04 | BL47: 0.04 | BM47: 0.04 | BN47: 0.04 | BO47: 0.04 | BP47: 0.04 | BQ47: 0.04 | BR47: 0.04 | BS47: 0.04 | BT47: 0.04 | BU47: 0.04 | BV47: 0.04 | BW47: 0.04 | BX47: 0.04 | BY47: 0.04 | BZ47: 0.04 | CA47: 0.04 | CB47: 0.04 | CC47: 0.04 | CD47: 0.04 | CE47: 0.04 | CF47: 0.04 | CG47: 0.04 | CH47: 0.04 | CI47: 0.04 | CJ47: 0.04 | CK47: 0.04 | CL47: 0.04 | CM47: 0.04 | CN47: 0.04 | CO47: 0.04 | CP47: 0.04 | CQ47: 0.04 | CR47: 0.04 | CS47: 0.04 | CT47: 0.04 | CU47: 0.04 | CV47: 0.04 | CW47: 0.04 | CX47: 0.04 | CY47: 0.04 | CZ47: 0.04 | DA47: 0.04 | DB47: 0.04 | DC47: 0.04 | DD47: 0.04 | DE47: 0.04 | DF47: 0.04 | DG47: 0.04 | DH47: 0.04 | DI47: 0.04 | DJ47: 0.04 | DK47: 0.04 | DL47: 0.04 | DM47: 0.04 | DN47: 0.04
C49: Equal Increasing | E49: 3
D50: EAIF & Proparco Periodic Interest Rate | G50: 0.02 | H50: 0.02 | I50: =H50+0.05% -> 0.0205 | J50: =I50+0.05% -> 0.021 | K50: 0.0215 | L50: 0.022 | M50: 0.0225 | N50: 0.023 | O50: 0.0235 | P50: 0.024 | Q50: 0.0245 | R50: 0.025 | S50: 0.0255 | T50: 0.026 | U50: 0.0265 | V50: 0.027 | W50: 0.0275 | X50: 0.028 | Y50: 0.0285 | Z50: 0.029 | AA50: 0.0295 | AB50: 0.03 | AC50: 0.0305 | AD50: 0.031 | AE50: 0.0315 | AF50: 0.032 | AG50: 0.0325 | AH50: 0.033 | AI50: 0.0335 | AJ50: 0.034 | AK50: 0.0345 | AL50: 0.035 | AM50: 0.0355 | AN50: 0.036 | AO50: 0.0365 | AP50: 0.037 | AQ50: 0.0375 | AR50: 0.038 | AS50: 0.0385 | AT50: 0.039 | AU50: 0.0395 | AV50: 0.04 | AW50: 0.0405 | AX50: 0.041 | AY50: 0.0415 | AZ50: 0.042 | BA50: 0.0425 | BB50: 0.043 | BC50: 0.0435 | BD50: 0.044 | BE50: 0.0445 | BF50: 0.045 | BG50: 0.0455 | BH50: 0.046 | BI50: 0.0465 | BJ50: 0.047 | BK50: 0.0475 | BL50: 0.048 | BM50: 0.0485 | BN50: 0.049 | BO50: 0.0495 | BP50: 0.05 | BQ50: 0.0505 | BR50: 0.051 | BS50: 0.0515 | BT50: 0.052 | BU50: 0.0525 | BV50: =BU50+0.05% -> 0.053 | BW50: 0.0535 | BX50: 0.054 | BY50: 0.0545 | BZ50: 0.055 | CA50: 0.0555 | CB50: 0.056 | CC50: 0.0565 | CD50: 0.057 | CE50: 0.0575 | CF50: 0.058 | CG50: 0.0585 | CH50: 0.059 | CI50: 0.0595 | CJ50: 0.06 | CK50: 0.0605 | CL50: 0.061 | CM50: 0.0615 | CN50: 0.062 | CO50: 0.0625 | CP50: 0.063 | CQ50: 0.0635 | CR50: 0.064 | CS50: 0.0645 | CT50: 0.065 | CU50: 0.0655 | CV50: 0.066 | CW50: 0.0665 | CX50: 0.067 | CY50: 0.0675 | CZ50: 0.068 | DA50: 0.0685 | DB50: 0.069 | DC50: 0.0695 | DD50: 0.07 | DE50: 0.0705 | DF50: 0.071 | DG50: 0.0715 | DH50: 0.072 | DI50: 0.0725 | DJ50: 0.073 | DK50: 0.0735 | DL50: 0.074 | DM50: 0.0745 | DN50: 0.075
D51: AFDB Periodic Interest Rate | G51: 0.02 | H51: 0.02 | I51: =H51+0.05% -> 0.0205 | J51: 0.021 | K51: 0.0215 | L51: 0.022 | M51: 0.0225 | N51: 0.023 | O51: 0.0235 | P51: 0.024 | Q51: 0.0245 | R51: 0.025 | S51: 0.0255 | T51: 0.026 | U51: 0.0265 | V51: 0.027 | W51: 0.0275 | X51: 0.028 | Y51: 0.0285 | Z51: 0.029 | AA51: 0.0295 | AB51: 0.03 | AC51: 0.0305 | AD51: 0.031 | AE51: 0.0315 | AF51: 0.032 | AG51: 0.0325 | AH51: 0.033 | AI51: 0.0335 | AJ51: 0.034 | AK51: 0.0345 | AL51: 0.035 | AM51: 0.0355 | AN51: 0.036 | AO51: 0.0365 | AP51: 0.037 | AQ51: 0.0375 | AR51: 0.038 | AS51: 0.0385 | AT51: 0.039 | AU51: 0.0395 | AV51: 0.04 | AW51: 0.0405 | AX51: 0.041 | AY51: 0.0415 | AZ51: 0.042 | BA51: 0.0425 | BB51: 0.043 | BC51: 0.0435 | BD51: 0.044 | BE51: 0.0445 | BF51: 0.045 | BG51: 0.0455 | BH51: 0.046 | BI51: 0.0465 | BJ51: 0.047 | BK51: 0.0475 | BL51: 0.048 | BM51: 0.0485 | BN51: 0.049 | BO51: 0.0495 | BP51: 0.05 | BQ51: 0.0505 | BR51: 0.051 | BS51: 0.0515 | BT51: 0.052 | BU51: 0.0525 | BV51: 0.053 | BW51: 0.0535 | BX51: 0.054 | BY51: 0.0545 | BZ51: 0.055 | CA51: 0.0555 | CB51: 0.056 | CC51: 0.0565 | CD51: 0.057 | CE51: 0.0575 | CF51: 0.058 | CG51: 0.0585 | CH51: 0.059 | CI51: 0.0595 | CJ51: 0.06 | CK51: 0.0605 | CL51: 0.061 | CM51: 0.0615 | CN51: 0.062 | CO51: 0.0625 | CP51: 0.063 | CQ51: 0.0635 | CR51: 0.064 | CS51: 0.0645 | CT51: 0.065 | CU51: 0.0655 | CV51: 0.066 | CW51: 0.0665 | CX51: 0.067 | CY51: 0.0675 | CZ51: 0.068 | DA51: 0.0685 | DB51: 0.069 | DC51: 0.0695 | DD51: 0.07 | DE51: 0.0705 | DF51: 0.071 | DG51: 0.0715 | DH51: 0.072 | DI51: 0.0725 | DJ51: 0.073 | DK51: 0.0735 | DL51: 0.074 | DM51: 0.0745 | DN51: 0.075
D52: GFW Interest Rate | G52: 0.02 | H52: 0.02 | I52: 0.0205 | J52: 0.021 | K52: 0.0215 | L52: 0.022 | M52: 0.0225 | N52: 0.023 | O52: 0.0235 | P52: 0.024 | Q52: 0.0245 | R52: 0.025 | S52: 0.0255 | T52: 0.026 | U52: 0.0265 | V52: 0.027 | W52: 0.0275 | X52: 0.028 | Y52: 0.0285 | Z52: 0.029 | AA52: 0.0295 | AB52: 0.03 | AC52: 0.0305 | AD52: 0.031 | AE52: 0.0315 | AF52: 0.032 | AG52: 0.0325 | AH52: 0.033 | AI52: 0.0335 | AJ52: 0.034 | AK52: 0.0345 | AL52: 0.035 | AM52: 0.0355 | AN52: 0.036 | AO52: 0.0365 | AP52: 0.037 | AQ52: 0.0375 | AR52: 0.038 | AS52: 0.0385 | AT52: 0.039 | AU52: 0.0395 | AV52: 0.04 | AW52: 0.0405 | AX52: 0.041 | AY52: 0.0415 | AZ52: 0.042 | BA52: 0.0425 | BB52: 0.043 | BC52: 0.0435 | BD52: 0.044 | BE52: 0.0445 | BF52: 0.045 | BG52: 0.0455 | BH52: 0.046 | BI52: 0.0465 | BJ52: 0.047 | BK52: 0.0475 | BL52: 0.048 | BM52: 0.0485 | BN52: 0.049 | BO52: 0.0495 | BP52: 0.05 | BQ52: 0.0505 | BR52: 0.051 | BS52: 0.0515 | BT52: 0.052 | BU52: 0.0525 | BV52: 0.053 | BW52: 0.0535 | BX52: 0.054 | BY52: 0.0545 | BZ52: 0.055 | CA52: 0.0555 | CB52: 0.056 | CC52: 0.0565 | CD52: 0.057 | CE52: 0.0575 | CF52: 0.058 | CG52: 0.0585 | CH52: 0.059 | CI52: 0.0595 | CJ52: 0.06 | CK52: 0.0605 | CL52: 0.061 | CM52: 0.0615 | CN52: 0.062 | CO52: 0.0625 | CP52: 0.063 | CQ52: 0.0635 | CR52: 0.064 | CS52: 0.0645 | CT52: 0.065 | CU52: 0.0655 | CV52: 0.066 | CW52: 0.0665 | CX52: 0.067 | CY52: 0.0675 | CZ52: 0.068 | DA52: 0.0685 | DB52: 0.069 | DC52: 0.0695 | DD52: 0.07 | DE52: 0.0705 | DF52: 0.071 | DG52: 0.0715 | DH52: 0.072 | DI52: 0.0725 | DJ52: 0.073 | DK52: 0.0735 | DL52: 0.074 | DM52: 0.0745 | DN52: 0.075
D53: IFC Interest Rate | G53: 0.02 | H53: 0.02 | I53: 0.0205 | J53: 0.021 | K53: 0.0215 | L53: 0.022 | M53: 0.0225 | N53: 0.023 | O53: 0.0235 | P53: 0.024 | Q53: 0.0245 | R53: 0.025 | S53: 0.0255 | T53: 0.026 | U53: 0.0265 | V53: 0.027 | W53: 0.0275 | X53: 0.028 | Y53: 0.0285 | Z53: 0.029 | AA53: 0.0295 | AB53: 0.03 | AC53: 0.0305 | AD53: 0.031 | AE53: 0.0315 | AF53: 0.032 | AG53: 0.0325 | AH53: 0.033 | AI53: 0.0335 | AJ53: 0.034 | AK53: 0.0345 | AL53: 0.035 | AM53: 0.0355 | AN53: 0.036 | AO53: 0.0365 | AP53: 0.037 | AQ53: 0.0375 | AR53: 0.038 | AS53: 0.0385 | AT53: 0.039 | AU53: 0.0395 | AV53: 0.04 | AW53: 0.0405 | AX53: 0.041 | AY53: 0.0415 | AZ53: 0.042 | BA53: 0.0425 | BB53: 0.043 | BC53: 0.0435 | BD53: 0.044 | BE53: 0.0445 | BF53: 0.045 | BG53: 0.0455 | BH53: 0.046 | BI53: 0.0465 | BJ53: 0.047 | BK53: 0.0475 | BL53: 0.048 | BM53: 0.0485 | BN53: 0.049 | BO53: 0.0495 | BP53: 0.05 | BQ53: 0.0505 | BR53: 0.051 | BS53: 0.0515 | BT53: 0.052 | BU53: 0.0525 | BV53: 0.053 | BW53: 0.0535 | BX53: 0.054 | BY53: 0.0545 | BZ53: 0.055 | CA53: 0.0555 | CB53: 0.056 | CC53: 0.0565 | CD53: 0.057 | CE53: 0.0575 | CF53: 0.058 | CG53: 0.0585 | CH53: 0.059 | CI53: 0.0595 | CJ53: 0.06 | CK53: 0.0605 | CL53: 0.061 | CM53: 0.0615 | CN53: 0.062 | CO53: 0.0625 | CP53: 0.063 | CQ53: 0.0635 | CR53: 0.064 | CS53: 0.0645 | CT53: 0.065 | CU53: 0.0655 | CV53: 0.066 | CW53: 0.0665 | CX53: 0.067 | CY53: 0.0675 | CZ53: 0.068 | DA53: 0.0685 | DB53: 0.069 | DC53: 0.0695 | DD53: 0.07 | DE53: 0.0705 | DF53: 0.071 | DG53: 0.0715 | DH53: 0.072 | DI53: 0.0725 | DJ53: 0.073 | DK53: 0.0735 | DL53: 0.074 | DM53: 0.0745 | DN53: 0.075
C55: Interest Rate Applied | E55: ='InputC - Structure'!G52 -> 1
D56: EAIF & Proparco Periodic Interest Rate | G56: =CHOOSE($E$55,G38,G44,G50) -> 0.07685467633 | H56: =CHOOSE($E$55,H38,H44,H50) -> 0.07685467633 | I56: 0.07546798455 | J56: 0.07678515389 | K56: 0.07559879503 | L56: 0.0769050063 | M56: 0.07570345463 | N56: 0.07701127852 | O56: 0.07622696412 | P56: 0.07707128217 | Q56: 0.07582114156 | R56: 0.07717054996 | S56: 0.07600448369 | T56: 0.07737666123 | U56: 0.07622728912 | V56: 0.07749060701 | W56: 0.07664820251 | X56: 0.07749049045 | Y56: 0.07622705854 | Z56: 0.07749049045 | AA56: 0.07622705854 | AB56: 0.07749049045 | AC56: 0.07622705854 | AD56: 0.07749049045 | AE56: 0.07664820251 | AF56: 0.07749049045 | AG56: 0.07622705854 | AH56: 0.07749049045 | AI56: 0.07622705854 | AJ56: 0.07749049045 | AK56: 0.07622705854 | AL56: 0.07749049045 | AM56: 0.07749049045 | AN56: 0.07749049045 | AO56: 0.07749049045 | AP56: 0.07749049045 | AQ56: 0.07749049045 | AR56: 0.07749049045 | AS56: 0.07749049045 | AT56: 0.07749049045 | AU56: 0.07749049045 | AV56: 0.07749049045 | AW56: 0.07749049045 | AX56: 0.07749049045 | AY56: 0.07749049045 | AZ56: 0.07749049045 | BA56: 0.07749049045 | BB56: 0.07749049045 | BC56: 0.07749049045 | BD56: 0.07749049045 | BE56: 0.07749049045 | BF56: 0.07749049045 | BG56: 0.07749049045 | BH56: 0.07749049045 | BI56: 0.07749049045 | BJ56: 0.07749049045 | BK56: 0.07749049045 | BL56: 0.07749049045 | BM56: 0.07749049045 | BN56: 0.07749049045 | BO56: 0.07749049045 | BP56: 0.07749049045 | BQ56: 0.07749049045 | BR56: 0.07749049045 | BS56: 0.07749049045 | BT56: =CHOOSE($E$55,BT38,BT44,BT50) -> 0.07749049045 | BU56: 0.07749049045 | BV56: 0.07749049045 | BW56: 0.07749049045 | BX56: 0.07749049045 | BY56: 0.07749049045 | BZ56: 0.07749049045 | CA56: 0.07749049045 | CB56: 0.07749049045 | CC56: 0.07749049045 | CD56: 0.07749049045 | CE56: 0.07749049045 | CF56: 0.07749049045 | CG56: 0.07749049045 | CH56: 0.07749049045 | CI56: 0.07749049045 | CJ56: 0.07749049045 | CK56: 0.07749049045 | CL56: 0.07749049045 | CM56: 0.07749049045 | CN56: 0.07749049045 | CO56: 0.07749049045 | CP56: 0.07749049045 | CQ56: 0.07749049045 | CR56: 0.07749049045 | CS56: 0.07749049045 | CT56: 0.07749049045 | CU56: 0.07749049045 | CV56: 0.07749049045 | CW56: 0.07749049045 | CX56: 0.07749049045 | CY56: 0.07749049045 | CZ56: 0.07749049045 | DA56: 0.07749049045 | DB56: 0.07749049045 | DC56: 0.07749049045 | DD56: 0.07749049045 | DE56: 0.07749049045 | DF56: 0.07749049045 | DG56: 0.07749049045 | DH56: 0.07749049045 | DI56: 0.07749049045 | DJ56: 0.07749049045 | DK56: 0.07749049045 | DL56: 0.07749049045 | DM56: 0 | DN56: 0.04
D57: AFDB Periodic Interest Rate | G57: =CHOOSE($E$55,G39,G45,G51) -> 0.08200409566 | H57: 0.08200409566 | I57: 0.08349912078 | J57: 0.08200409566 | K57: 0.08342959834 | L57: 0.08213490615 | M57: 0.08354945075 | N57: 0.08223956574 | O57: 0.08365572296 | P57: 0.08279918634 | Q57: 0.08371572661 | R57: 0.08235725267 | S57: 0.08381499441 | T57: 0.0825405948 | U57: 0.08402110567 | V57: 0.08276340024 | W57: 0.08413505145 | X57: 0.08322042473 | Y57: 0.08413493489 | Z57: 0.08276316965 | AA57: 0.08413493489 | AB57: 0.08276316965 | AC57: 0.08413493489 | AD57: 0.08276316965 | AE57: 0.08413493489 | AF57: 0.08322042473 | AG57: 0.08413493489 | AH57: 0.08276316965 | AI57: 0.08413493489 | AJ57: 0.08276316965 | AK57: 0.08413493489 | AL57: 0.08276316965 | AM57: 0.08276316965 | AN57: 0.08276316965 | AO57: 0.08276316965 | AP57: 0.08276316965 | AQ57: 0.08276316965 | AR57: 0.08276316965 | AS57: 0.08276316965 | AT57: 0.08276316965 | AU57: 0.08276316965 | AV57: 0.08276316965 | AW57: 0.08276316965 | AX57: 0.08276316965 | AY57: 0.08276316965 | AZ57: 0.08276316965 | BA57: 0.08276316965 | BB57: 0.08276316965 | BC57: 0.08276316965 | BD57: 0.08276316965 | BE57: 0.08276316965 | BF57: 0.08276316965 | BG57: 0.08276316965 | BH57: 0.08276316965 | BI57: 0.08276316965 | BJ57: 0.08276316965 | BK57: 0.08276316965 | BL57: 0.08276316965 | BM57: 0.08276316965 | BN57: 0.08276316965 | BO57: 0.08276316965 | BP57: 0.08276316965 | BQ57: 0.08276316965 | BR57: 0.08276316965 | BS57: =CHOOSE($E$55,BS39,BS45,BS51) -> 0.08276316965 | BT57: 0.08276316965 | BU57: 0.08276316965 | BV57: 0.08276316965 | BW57: 0.08276316965 | BX57: 0.08276316965 | BY57: 0.08276316965 | BZ57: 0.08276316965 | CA57: 0.08276316965 | CB57: 0.08276316965 | CC57: 0.08276316965 | CD57: 0.08276316965 | CE57: 0.08276316965 | CF57: 0.08276316965 | CG57: 0.08276316965 | CH57: 0.08276316965 | CI57: 0.08276316965 | CJ57: 0.08276316965 | CK57: 0.08276316965 | CL57: 0.08276316965 | CM57: 0.08276316965 | CN57: 0.08276316965 | CO57: 0.08276316965 | CP57: 0.08276316965 | CQ57: 0.08276316965 | CR57: 0.08276316965 | CS57: 0.08276316965 | CT57: 0.08276316965 | CU57: 0.08276316965 | CV57: 0.08276316965 | CW57: 0.08276316965 | CX57: 0.08276316965 | CY57: 0.08276316965 | CZ57: 0.08276316965 | DA57: 0.08276316965 | DB57: 0.08276316965 | DC57: 0.08276316965 | DD57: 0.08276316965 | DE57: 0.08276316965 | DF57: 0.08276316965 | DG57: 0.08276316965 | DH57: 0.08276316965 | DI57: 0.08276316965 | DJ57: 0.08276316965 | DK57: 0.08276316965 | DL57: 0.08276316965 | DM57: 0 | DN57: 0.04
D58: GFW Interest Rate | G58: =CHOOSE($E$55,G40,G46,G52) -> 0.02 | H58: 0.02 | I58: 0.02 | J58: 0.02 | K58: 0.02 | L58: 0.02 | M58: 0.02 | N58: 0.02 | O58: 0.02 | P58: 0.02 | Q58: 0.02 | R58: 0.02 | S58: 0.02 | T58: 0.02 | U58: 0.02 | V58: 0.02 | W58: 0.02 | X58: 0.02 | Y58: 0.02 | Z58: 0.02 | AA58: 0.02 | AB58: 0.02 | AC58: 0.02 | AD58: 0.02 | AE58: 0.02 | AF58: 0.02 | AG58: 0.02 | AH58: 0.02 | AI58: 0.02 | AJ58: 0.02 | AK58: 0.02 | AL58: 0.02 | AM58: 0.02 | AN58: 0.02 | AO58: 0.02 | AP58: 0.02 | AQ58: 0.02 | AR58: 0.02 | AS58: 0.02 | AT58: 0.02 | AU58: 0.02 | AV58: 0.02 | AW58: 0.02 | AX58: 0.02 | AY58: 0.02 | AZ58: 0.02 | BA58: 0.02 | BB58: 0.02 | BC58: 0.02 | BD58: 0.02 | BE58: 0.02 | BF58: 0.02 | BG58: 0.02 | BH58: 0.02 | BI58: 0.02 | BJ58: 0.02 | BK58: 0.02 | BL58: 0.02 | BM58: 0.02 | BN58: 0.02 | BO58: 0.02 | BP58: 0.02 | BQ58: 0.02 | BR58: 0.02 | BS58: =CHOOSE($E$55,BS40,BS46,BS52) -> 0.02 | BT58: 0.02 | BU58: 0.02 | BV58: 0.02 | BW58: 0.02 | BX58: 0.02 | BY58: 0.02 | BZ58: 0.02 | CA58: 0.02 | CB58: 0.02 | CC58: 0.02 | CD58: 0.02 | CE58: 0.02 | CF58: 0.02 | CG58: 0.02 | CH58: 0.02 | CI58: 0.02 | CJ58: 0.02 | CK58: 0.02 | CL58: 0.02 | CM58: 0.02 | CN58: 0.02 | CO58: 0.02 | CP58: 0.02 | CQ58: 0.02 | CR58: 0.02 | CS58: 0.02 | CT58: 0.02 | CU58: 0.02 | CV58: 0.02 | CW58: 0.02 | CX58: 0.02 | CY58: 0.02 | CZ58: 0.02 | DA58: 0.02 | DB58: 0.02 | DC58: 0.02 | DD58: 0.02 | DE58: 0.02 | DF58: 0.02 | DG58: 0.02 | DH58: 0.02 | DI58: 0.02 | DJ58: 0.02 | DK58: 0.02 | DL58: 0.02 | DM58: 0.02 | DN58: 0.08
D59: IFC Interest Rate | G59: =CHOOSE($E$55,G41,G47,G53) -> 0.004 | H59: 0.004 | I59: 0.004 | J59: 0.004 | K59: 0.004 | L59: 0.004 | M59: 0.004 | N59: 0.004 | O59: 0.004 | P59: 0.004 | Q59: 0.004 | R59: 0.004 | S59: 0.004 | T59: 0.004 | U59: 0.004 | V59: 0.004 | W59: 0.004 | X59: 0.004 | Y59: 0.004 | Z59: 0.004 | AA59: 0.004 | AB59: 0.004 | AC59: 0.004 | AD59: 0.004 | AE59: 0.004 | AF59: 0.004 | AG59: 0.004 | AH59: 0.004 | AI59: 0.004 | AJ59: 0.004 | AK59: 0.004 | AL59: 0.004 | AM59: 0.004 | AN59: 0.004 | AO59: 0.004 | AP59: 0.004 | AQ59: 0.004 | AR59: 0.004 | AS59: 0.004 | AT59: 0.004 | AU59: 0.004 | AV59: 0.004 | AW59: 0.004 | AX59: 0.004 | AY59: 0.004 | AZ59: 0.004 | BA59: 0.004 | BB59: 0.004 | BC59: 0.004 | BD59: 0.004 | BE59: 0.004 | BF59: 0.004 | BG59: 0.004 | BH59: 0.004 | BI59: 0.004 | BJ59: 0.004 | BK59: 0.004 | BL59: 0.004 | BM59: 0.004 | BN59: 0.004 | BO59: 0.004 | BP59: 0.004 | BQ59: 0.004 | BR59: 0.004 | BS59: =CHOOSE($E$55,BS41,BS47,BS53) -> 0.004 | BT59: 0.004 | BU59: 0.004 | BV59: 0.004 | BW59: 0.004 | BX59: 0.004 | BY59: 0.004 | BZ59: 0.004 | CA59: 0.004 | CB59: 0.004 | CC59: 0.004 | CD59: 0.004 | CE59: 0.004 | CF59: 0.004 | CG59: 0.004 | CH59: 0.004 | CI59: 0.004 | CJ59: 0.004 | CK59: 0.004 | CL59: 0.004 | CM59: 0.004 | CN59: 0.004 | CO59: 0.004 | CP59: 0.004 | CQ59: 0.004 | CR59: 0.004 | CS59: 0.004 | CT59: 0.004 | CU59: 0.004 | CV59: 0.004 | CW59: 0.004 | CX59: 0.004 | CY59: 0.004 | CZ59: 0.004 | DA59: 0.004 | DB59: 0.004 | DC59: 0.004 | DD59: 0.004 | DE59: 0.004 | DF59: 0.004 | DG59: 0.004 | DH59: 0.004 | DI59: 0.004 | DJ59: 0.004 | DK59: 0.004 | DL59: 0.004 | DM59: 0.004 | DN59: 0.08

Sheet Structuring Model (hidden)
A1: Sculpting | L1: 0 | M1: 1 | N1: 2 | O1: 3 | P1: 4 | Q1: 5 | R1: 6 | S1: 7 | T1: 8 | U1: 9 | V1: 10 | W1: 11 | X1: 12 | Y1: 13 | Z1: 14 | AA1: 15 | AB1: 16 | AC1: 17 | AD1: 18 | AE1: 19 | AF1: 20 | AG1: 21 | AH1: 22 | AI1: 23 | AJ1: 24 | AK1: 25 | AL1: 26 | AM1: 27 | AN1: 28 | AO1: 29 | AP1: 30 | AQ1: 31 | AR1: 32 | AS1: 33 | AT1: 34 | AU1: 35 | AV1: 36 | AW1: 37 | AX1: 38 | AY1: 39 | AZ1: 40 | BA1: 41 | BB1: 42 | BC1: 43 | BD1: 44 | BE1: 45 | BF1: 46 | BG1: 47 | BH1: 48 | BI1: 49 | BJ1: 50 | BK1: 51 | BL1: 52 | BM1: 53 | BN1: 54 | BO1: 55 | BP1: 56 | BQ1: 57 | BR1: 58 | BS1: 59 | BT1: 60 | BU1: 61 | BV1: 62 | BW1: 63 | BX1: 64 | BY1: 65 | BZ1: 66 | CA1: 67 | CB1: 68 | CC1: 69 | CD1: 70 | CE1: 71 | CF1: 72 | CG1: 73 | CH1: 74 | CI1: 75 | CJ1: 76 | CK1: 77 | CL1: 78 | CM1: 79 | CN1: 80 | CO1: 81 | CP1: 82 | CQ1: 83 | CR1: 84 | CS1: 85 | CT1: 86 | CU1: 87 | CV1: 88 | CW1: 89 | CX1: 90 | CY1: 91 | CZ1: 92 | DA1: 93 | DB1: 94 | DC1: 95 | DD1: 96 | DE1: 97 | DF1: 98 | DG1: 99 | DH1: 100 | DI1: 101 | DJ1: 102 | DK1: 103 | DL1: 104 | DM1: 105 | DN1: 106 | DO1: 107 | DP1: 108 | DQ1: 109 | DR1: 110 | DS1: 111 | DT1: 112 | DU1: 113 | DV1: 114 | DW1: 115 | DX1: 116 | DY1: 117 | DZ1: 118 | EA1: 119 | EB1: 120 | EC1: 121 | ED1: 122 | EE1: 123
E2: Label | F2: Model Units | G2: Constant Units | H2: Constants | I2: Constants | J2: Sum | L2: Pre-FC | M2: Cons | N2: Cons | O2: Cons | P2: Cons | Q2: Cons | R2: Cons | S2: Cons | T2: Cons | U2: Cons | V2: Cons | W2: Cons | X2: Cons | Y2: Cons | Z2: Ops | AA2: Ops | AB2: Ops | AC2: Ops | AD2: Ops | AE2: Ops | AF2: Ops | AG2: Ops | AH2: Ops | AI2: Ops | AJ2: Ops | AK2: Ops | AL2: Ops | AM2: Ops | AN2: Ops | AO2: Ops | AP2: Ops | AQ2: Ops | AR2: Ops | AS2: Ops | AT2: Ops | AU2: Ops | AV2: Ops | AW2: Ops | AX2: Ops | AY2: Ops | AZ2: Ops | BA2: Ops | BB2: Ops | BC2: Ops | BD2: Ops | BE2: Ops | BF2: Ops | BG2: Ops | BH2: Ops | BI2: Ops | BJ2: Ops | BK2: Ops | BL2: Ops | BM2: Ops | BN2: Ops | BO2: Ops | BP2: Ops | BQ2: Ops | BR2: Ops | BS2: Ops | BT2: Ops | BU2: Ops | BV2: Ops | BW2: Ops | BX2: Ops | BY2: Ops | BZ2: Ops | CA2: Ops | CB2: Ops | CC2: Ops | CD2: Ops | CE2: Ops | CF2: Ops | CG2: Shut-down | CH2: Shut-down | CI2: Shut-down | CJ2: Shut-down | CK2: Shut-down | CL2: Shut-down | CM2: Shut-down | CN2: Shut-down | CO2: Shut-down | CP2: Shut-down | CQ2: Shut-down | CR2: Shut-down | CS2: Shut-down | CT2: Shut-down | CU2: Shut-down | CV2: Shut-down | CW2: Shut-down | CX2: Shut-down | CY2: Shut-down | CZ2: Shut-down | DA2: Shut-down | DB2: Shut-down | DC2: Shut-down | DD2: Shut-down | DE2: Shut-down | DF2: Shut-down | DG2: Shut-down | DH2: Shut-down | DI2: Shut-down | DJ2: Shut-down | DK2: Shut-down | DL2: Shut-down | DM2: Shut-down | DN2: Shut-down | DO2: Shut-down | DP2: Shut-down | DQ2: Shut-down | DR2: Shut-down | DS2: Shut-down | DT2: Shut-down | DU2: Shut-down | DV2: Shut-down | DW2: Shut-down | DX2: Shut-down | DY2: Shut-down | DZ2: Shut-down | EA2: Shut-down | EB2: Shut-down | EC2: Shut-down | ED2: Shut-down | EE2: Shut-down
F3: Base Case | L3: =IF(L6,1,6) -> 1 | M3: =IF(M6,1,6) -> 1 | N3: 1 | O3: 1 | P3: 1 | Q3: 1 | R3: 1 | S3: 1 | T3: 1 | U3: 1 | V3: 1 | W3: 1 | X3: 1 | Y3: 1 | Z3: 6 | AA3: 6 | AB3: 6 | AC3: 6 | AD3: 6 | AE3: 6 | AF3: 6 | AG3: 6 | AH3: 6 | AI3: 6 | AJ3: 6 | AK3: 6 | AL3: 6 | AM3: 6 | AN3: 6 | AO3: 6 | AP3: 6 | AQ3: 6 | AR3: 6 | AS3: 6 | AT3: 6 | AU3: 6 | AV3: 6 | AW3: 6 | AX3: 6 | AY3: 6 | AZ3: 6 | BA3: 6 | BB3: 6 | BC3: 6 | BD3: 6 | BE3: 6 | BF3: 6 | BG3: 6 | BH3: 6 | BI3: 6 | BJ3: 6 | BK3: 6 | BL3: 6 | BM3: 6 | BN3: 6 | BO3: 6 | BP3: 6 | BQ3: 6 | BR3: 6 | BS3: 6 | BT3: 6 | BU3: 6 | BV3: 6 | BW3: 6 | BX3: 6 | BY3: =IF(BY6,1,6) -> 6 | BZ3: 6 | CA3: 6 | CB3: 6 | CC3: 6 | CD3: 6 | CE3: 6 | CF3: 6 | CG3: 6 | CH3: 6 | CI3: 6 | CJ3: 6 | CK3: 6 | CL3: 6 | CM3: 6 | CN3: 6 | CO3: 6 | CP3: 6 | CQ3: 6 | CR3: 6 | CS3: 6 | CT3: 6 | CU3: 6 | CV3: 6 | CW3: 6 | CX3: 6 | CY3: 6 | CZ3: 6 | DA3: 6 | DB3: 6 | DC3: 6 | DD3: 6 | DE3: 6 | DF3: 6 | DG3: 6 | DH3: 6 | DI3: 6 | DJ3: 6 | DK3: 6 | DL3: 6 | DM3: 6 | DN3: 6 | DO3: 6 | DP3: 6 | DQ3: 6 | DR3: 6 | DS3: 6 | DT3: 6 | DU3: 6 | DV3: 6 | DW3: 6 | DX3: 6 | DY3: 6 | DZ3: 6 | EA3: 6 | EB3: 6 | EC3: 6 | ED3: 6 | EE3: 6
E4: Period beginning date | F4: Date | L4: 2022-11-01 | M4: 2022-12-01 | N4: 2023-01-01 | O4: 2023-02-01 | P4: 2023-03-01 | Q4: 2023-04-01 | R4: 2023-05-01 | S4: 2023-06-01 | T4: 2023-07-01 | U4: 2023-08-01 | V4: 2023-09-01 | W4: 2023-10-01 | X4: 2023-11-01 | Y4: 2023-12-01 | Z4: 2024-01-01 | AA4: 2024-07-01 | AB4: 2025-01-01 | AC4: 2025-07-01 | AD4: 2026-01-01 | AE4: 2026-07-01 | AF4: 2027-01-01 | AG4: 2027-07-01 | AH4: 2028-01-01 | AI4: 2028-07-01 | AJ4: 2029-01-01 | AK4: 2029-07-01 | AL4: 2030-01-01 | AM4: 2030-07-01 | AN4: 2031-01-01 | AO4: 2031-07-01 | AP4: 2032-01-01 | AQ4: 2032-07-01 | AR4: 2033-01-01 | AS4: 2033-07-01 | AT4: 2034-01-01 | AU4: 2034-07-01 | AV4: 2035-01-01 | AW4: 2035-07-01 | AX4: 2036-01-01 | AY4: 2036-07-01 | AZ4: 2037-01-01 | BA4: 2037-07-01 | BB4: 2038-01-01 | BC4: 2038-07-01 | BD4: 2039-01-01 | BE4: 2039-07-01 | BF4: 2040-01-01 | BG4: 2040-07-01 | BH4: 2041-01-01 | BI4: 2041-07-01 | BJ4: 2042-01-01 | BK4: 2042-07-01 | BL4: 2043-01-01 | BM4: 2043-07-01 | BN4: 2044-01-01 | BO4: 2044-07-01 | BP4: 2045-01-01 | BQ4: 2045-07-01 | BR4: 2046-01-01 | BS4: 2046-07-01 | BT4: 2047-01-01 | BU4: 2047-07-01 | BV4: 2048-01-01 | BW4: 2048-07-01 | BX4: 2049-01-01 | BY4: 2049-07-01 | BZ4: 2050-01-01 | CA4: 2050-07-01 | CB4: 2051-01-01 | CC4: 2051-07-01 | CD4: 2052-01-01 | CE4: 2052-07-01 | CF4: 2053-01-01 | CG4: 2053-07-01 | CH4: 2054-01-01 | CI4: 2054-07-01 | CJ4: 2055-01-01 | CK4: 2055-07-01 | CL4: 2056-01-01 | CM4: 2056-07-01 | CN4: 2057-01-01 | CO4: 2057-07-01 | CP4: 2058-01-01 | CQ4: 2058-07-01 | CR4: 2059-01-01 | CS4: 2059-07-01 | CT4: 2060-01-01 | CU4: 2060-07-01 | CV4: 2061-01-01 | CW4: 2061-07-01 | CX4: 2062-01-01 | CY4: 2062-07-01 | CZ4: 2063-01-01 | DA4: 2063-07-01 | DB4: 2064-01-01 | DC4: 2064-07-01 | DD4: 2065-01-01 | DE4: 2065-07-01 | DF4: 2066-01-01 | DG4: 2066-07-01 | DH4: 2067-01-01 | DI4: 2067-07-01 | DJ4: 2068-01-01 | DK4: 2068-07-01 | DL4: 2069-01-01 | DM4: 2069-07-01 | DN4: 2070-01-01 | DO4: 2070-07-01 | DP4: 2071-01-01 | DQ4: 2071-07-01 | DR4: 2072-01-01 | DS4: 2072-07-01 | DT4: 2073-01-01 | DU4: 2073-07-01 | DV4: 2074-01-01 | DW4: 2074-07-01 | DX4: 2075-01-01 | DY4: 2075-07-01 | DZ4: 2076-01-01 | EA4: 2076-07-01 | EB4: 2077-01-01 | EC4: 2077-07-01 | ED4: 2078-01-01 | EE4: 2078-07-01
E5: Period ending date | F5: Date | L5: =EOMONTH(L4,0) -> 2022-11-30 | M5: =EOMONTH(M4,0) -> 2022-12-31 | N5: 2023-01-31 | O5: 2023-02-28 | P5: 2023-03-31 | Q5: 2023-04-30 | R5: 2023-05-31 | S5: 2023-06-30 | T5: 2023-07-31 | U5: 2023-08-31 | V5: 2023-09-30 | W5: 2023-10-31 | X5: 2023-11-30 | Y5: 2023-12-31 | Z5: =EOMONTH(Z4,Z3-1) -> 2024-06-30 | AA5: =EOMONTH(AA4,AA3-1) -> 2024-12-31 | AB5: 2025-06-30 | AC5: 2025-12-31 | AD5: 2026-06-30 | AE5: 2026-12-31 | AF5: 2027-06-30 | AG5: 2027-12-31 | AH5: 2028-06-30 | AI5: 2028-12-31 | AJ5: 2029-06-30 | AK5: 2029-12-31 | AL5: 2030-06-30 | AM5: 2030-12-31 | AN5: 2031-06-30 | AO5: 2031-12-31 | AP5: 2032-06-30 | AQ5: 2032-12-31 | AR5: 2033-06-30 | AS5: 2033-12-31 | AT5: 2034-06-30 | AU5: 2034-12-31 | AV5: 2035-06-30 | AW5: 2035-12-31 | AX5: 2036-06-30 | AY5: 2036-12-31 | AZ5: 2037-06-30 | BA5: 2037-12-31 | BB5: 2038-06-30 | BC5: 2038-12-31 | BD5: 2039-06-30 | BE5: 2039-12-31 | BF5: 2040-06-30 | BG5: 2040-12-31 | BH5: 2041-06-30 | BI5: 2041-12-31 | BJ5: 2042-06-30 | BK5: 2042-12-31 | BL5: 2043-06-30 | BM5: 2043-12-31 | BN5: 2044-06-30 | BO5: 2044-12-31 | BP5: 2045-06-30 | BQ5: 2045-12-31 | BR5: 2046-06-30 | BS5: 2046-12-31 | BT5: 2047-06-30 | BU5: 2047-12-31 | BV5: 2048-06-30 | BW5: 2048-12-31 | BX5: 2049-06-30 | BY5: 2049-12-31 | BZ5: 2050-06-30 | CA5: 2050-12-31 | CB5: 2051-06-30 | CC5: 2051-12-31 | CD5: 2052-06-30 | CE5: 2052-12-31 | CF5: 2053-06-30 | CG5: 2053-12-31 | CH5: 2054-06-30 | CI5: 2054-12-31 | CJ5: 2055-06-30 | CK5: 2055-12-31 | CL5: 2056-06-30 | CM5: =EOMONTH(CM4,CM3-1) -> 2056-12-31 | CN5: 2057-06-30 | CO5: 2057-12-31 | CP5: 2058-06-30 | CQ5: 2058-12-31 | CR5: 2059-06-30 | CS5: 2059-12-31 | CT5: 2060-06-30 | CU5: 2060-12-31 | CV5: 2061-06-30 | CW5: 2061-12-31 | CX5: 2062-06-30 | CY5: 2062-12-31 | CZ5: 2063-06-30 | DA5: 2063-12-31 | DB5: 2064-06-30 | DC5: 2064-12-31 | DD5: 2065-06-30 | DE5: 2065-12-31 | DF5: 2066-06-30 | DG5: 2066-12-31 | DH5: 2067-06-30 | DI5: 2067-12-31 | DJ5: 2068-06-30 | DK5: 2068-12-31 | DL5: 2069-06-30 | DM5: 2069-12-31 | DN5: 2070-06-30 | DO5: 2070-12-31 | DP5: 2071-06-30 | DQ5: 2071-12-31 | DR5: 2072-06-30 | DS5: 2072-12-31 | DT5: 2073-06-30 | DU5: 2073-12-31 | DV5: 2074-06-30 | DW5: 2074-12-31 | DX5: 2075-06-30 | DY5: 2075-12-31 | DZ5: 2076-06-30 | EA5: 2076-12-31 | EB5: 2077-06-30 | EC5: 2077-12-31 | ED5: 2078-06-30 | EE5: 2078-12-31
E6: Construction period flag | F6: flag | H6: 0 | J6: 13 | K6: 0 | L6: 1 | M6: 1 | N6: 1 | O6: 1 | P6: 1 | Q6: 1 | R6: 1 | S6: 1 | T6: 1 | U6: 1 | V6: 1 | W6: 1 | X6: 1 | Y6: 1 | Z6: 0 | AA6: 0 | AB6: 0 | AC6: 0 | AD6: 0 | AE6: 0 | AF6: 0 | AG6: 0 | AH6: 0 | AI6: 0 | AJ6: 0 | AK6: 0 | AL6: 0 | AM6: 0 | AN6: 0 | AO6: 0 | AP6: 0 | AQ6: 0 | AR6: 0 | AS6: 0 | AT6: 0 | AU6: 0 | AV6: 0 | AW6: 0 | AX6: 0 | AY6: 0 | AZ6: 0 | BA6: 0 | BB6: 0 | BC6: 0 | BD6: 0 | BE6: 0 | BF6: 0 | BG6: 0 | BH6: 0 | BI6: 0 | BJ6: 0 | BK6: 0 | BL6: 0 | BM6: 0 | BN6: 0 | BO6: 0 | BP6: 0 | BQ6: 0 | BR6: 0 | BS6: 0 | BT6: 0 | BU6: 0 | BV6: 0 | BW6: 0 | BX6: 0 | BY6: 0 | BZ6: 0 | CA6: 0 | CB6: 0 | CC6: 0 | CD6: 0 | CE6: 0 | CF6: 0 | CG6: 0 | CH6: 0 | CI6: 0 | CJ6: 0 | CK6: 0 | CL6: 0 | CM6: 0 | CN6: 0 | CO6: 0 | CP6: 0 | CQ6: 0 | CR6: 0 | CS6: 0 | CT6: 0 | CU6: 0 | CV6: 0 | CW6: 0 | CX6: 0 | CY6: 0 | CZ6: 0 | DA6: 0 | DB6: 0 | DC6: 0 | DD6: 0 | DE6: 0 | DF6: 0 | DG6: 0 | DH6: 0 | DI6: 0 | DJ6: 0 | DK6: 0 | DL6: 0 | DM6: 0 | DN6: 0 | DO6: 0 | DP6: 0 | DQ6: 0 | DR6: 0 | DS6: 0 | DT6: 0 | DU6: 0 | DV6: 0 | DW6: 0 | DX6: 0 | DY6: 0 | DZ6: 0 | EA6: 0 | EB6: 0 | EC6: 0 | ED6: 0 | EE6: 0
E7: Operation period flag | F7: flag | H7: 0 | J7: 0 | K7: 0 | L7: 0 | M7: 0 | N7: 0 | O7: 0 | P7: 0 | Q7: 0 | R7: 0 | S7: 0 | T7: 0 | U7: 0 | V7: 0 | W7: 0 | X7: 0 | Y7: 0 | Z7: 1 | AA7: 1 | AB7: 1 | AC7: 1 | AD7: 1 | AE7: 1 | AF7: 1 | AG7: 1 | AH7: 1 | AI7: 1 | AJ7: 1 | AK7: 1 | AL7: 1 | AM7: 1 | AN7: 1 | AO7: 1 | AP7: 1 | AQ7: 1 | AR7: 1 | AS7: 1 | AT7: 1 | AU7: 1 | AV7: 1 | AW7: 1 | AX7: 1 | AY7: 1 | AZ7: 1 | BA7: 1 | BB7: 1 | BC7: 1 | BD7: 1 | BE7: 1 | BF7: 1 | BG7: 1 | BH7: 1 | BI7: 1 | BJ7: 1 | BK7: 1 | BL7: 1 | BM7: 1 | BN7: 1 | BO7: 1 | BP7: 1 | BQ7: 1 | BR7: 1 | BS7: 1 | BT7: 1 | BU7: 1 | BV7: 1 | BW7: 1 | BX7: 1 | BY7: 1 | BZ7: 1 | CA7: 1 | CB7: 1 | CC7: 1 | CD7: 1 | CE7: 1 | CF7: 1 | CG7: 0 | CH7: 0 | CI7: 0 | CJ7: 0 | CK7: 0 | CL7: 0 | CM7: 0 | CN7: 0 | CO7: 0 | CP7: 0 | CQ7: 0 | CR7: 0 | CS7: 0 | CT7: 0 | CU7: 0 | CV7: 0 | CW7: 0 | CX7: 0 | CY7: 0 | CZ7: 0 | DA7: 0 | DB7: 0 | DC7: 0 | DD7: 0 | DE7: 0 | DF7: 0 | DG7: 0 | DH7: 0 | DI7: 0 | DJ7: 0 | DK7: 0 | DL7: 0 | DM7: 0 | DN7: 0 | DO7: 0 | DP7: 0 | DQ7: 0 | DR7: 0 | DS7: 0 | DT7: 0 | DU7: 0 | DV7: 0 | DW7: 0 | DX7: 0 | DY7: 0 | DZ7: 0 | EA7: 0 | EB7: 0 | EC7: 0 | ED7: 0 | EE7: 0
E8: Operating Age in Periods | L8: =K8+L7 -> 0 | M8: =L8+M7 -> 0 | N8: 0 | O8: 0 | P8: 0 | Q8: 0 | R8: 0 | S8: 0 | T8: 0 | U8: 0 | V8: 0 | W8: 0 | X8: 0 | Y8: 0 | Z8: 1 | AA8: 2 | AB8: 3 | AC8: 4 | AD8: 5 | AE8: 6 | AF8: 7 | AG8: 8 | AH8: 9 | AI8: 10 | AJ8: 11 | AK8: 12 | AL8: 13 | AM8: 14 | AN8: 15 | AO8: 16 | AP8: 17 | AQ8: 18 | AR8: 19 | AS8: 20 | AT8: 21 | AU8: 22 | AV8: 23 | AW8: 24 | AX8: 25 | AY8: 26 | AZ8: 27 | BA8: 28 | BB8: 29 | BC8: 30 | BD8: 31 | BE8: 32 | BF8: 33 | BG8: 34 | BH8: 35 | BI8: 36 | BJ8: 37 | BK8: 38 | BL8: 39 | BM8: 40 | BN8: 41 | BO8: 42 | BP8: 43 | BQ8: 44 | BR8: 45 | BS8: 46 | BT8: 47 | BU8: 48 | BV8: 49 | BW8: 50 | BX8: 51 | BY8: =BX8+BY7 -> 52 | BZ8: 53 | CA8: 54 | CB8: 55 | CC8: 56 | CD8: 57 | CE8: 58 | CF8: 59 | CG8: 59 | CH8: 59 | CI8: 59 | CJ8: 59 | CK8: 59 | CL8: 59 | CM8: 59 | CN8: 59 | CO8: 59 | CP8: 59 | CQ8: 59 | CR8: 59 | CS8: 59 | CT8: 59 | CU8: 59 | CV8: 59 | CW8: 59 | CX8: 59 | CY8: 59 | CZ8: 59 | DA8: 59 | DB8: 59 | DC8: 59 | DD8: 59 | DE8: 59 | DF8: 59 | DG8: 59 | DH8: 59 | DI8: 59 | DJ8: 59 | DK8: 59 | DL8: 59 | DM8: 59 | DN8: 59 | DO8: 59 | DP8: 59 | DQ8: 59 | DR8: 59 | DS8: 59 | DT8: 59 | DU8: 59 | DV8: 59 | DW8: 59 | DX8: 59 | DY8: 59 | DZ8: 59 | EA8: 59 | EB8: 59 | EC8: 59 | ED8: 59 | EE8: 59
B10: Capitlal Expenditure, EBITDA, Project IRR
D11: Construction Period | F11: Counter | L11: 0 | M11: =L11+M6 -> 1 | N11: 2 | O11: 3 | P11: 4 | Q11: 5 | R11: 6 | S11: 7 | T11: 8 | U11: 9 | V11: 10 | W11: 11 | X11: 12 | Y11: 13 | Z11: 13 | AA11: 13 | AB11: 13 | AC11: 13 | AD11: 13 | AE11: 13 | AF11: 13 | AG11: 13 | AH11: 13 | AI11: 13 | AJ11: 13 | AK11: 13 | AL11: 13 | AM11: 13 | AN11: 13 | AO11: 13 | AP11: 13 | AQ11: 13 | AR11: 13 | AS11: 13 | AT11: 13 | AU11: 13 | AV11: 13 | AW11: 13 | AX11: 13 | AY11: 13 | AZ11: 13 | BA11: 13 | BB11: 13 | BC11: 13 | BD11: 13 | BE11: 13 | BF11: 13 | BG11: 13 | BH11: 13 | BI11: 13 | BJ11: 13 | BK11: 13 | BL11: 13 | BM11: 13 | BN11: 13 | BO11: 13 | BP11: 13 | BQ11: 13 | BR11: 13 | BS11: 13 | BT11: 13 | BU11: 13 | BV11: 13 | BW11: 13 | BX11: 13 | BY11: =BX11+BY6 -> 13 | BZ11: 13 | CA11: 13 | CB11: 13 | CC11: 13 | CD11: 13 | CE11: 13 | CF11: 13 | CG11: 13 | CH11: 13 | CI11: 13 | CJ11: 13 | CK11: 13 | CL11: 13 | CM11: 13 | CN11: 13 | CO11: 13 | CP11: 13 | CQ11: 13 | CR11: 13 | CS11: 13 | CT11: 13 | CU11: 13 | CV11: 13 | CW11: 13 | CX11: 13 | CY11: 13 | CZ11: 13 | DA11: 13 | DB11: 13 | DC11: 13 | DD11: 13 | DE11: 13 | DF11: 13 | DG11: 13 | DH11: 13 | DI11: 13 | DJ11: 13 | DK11: 13 | DL11: 13 | DM11: 13 | DN11: 13 | DO11: 13 | DP11: 13 | DQ11: 13 | DR11: 13 | DS11: 13 | DT11: 13 | DU11: 13 | DV11: 13 | DW11: 13 | DX11: 13 | DY11: 13 | DZ11: 13 | EA11: 13 | EB11: 13 | EC11: 13 | ED11: 13 | EE11: 13
D12: Total Cap Exp | F12: EUR'000 | G12: EUR'000 | H12: ='InputC - Structure'!G8 -> 65000 | L12: =$H$12 -> 65000 | M12: =$H$12 -> 65000 | N12: 65000 | O12: 65000 | P12: 65000 | Q12: 65000 | R12: 65000 | S12: 65000 | T12: 65000 | U12: 65000 | V12: 65000 | W12: 65000 | X12: 65000 | Y12: 65000 | Z12: 65000 | AA12: 65000 | AB12: 65000 | AC12: 65000 | AD12: 65000 | AE12: 65000 | AF12: 65000 | AG12: 65000 | AH12: 65000 | AI12: 65000 | AJ12: 65000 | AK12: 65000 | AL12: 65000 | AM12: 65000 | AN12: 65000 | AO12: 65000 | AP12: 65000 | AQ12: 65000 | AR12: 65000 | AS12: 65000 | AT12: 65000 | AU12: 65000 | AV12: 65000 | AW12: 65000 | AX12: 65000 | AY12: 65000 | AZ12: 65000 | BA12: 65000 | BB12: 65000 | BC12: 65000 | BD12: 65000 | BE12: 65000 | BF12: 65000 | BG12: 65000 | BH12: 65000 | BI12: 65000 | BJ12: 65000 | BK12: 65000 | BL12: 65000 | BM12: 65000 | BN12: 65000 | BO12: 65000 | BP12: 65000 | BQ12: 65000 | BR12: 65000 | BS12: 65000 | BT12: 65000 | BU12: 65000 | BV12: 65000 | BW12: 65000 | BX12: 65000 | BY12: =$H$12 -> 65000 | BZ12: 65000 | CA12: 65000 | CB12: 65000 | CC12: 65000 | CD12: 65000 | CE12: 65000 | CF12: 65000 | CG12: 65000 | CH12: 65000 | CI12: 65000 | CJ12: 65000 | CK12: 65000 | CL12: 65000 | CM12: 65000 | CN12: 65000 | CO12: 65000 | CP12: 65000 | CQ12: 65000 | CR12: 65000 | CS12: 65000 | CT12: 65000 | CU12: 65000 | CV12: 65000 | CW12: 65000 | CX12: 65000 | CY12: 65000 | CZ12: 65000 | DA12: 65000 | DB12: 65000 | DC12: 65000 | DD12: 65000 | DE12: 65000 | DF12: 65000 | DG12: 65000 | DH12: 65000 | DI12: 65000 | DJ12: 65000 | DK12: 65000 | DL12: 65000 | DM12: 65000 | DN12: 65000 | DO12: 65000 | DP12: 65000 | DQ12: 65000 | DR12: 65000 | DS12: 65000 | DT12: 65000 | DU12: 65000 | DV12: 65000 | DW12: 65000 | DX12: 65000 | DY12: 65000 | DZ12: 65000 | EA12: 65000 | EB12: 65000 | EC12: 65000 | ED12: 65000 | EE12: 65000
D13: S-curve | F13: % | G13: % | J13: =SUM(L13:XFD13) -> 1 | L13: =LOOKUP(L11,'InputS- Structure'!6:6,'InputS- Structure'!7:7)*L6 -> 0 | M13: =LOOKUP(M11,'InputS- Structure'!6:6,'InputS- Structure'!7:7)*M6 -> 0.3413086761 | N13: =LOOKUP(N11,'InputS- Structure'!6:6,'InputS- Structure'!7:7)*N6 -> 0.09880368868 | O13: =LOOKUP(O11,'InputS- Structure'!6:6,'InputS- Structure'!7:7)*O6 -> 0 | P13: =LOOKUP(P11,'InputS- Structure'!6:6,'InputS- Structure'!7:7)*P6 -> 0.06586913522 | Q13: =LOOKUP(Q11,'InputS- Structure'!6:6,'InputS- Structure'!7:7)*Q6 -> 0 | R13: =LOOKUP(R11,'InputS- Structure'!6:6,'InputS- Structure'!7:7)*R6 -> 0.1317382704 | S13: =LOOKUP(S11,'InputS- Structure'!6:6,'InputS- Structure'!7:7)*S6 -> 0.1317382704 | T13: =LOOKUP(T11,'InputS- Structure'!6:6,'InputS- Structure'!7:7)*T6 -> 0.1317382704 | U13: =LOOKUP(U11,'InputS- Structure'!6:6,'InputS- Structure'!7:7)*U6 -> 0 | V13: =LOOKUP(V11,'InputS- Structure'!6:6,'InputS- Structure'!7:7)*V6 -> 0 | W13: =LOOKUP(W11,'InputS- Structure'!6:6,'InputS- Structure'!7:7)*W6 -> 0 | X13: =LOOKUP(X11,'InputS- Structure'!6:6,'InputS- Structure'!7:7)*X6 -> 0.06586913522 | Y13: =LOOKUP(Y11,'InputS- Structure'!6:6,'InputS- Structure'!7:7)*Y6 -> 0.03293455347 | Z13: =LOOKUP(Z11,'InputS- Structure'!6:6,'InputS- Structure'!7:7)*Z6 -> 0 | AA13: =LOOKUP(AA11,'InputS- Structure'!6:6,'InputS- Structure'!7:7)*AA6 -> 0 | AB13: =LOOKUP(AB11,'InputS- Structure'!6:6,'InputS- Structure'!7:7)*AB6 -> 0 | AC13: =LOOKUP(AC11,'InputS- Structure'!6:6,'InputS- Structure'!7:7)*AC6 -> 0 | AD13: =LOOKUP(AD11,'InputS- Structure'!6:6,'InputS- Structure'!7:7)*AD6 -> 0 | AE13: =LOOKUP(AE11,'InputS- Structure'!6:6,'InputS- Structure'!7:7)*AE6 -> 0 | AF13: =LOOKUP(AF11,'InputS- Structure'!6:6,'InputS- Structure'!7:7)*AF6 -> 0 | AG13: =LOOKUP(AG11,'InputS- Structure'!6:6,'InputS- Structure'!7:7)*AG6 -> 0 | AH13: =LOOKUP(AH11,'InputS- Structure'!6:6,'InputS- Structure'!7:7)*AH6 -> 0 | AI13: =LOOKUP(AI11,'InputS- Structure'!6:6,'InputS- Structure'!7:7)*AI6 -> 0 | AJ13: =LOOKUP(AJ11,'InputS- Structure'!6:6,'InputS- Structure'!7:7)*AJ6 -> 0 | AK13: =LOOKUP(AK11,'InputS- Structure'!6:6,'InputS- Structure'!7:7)*AK6 -> 0 | AL13: =LOOKUP(AL11,'InputS- Structure'!6:6,'InputS- Structure'!7:7)*AL6 -> 0 | AM13: =LOOKUP(AM11,'InputS- Structure'!6:6,'InputS- Structure'!7:7)*AM6 -> 0 | AN13: =LOOKUP(AN11,'InputS- Structure'!6:6,'InputS- Structure'!7:7)*AN6 -> 0 | AO13: =LOOKUP(AO11,'InputS- Structure'!6:6,'InputS- Structure'!7:7)*AO6 -> 0 | AP13: =LOOKUP(AP11,'InputS- Structure'!6:6,'InputS- Structure'!7:7)*AP6 -> 0 | AQ13: =LOOKUP(AQ11,'InputS- Structure'!6:6,'InputS- Structure'!7:7)*AQ6 -> 0 | AR13: =LOOKUP(AR11,'InputS- Structure'!6:6,'InputS- Structure'!7:7)*AR6 -> 0 | AS13: =LOOKUP(AS11,'InputS- Structure'!6:6,'InputS- Structure'!7:7)*AS6 -> 0 | AT13: =LOOKUP(AT11,'InputS- Structure'!6:6,'InputS- Structure'!7:7)*AT6 -> 0 | AU13: =LOOKUP(AU11,'InputS- Structure'!6:6,'InputS- Structure'!7:7)*AU6 -> 0 | AV13: =LOOKUP(AV11,'InputS- Structure'!6:6,'InputS- Structure'!7:7)*AV6 -> 0 | AW13: =LOOKUP(AW11,'InputS- Structure'!6:6,'InputS- Structure'!7:7)*AW6 -> 0 | AX13: =LOOKUP(AX11,'InputS- Structure'!6:6,'InputS- Structure'!7:7)*AX6 -> 0 | AY13: =LOOKUP(AY11,'InputS- Structure'!6:6,'InputS- Structure'!7:7)*AY6 -> 0 | AZ13: =LOOKUP(AZ11,'InputS- Structure'!6:6,'InputS- Structure'!7:7)*AZ6 -> 0 | BA13: =LOOKUP(BA11,'InputS- Structure'!6:6,'InputS- Structure'!7:7)*BA6 -> 0 | BB13: =LOOKUP(BB11,'InputS- Structure'!6:6,'InputS- Structure'!7:7)*BB6 -> 0 | BC13: =LOOKUP(BC11,'InputS- Structure'!6:6,'InputS- Structure'!7:7)*BC6 -> 0 | BD13: =LOOKUP(BD11,'InputS- Structure'!6:6,'InputS- Structure'!7:7)*BD6 -> 0 | BE13: =LOOKUP(BE11,'InputS- Structure'!6:6,'InputS- Structure'!7:7)*BE6 -> 0 | BF13: =LOOKUP(BF11,'InputS- Structure'!6:6,'InputS- Structure'!7:7)*BF6 -> 0 | BG13: =LOOKUP(BG11,'InputS- Structure'!6:6,'InputS- Structure'!7:7)*BG6 -> 0 | BH13: =LOOKUP(BH11,'InputS- Structure'!6:6,'InputS- Structure'!7:7)*BH6 -> 0 | BI13: =LOOKUP(BI11,'InputS- Structure'!6:6,'InputS- Structure'!7:7)*BI6 -> 0 | BJ13: =LOOKUP(BJ11,'InputS- Structure'!6:6,'InputS- Structure'!7:7)*BJ6 -> 0 | BK13: =LOOKUP(BK11,'InputS- Structure'!6:6,'InputS- Structure'!7:7)*BK6 -> 0 | BL13: =LOOKUP(BL11,'InputS- Structure'!6:6,'InputS- Structure'!7:7)*BL6 -> 0 | BM13: =LOOKUP(BM11,'InputS- Structure'!6:6,'InputS- Structure'!7:7)*BM6 -> 0 | BN13: =LOOKUP(BN11,'InputS- Structure'!6:6,'InputS- Structure'!7:7)*BN6 -> 0 | BO13: =LOOKUP(BO11,'InputS- Structure'!6:6,'InputS- Structure'!7:7)*BO6 -> 0 | BP13: =LOOKUP(BP11,'InputS- Structure'!6:6,'InputS- Structure'!7:7)*BP6 -> 0 | BQ13: =LOOKUP(BQ11,'InputS- Structure'!6:6,'InputS- Structure'!7:7)*BQ6 -> 0 | BR13: =LOOKUP(BR11,'InputS- Structure'!6:6,'InputS- Structure'!7:7)*BR6 -> 0 | BS13: =LOOKUP(BS11,'InputS- Structure'!6:6,'InputS- Structure'!7:7)*BS6 -> 0 | BT13: =LOOKUP(BT11,'InputS- Structure'!6:6,'InputS- Structure'!7:7)*BT6 -> 0 | BU13: =LOOKUP(BU11,'InputS- Structure'!6:6,'InputS- Structure'!7:7)*BU6 -> 0 | BV13: =LOOKUP(BV11,'InputS- Structure'!6:6,'InputS- Structure'!7:7)*BV6 -> 0 | BW13: =LOOKUP(BW11,'InputS- Structure'!6:6,'InputS- Structure'!7:7)*BW6 -> 0 | BX13: =LOOKUP(BX11,'InputS- Structure'!6:6,'InputS- Structure'!7:7)*BX6 -> 0 | BY13: =LOOKUP(BY11,'InputS- Structure'!6:6,'InputS- Structure'!7:7)*BY6 -> 0 | BZ13: =LOOKUP(BZ11,'InputS- Structure'!6:6,'InputS- Structure'!7:7)*BZ6 -> 0 | CA13: =LOOKUP(CA11,'InputS- Structure'!6:6,'InputS- Structure'!7:7)*CA6 -> 0 | CB13: =LOOKUP(CB11,'InputS- Structure'!6:6,'InputS- Structure'!7:7)*CB6 -> 0 | CC13: =LOOKUP(CC11,'InputS- Structure'!6:6,'InputS- Structure'!7:7)*CC6 -> 0 | CD13: =LOOKUP(CD11,'InputS- Structure'!6:6,'InputS- Structure'!7:7)*CD6 -> 0 | CE13: =LOOKUP(CE11,'InputS- Structure'!6:6,'InputS- Structure'!7:7)*CE6 -> 0 | CF13: =LOOKUP(CF11,'InputS- Structure'!6:6,'InputS- Structure'!7:7)*CF6 -> 0 | CG13: =LOOKUP(CG11,'InputS- Structure'!6:6,'InputS- Structure'!7:7)*CG6 -> 0 | CH13: =LOOKUP(CH11,'InputS- Structure'!6:6,'InputS- Structure'!7:7)*CH6 -> 0 | CI13: =LOOKUP(CI11,'InputS- Structure'!6:6,'InputS- Structure'!7:7)*CI6 -> 0 | CJ13: =LOOKUP(CJ11,'InputS- Structure'!6:6,'InputS- Structure'!7:7)*CJ6 -> 0 | CK13: =LOOKUP(CK11,'InputS- Structure'!6:6,'InputS- Structure'!7:7)*CK6 -> 0 | CL13: =LOOKUP(CL11,'InputS- Structure'!6:6,'InputS- Structure'!7:7)*CL6 -> 0 | CM13: =LOOKUP(CM11,'InputS- Structure'!6:6,'InputS- Structure'!7:7)*CM6 -> 0 | CN13: =LOOKUP(CN11,'InputS- Structure'!6:6,'InputS- Structure'!7:7)*CN6 -> 0 | CO13: =LOOKUP(CO11,'InputS- Structure'!6:6,'InputS- Structure'!7:7)*CO6 -> 0 | CP13: =LOOKUP(CP11,'InputS- Structure'!6:6,'InputS- Structure'!7:7)*CP6 -> 0 | CQ13: =LOOKUP(CQ11,'InputS- Structure'!6:6,'InputS- Structure'!7:7)*CQ6 -> 0 | CR13: =LOOKUP(CR11,'InputS- Structure'!6:6,'InputS- Structure'!7:7)*CR6 -> 0 | CS13: =LOOKUP(CS11,'InputS- Structure'!6:6,'InputS- Structure'!7:7)*CS6 -> 0 | CT13: =LOOKUP(CT11,'InputS- Structure'!6:6,'InputS- Structure'!7:7)*CT6 -> 0 | CU13: =LOOKUP(CU11,'InputS- Structure'!6:6,'InputS- Structure'!7:7)*CU6 -> 0 | CV13: =LOOKUP(CV11,'InputS- Structure'!6:6,'InputS- Structure'!7:7)*CV6 -> 0 | CW13: =LOOKUP(CW11,'InputS- Structure'!6:6,'InputS- Structure'!7:7)*CW6 -> 0 | CX13: =LOOKUP(CX11,'InputS- Structure'!6:6,'InputS- Structure'!7:7)*CX6 -> 0 | CY13: =LOOKUP(CY11,'InputS- Structure'!6:6,'InputS- Structure'!7:7)*CY6 -> 0 | CZ13: =LOOKUP(CZ11,'InputS- Structure'!6:6,'InputS- Structure'!7:7)*CZ6 -> 0 | DA13: =LOOKUP(DA11,'InputS- Structure'!6:6,'InputS- Structure'!7:7)*DA6 -> 0 | DB13: =LOOKUP(DB11,'InputS- Structure'!6:6,'InputS- Structure'!7:7)*DB6 -> 0 | DC13: =LOOKUP(DC11,'InputS- Structure'!6:6,'InputS- Structure'!7:7)*DC6 -> 0 | DD13: =LOOKUP(DD11,'InputS- Structure'!6:6,'InputS- Structure'!7:7)*DD6 -> 0 | DE13: =LOOKUP(DE11,'InputS- Structure'!6:6,'InputS- Structure'!7:7)*DE6 -> 0 | DF13: =LOOKUP(DF11,'InputS- Structure'!6:6,'InputS- Structure'!7:7)*DF6 -> 0 | DG13: =LOOKUP(DG11,'InputS- Structure'!6:6,'InputS- Structure'!7:7)*DG6 -> 0 | DH13: =LOOKUP(DH11,'InputS- Structure'!6:6,'InputS- Structure'!7:7)*DH6 -> 0 | DI13: =LOOKUP(DI11,'InputS- Structure'!6:6,'InputS- Structure'!7:7)*DI6 -> 0 | DJ13: =LOOKUP(DJ11,'InputS- Structure'!6:6,'InputS- Structure'!7:7)*DJ6 -> 0 | DK13: =LOOKUP(DK11,'InputS- Structure'!6:6,'InputS- Structure'!7:7)*DK6 -> 0 | DL13: =LOOKUP(DL11,'InputS- Structure'!6:6,'InputS- Structure'!7:7)*DL6 -> 0 | DM13: =LOOKUP(DM11,'InputS- Structure'!6:6,'InputS- Structure'!7:7)*DM6 -> 0 | DN13: =LOOKUP(DN11,'InputS- Structure'!6:6,'InputS- Structure'!7:7)*DN6 -> 0 | DO13: =LOOKUP(DO11,'InputS- Structure'!6:6,'InputS- Structure'!7:7)*DO6 -> 0 | DP13: =LOOKUP(DP11,'InputS- Structure'!6:6,'InputS- Structure'!7:7)*DP6 -> 0 | DQ13: =LOOKUP(DQ11,'InputS- Structure'!6:6,'InputS- Structure'!7:7)*DQ6 -> 0 | DR13: =LOOKUP(DR11,'InputS- Structure'!6:6,'InputS- Structure'!7:7)*DR6 -> 0 | DS13: =LOOKUP(DS11,'InputS- Structure'!6:6,'InputS- Structure'!7:7)*DS6 -> 0 | DT13: =LOOKUP(DT11,'InputS- Structure'!6:6,'InputS- Structure'!7:7)*DT6 -> 0 | DU13: =LOOKUP(DU11,'InputS- Structure'!6:6,'InputS- Structure'!7:7)*DU6 -> 0 | DV13: =LOOKUP(DV11,'InputS- Structure'!6:6,'InputS- Structure'!7:7)*DV6 -> 0 | DW13: =LOOKUP(DW11,'InputS- Structure'!6:6,'InputS- Structure'!7:7)*DW6 -> 0 | DX13: =LOOKUP(DX11,'InputS- Structure'!6:6,'InputS- Structure'!7:7)*DX6 -> 0 | DY13: =LOOKUP(DY11,'InputS- Structure'!6:6,'InputS- Structure'!7:7)*DY6 -> 0 | DZ13: =LOOKUP(DZ11,'InputS- Structure'!6:6,'InputS- Structure'!7:7)*DZ6 -> 0 | EA13: =LOOKUP(EA11,'InputS- Structure'!6:6,'InputS- Structure'!7:7)*EA6 -> 0 | EB13: =LOOKUP(EB11,'InputS- Structure'!6:6,'InputS- Structure'!7:7)*EB6 -> 0 | EC13: =LOOKUP(EC11,'InputS- Structure'!6:6,'InputS- Structure'!7:7)*EC6 -> 0 | ED13: =LOOKUP(ED11,'InputS- Structure'!6:6,'InputS- Structure'!7:7)*ED6 -> 0 | EE13: =LOOKUP(EE11,'InputS- Structure'!6:6,'InputS- Structure'!7:7)*EE6 -> 0
D14: Periodic Cap Exp | F14: EUR'000 | J14: =SUM(L14:XFD14) -> 65000 | L14: =L12*L13 -> 0 | M14: =M12*M13 -> 22185.06395 | N14: 6422.239764 | O14: 0 | P14: 4281.493789 | Q14: 0 | R14: 8562.987578 | S14: 8562.987578 | T14: 8562.987578 | U14: 0 | V14: 0 | W14: 0 | X14: 4281.493789 | Y14: 2140.745975 | Z14: 0 | AA14: 0 | AB14: 0 | AC14: 0 | AD14: 0 | AE14: 0 | AF14: 0 | AG14: 0 | AH14: 0 | AI14: 0 | AJ14: 0 | AK14: 0 | AL14: 0 | AM14: 0 | AN14: 0 | AO14: 0 | AP14: 0 | AQ14: 0 | AR14: 0 | AS14: 0 | AT14: 0 | AU14: 0 | AV14: 0 | AW14: 0 | AX14: 0 | AY14: 0 | AZ14: 0 | BA14: 0 | BB14: 0 | BC14: 0 | BD14: 0 | BE14: 0 | BF14: 0 | BG14: 0 | BH14: 0 | BI14: 0 | BJ14: 0 | BK14: 0 | BL14: 0 | BM14: 0 | BN14: 0 | BO14: 0 | BP14: 0 | BQ14: 0 | BR14: 0 | BS14: 0 | BT14: 0 | BU14: 0 | BV14: 0 | BW14: 0 | BX14: 0 | BY14: =BY12*BY13 -> 0 | BZ14: 0 | CA14: 0 | CB14: 0 | CC14: 0 | CD14: 0 | CE14: 0 | CF14: 0 | CG14: 0 | CH14: 0 | CI14: 0 | CJ14: 0 | CK14: 0 | CL14: 0 | CM14: 0 | CN14: 0 | CO14: 0 | CP14: 0 | CQ14: 0 | CR14: 0 | CS14: 0 | CT14: 0 | CU14: 0 | CV14: 0 | CW14: 0 | CX14: 0 | CY14: 0 | CZ14: 0 | DA14: 0 | DB14: 0 | DC14: 0 | DD14: 0 | DE14: 0 | DF14: 0 | DG14: 0 | DH14: 0 | DI14: 0 | DJ14: 0 | DK14: 0 | DL14: 0 | DM14: 0 | DN14: 0 | DO14: 0 | DP14: 0 | DQ14: 0 | DR14: 0 | DS14: 0 | DT14: 0 | DU14: 0 | DV14: 0 | DW14: 0 | DX14: 0 | DY14: 0 | DZ14: 0 | EA14: 0 | EB14: 0 | EC14: 0 | ED14: 0 | EE14: 0
D16: Operating Period | F16: Counter | L16: =K16+L7 -> 0 | M16: =L16+M7 -> 0 | N16: 0 | O16: 0 | P16: 0 | Q16: 0 | R16: 0 | S16: 0 | T16: 0 | U16: 0 | V16: 0 | W16: 0 | X16: 0 | Y16: 0 | Z16: 1 | AA16: 2 | AB16: 3 | AC16: 4 | AD16: 5 | AE16: 6 | AF16: 7 | AG16: 8 | AH16: 9 | AI16: 10 | AJ16: 11 | AK16: 12 | AL16: 13 | AM16: 14 | AN16: 15 | AO16: 16 | AP16: 17 | AQ16: 18 | AR16: 19 | AS16: 20 | AT16: 21 | AU16: 22 | AV16: 23 | AW16: 24 | AX16: 25 | AY16: 26 | AZ16: 27 | BA16: 28 | BB16: 29 | BC16: 30 | BD16: 31 | BE16: 32 | BF16: 33 | BG16: 34 | BH16: 35 | BI16: 36 | BJ16: 37 | BK16: 38 | BL16: 39 | BM16: 40 | BN16: 41 | BO16: 42 | BP16: 43 | BQ16: 44 | BR16: 45 | BS16: 46 | BT16: 47 | BU16: 48 | BV16: 49 | BW16: 50 | BX16: 51 | BY16: =BX16+BY7 -> 52 | BZ16: 53 | CA16: 54 | CB16: 55 | CC16: 56 | CD16: 57 | CE16: 58 | CF16: 59 | CG16: 59 | CH16: 59 | CI16: 59 | CJ16: 59 | CK16: 59 | CL16: 59 | CM16: 59 | CN16: 59 | CO16: 59 | CP16: 59 | CQ16: 59 | CR16: 59 | CS16: 59 | CT16: 59 | CU16: 59 | CV16: 59 | CW16: 59 | CX16: 59 | CY16: 59 | CZ16: 59 | DA16: 59 | DB16: 59 | DC16: 59 | DD16: 59 | DE16: 59 | DF16: 59 | DG16: 59 | DH16: 59 | DI16: 59 | DJ16: 59 | DK16: 59 | DL16: 59 | DM16: 59 | DN16: 59 | DO16: 59 | DP16: 59 | DQ16: 59 | DR16: 59 | DS16: 59 | DT16: 59 | DU16: 59 | DV16: 59 | DW16: 59 | DX16: 59 | DY16: 59 | DZ16: 59 | EA16: 59 | EB16: 59 | EC16: 59 | ED16: 59 | EE16: 59
D17: Base CFADS | F17: EUR'000 | J17: =SUM(L17:XFD17) -> 151982.052 | L17: =LOOKUP(L$16,'InputS- Structure'!$14:$14,'InputS- Structure'!$26:$26)*L7 -> 0 | M17: =LOOKUP(M$16,'InputS- Structure'!$14:$14,'InputS- Structure'!$26:$26)*M7 -> 0 | N17: =LOOKUP(N$16,'InputS- Structure'!$14:$14,'InputS- Structure'!$26:$26)*N7 -> 0 | O17: =LOOKUP(O$16,'InputS- Structure'!$14:$14,'InputS- Structure'!$26:$26)*O7 -> 0 | P17: =LOOKUP(P$16,'InputS- Structure'!$14:$14,'InputS- Structure'!$26:$26)*P7 -> 0 | Q17: =LOOKUP(Q$16,'InputS- Structure'!$14:$14,'InputS- Structure'!$26:$26)*Q7 -> 0 | R17: =LOOKUP(R$16,'InputS- Structure'!$14:$14,'InputS- Structure'!$26:$26)*R7 -> 0 | S17: =LOOKUP(S$16,'InputS- Structure'!$14:$14,'InputS- Structure'!$26:$26)*S7 -> 0 | T17: =LOOKUP(T$16,'InputS- Structure'!$14:$14,'InputS- Structure'!$26:$26)*T7 -> 0 | U17: =LOOKUP(U$16,'InputS- Structure'!$14:$14,'InputS- Structure'!$26:$26)*U7 -> 0 | V17: =LOOKUP(V$16,'InputS- Structure'!$14:$14,'InputS- Structure'!$26:$26)*V7 -> 0 | W17: =LOOKUP(W$16,'InputS- Structure'!$14:$14,'InputS- Structure'!$26:$26)*W7 -> 0 | X17: =LOOKUP(X$16,'InputS- Structure'!$14:$14,'InputS- Structure'!$26:$26)*X7 -> 0 | Y17: =LOOKUP(Y$16,'InputS- Structure'!$14:$14,'InputS- Structure'!$26:$26)*Y7 -> 0 | Z17: =LOOKUP(Z$16,'InputS- Structure'!$14:$14,'InputS- Structure'!$26:$26)*Z7 -> 2611.311553 | AA17: =LOOKUP(AA$16,'InputS- Structure'!$14:$14,'InputS- Structure'!$26:$26)*AA7 -> 2611.311553 | AB17: =LOOKUP(AB$16,'InputS- Structure'!$14:$14,'InputS- Structure'!$26:$26)*AB7 -> 2682.884803 | AC17: =LOOKUP(AC$16,'InputS- Structure'!$14:$14,'InputS- Structure'!$26:$26)*AC7 -> 2596.032689 | AD17: =LOOKUP(AD$16,'InputS- Structure'!$14:$14,'InputS- Structure'!$26:$26)*AD7 -> 2692.447074 | AE17: =LOOKUP(AE$16,'InputS- Structure'!$14:$14,'InputS- Structure'!$26:$26)*AE7 -> 2611.423264 | AF17: =LOOKUP(AF$16,'InputS- Structure'!$14:$14,'InputS- Structure'!$26:$26)*AF7 -> 2689.730443 | AG17: =LOOKUP(AG$16,'InputS- Structure'!$14:$14,'InputS- Structure'!$26:$26)*AG7 -> 2557.112284 | AH17: =LOOKUP(AH$16,'InputS- Structure'!$14:$14,'InputS- Structure'!$26:$26)*AH7 -> 2630.710141 | AI17: =LOOKUP(AI$16,'InputS- Structure'!$14:$14,'InputS- Structure'!$26:$26)*AI7 -> 2548.253685 | AJ17: =LOOKUP(AJ$16,'InputS- Structure'!$14:$14,'InputS- Structure'!$26:$26)*AJ7 -> 2626.503318 | AK17: =LOOKUP(AK$16,'InputS- Structure'!$14:$14,'InputS- Structure'!$26:$26)*AK7 -> 2548.032294 | AL17: =LOOKUP(AL$16,'InputS- Structure'!$14:$14,'InputS- Structure'!$26:$26)*AL7 -> 2626.7514 | AM17: =LOOKUP(AM$16,'InputS- Structure'!$14:$14,'InputS- Structure'!$26:$26)*AM7 -> 2548.375909 | AN17: =LOOKUP(AN$16,'InputS- Structure'!$14:$14,'InputS- Structure'!$26:$26)*AN7 -> 2627.258255 | AO17: =LOOKUP(AO$16,'InputS- Structure'!$14:$14,'InputS- Structure'!$26:$26)*AO7 -> 2549.135972 | AP17: =LOOKUP(AP$16,'InputS- Structure'!$14:$14,'InputS- Structure'!$26:$26)*AP7 -> 2623.592943 | AQ17: =LOOKUP(AQ$16,'InputS- Structure'!$14:$14,'InputS- Structure'!$26:$26)*AQ7 -> 2550.690687 | AR17: =LOOKUP(AR$16,'InputS- Structure'!$14:$14,'InputS- Structure'!$26:$26)*AR7 -> 2629.678545 | AS17: =LOOKUP(AS$16,'InputS- Structure'!$14:$14,'InputS- Structure'!$26:$26)*AS7 -> 2475.075362 | AT17: =LOOKUP(AT$16,'InputS- Structure'!$14:$14,'InputS- Structure'!$26:$26)*AT7 -> 2600.749667 | AU17: =LOOKUP(AU$16,'InputS- Structure'!$14:$14,'InputS- Structure'!$26:$26)*AU7 -> 2522.548067 | AV17: =LOOKUP(AV$16,'InputS- Structure'!$14:$14,'InputS- Structure'!$26:$26)*AV7 -> 2602.813879 | AW17: =LOOKUP(AW$16,'InputS- Structure'!$14:$14,'InputS- Structure'!$26:$26)*AW7 -> 2524.556846 | AX17: =LOOKUP(AX$16,'InputS- Structure'!$14:$14,'InputS- Structure'!$26:$26)*AX7 -> 2600.238103 | AY17: =LOOKUP(AY$16,'InputS- Structure'!$14:$14,'InputS- Structure'!$26:$26)*AY7 -> 2527.426909 | AZ17: =LOOKUP(AZ$16,'InputS- Structure'!$14:$14,'InputS- Structure'!$26:$26)*AZ7 -> 2607.813584 | BA17: =LOOKUP(BA$16,'InputS- Structure'!$14:$14,'InputS- Structure'!$26:$26)*BA7 -> 2530.167762 | BB17: =LOOKUP(BB$16,'InputS- Structure'!$14:$14,'InputS- Structure'!$26:$26)*BB7 -> 2611.238527 | BC17: =LOOKUP(BC$16,'InputS- Structure'!$14:$14,'InputS- Structure'!$26:$26)*BC7 -> 2533.965539 | BD17: =LOOKUP(BD$16,'InputS- Structure'!$14:$14,'InputS- Structure'!$26:$26)*BD7 -> 2615.346245 | BE17: =LOOKUP(BE$16,'InputS- Structure'!$14:$14,'InputS- Structure'!$26:$26)*BE7 -> 2538.820186 | BF17: =LOOKUP(BF$16,'InputS- Structure'!$14:$14,'InputS- Structure'!$26:$26)*BF7 -> 2548.375909 | BG17: =LOOKUP(BG$16,'InputS- Structure'!$14:$14,'InputS- Structure'!$26:$26)*BG7 -> 2627.258255 | BH17: =LOOKUP(BH$16,'InputS- Structure'!$14:$14,'InputS- Structure'!$26:$26)*BH7 -> 2549.135972 | BI17: =LOOKUP(BI$16,'InputS- Structure'!$14:$14,'InputS- Structure'!$26:$26)*BI7 -> 2623.592943 | BJ17: =LOOKUP(BJ$16,'InputS- Structure'!$14:$14,'InputS- Structure'!$26:$26)*BJ7 -> 2550.690687 | BK17: =LOOKUP(BK$16,'InputS- Structure'!$14:$14,'InputS- Structure'!$26:$26)*BK7 -> 2629.678545 | BL17: =LOOKUP(BL$16,'InputS- Structure'!$14:$14,'InputS- Structure'!$26:$26)*BL7 -> 2475.075362 | BM17: =LOOKUP(BM$16,'InputS- Structure'!$14:$14,'InputS- Structure'!$26:$26)*BM7 -> 2600.749667 | BN17: =LOOKUP(BN$16,'InputS- Structure'!$14:$14,'InputS- Structure'!$26:$26)*BN7 -> 2522.548067 | BO17: =LOOKUP(BO$16,'InputS- Structure'!$14:$14,'InputS- Structure'!$26:$26)*BO7 -> 2602.813879 | BP17: =LOOKUP(BP$16,'InputS- Structure'!$14:$14,'InputS- Structure'!$26:$26)*BP7 -> 2524.556846 | BQ17: =LOOKUP(BQ$16,'InputS- Structure'!$14:$14,'InputS- Structure'!$26:$26)*BQ7 -> 2600.238103 | BR17: =LOOKUP(BR$16,'InputS- Structure'!$14:$14,'InputS- Structure'!$26:$26)*BR7 -> 2527.426909 | BS17: =LOOKUP(BS$16,'InputS- Structure'!$14:$14,'InputS- Structure'!$26:$26)*BS7 -> 2607.813584 | BT17: =LOOKUP(BT$16,'InputS- Structure'!$14:$14,'InputS- Structure'!$26:$26)*BT7 -> 2530.167762 | BU17: =LOOKUP(BU$16,'InputS- Structure'!$14:$14,'InputS- Structure'!$26:$26)*BU7 -> 2611.238527 | BV17: =LOOKUP(BV$16,'InputS- Structure'!$14:$14,'InputS- Structure'!$26:$26)*BV7 -> 2533.965539 | BW17: =LOOKUP(BW$16,'InputS- Structure'!$14:$14,'InputS- Structure'!$26:$26)*BW7 -> 2615.346245 | BX17: =LOOKUP(BX$16,'InputS- Structure'!$14:$14,'InputS- Structure'!$26:$26)*BX7 -> 2538.820186 | BY17: =LOOKUP(BY$16,'InputS- Structure'!$14:$14,'InputS- Structure'!$26:$26)*BY7 -> 2538.820186 | BZ17: =LOOKUP(BZ$16,'InputS- Structure'!$14:$14,'InputS- Structure'!$26:$26)*BZ7 -> 2538.820186 | CA17: =LOOKUP(CA$16,'InputS- Structure'!$14:$14,'InputS- Structure'!$26:$26)*CA7 -> 2538.820186 | CB17: =LOOKUP(CB$16,'InputS- Structure'!$14:$14,'InputS- Structure'!$26:$26)*CB7 -> 2538.820186 | CC17: =LOOKUP(CC$16,'InputS- Structure'!$14:$14,'InputS- Structure'!$26:$26)*CC7 -> 2538.820186 | CD17: =LOOKUP(CD$16,'InputS- Structure'!$14:$14,'InputS- Structure'!$26:$26)*CD7 -> 2538.820186 | CE17: =LOOKUP(CE$16,'InputS- Structure'!$14:$14,'InputS- Structure'!$26:$26)*CE7 -> 2538.820186 | CF17: =LOOKUP(CF$16,'InputS- Structure'!$14:$14,'InputS- Structure'!$26:$26)*CF7 -> 2538.820186 | CG17: =LOOKUP(CG$16,'InputS- Structure'!$14:$14,'InputS- Structure'!$26:$26)*CG7 -> 0 | CH17: =LOOKUP(CH$16,'InputS- Structure'!$14:$14,'InputS- Structure'!$26:$26)*CH7 -> 0 | CI17: =LOOKUP(CI$16,'InputS- Structure'!$14:$14,'InputS- Structure'!$26:$26)*CI7 -> 0 | CJ17: =LOOKUP(CJ$16,'InputS- Structure'!$14:$14,'InputS- Structure'!$26:$26)*CJ7 -> 0 | CK17: =LOOKUP(CK$16,'InputS- Structure'!$14:$14,'InputS- Structure'!$26:$26)*CK7 -> 0 | CL17: =LOOKUP(CL$16,'InputS- Structure'!$14:$14,'InputS- Structure'!$26:$26)*CL7 -> 0 | CM17: =LOOKUP(CM$16,'InputS- Structure'!$14:$14,'InputS- Structure'!$26:$26)*CM7 -> 0 | CN17: =LOOKUP(CN$16,'InputS- Structure'!$14:$14,'InputS- Structure'!$26:$26)*CN7 -> 0 | CO17: =LOOKUP(CO$16,'InputS- Structure'!$14:$14,'InputS- Structure'!$26:$26)*CO7 -> 0 | CP17: =LOOKUP(CP$16,'InputS- Structure'!$14:$14,'InputS- Structure'!$26:$26)*CP7 -> 0 | CQ17: =LOOKUP(CQ$16,'InputS- Structure'!$14:$14,'InputS- Structure'!$26:$26)*CQ7 -> 0 | CR17: =LOOKUP(CR$16,'InputS- Structure'!$14:$14,'InputS- Structure'!$26:$26)*CR7 -> 0 | CS17: =LOOKUP(CS$16,'InputS- Structure'!$14:$14,'InputS- Structure'!$26:$26)*CS7 -> 0 | CT17: =LOOKUP(CT$16,'InputS- Structure'!$14:$14,'InputS- Structure'!$26:$26)*CT7 -> 0 | CU17: =LOOKUP(CU$16,'InputS- Structure'!$14:$14,'InputS- Structure'!$26:$26)*CU7 -> 0 | CV17: =LOOKUP(CV$16,'InputS- Structure'!$14:$14,'InputS- Structure'!$26:$26)*CV7 -> 0 | CW17: =LOOKUP(CW$16,'InputS- Structure'!$14:$14,'InputS- Structure'!$26:$26)*CW7 -> 0 | CX17: =LOOKUP(CX$16,'InputS- Structure'!$14:$14,'InputS- Structure'!$26:$26)*CX7 -> 0 | CY17: =LOOKUP(CY$16,'InputS- Structure'!$14:$14,'InputS- Structure'!$26:$26)*CY7 -> 0 | CZ17: =LOOKUP(CZ$16,'InputS- Structure'!$14:$14,'InputS- Structure'!$26:$26)*CZ7 -> 0 | DA17: =LOOKUP(DA$16,'InputS- Structure'!$14:$14,'InputS- Structure'!$26:$26)*DA7 -> 0 | DB17: =LOOKUP(DB$16,'InputS- Structure'!$14:$14,'InputS- Structure'!$26:$26)*DB7 -> 0 | DC17: =LOOKUP(DC$16,'InputS- Structure'!$14:$14,'InputS- Structure'!$26:$26)*DC7 -> 0 | DD17: =LOOKUP(DD$16,'InputS- Structure'!$14:$14,'InputS- Structure'!$26:$26)*DD7 -> 0 | DE17: =LOOKUP(DE$16,'InputS- Structure'!$14:$14,'InputS- Structure'!$26:$26)*DE7 -> 0 | DF17: =LOOKUP(DF$16,'InputS- Structure'!$14:$14,'InputS- Structure'!$26:$26)*DF7 -> 0 | DG17: =LOOKUP(DG$16,'InputS- Structure'!$14:$14,'InputS- Structure'!$26:$26)*DG7 -> 0 | DH17: =LOOKUP(DH$16,'InputS- Structure'!$14:$14,'InputS- Structure'!$26:$26)*DH7 -> 0 | DI17: =LOOKUP(DI$16,'InputS- Structure'!$14:$14,'InputS- Structure'!$26:$26)*DI7 -> 0 | DJ17: =LOOKUP(DJ$16,'InputS- Structure'!$14:$14,'InputS- Structure'!$26:$26)*DJ7 -> 0 | DK17: =LOOKUP(DK$16,'InputS- Structure'!$14:$14,'InputS- Structure'!$26:$26)*DK7 -> 0 | DL17: =LOOKUP(DL$16,'InputS- Structure'!$14:$14,'InputS- Structure'!$26:$26)*DL7 -> 0 | DM17: =LOOKUP(DM$16,'InputS- Structure'!$14:$14,'InputS- Structure'!$26:$26)*DM7 -> 0 | DN17: =LOOKUP(DN$16,'InputS- Structure'!$14:$14,'InputS- Structure'!$26:$26)*DN7 -> 0 | DO17: =LOOKUP(DO$16,'InputS- Structure'!$14:$14,'InputS- Structure'!$26:$26)*DO7 -> 0 | DP17: =LOOKUP(DP$16,'InputS- Structure'!$14:$14,'InputS- Structure'!$26:$26)*DP7 -> 0 | DQ17: =LOOKUP(DQ$16,'InputS- Structure'!$14:$14,'InputS- Structure'!$26:$26)*DQ7 -> 0 | DR17: =LOOKUP(DR$16,'InputS- Structure'!$14:$14,'InputS- Structure'!$26:$26)*DR7 -> 0 | DS17: =LOOKUP(DS$16,'InputS- Structure'!$14:$14,'InputS- Structure'!$26:$26)*DS7 -> 0 | DT17: =LOOKUP(DT$16,'InputS- Structure'!$14:$14,'InputS- Structure'!$26:$26)*DT7 -> 0 | DU17: =LOOKUP(DU$16,'InputS- Structure'!$14:$14,'InputS- Structure'!$26:$26)*DU7 -> 0 | DV17: =LOOKUP(DV$16,'InputS- Structure'!$14:$14,'InputS- Structure'!$26:$26)*DV7 -> 0 | DW17: =LOOKUP(DW$16,'InputS- Structure'!$14:$14,'InputS- Structure'!$26:$26)*DW7 -> 0 | DX17: =LOOKUP(DX$16,'InputS- Structure'!$14:$14,'InputS- Structure'!$26:$26)*DX7 -> 0 | DY17: =LOOKUP(DY$16,'InputS- Structure'!$14:$14,'InputS- Structure'!$26:$26)*DY7 -> 0 | DZ17: =LOOKUP(DZ$16,'InputS- Structure'!$14:$14,'InputS- Structure'!$26:$26)*DZ7 -> 0 | EA17: =LOOKUP(EA$16,'InputS- Structure'!$14:$14,'InputS- Structure'!$26:$26)*EA7 -> 0 | EB17: =LOOKUP(EB$16,'InputS- Structure'!$14:$14,'InputS- Structure'!$26:$26)*EB7 -> 0 | EC17: =LOOKUP(EC$16,'InputS- Structure'!$14:$14,'InputS- Structure'!$26:$26)*EC7 -> 0 | ED17: =LOOKUP(ED$16,'InputS- Structure'!$14:$14,'InputS- Structure'!$26:$26)*ED7 -> 0 | EE17: =LOOKUP(EE$16,'InputS- Structure'!$14:$14,'InputS- Structure'!$26:$26)*EE7 -> 0
D18: Seasonal Factor | F18: Constant | L18: =LOOKUP(L1,'InputS- Structure'!14:14,'InputS- Structure'!34:34) -> 1 | M18: =LOOKUP(M1,'InputS- Structure'!14:14,'InputS- Structure'!34:34) -> 1 | N18: =LOOKUP(N1,'InputS- Structure'!14:14,'InputS- Structure'!34:34) -> 1 | O18: =LOOKUP(O1,'InputS- Structure'!14:14,'InputS- Structure'!34:34) -> 1 | P18: =LOOKUP(P1,'InputS- Structure'!14:14,'InputS- Structure'!34:34) -> 1 | Q18: =LOOKUP(Q1,'InputS- Structure'!14:14,'InputS- Structure'!34:34) -> 1 | R18: =LOOKUP(R1,'InputS- Structure'!14:14,'InputS- Structure'!34:34) -> 1 | S18: =LOOKUP(S1,'InputS- Structure'!14:14,'InputS- Structure'!34:34) -> 1 | T18: =LOOKUP(T1,'InputS- Structure'!14:14,'InputS- Structure'!34:34) -> 1 | U18: =LOOKUP(U1,'InputS- Structure'!14:14,'InputS- Structure'!34:34) -> 1 | V18: =LOOKUP(V1,'InputS- Structure'!14:14,'InputS- Structure'!34:34) -> 1 | W18: =LOOKUP(W1,'InputS- Structure'!14:14,'InputS- Structure'!34:34) -> 1 | X18: =LOOKUP(X1,'InputS- Structure'!14:14,'InputS- Structure'!34:34) -> 1 | Y18: =LOOKUP(Y1,'InputS- Structure'!14:14,'InputS- Structure'!34:34) -> 1 | Z18: =LOOKUP(Z1,'InputS- Structure'!14:14,'InputS- Structure'!34:34) -> 1 | AA18: =LOOKUP(AA1,'InputS- Structure'!14:14,'InputS- Structure'!34:34) -> 1 | AB18: =LOOKUP(AB1,'InputS- Structure'!14:14,'InputS- Structure'!34:34) -> 1 | AC18: =LOOKUP(AC1,'InputS- Structure'!14:14,'InputS- Structure'!34:34) -> 1 | AD18: =LOOKUP(AD1,'InputS- Structure'!14:14,'InputS- Structure'!34:34) -> 1 | AE18: =LOOKUP(AE1,'InputS- Structure'!14:14,'InputS- Structure'!34:34) -> 1 | AF18: =LOOKUP(AF1,'InputS- Structure'!14:14,'InputS- Structure'!34:34) -> 1 | AG18: =LOOKUP(AG1,'InputS- Structure'!14:14,'InputS- Structure'!34:34) -> 1 | AH18: =LOOKUP(AH1,'InputS- Structure'!14:14,'InputS- Structure'!34:34) -> 1 | AI18: =LOOKUP(AI1,'InputS- Structure'!14:14,'InputS- Structure'!34:34) -> 1 | AJ18: =LOOKUP(AJ1,'InputS- Structure'!14:14,'InputS- Structure'!34:34) -> 1 | AK18: =LOOKUP(AK1,'InputS- Structure'!14:14,'InputS- Structure'!34:34) -> 1 | AL18: =LOOKUP(AL1,'InputS- Structure'!14:14,'InputS- Structure'!34:34) -> 1 | AM18: =LOOKUP(AM1,'InputS- Structure'!14:14,'InputS- Structure'!34:34) -> 1 | AN18: =LOOKUP(AN1,'InputS- Structure'!14:14,'InputS- Structure'!34:34) -> 1 | AO18: =LOOKUP(AO1,'InputS- Structure'!14:14,'InputS- Structure'!34:34) -> 1 | AP18: =LOOKUP(AP1,'InputS- Structure'!14:14,'InputS- Structure'!34:34) -> 1 | AQ18: =LOOKUP(AQ1,'InputS- Structure'!14:14,'InputS- Structure'!34:34) -> 1 | AR18: =LOOKUP(AR1,'InputS- Structure'!14:14,'InputS- Structure'!34:34) -> 1 | AS18: =LOOKUP(AS1,'InputS- Structure'!14:14,'InputS- Structure'!34:34) -> 1 | AT18: =LOOKUP(AT1,'InputS- Structure'!14:14,'InputS- Structure'!34:34) -> 1 | AU18: =LOOKUP(AU1,'InputS- Structure'!14:14,'InputS- Structure'!34:34) -> 1 | AV18: =LOOKUP(AV1,'InputS- Structure'!14:14,'InputS- Structure'!34:34) -> 1 | AW18: =LOOKUP(AW1,'InputS- Structure'!14:14,'InputS- Structure'!34:34) -> 1 | AX18: =LOOKUP(AX1,'InputS- Structure'!14:14,'InputS- Structure'!34:34) -> 1 | AY18: =LOOKUP(AY1,'InputS- Structure'!14:14,'InputS- Structure'!34:34) -> 1 | AZ18: =LOOKUP(AZ1,'InputS- Structure'!14:14,'InputS- Structure'!34:34) -> 1 | BA18: =LOOKUP(BA1,'InputS- Structure'!14:14,'InputS- Structure'!34:34) -> 1 | BB18: =LOOKUP(BB1,'InputS- Structure'!14:14,'InputS- Structure'!34:34) -> 1 | BC18: =LOOKUP(BC1,'InputS- Structure'!14:14,'InputS- Structure'!34:34) -> 1 | BD18: =LOOKUP(BD1,'InputS- Structure'!14:14,'InputS- Structure'!34:34) -> 1 | BE18: =LOOKUP(BE1,'InputS- Structure'!14:14,'InputS- Structure'!34:34) -> 1 | BF18: =LOOKUP(BF1,'InputS- Structure'!14:14,'InputS- Structure'!34:34) -> 1 | BG18: =LOOKUP(BG1,'InputS- Structure'!14:14,'InputS- Structure'!34:34) -> 1 | BH18: =LOOKUP(BH1,'InputS- Structure'!14:14,'InputS- Structure'!34:34) -> 1 | BI18: =LOOKUP(BI1,'InputS- Structure'!14:14,'InputS- Structure'!34:34) -> 1 | BJ18: =LOOKUP(BJ1,'InputS- Structure'!14:14,'InputS- Structure'!34:34) -> 1 | BK18: =LOOKUP(BK1,'InputS- Structure'!14:14,'InputS- Structure'!34:34) -> 1 | BL18: =LOOKUP(BL1,'InputS- Structure'!14:14,'InputS- Structure'!34:34) -> 1 | BM18: =LOOKUP(BM1,'InputS- Structure'!14:14,'InputS- Structure'!34:34) -> 1 | BN18: =LOOKUP(BN1,'InputS- Structure'!14:14,'InputS- Structure'!34:34) -> 1 | BO18: =LOOKUP(BO1,'InputS- Structure'!14:14,'InputS- Structure'!34:34) -> 1 | BP18: =LOOKUP(BP1,'InputS- Structure'!14:14,'InputS- Structure'!34:34) -> 1 | BQ18: =LOOKUP(BQ1,'InputS- Structure'!14:14,'InputS- Structure'!34:34) -> 1 | BR18: =LOOKUP(BR1,'InputS- Structure'!14:14,'InputS- Structure'!34:34) -> 1 | BS18: =LOOKUP(BS1,'InputS- Structure'!14:14,'InputS- Structure'!34:34) -> 1 | BT18: =LOOKUP(BT1,'InputS- Structure'!14:14,'InputS- Structure'!34:34) -> 1 | BU18: =LOOKUP(BU1,'InputS- Structure'!14:14,'InputS- Structure'!34:34) -> 1 | BV18: =LOOKUP(BV1,'InputS- Structure'!14:14,'InputS- Structure'!34:34) -> 1 | BW18: =LOOKUP(BW1,'InputS- Structure'!14:14,'InputS- Structure'!34:34) -> 1 | BX18: =LOOKUP(BX1,'InputS- Structure'!14:14,'InputS- Structure'!34:34) -> 1 | BY18: =LOOKUP(BY1,'InputS- Structure'!14:14,'InputS- Structure'!34:34) -> 1 | BZ18: =LOOKUP(BZ1,'InputS- Structure'!14:14,'InputS- Structure'!34:34) -> 1 | CA18: =LOOKUP(CA1,'InputS- Structure'!14:14,'InputS- Structure'!34:34) -> 1 | CB18: =LOOKUP(CB1,'InputS- Structure'!14:14,'InputS- Structure'!34:34) -> 1 | CC18: =LOOKUP(CC1,'InputS- Structure'!14:14,'InputS- Structure'!34:34) -> 1 | CD18: =LOOKUP(CD1,'InputS- Structure'!14:14,'InputS- Structure'!34:34) -> 1 | CE18: =LOOKUP(CE1,'InputS- Structure'!14:14,'InputS- Structure'!34:34) -> 1 | CF18: =LOOKUP(CF1,'InputS- Structure'!14:14,'InputS- Structure'!34:34) -> 1 | CG18: =LOOKUP(CG1,'InputS- Structure'!14:14,'InputS- Structure'!34:34) -> 1 | CH18: =LOOKUP(CH1,'InputS- Structure'!14:14,'InputS- Structure'!34:34) -> 1 | CI18: =LOOKUP(CI1,'InputS- Structure'!14:14,'InputS- Structure'!34:34) -> 1 | CJ18: =LOOKUP(CJ1,'InputS- Structure'!14:14,'InputS- Structure'!34:34) -> 1 | CK18: =LOOKUP(CK1,'InputS- Structure'!14:14,'InputS- Structure'!34:34) -> 1 | CL18: =LOOKUP(CL1,'InputS- Structure'!14:14,'InputS- Structure'!34:34) -> 1 | CM18: =LOOKUP(CM1,'InputS- Structure'!14:14,'InputS- Structure'!34:34) -> 1 | CN18: =LOOKUP(CN1,'InputS- Structure'!14:14,'InputS- Structure'!34:34) -> 1 | CO18: =LOOKUP(CO1,'InputS- Structure'!14:14,'InputS- Structure'!34:34) -> 1 | CP18: =LOOKUP(CP1,'InputS- Structure'!14:14,'InputS- Structure'!34:34) -> 1 | CQ18: =LOOKUP(CQ1,'InputS- Structure'!14:14,'InputS- Structure'!34:34) -> 1 | CR18: =LOOKUP(CR1,'InputS- Structure'!14:14,'InputS- Structure'!34:34) -> 1 | CS18: =LOOKUP(CS1,'InputS- Structure'!14:14,'InputS- Structure'!34:34) -> 1 | CT18: =LOOKUP(CT1,'InputS- Structure'!14:14,'InputS- Structure'!34:34) -> 1 | CU18: =LOOKUP(CU1,'InputS- Structure'!14:14,'InputS- Structure'!34:34) -> 1 | CV18: =LOOKUP(CV1,'InputS- Structure'!14:14,'InputS- Structure'!34:34) -> 1 | CW18: =LOOKUP(CW1,'InputS- Structure'!14:14,'InputS- Structure'!34:34) -> 1 | CX18: =LOOKUP(CX1,'InputS- Structure'!14:14,'InputS- Structure'!34:34) -> 1 | CY18: =LOOKUP(CY1,'InputS- Structure'!14:14,'InputS- Structure'!34:34) -> 1 | CZ18: =LOOKUP(CZ1,'InputS- Structure'!14:14,'InputS- Structure'!34:34) -> 1 | DA18: =LOOKUP(DA1,'InputS- Structure'!14:14,'InputS- Structure'!34:34) -> 1 | DB18: =LOOKUP(DB1,'InputS- Structure'!14:14,'InputS- Structure'!34:34) -> 1 | DC18: =LOOKUP(DC1,'InputS- Structure'!14:14,'InputS- Structure'!34:34) -> 1 | DD18: =LOOKUP(DD1,'InputS- Structure'!14:14,'InputS- Structure'!34:34) -> 1 | DE18: =LOOKUP(DE1,'InputS- Structure'!14:14,'InputS- Structure'!34:34) -> 1 | DF18: =LOOKUP(DF1,'InputS- Structure'!14:14,'InputS- Structure'!34:34) -> 1 | DG18: =LOOKUP(DG1,'InputS- Structure'!14:14,'InputS- Structure'!34:34) -> 1 | DH18: =LOOKUP(DH1,'InputS- Structure'!14:14,'InputS- Structure'!34:34) -> 1 | DI18: =LOOKUP(DI1,'InputS- Structure'!14:14,'InputS- Structure'!34:34) -> 1 | DJ18: =LOOKUP(DJ1,'InputS- Structure'!14:14,'InputS- Structure'!34:34) -> 1 | DK18: =LOOKUP(DK1,'InputS- Structure'!14:14,'InputS- Structure'!34:34) -> 1 | DL18: =LOOKUP(DL1,'InputS- Structure'!14:14,'InputS- Structure'!34:34) -> 1 | DM18: =LOOKUP(DM1,'InputS- Structure'!14:14,'InputS- Structure'!34:34) -> 1 | DN18: =LOOKUP(DN1,'InputS- Structure'!14:14,'InputS- Structure'!34:34) -> 1 | DO18: =LOOKUP(DO1,'InputS- Structure'!14:14,'InputS- Structure'!34:34) -> 1 | DP18: =LOOKUP(DP1,'InputS- Structure'!14:14,'InputS- Structure'!34:34) -> 1 | DQ18: =LOOKUP(DQ1,'InputS- Structure'!14:14,'InputS- Structure'!34:34) -> 1 | DR18: =LOOKUP(DR1,'InputS- Structure'!14:14,'InputS- Structure'!34:34) -> 1 | DS18: =LOOKUP(DS1,'InputS- Structure'!14:14,'InputS- Structure'!34:34) -> 1 | DT18: =LOOKUP(DT1,'InputS- Structure'!14:14,'InputS- Structure'!34:34) -> 1 | DU18: =LOOKUP(DU1,'InputS- Structure'!14:14,'InputS- Structure'!34:34) -> 1 | DV18: =LOOKUP(DV1,'InputS- Structure'!14:14,'InputS- Structure'!34:34) -> 1 | DW18: =LOOKUP(DW1,'InputS- Structure'!14:14,'InputS- Structure'!34:34) -> 1 | DX18: =LOOKUP(DX1,'InputS- Structure'!14:14,'InputS- Structure'!34:34) -> 1 | DY18: =LOOKUP(DY1,'InputS- Structure'!14:14,'InputS- Structure'!34:34) -> 1 | DZ18: =LOOKUP(DZ1,'InputS- Structure'!14:14,'InputS- Structure'!34:34) -> 1 | EA18: =LOOKUP(EA1,'InputS- Structure'!14:14,'InputS- Structure'!34:34) -> 1 | EB18: =LOOKUP(EB1,'InputS- Structure'!14:14,'InputS- Structure'!34:34) -> 1 | EC18: =LOOKUP(EC1,'InputS- Structure'!14:14,'InputS- Structure'!34:34) -> 1 | ED18: =LOOKUP(ED1,'InputS- Structure'!14:14,'InputS- Structure'!34:34) -> 1 | EE18: =LOOKUP(EE1,'InputS- Structure'!14:14,'InputS- Structure'!34:34) -> 1
D19: CFADS | F19: EUR'000 | J19: =SUM(L19:XFD19) -> 151982.052 | L19: =L17*L18 -> 0 | M19: =M17*M18 -> 0 | N19: 0 | O19: 0 | P19: 0 | Q19: 0 | R19: 0 | S19: 0 | T19: 0 | U19: 0 | V19: 0 | W19: 0 | X19: 0 | Y19: 0 | Z19: 2611.311553 | AA19: 2611.311553 | AB19: 2682.884803 | AC19: 2596.032689 | AD19: 2692.447074 | AE19: 2611.423264 | AF19: 2689.730443 | AG19: 2557.112284 | AH19: 2630.710141 | AI19: 2548.253685 | AJ19: 2626.503318 | AK19: 2548.032294 | AL19: 2626.7514 | AM19: 2548.375909 | AN19: 2627.258255 | AO19: 2549.135972 | AP19: 2623.592943 | AQ19: 2550.690687 | AR19: 2629.678545 | AS19: 2475.075362 | AT19: 2600.749667 | AU19: 2522.548067 | AV19: 2602.813879 | AW19: 2524.556846 | AX19: 2600.238103 | AY19: 2527.426909 | AZ19: 2607.813584 | BA19: 2530.167762 | BB19: 2611.238527 | BC19: 2533.965539 | BD19: 2615.346245 | BE19: 2538.820186 | BF19: 2548.375909 | BG19: 2627.258255 | BH19: 2549.135972 | BI19: 2623.592943 | BJ19: 2550.690687 | BK19: 2629.678545 | BL19: 2475.075362 | BM19: 2600.749667 | BN19: 2522.548067 | BO19: 2602.813879 | BP19: 2524.556846 | BQ19: 2600.238103 | BR19: 2527.426909 | BS19: 2607.813584 | BT19: 2530.167762 | BU19: 2611.238527 | BV19: 2533.965539 | BW19: 2615.346245 | BX19: 2538.820186 | BY19: =BY17*BY18 -> 2538.820186 | BZ19: 2538.820186 | CA19: 2538.820186 | CB19: 2538.820186 | CC19: 2538.820186 | CD19: 2538.820186 | CE19: 2538.820186 | CF19: 2538.820186 | CG19: 0 | CH19: 0 | CI19: 0 | CJ19: 0 | CK19: 0 | CL19: 0 | CM19: 0 | CN19: 0 | CO19: 0 | CP19: 0 | CQ19: 0 | CR19: 0 | CS19: 0 | CT19: 0 | CU19: 0 | CV19: 0 | CW19: 0 | CX19: 0 | CY19: 0 | CZ19: 0 | DA19: 0 | DB19: 0 | DC19: 0 | DD19: 0 | DE19: 0 | DF19: 0 | DG19: 0 | DH19: 0 | DI19: 0 | DJ19: 0 | DK19: 0 | DL19: 0 | DM19: 0 | DN19: 0 | DO19: 0 | DP19: 0 | DQ19: 0 | DR19: 0 | DS19: 0 | DT19: 0 | DU19: 0 | DV19: 0 | DW19: 0 | DX19: 0 | DY19: 0 | DZ19: 0 | EA19: 0 | EB19: 0 | EC19: 0 | ED19: 0 | EE19: 0
D21: Net Operating Cash Flow | F21: EUR'000 | J21: =SUM(L21:XFD21) -> 86982.05197 | L21: =L14-0.000001 -> -1e-06 | M21: =M19-M14 -> -22185.06395 | N21: =N19-N14 -> -6422.239764 | O21: 0 | P21: -4281.493789 | Q21: 0 | R21: -8562.987578 | S21: -8562.987578 | T21: -8562.987578 | U21: 0 | V21: 0 | W21: 0 | X21: -4281.493789 | Y21: -2140.745975 | Z21: 2611.311553 | AA21: 2611.311553 | AB21: 2682.884803 | AC21: 2596.032689 | AD21: 2692.447074 | AE21: 2611.423264 | AF21: 2689.730443 | AG21: 2557.112284 | AH21: 2630.710141 | AI21: 2548.253685 | AJ21: 2626.503318 | AK21: 2548.032294 | AL21: 2626.7514 | AM21: 2548.375909 | AN21: 2627.258255 | AO21: 2549.135972 | AP21: 2623.592943 | AQ21: 2550.690687 | AR21: 2629.678545 | AS21: 2475.075362 | AT21: 2600.749667 | AU21: 2522.548067 | AV21: 2602.813879 | AW21: 2524.556846 | AX21: 2600.238103 | AY21: 2527.426909 | AZ21: 2607.813584 | BA21: 2530.167762 | BB21: 2611.238527 | BC21: 2533.965539 | BD21: 2615.346245 | BE21: 2538.820186 | BF21: 2548.375909 | BG21: 2627.258255 | BH21: 2549.135972 | BI21: 2623.592943 | BJ21: 2550.690687 | BK21: 2629.678545 | BL21: 2475.075362 | BM21: 2600.749667 | BN21: 2522.548067 | BO21: 2602.813879 | BP21: 2524.556846 | BQ21: 2600.238103 | BR21: 2527.426909 | BS21: 2607.813584 | BT21: 2530.167762 | BU21: 2611.238527 | BV21: 2533.965539 | BW21: 2615.346245 | BX21: 2538.820186 | BY21: 2538.820186 | BZ21: =BZ19-BZ14 -> 2538.820186 | CA21: 2538.820186 | CB21: 2538.820186 | CC21: 2538.820186 | CD21: 2538.820186 | CE21: 2538.820186 | CF21: 2538.820186 | CG21: 0 | CH21: 0 | CI21: 0 | CJ21: 0 | CK21: 0 | CL21: 0 | CM21: 0 | CN21: 0 | CO21: 0 | CP21: 0 | CQ21: 0 | CR21: 0 | CS21: 0 | CT21: 0 | CU21: 0 | CV21: 0 | CW21: 0 | CX21: 0 | CY21: 0 | CZ21: 0 | DA21: 0 | DB21: 0 | DC21: 0 | DD21: 0 | DE21: 0 | DF21: 0 | DG21: 0 | DH21: 0 | DI21: 0 | DJ21: 0 | DK21: 0 | DL21: 0 | DM21: 0 | DN21: 0 | DO21: 0 | DP21: 0 | DQ21: 0 | DR21: 0 | DS21: 0 | DT21: 0 | DU21: 0 | DV21: 0 | DW21: 0 | DX21: 0 | DY21: 0 | DZ21: 0 | EA21: 0 | EB21: 0 | EC21: 0 | ED21: 0 | EE21: 0
D22: Project IRR | F22: % | H22: =XIRR(L21:EE21,L5:EE5) -> 0.06552456319
B25: Summary Sources and Uses | M25: Copy Paste --> | N25: =turn_off -> FALSE | P25: FALSE is UDF
C26: Uses of Funds | H26: Applied | L26: Fixed S | M26: Computed S | N26: Difference | O26: UDF Summary
D27: Capital Expenditures | F27: EUR'000 | H27: =H12 -> 65000 | L27: 65000 | M27: =H27 -> 65000 | Q27: do while [diff_s].value <> 0
D28: ="Interest Durning Construction "&D48 -> Interest Durning Construction EIAF | F28: EUR'000 | H28: =IF($N$25,L28,M28) -> 846.2458148 | L28: 992.8753311 | M28: =J58 -> 846.2458148 | N28: =(L28-M28)*$N$25 -> 0
D29: ="Interest Durning Construction "&D49 -> Interest Durning Construction AFDB | F29: EUR'000 | H29: =IF($N$25,L29,M29) -> 677.2095017 | L29: 794.5499953 | M29: =J59 -> 677.2095017 | N29: =(L29-M29)*$N$25 -> 0 | Q29: [fixed_s].value =[computed_s].value
D30: Interest Durning Construction IFC | F30: EUR'000 | H30: 55.05493323 | L30: 64.5943343 | M30: =J60 -> 55.05493323 | N30: 0
D31: Interest Durning Construction GFW | F31: EUR'000 | H31: 22.02197329 | L31: 25.83773372 | M31: 22.02197329 | N31: 0 | Q31: loop
D32: ="Up-Front Fees "&D48 -> Up-Front Fees EIAF | F32: EUR'000 | H32: 196.8195988 | L32: 216.5063761 | M32: =J62 -> 196.8195988 | N32: 0
D33: ="Up-Front Fees "&D49 -> Up-Front Fees AFDB | F33: EUR'000 | H33: 132.8532286 | L33: 146.1418039 | M33: =J63 -> 132.8532286 | N33: 0
D34: Up-Front Fees IFC | F34: EUR'000 | H34: 54.12538967 | L34: 59.53925344 | M34: 54.12538967 | N34: 0
D35: Up-Front Fees GFW | F35: EUR'000 | H35: 118.0917593 | L35: 129.9038257 | M35: 118.0917593 | N35: 0
D36: ="Commitment Fees "&D48 -> Commitment Fees EIAF | F36: EUR'000 | H36: 83.65909916 | L36: 86.3814725 | M36: 83.65909916 | N36: 0
D37: ="Commitment Fees "&D49 -> Commitment Fees AFDB | F37: EUR'000 | H37: 71.70779866 | L37: 74.04126214 | M37: 71.70779866 | N37: 0
D38: Commitment Fees IFC | F38: EUR'000 | H38: 17.92694982 | L38: 18.51031553 | M38: 17.92694982 | N38: 0
D39: Commitment Fees GFW | F39: EUR'000 | H39: 47.80519952 | L39: 49.36084143 | M39: 47.80519952 | N39: 0
D40: Standby Debt Fees | F40: EUR'000 | H40: =L40 -> 0 | N40: =L40-M40 -> 0
D41: Standby Equity Fees | F41: EUR'000 | H41: 0 | N41: 0
D42: Cash DSRA | F42: EUR'000 | H42: 0 | N42: 0
E43: Total Uses of Funds | F43: EUR'000 | H43: =SUM(H27:H42) -> 67323.52125 | N43: =SUM(N28:N42) -> 0 | O43: Diff s
D45: Total Debt | F45: EUR'000 | H45: =IF($N$25,H43*I45,SUM(H48:H51)) -> 49204.89963 | I45: =IF(N25,'InputC - Structure'!G25,'Structuring Model'!H45/'Structuring Model'!H43) -> 0.7308723418
C47: Sources of Funds | H47: Debt Applied | J47: UDF
D48: EIAF | F48: EUR'000 | G48: ='InputC - Structure'!G47 -> 0.4 | H48: =IF($N$25,$H$45*G48,J48) -> 19681.95988 | J48: =IF(ISNUMBER(UDFOutput!I8),UDFOutput!I8,0) -> 19681.95988 | N48: =tef
D49: AFDB | F49: EUR'000 | G49: ='InputC - Structure'!G48 -> 0.3 | H49: =IF($N$25,$H$45*G49,J49) -> 14761.46984 | J49: =IF(ISNUMBER(UDFOutput!I9),UDFOutput!I9,0) -> 14761.46984 | N49: =SUBSTITUTE(N48,"=","",1) -> tef
D50: IFC | F50: EUR'000 | G50: ='InputC - Structure'!G49 -> 0.1 | H50: 4920.48997 | J50: =IF(ISNUMBER(UDFOutput!I10),UDFOutput!I10,0) -> 4920.48997
D51: GFW | F51: EUR'000 | G51: ='InputC - Structure'!G50 -> 0.2 | H51: 9840.97994 | J51: =IF(ISNUMBER(UDFOutput!I11),UDFOutput!I11,0) -> 9840.97994
D52: Equity | F52: EUR'000 | H52: =IF($N$25,H43-H45,J52) -> 18118.62155 | I52: =H52/H43 -> 0.2691276572 | J52: =IF(ISNUMBER(UDFOutput!I12),UDFOutput!I12,0) -> 18118.62155
E53: Total Sources of Funds | F53: EUR'000 | H53: =SUM(H48:H52) -> 67323.52118
B56: Periodic Funding Needs
D57: Capital Expenditures | F57: EUR'000 | J57: =SUM(L57:XFD57) -> 65000 | L57: =L14 -> 0 | M57: =M14 -> 22185.06395 | N57: 6422.239764 | O57: 0 | P57: 4281.493789 | Q57: 0 | R57: 8562.987578 | S57: 8562.987578 | T57: 8562.987578 | U57: 0 | V57: 0 | W57: 0 | X57: 4281.493789 | Y57: 2140.745975 | Z57: 0 | AA57: 0 | AB57: 0 | AC57: 0 | AD57: 0 | AE57: 0 | AF57: 0 | AG57: 0 | AH57: 0 | AI57: 0 | AJ57: 0 | AK57: 0 | AL57: 0 | AM57: 0 | AN57: 0 | AO57: 0 | AP57: 0 | AQ57: 0 | AR57: 0 | AS57: 0 | AT57: 0 | AU57: 0 | AV57: 0 | AW57: 0 | AX57: 0 | AY57: 0 | AZ57: 0 | BA57: 0 | BB57: 0 | BC57: 0 | BD57: 0 | BE57: 0 | BF57: 0 | BG57: 0 | BH57: 0 | BI57: 0 | BJ57: 0 | BK57: 0 | BL57: 0 | BM57: 0 | BN57: 0 | BO57: 0 | BP57: 0 | BQ57: 0 | BR57: 0 | BS57: 0 | BT57: 0 | BU57: 0 | BV57: 0 | BW57: 0 | BX57: 0 | BY57: =BY14 -> 0 | BZ57: 0 | CA57: 0 | CB57: 0 | CC57: 0 | CD57: 0 | CE57: 0 | CF57: 0 | CG57: 0 | CH57: 0 | CI57: 0 | CJ57: 0 | CK57: 0 | CL57: 0 | CM57: 0 | CN57: 0 | CO57: 0 | CP57: 0 | CQ57: 0 | CR57: 0 | CS57: 0 | CT57: 0 | CU57: 0 | CV57: 0 | CW57: 0 | CX57: 0 | CY57: 0 | CZ57: 0 | DA57: 0 | DB57: 0 | DC57: 0 | DD57: 0 | DE57: 0 | DF57: 0 | DG57: 0 | DH57: 0 | DI57: 0 | DJ57: 0 | DK57: 0 | DL57: 0 | DM57: 0 | DN57: 0 | DO57: 0 | DP57: 0 | DQ57: 0 | DR57: 0 | DS57: 0 | DT57: 0 | DU57: 0 | DV57: 0 | DW57: 0 | DX57: 0 | DY57: 0 | DZ57: 0 | EA57: 0 | EB57: 0 | EC57: 0 | ED57: 0 | EE57: 0
D58: =D28 -> Interest Durning Construction EIAF | F58: EUR'000 | J58: =SUM(L58:XFD58) -> 846.2458148 | L58: =L114 -> 0 | M58: =M114 -> 0 | N58: 11.85872375 | O58: 28.4392415 | P58: 28.63723287 | Q58: 39.80448878 | R58: 40.05053915 | S58: 62.23448458 | T58: 84.51223686 | U58: 106.8841927 | V58: 107.4138957 | W58: 107.9458386 | X58: 108.4800309 | Y58: 119.9849094 | Z58: 0 | AA58: 0 | AB58: 0 | AC58: 0 | AD58: 0 | AE58: 0 | AF58: 0 | AG58: 0 | AH58: 0 | AI58: 0 | AJ58: 0 | AK58: 0 | AL58: 0 | AM58: 0 | AN58: 0 | AO58: 0 | AP58: 0 | AQ58: 0 | AR58: 0 | AS58: 0 | AT58: 0 | AU58: 0 | AV58: 0 | AW58: 0 | AX58: 0 | AY58: 0 | AZ58: 0 | BA58: 0 | BB58: 0 | BC58: 0 | BD58: 0 | BE58: 0 | BF58: 0 | BG58: 0 | BH58: 0 | BI58: 0 | BJ58: 0 | BK58: 0 | BL58: 0 | BM58: 0 | BN58: 0 | BO58: 0 | BP58: 0 | BQ58: 0 | BR58: 0 | BS58: 0 | BT58: 0 | BU58: 0 | BV58: 0 | BW58: 0 | BX58: 0 | BY58: =BY114 -> 0 | BZ58: 0 | CA58: 0 | CB58: 0 | CC58: 0 | CD58: 0 | CE58: 0 | CF58: 0 | CG58: 0 | CH58: 0 | CI58: 0 | CJ58: 0 | CK58: 0 | CL58: 0 | CM58: 0 | CN58: 0 | CO58: 0 | CP58: 0 | CQ58: 0 | CR58: 0 | CS58: 0 | CT58: 0 | CU58: 0 | CV58: 0 | CW58: 0 | CX58: 0 | CY58: 0 | CZ58: 0 | DA58: 0 | DB58: 0 | DC58: 0 | DD58: 0 | DE58: 0 | DF58: 0 | DG58: 0 | DH58: 0 | DI58: 0 | DJ58: 0 | DK58: 0 | DL58: 0 | DM58: 0 | DN58: 0 | DO58: 0 | DP58: 0 | DQ58: 0 | DR58: 0 | DS58: 0 | DT58: 0 | DU58: 0 | DV58: 0 | DW58: 0 | DX58: 0 | DY58: 0 | DZ58: 0 | EA58: 0 | EB58: 0 | EC58: 0 | ED58: 0 | EE58: 0
D59: =D29 -> Interest Durning Construction AFDB | F59: EUR'000 | J59: 677.2095017 | L59: =L131 -> 0 | M59: =M131 -> 0 | N59: 9.489961733 | O59: 22.75854631 | P59: 22.9169892 | Q59: 31.85360275 | R59: 32.05050493 | S59: 49.80324104 | T59: 67.63104621 | U59: 85.5342379 | V59: 85.95813356 | W59: 86.3838217 | X59: 86.81130991 | Y59: 96.01810644 | Z59: 0 | AA59: 0 | AB59: 0 | AC59: 0 | AD59: 0 | AE59: 0 | AF59: 0 | AG59: 0 | AH59: 0 | AI59: 0 | AJ59: 0 | AK59: 0 | AL59: 0 | AM59: 0 | AN59: 0 | AO59: 0 | AP59: 0 | AQ59: 0 | AR59: 0 | AS59: 0 | AT59: 0 | AU59: 0 | AV59: 0 | AW59: 0 | AX59: 0 | AY59: 0 | AZ59: 0 | BA59: 0 | BB59: 0 | BC59: 0 | BD59: 0 | BE59: 0 | BF59: 0 | BG59: 0 | BH59: 0 | BI59: 0 | BJ59: 0 | BK59: 0 | BL59: 0 | BM59: 0 | BN59: 0 | BO59: 0 | BP59: 0 | BQ59: 0 | BR59: 0 | BS59: 0 | BT59: 0 | BU59: 0 | BV59: 0 | BW59: 0 | BX59: 0 | BY59: =BY131 -> 0 | BZ59: 0 | CA59: 0 | CB59: 0 | CC59: 0 | CD59: 0 | CE59: 0 | CF59: 0 | CG59: 0 | CH59: 0 | CI59: 0 | CJ59: 0 | CK59: 0 | CL59: 0 | CM59: 0 | CN59: 0 | CO59: 0 | CP59: 0 | CQ59: 0 | CR59: 0 | CS59: 0 | CT59: 0 | CU59: 0 | CV59: 0 | CW59: 0 | CX59: 0 | CY59: 0 | CZ59: 0 | DA59: 0 | DB59: 0 | DC59: 0 | DD59: 0 | DE59: 0 | DF59: 0 | DG59: 0 | DH59: 0 | DI59: 0 | DJ59: 0 | DK59: 0 | DL59: 0 | DM59: 0 | DN59: 0 | DO59: 0 | DP59: 0 | DQ59: 0 | DR59: 0 | DS59: 0 | DT59: 0 | DU59: 0 | DV59: 0 | DW59: 0 | DX59: 0 | DY59: 0 | DZ59: 0 | EA59: 0 | EB59: 0 | EC59: 0 | ED59: 0 | EE59: 0
D60: Interest Durning Construction IFC | F60: EUR'000 | J60: 55.05493323 | L60: =L148 -> 0 | M60: =M148 -> 0 | N60: 0.77150307 | O60: 1.850195906 | P60: 1.863076799 | Q60: 2.589594458 | R60: 2.605601966 | S60: 4.048841759 | T60: 5.498184424 | U60: 6.953655767 | V60: 6.988117108 | W60: 7.022724171 | X60: 7.057477574 | Y60: 7.805960233 | Z60: 0 | AA60: 0 | AB60: 0 | AC60: 0 | AD60: 0 | AE60: 0 | AF60: 0 | AG60: 0 | AH60: 0 | AI60: 0 | AJ60: 0 | AK60: 0 | AL60: 0 | AM60: 0 | AN60: 0 | AO60: 0 | AP60: 0 | AQ60: 0 | AR60: 0 | AS60: 0 | AT60: 0 | AU60: 0 | AV60: 0 | AW60: 0 | AX60: 0 | AY60: 0 | AZ60: 0 | BA60: 0 | BB60: 0 | BC60: 0 | BD60: 0 | BE60: 0 | BF60: 0 | BG60: 0 | BH60: 0 | BI60: 0 | BJ60: 0 | BK60: 0 | BL60: 0 | BM60: 0 | BN60: 0 | BO60: 0 | BP60: 0 | BQ60: 0 | BR60: 0 | BS60: 0 | BT60: 0 | BU60: 0 | BV60: 0 | BW60: 0 | BX60: 0 | BY60: =BY148 -> 0 | BZ60: 0 | CA60: 0 | CB60: 0 | CC60: 0 | CD60: 0 | CE60: 0 | CF60: 0 | CG60: 0 | CH60: 0 | CI60: 0 | CJ60: 0 | CK60: 0 | CL60: 0 | CM60: 0 | CN60: 0 | CO60: 0 | CP60: 0 | CQ60: 0 | CR60: 0 | CS60: 0 | CT60: 0 | CU60: 0 | CV60: 0 | CW60: 0 | CX60: 0 | CY60: 0 | CZ60: 0 | DA60: 0 | DB60: 0 | DC60: 0 | DD60: 0 | DE60: 0 | DF60: 0 | DG60: 0 | DH60: 0 | DI60: 0 | DJ60: 0 | DK60: 0 | DL60: 0 | DM60: 0 | DN60: 0 | DO60: 0 | DP60: 0 | DQ60: 0 | DR60: 0 | DS60: 0 | DT60: 0 | DU60: 0 | DV60: 0 | DW60: 0 | DX60: 0 | DY60: 0 | DZ60: 0 | EA60: 0 | EB60: 0 | EC60: 0 | ED60: 0 | EE60: 0
D61: Interest Durning Construction GFW | F61: EUR'000 | J61: 22.02197329 | L61: =L165 -> 0 | M61: =M165 -> 0 | N61: 0.308601228 | O61: 0.7400783623 | P61: 0.7452307195 | Q61: 1.035837783 | R61: 1.042240786 | S61: 1.619536704 | T61: 2.19927377 | U61: 2.781462307 | V61: 2.795246843 | W61: 2.809089668 | X61: 2.82299103 | Y61: 3.122384093 | Z61: 0 | AA61: 0 | AB61: 0 | AC61: 0 | AD61: 0 | AE61: 0 | AF61: 0 | AG61: 0 | AH61: 0 | AI61: 0 | AJ61: 0 | AK61: 0 | AL61: 0 | AM61: 0 | AN61: 0 | AO61: 0 | AP61: 0 | AQ61: 0 | AR61: 0 | AS61: 0 | AT61: 0 | AU61: 0 | AV61: 0 | AW61: 0 | AX61: 0 | AY61: 0 | AZ61: 0 | BA61: 0 | BB61: 0 | BC61: 0 | BD61: 0 | BE61: 0 | BF61: 0 | BG61: 0 | BH61: 0 | BI61: 0 | BJ61: 0 | BK61: 0 | BL61: 0 | BM61: 0 | BN61: 0 | BO61: 0 | BP61: 0 | BQ61: 0 | BR61: 0 | BS61: 0 | BT61: 0 | BU61: 0 | BV61: 0 | BW61: 0 | BX61: 0 | BY61: =BY165 -> 0 | BZ61: 0 | CA61: 0 | CB61: 0 | CC61: 0 | CD61: 0 | CE61: 0 | CF61: 0 | CG61: 0 | CH61: 0 | CI61: 0 | CJ61: 0 | CK61: 0 | CL61: 0 | CM61: 0 | CN61: 0 | CO61: 0 | CP61: 0 | CQ61: 0 | CR61: 0 | CS61: 0 | CT61: 0 | CU61: 0 | CV61: 0 | CW61: 0 | CX61: 0 | CY61: 0 | CZ61: 0 | DA61: 0 | DB61: 0 | DC61: 0 | DD61: 0 | DE61: 0 | DF61: 0 | DG61: 0 | DH61: 0 | DI61: 0 | DJ61: 0 | DK61: 0 | DL61: 0 | DM61: 0 | DN61: 0 | DO61: 0 | DP61: 0 | DQ61: 0 | DR61: 0 | DS61: 0 | DT61: 0 | DU61: 0 | DV61: 0 | DW61: 0 | DX61: 0 | DY61: 0 | DZ61: 0 | EA61: 0 | EB61: 0 | EC61: 0 | ED61: 0 | EE61: 0
D62: Up-Front Fees EIAF | F62: EUR'000 | J62: =SUM(L62:XFD62) -> 196.8195988 | L62: =L117 -> 196.8195988 | M62: =M117 -> 0 | N62: 0 | O62: 0 | P62: 0 | Q62: 0 | R62: 0 | S62: 0 | T62: 0 | U62: 0 | V62: 0 | W62: 0 | X62: 0 | Y62: 0 | Z62: 0 | AA62: 0 | AB62: 0 | AC62: 0 | AD62: 0 | AE62: 0 | AF62: 0 | AG62: 0 | AH62: 0 | AI62: 0 | AJ62: 0 | AK62: 0 | AL62: 0 | AM62: 0 | AN62: 0 | AO62: 0 | AP62: 0 | AQ62: 0 | AR62: 0 | AS62: 0 | AT62: 0 | AU62: 0 | AV62: 0 | AW62: 0 | AX62: 0 | AY62: 0 | AZ62: 0 | BA62: 0 | BB62: 0 | BC62: 0 | BD62: 0 | BE62: 0 | BF62: 0 | BG62: 0 | BH62: 0 | BI62: 0 | BJ62: 0 | BK62: 0 | BL62: 0 | BM62: 0 | BN62: 0 | BO62: 0 | BP62: 0 | BQ62: 0 | BR62: 0 | BS62: 0 | BT62: 0 | BU62: 0 | BV62: 0 | BW62: 0 | BX62: 0 | BY62: =BY117 -> 0 | BZ62: 0 | CA62: 0 | CB62: 0 | CC62: 0 | CD62: 0 | CE62: 0 | CF62: 0 | CG62: 0 | CH62: 0 | CI62: 0 | CJ62: 0 | CK62: 0 | CL62: 0 | CM62: 0 | CN62: 0 | CO62: 0 | CP62: 0 | CQ62: 0 | CR62: 0 | CS62: 0 | CT62: 0 | CU62: 0 | CV62: 0 | CW62: 0 | CX62: 0 | CY62: 0 | CZ62: 0 | DA62: 0 | DB62: 0 | DC62: 0 | DD62: 0 | DE62: 0 | DF62: 0 | DG62: 0 | DH62: 0 | DI62: 0 | DJ62: 0 | DK62: 0 | DL62: 0 | DM62: 0 | DN62: 0 | DO62: 0 | DP62: 0 | DQ62: 0 | DR62: 0 | DS62: 0 | DT62: 0 | DU62: 0 | DV62: 0 | DW62: 0 | DX62: 0 | DY62: 0 | DZ62: 0 | EA62: 0 | EB62: 0 | EC62: 0 | ED62: 0 | EE62: 0
D63: Up-Front Fees AFDB | F63: EUR'000 | J63: 132.8532286 | L63: =L134 -> 132.8532286 | M63: =M134 -> 0 | N63: 0 | O63: 0 | P63: 0 | Q63: 0 | R63: 0 | S63: 0 | T63: 0 | U63: 0 | V63: 0 | W63: 0 | X63: 0 | Y63: 0 | Z63: 0 | AA63: 0 | AB63: 0 | AC63: 0 | AD63: 0 | AE63: 0 | AF63: 0 | AG63: 0 | AH63: 0 | AI63: 0 | AJ63: 0 | AK63: 0 | AL63: 0 | AM63: 0 | AN63: 0 | AO63: 0 | AP63: 0 | AQ63: 0 | AR63: 0 | AS63: 0 | AT63: 0 | AU63: 0 | AV63: 0 | AW63: 0 | AX63: 0 | AY63: 0 | AZ63: 0 | BA63: 0 | BB63: 0 | BC63: 0 | BD63: 0 | BE63: 0 | BF63: 0 | BG63: 0 | BH63: 0 | BI63: 0 | BJ63: 0 | BK63: 0 | BL63: 0 | BM63: 0 | BN63: 0 | BO63: 0 | BP63: 0 | BQ63: 0 | BR63: 0 | BS63: 0 | BT63: 0 | BU63: 0 | BV63: 0 | BW63: 0 | BX63: 0 | BY63: =BY134 -> 0 | BZ63: 0 | CA63: 0 | CB63: 0 | CC63: 0 | CD63: 0 | CE63: 0 | CF63: 0 | CG63: 0 | CH63: 0 | CI63: 0 | CJ63: 0 | CK63: 0 | CL63: 0 | CM63: 0 | CN63: 0 | CO63: 0 | CP63: 0 | CQ63: 0 | CR63: 0 | CS63: 0 | CT63: 0 | CU63: 0 | CV63: 0 | CW63: 0 | CX63: 0 | CY63: 0 | CZ63: 0 | DA63: 0 | DB63: 0 | DC63: 0 | DD63: 0 | DE63: 0 | DF63: 0 | DG63: 0 | DH63: 0 | DI63: 0 | DJ63: 0 | DK63: 0 | DL63: 0 | DM63: 0 | DN63: 0 | DO63: 0 | DP63: 0 | DQ63: 0 | DR63: 0 | DS63: 0 | DT63: 0 | DU63: 0 | DV63: 0 | DW63: 0 | DX63: 0 | DY63: 0 | DZ63: 0 | EA63: 0 | EB63: 0 | EC63: 0 | ED63: 0 | EE63: 0
D64: Up-Front Fees IFC | F64: EUR'000 | J64: 54.12538967 | L64: =L151 -> 54.12538967 | M64: =M151 -> 0 | N64: 0 | O64: 0 | P64: 0 | Q64: 0 | R64: 0 | S64: 0 | T64: 0 | U64: 0 | V64: 0 | W64: 0 | X64: 0 | Y64: 0 | Z64: 0 | AA64: 0 | AB64: 0 | AC64: 0 | AD64: 0 | AE64: 0 | AF64: 0 | AG64: 0 | AH64: 0 | AI64: 0 | AJ64: 0 | AK64: 0 | AL64: 0 | AM64: 0 | AN64: 0 | AO64: 0 | AP64: 0 | AQ64: 0 | AR64: 0 | AS64: 0 | AT64: 0 | AU64: 0 | AV64: 0 | AW64: 0 | AX64: 0 | AY64: 0 | AZ64: 0 | BA64: 0 | BB64: 0 | BC64: 0 | BD64: 0 | BE64: 0 | BF64: 0 | BG64: 0 | BH64: 0 | BI64: 0 | BJ64: 0 | BK64: 0 | BL64: 0 | BM64: 0 | BN64: 0 | BO64: 0 | BP64: 0 | BQ64: 0 | BR64: 0 | BS64: 0 | BT64: 0 | BU64: 0 | BV64: 0 | BW64: 0 | BX64: 0 | BY64: =BY151 -> 0 | BZ64: 0 | CA64: 0 | CB64: 0 | CC64: 0 | CD64: 0 | CE64: 0 | CF64: 0 | CG64: 0 | CH64: 0 | CI64: 0 | CJ64: 0 | CK64: 0 | CL64: 0 | CM64: 0 | CN64: 0 | CO64: 0 | CP64: 0 | CQ64: 0 | CR64: 0 | CS64: 0 | CT64: 0 | CU64: 0 | CV64: 0 | CW64: 0 | CX64: 0 | CY64: 0 | CZ64: 0 | DA64: 0 | DB64: 0 | DC64: 0 | DD64: 0 | DE64: 0 | DF64: 0 | DG64: 0 | DH64: 0 | DI64: 0 | DJ64: 0 | DK64: 0 | DL64: 0 | DM64: 0 | DN64: 0 | DO64: 0 | DP64: 0 | DQ64: 0 | DR64: 0 | DS64: 0 | DT64: 0 | DU64: 0 | DV64: 0 | DW64: 0 | DX64: 0 | DY64: 0 | DZ64: 0 | EA64: 0 | EB64: 0 | EC64: 0 | ED64: 0 | EE64: 0
D65: Up-Front Fees GFW | F65: EUR'000 | J65: 118.0917593 | L65: =L168 -> 118.0917593 | M65: =M168 -> 0 | N65: 0 | O65: 0 | P65: 0 | Q65: 0 | R65: 0 | S65: 0 | T65: 0 | U65: 0 | V65: 0 | W65: 0 | X65: 0 | Y65: 0 | Z65: 0 | AA65: 0 | AB65: 0 | AC65: 0 | AD65: 0 | AE65: 0 | AF65: 0 | AG65: 0 | AH65: 0 | AI65: 0 | AJ65: 0 | AK65: 0 | AL65: 0 | AM65: 0 | AN65: 0 | AO65: 0 | AP65: 0 | AQ65: 0 | AR65: 0 | AS65: 0 | AT65: 0 | AU65: 0 | AV65: 0 | AW65: 0 | AX65: 0 | AY65: 0 | AZ65: 0 | BA65: 0 | BB65: 0 | BC65: 0 | BD65: 0 | BE65: 0 | BF65: 0 | BG65: 0 | BH65: 0 | BI65: 0 | BJ65: 0 | BK65: 0 | BL65: 0 | BM65: 0 | BN65: 0 | BO65: 0 | BP65: 0 | BQ65: 0 | BR65: 0 | BS65: 0 | BT65: 0 | BU65: 0 | BV65: 0 | BW65: 0 | BX65: 0 | BY65: =BY168 -> 0 | BZ65: 0 | CA65: 0 | CB65: 0 | CC65: 0 | CD65: 0 | CE65: 0 | CF65: 0 | CG65: 0 | CH65: 0 | CI65: 0 | CJ65: 0 | CK65: 0 | CL65: 0 | CM65: 0 | CN65: 0 | CO65: 0 | CP65: 0 | CQ65: 0 | CR65: 0 | CS65: 0 | CT65: 0 | CU65: 0 | CV65: 0 | CW65: 0 | CX65: 0 | CY65: 0 | CZ65: 0 | DA65: 0 | DB65: 0 | DC65: 0 | DD65: 0 | DE65: 0 | DF65: 0 | DG65: 0 | DH65: 0 | DI65: 0 | DJ65: 0 | DK65: 0 | DL65: 0 | DM65: 0 | DN65: 0 | DO65: 0 | DP65: 0 | DQ65: 0 | DR65: 0 | DS65: 0 | DT65: 0 | DU65: 0 | DV65: 0 | DW65: 0 | DX65: 0 | DY65: 0 | DZ65: 0 | EA65: 0 | EB65: 0 | EC65: 0 | ED65: 0 | EE65: 0
D66: Commitment Fees EIAF | F66: EUR'000 | J66: 83.65909916 | L66: =L121 -> 11.48114326 | M66: =M121 -> 11.48114326 | N66: 10.40103897 | O66: 8.890868996 | P66: 8.872835745 | Q66: 7.855711022 | R66: 7.833300511 | S66: 5.812764801 | T66: 3.78368507 | U66: 1.74602519 | V66: 1.697779313 | W66: 1.649329424 | X66: 1.60067466 | Y66: 0.5527989379 | Z66: 0 | AA66: 0 | AB66: 0 | AC66: 0 | AD66: 0 | AE66: 0 | AF66: 0 | AG66: 0 | AH66: 0 | AI66: 0 | AJ66: 0 | AK66: 0 | AL66: 0 | AM66: 0 | AN66: 0 | AO66: 0 | AP66: 0 | AQ66: 0 | AR66: 0 | AS66: 0 | AT66: 0 | AU66: 0 | AV66: 0 | AW66: 0 | AX66: 0 | AY66: 0 | AZ66: 0 | BA66: 0 | BB66: 0 | BC66: 0 | BD66: 0 | BE66: 0 | BF66: 0 | BG66: 0 | BH66: 0 | BI66: 0 | BJ66: 0 | BK66: 0 | BL66: 0 | BM66: 0 | BN66: 0 | BO66: 0 | BP66: 0 | BQ66: 0 | BR66: 0 | BS66: 0 | BT66: 0 | BU66: 0 | BV66: 0 | BW66: 0 | BX66: 0 | BY66: =BY121 -> 0 | BZ66: 0 | CA66: 0 | CB66: 0 | CC66: 0 | CD66: 0 | CE66: 0 | CF66: 0 | CG66: 0 | CH66: 0 | CI66: 0 | CJ66: 0 | CK66: 0 | CL66: 0 | CM66: 0 | CN66: 0 | CO66: 0 | CP66: 0 | CQ66: 0 | CR66: 0 | CS66: 0 | CT66: 0 | CU66: 0 | CV66: 0 | CW66: 0 | CX66: 0 | CY66: 0 | CZ66: 0 | DA66: 0 | DB66: 0 | DC66: 0 | DD66: 0 | DE66: 0 | DF66: 0 | DG66: 0 | DH66: 0 | DI66: 0 | DJ66: 0 | DK66: 0 | DL66: 0 | DM66: 0 | DN66: 0 | DO66: 0 | DP66: 0 | DQ66: 0 | DR66: 0 | DS66: 0 | DT66: 0 | DU66: 0 | DV66: 0 | DW66: 0 | DX66: 0 | DY66: 0 | DZ66: 0 | EA66: 0 | EB66: 0 | EC66: 0 | ED66: 0 | EE66: 0
D67: Commitment Fees AFDB | F67: EUR'000 | J67: 71.70779866 | L67: =L138 -> 9.840979896 | M67: =M138 -> 9.840979896 | N67: 8.915176212 | O67: 7.620744809 | P67: 7.605287737 | Q67: 6.733466546 | R67: 6.714257537 | S67: 4.982369785 | T67: 3.243158587 | U67: 1.496592975 | V67: 1.455239367 | W67: 1.41371089 | X67: 1.372006807 | Y67: 0.4738276167 | Z67: 0 | AA67: 0 | AB67: 0 | AC67: 0 | AD67: 0 | AE67: 0 | AF67: 0 | AG67: 0 | AH67: 0 | AI67: 0 | AJ67: 0 | AK67: 0 | AL67: 0 | AM67: 0 | AN67: 0 | AO67: 0 | AP67: 0 | AQ67: 0 | AR67: 0 | AS67: 0 | AT67: 0 | AU67: 0 | AV67: 0 | AW67: 0 | AX67: 0 | AY67: 0 | AZ67: 0 | BA67: 0 | BB67: 0 | BC67: 0 | BD67: 0 | BE67: 0 | BF67: 0 | BG67: 0 | BH67: 0 | BI67: 0 | BJ67: 0 | BK67: 0 | BL67: 0 | BM67: 0 | BN67: 0 | BO67: 0 | BP67: 0 | BQ67: 0 | BR67: 0 | BS67: 0 | BT67: 0 | BU67: 0 | BV67: 0 | BW67: 0 | BX67: 0 | BY67: =BY138 -> 0 | BZ67: 0 | CA67: 0 | CB67: 0 | CC67: 0 | CD67: 0 | CE67: 0 | CF67: 0 | CG67: 0 | CH67: 0 | CI67: 0 | CJ67: 0 | CK67: 0 | CL67: 0 | CM67: 0 | CN67: 0 | CO67: 0 | CP67: 0 | CQ67: 0 | CR67: 0 | CS67: 0 | CT67: 0 | CU67: 0 | CV67: 0 | CW67: 0 | CX67: 0 | CY67: 0 | CZ67: 0 | DA67: 0 | DB67: 0 | DC67: 0 | DD67: 0 | DE67: 0 | DF67: 0 | DG67: 0 | DH67: 0 | DI67: 0 | DJ67: 0 | DK67: 0 | DL67: 0 | DM67: 0 | DN67: 0 | DO67: 0 | DP67: 0 | DQ67: 0 | DR67: 0 | DS67: 0 | DT67: 0 | DU67: 0 | DV67: 0 | DW67: 0 | DX67: 0 | DY67: 0 | DZ67: 0 | EA67: 0 | EB67: 0 | EC67: 0 | ED67: 0 | EE67: 0
D68: Commitment Fees IFC | F68: EUR'000 | J68: 17.92694982 | L68: =L155 -> 2.460244985 | M68: =M155 -> 2.460244985 | N68: 2.228794064 | O68: 1.905186213 | P68: 1.901321945 | Q68: 1.683366648 | R68: 1.678564395 | S68: 1.245592457 | T68: 0.8107896579 | U68: 0.374148255 | V68: 0.3638098528 | W68: 0.3534277337 | X68: 0.3430017129 | Y68: 0.1184569153 | Z68: 0 | AA68: 0 | AB68: 0 | AC68: 0 | AD68: 0 | AE68: 0 | AF68: 0 | AG68: 0 | AH68: 0 | AI68: 0 | AJ68: 0 | AK68: 0 | AL68: 0 | AM68: 0 | AN68: 0 | AO68: 0 | AP68: 0 | AQ68: 0 | AR68: 0 | AS68: 0 | AT68: 0 | AU68: 0 | AV68: 0 | AW68: 0 | AX68: 0 | AY68: 0 | AZ68: 0 | BA68: 0 | BB68: 0 | BC68: 0 | BD68: 0 | BE68: 0 | BF68: 0 | BG68: 0 | BH68: 0 | BI68: 0 | BJ68: 0 | BK68: 0 | BL68: 0 | BM68: 0 | BN68: 0 | BO68: 0 | BP68: 0 | BQ68: 0 | BR68: 0 | BS68: 0 | BT68: 0 | BU68: 0 | BV68: 0 | BW68: 0 | BX68: 0 | BY68: =BY155 -> 0 | BZ68: 0 | CA68: 0 | CB68: 0 | CC68: 0 | CD68: 0 | CE68: 0 | CF68: 0 | CG68: 0 | CH68: 0 | CI68: 0 | CJ68: 0 | CK68: 0 | CL68: 0 | CM68: 0 | CN68: 0 | CO68: 0 | CP68: 0 | CQ68: 0 | CR68: 0 | CS68: 0 | CT68: 0 | CU68: 0 | CV68: 0 | CW68: 0 | CX68: 0 | CY68: 0 | CZ68: 0 | DA68: 0 | DB68: 0 | DC68: 0 | DD68: 0 | DE68: 0 | DF68: 0 | DG68: 0 | DH68: 0 | DI68: 0 | DJ68: 0 | DK68: 0 | DL68: 0 | DM68: 0 | DN68: 0 | DO68: 0 | DP68: 0 | DQ68: 0 | DR68: 0 | DS68: 0 | DT68: 0 | DU68: 0 | DV68: 0 | DW68: 0 | DX68: 0 | DY68: 0 | DZ68: 0 | EA68: 0 | EB68: 0 | EC68: 0 | ED68: 0 | EE68: 0
D69: Commitment Fees GFW | F69: EUR'000 | J69: 47.80519952 | L69: =L172 -> 6.560653293 | M69: =M172 -> 6.560653293 | N69: 5.943450837 | O69: 5.080496569 | P69: 5.070191854 | Q69: 4.488977727 | R69: 4.476171721 | S69: 3.321579886 | T69: 2.162105754 | U69: 0.9977286799 | V69: 0.9701596074 | W69: 0.9424739566 | X69: 0.9146712344 | Y69: 0.3158851074 | Z69: 0 | AA69: 0 | AB69: 0 | AC69: 0 | AD69: 0 | AE69: 0 | AF69: 0 | AG69: 0 | AH69: 0 | AI69: 0 | AJ69: 0 | AK69: 0 | AL69: 0 | AM69: 0 | AN69: 0 | AO69: 0 | AP69: 0 | AQ69: 0 | AR69: 0 | AS69: 0 | AT69: 0 | AU69: 0 | AV69: 0 | AW69: 0 | AX69: 0 | AY69: 0 | AZ69: 0 | BA69: 0 | BB69: 0 | BC69: 0 | BD69: 0 | BE69: 0 | BF69: 0 | BG69: 0 | BH69: 0 | BI69: 0 | BJ69: 0 | BK69: 0 | BL69: 0 | BM69: 0 | BN69: 0 | BO69: 0 | BP69: 0 | BQ69: 0 | BR69: 0 | BS69: 0 | BT69: 0 | BU69: 0 | BV69: 0 | BW69: 0 | BX69: 0 | BY69: =BY172 -> 0 | BZ69: 0 | CA69: 0 | CB69: 0 | CC69: 0 | CD69: 0 | CE69: 0 | CF69: 0 | CG69: 0 | CH69: 0 | CI69: 0 | CJ69: 0 | CK69: 0 | CL69: 0 | CM69: 0 | CN69: 0 | CO69: 0 | CP69: 0 | CQ69: 0 | CR69: 0 | CS69: 0 | CT69: 0 | CU69: 0 | CV69: 0 | CW69: 0 | CX69: 0 | CY69: 0 | CZ69: 0 | DA69: 0 | DB69: 0 | DC69: 0 | DD69: 0 | DE69: 0 | DF69: 0 | DG69: 0 | DH69: 0 | DI69: 0 | DJ69: 0 | DK69: 0 | DL69: 0 | DM69: 0 | DN69: 0 | DO69: 0 | DP69: 0 | DQ69: 0 | DR69: 0 | DS69: 0 | DT69: 0 | DU69: 0 | DV69: 0 | DW69: 0 | DX69: 0 | DY69: 0 | DZ69: 0 | EA69: 0 | EB69: 0 | EC69: 0 | ED69: 0 | EE69: 0
D70: Standby Debt Fees | F70: EUR'000 | J70: 0
D71: Standby Equity Fees | F71: EUR'000 | J71: 0
D72: Cash DSRA | F72: EUR'000 | J72: 0
E73: Funding Needs | F73: EUR'000 | J73: 67323.52125 | L73: =SUM(L57:L72) -> 532.2329978 | M73: 22215.40697 | N73: 6472.157014 | O73: 77.28535866 | P73: 4359.105956 | Q73: 96.04504572 | R73: 8659.438759 | S73: 8696.055989 | T73: 8732.828059 | U73: 206.7680437 | V73: 207.6423813 | W73: 208.5204162 | X73: 4490.895953 | Y73: 2369.138304 | Z73: 0 | AA73: 0 | AB73: 0 | AC73: 0 | AD73: 0 | AE73: 0 | AF73: 0 | AG73: 0 | AH73: 0 | AI73: 0 | AJ73: 0 | AK73: 0 | AL73: 0 | AM73: 0 | AN73: 0 | AO73: 0 | AP73: 0 | AQ73: 0 | AR73: 0 | AS73: 0 | AT73: 0 | AU73: 0 | AV73: 0 | AW73: 0 | AX73: 0 | AY73: 0 | AZ73: 0 | BA73: 0 | BB73: 0 | BC73: 0 | BD73: 0 | BE73: 0 | BF73: 0 | BG73: 0 | BH73: 0 | BI73: 0 | BJ73: 0 | BK73: 0 | BL73: 0 | BM73: 0 | BN73: 0 | BO73: 0 | BP73: 0 | BQ73: 0 | BR73: 0 | BS73: 0 | BT73: 0 | BU73: 0 | BV73: 0 | BW73: 0 | BX73: 0 | BY73: =SUM(BY57:BY72) -> 0 | BZ73: 0 | CA73: 0 | CB73: 0 | CC73: 0 | CD73: 0 | CE73: 0 | CF73: 0 | CG73: 0 | CH73: 0 | CI73: 0 | CJ73: 0 | CK73: 0 | CL73: 0 | CM73: 0 | CN73: 0 | CO73: 0 | CP73: 0 | CQ73: 0 | CR73: 0 | CS73: 0 | CT73: 0 | CU73: 0 | CV73: 0 | CW73: 0 | CX73: 0 | CY73: 0 | CZ73: 0 | DA73: 0 | DB73: 0 | DC73: 0 | DD73: 0 | DE73: 0 | DF73: 0 | DG73: 0 | DH73: 0 | DI73: 0 | DJ73: 0 | DK73: 0 | DL73: 0 | DM73: 0 | DN73: 0 | DO73: 0 | DP73: 0 | DQ73: 0 | DR73: 0 | DS73: 0 | DT73: 0 | DU73: 0 | DV73: 0 | DW73: 0 | DX73: 0 | DY73: 0 | DZ73: 0 | EA73: 0 | EB73: 0 | EC73: 0 | ED73: 0 | EE73: 0
C75: Funding Sources
D77: Equity Commitment | F77: EUR'000 | G77: EUR'000 | H77: =H52 -> 18118.62155 | L77: =$H$77 -> 18118.62155 | M77: =$H$77 -> 18118.62155 | N77: 18118.62155 | O77: 18118.62155 | P77: 18118.62155 | Q77: 18118.62155 | R77: 18118.62155 | S77: 18118.62155 | T77: 18118.62155 | U77: 18118.62155 | V77: 18118.62155 | W77: 18118.62155 | X77: 18118.62155 | Y77: 18118.62155 | Z77: 18118.62155 | AA77: 18118.62155 | AB77: 18118.62155 | AC77: 18118.62155 | AD77: 18118.62155 | AE77: 18118.62155 | AF77: 18118.62155 | AG77: 18118.62155 | AH77: 18118.62155 | AI77: 18118.62155 | AJ77: 18118.62155 | AK77: 18118.62155 | AL77: 18118.62155 | AM77: 18118.62155 | AN77: 18118.62155 | AO77: 18118.62155 | AP77: 18118.62155 | AQ77: 18118.62155 | AR77: 18118.62155 | AS77: 18118.62155 | AT77: 18118.62155 | AU77: 18118.62155 | AV77: 18118.62155 | AW77: 18118.62155 | AX77: 18118.62155 | AY77: 18118.62155 | AZ77: 18118.62155 | BA77: 18118.62155 | BB77: 18118.62155 | BC77: 18118.62155 | BD77: 18118.62155 | BE77: 18118.62155 | BF77: 18118.62155 | BG77: 18118.62155 | BH77: 18118.62155 | BI77: 18118.62155 | BJ77: 18118.62155 | BK77: 18118.62155 | BL77: 18118.62155 | BM77: 18118.62155 | BN77: 18118.62155 | BO77: 18118.62155 | BP77: 18118.62155 | BQ77: 18118.62155 | BR77: 18118.62155 | BS77: 18118.62155 | BT77: 18118.62155 | BU77: 18118.62155 | BV77: 18118.62155 | BW77: 18118.62155 | BX77: 18118.62155 | BY77: =$H$77 -> 18118.62155 | BZ77: 18118.62155 | CA77: 18118.62155 | CB77: 18118.62155 | CC77: 18118.62155 | CD77: 18118.62155 | CE77: 18118.62155 | CF77: 18118.62155 | CG77: 18118.62155 | CH77: 18118.62155 | CI77: 18118.62155 | CJ77: 18118.62155 | CK77: 18118.62155 | CL77: 18118.62155 | CM77: 18118.62155 | CN77: 18118.62155 | CO77: 18118.62155 | CP77: 18118.62155 | CQ77: 18118.62155 | CR77: 18118.62155 | CS77: 18118.62155 | CT77: 18118.62155 | CU77: 18118.62155 | CV77: 18118.62155 | CW77: 18118.62155 | CX77: 18118.62155 | CY77: 18118.62155 | CZ77: 18118.62155 | DA77: 18118.62155 | DB77: 18118.62155 | DC77: 18118.62155 | DD77: 18118.62155 | DE77: 18118.62155 | DF77: 18118.62155 | DG77: 18118.62155 | DH77: 18118.62155 | DI77: 18118.62155 | DJ77: 18118.62155 | DK77: 18118.62155 | DL77: 18118.62155 | DM77: 18118.62155 | DN77: 18118.62155 | DO77: 18118.62155 | DP77: 18118.62155 | DQ77: 18118.62155 | DR77: 18118.62155 | DS77: 18118.62155 | DT77: 18118.62155 | DU77: 18118.62155 | DV77: 18118.62155 | DW77: 18118.62155 | DX77: 18118.62155 | DY77: 18118.62155 | DZ77: 18118.62155 | EA77: 18118.62155 | EB77: 18118.62155 | EC77: 18118.62155 | ED77: 18118.62155 | EE77: 18118.62155
D78: Less: Equity Already Commited | F78: EUR'000 | L78: =L81 -> 0 | M78: =M81 -> 532.2329978 | N78: 18118.62155 | O78: 18118.62155 | P78: 18118.62155 | Q78: 18118.62155 | R78: 18118.62155 | S78: 18118.62155 | T78: 18118.62155 | U78: 18118.62155 | V78: 18118.62155 | W78: 18118.62155 | X78: 18118.62155 | Y78: 18118.62155 | Z78: 18118.62155 | AA78: 18118.62155 | AB78: 18118.62155 | AC78: 18118.62155 | AD78: 18118.62155 | AE78: 18118.62155 | AF78: 18118.62155 | AG78: 18118.62155 | AH78: 18118.62155 | AI78: 18118.62155 | AJ78: 18118.62155 | AK78: 18118.62155 | AL78: 18118.62155 | AM78: 18118.62155 | AN78: 18118.62155 | AO78: 18118.62155 | AP78: 18118.62155 | AQ78: 18118.62155 | AR78: 18118.62155 | AS78: 18118.62155 | AT78: 18118.62155 | AU78: 18118.62155 | AV78: 18118.62155 | AW78: 18118.62155 | AX78: 18118.62155 | AY78: 18118.62155 | AZ78: 18118.62155 | BA78: 18118.62155 | BB78: 18118.62155 | BC78: 18118.62155 | BD78: 18118.62155 | BE78: 18118.62155 | BF78: 18118.62155 | BG78: 18118.62155 | BH78: 18118.62155 | BI78: 18118.62155 | BJ78: 18118.62155 | BK78: 18118.62155 | BL78: 18118.62155 | BM78: 18118.62155 | BN78: 18118.62155 | BO78: 18118.62155 | BP78: 18118.62155 | BQ78: 18118.62155 | BR78: 18118.62155 | BS78: 18118.62155 | BT78: 18118.62155 | BU78: 18118.62155 | BV78: 18118.62155 | BW78: 18118.62155 | BX78: 18118.62155 | BY78: =BY81 -> 18118.62155 | BZ78: 18118.62155 | CA78: 18118.62155 | CB78: 18118.62155 | CC78: 18118.62155 | CD78: 18118.62155 | CE78: 18118.62155 | CF78: 18118.62155 | CG78: 18118.62155 | CH78: 18118.62155 | CI78: 18118.62155 | CJ78: 18118.62155 | CK78: 18118.62155 | CL78: 18118.62155 | CM78: 18118.62155 | CN78: 18118.62155 | CO78: 18118.62155 | CP78: 18118.62155 | CQ78: 18118.62155 | CR78: 18118.62155 | CS78: 18118.62155 | CT78: 18118.62155 | CU78: 18118.62155 | CV78: 18118.62155 | CW78: 18118.62155 | CX78: 18118.62155 | CY78: 18118.62155 | CZ78: 18118.62155 | DA78: 18118.62155 | DB78: 18118.62155 | DC78: 18118.62155 | DD78: 18118.62155 | DE78: 18118.62155 | DF78: 18118.62155 | DG78: 18118.62155 | DH78: 18118.62155 | DI78: 18118.62155 | DJ78: 18118.62155 | DK78: 18118.62155 | DL78: 18118.62155 | DM78: 18118.62155 | DN78: 18118.62155 | DO78: 18118.62155 | DP78: 18118.62155 | DQ78: 18118.62155 | DR78: 18118.62155 | DS78: 18118.62155 | DT78: 18118.62155 | DU78: 18118.62155 | DV78: 18118.62155 | DW78: 18118.62155 | DX78: 18118.62155 | DY78: 18118.62155 | DZ78: 18118.62155 | EA78: 18118.62155 | EB78: 18118.62155 | EC78: 18118.62155 | ED78: 18118.62155 | EE78: 18118.62155
D79: Remaining Equity | F79: EUR'000 | L79: =L77-L78 -> 18118.62155 | M79: =M77-M78 -> 17586.38855 | N79: 0 | O79: 0 | P79: 0 | Q79: 0 | R79: 0 | S79: 0 | T79: 0 | U79: 0 | V79: 0 | W79: 0 | X79: 0 | Y79: 0 | Z79: 0 | AA79: 0 | AB79: 0 | AC79: 0 | AD79: 0 | AE79: 0 | AF79: 0 | AG79: 0 | AH79: 0 | AI79: 0 | AJ79: 0 | AK79: 0 | AL79: 0 | AM79: 0 | AN79: 0 | AO79: 0 | AP79: 0 | AQ79: 0 | AR79: 0 | AS79: 0 | AT79: 0 | AU79: 0 | AV79: 0 | AW79: 0 | AX79: 0 | AY79: 0 | AZ79: 0 | BA79: 0 | BB79: 0 | BC79: 0 | BD79: 0 | BE79: 0 | BF79: 0 | BG79: 0 | BH79: 0 | BI79: 0 | BJ79: 0 | BK79: 0 | BL79: 0 | BM79: 0 | BN79: 0 | BO79: 0 | BP79: 0 | BQ79: 0 | BR79: 0 | BS79: 0 | BT79: 0 | BU79: 0 | BV79: 0 | BW79: 0 | BX79: 0 | BY79: =BY77-BY78 -> 0 | BZ79: 0 | CA79: 0 | CB79: 0 | CC79: 0 | CD79: 0 | CE79: 0 | CF79: 0 | CG79: 0 | CH79: 0 | CI79: 0 | CJ79: 0 | CK79: 0 | CL79: 0 | CM79: 0 | CN79: 0 | CO79: 0 | CP79: 0 | CQ79: 0 | CR79: 0 | CS79: 0 | CT79: 0 | CU79: 0 | CV79: 0 | CW79: 0 | CX79: 0 | CY79: 0 | CZ79: 0 | DA79: 0 | DB79: 0 | DC79: 0 | DD79: 0 | DE79: 0 | DF79: 0 | DG79: 0 | DH79: 0 | DI79: 0 | DJ79: 0 | DK79: 0 | DL79: 0 | DM79: 0 | DN79: 0 | DO79: 0 | DP79: 0 | DQ79: 0 | DR79: 0 | DS79: 0 | DT79: 0 | DU79: 0 | DV79: 0 | DW79: 0 | DX79: 0 | DY79: 0 | DZ79: 0 | EA79: 0 | EB79: 0 | EC79: 0 | ED79: 0 | EE79: 0
D81: Opening Equity | F81: EUR'000 | L81: =K83 -> 0 | M81: =L83 -> 532.2329978 | N81: 18118.62155 | O81: 18118.62155 | P81: 18118.62155 | Q81: 18118.62155 | R81: 18118.62155 | S81: 18118.62155 | T81: 18118.62155 | U81: 18118.62155 | V81: 18118.62155 | W81: 18118.62155 | X81: 18118.62155 | Y81: 18118.62155 | Z81: 18118.62155 | AA81: 18118.62155 | AB81: 18118.62155 | AC81: 18118.62155 | AD81: 18118.62155 | AE81: 18118.62155 | AF81: 18118.62155 | AG81: 18118.62155 | AH81: 18118.62155 | AI81: 18118.62155 | AJ81: 18118.62155 | AK81: 18118.62155 | AL81: 18118.62155 | AM81: 18118.62155 | AN81: 18118.62155 | AO81: 18118.62155 | AP81: 18118.62155 | AQ81: 18118.62155 | AR81: 18118.62155 | AS81: 18118.62155 | AT81: 18118.62155 | AU81: 18118.62155 | AV81: 18118.62155 | AW81: 18118.62155 | AX81: 18118.62155 | AY81: 18118.62155 | AZ81: 18118.62155 | BA81: 18118.62155 | BB81: 18118.62155 | BC81: 18118.62155 | BD81: 18118.62155 | BE81: 18118.62155 | BF81: 18118.62155 | BG81: 18118.62155 | BH81: 18118.62155 | BI81: 18118.62155 | BJ81: 18118.62155 | BK81: 18118.62155 | BL81: 18118.62155 | BM81: 18118.62155 | BN81: 18118.62155 | BO81: 18118.62155 | BP81: 18118.62155 | BQ81: 18118.62155 | BR81: 18118.62155 | BS81: 18118.62155 | BT81: 18118.62155 | BU81: 18118.62155 | BV81: 18118.62155 | BW81: 18118.62155 | BX81: 18118.62155 | BY81: =BX83 -> 18118.62155 | BZ81: 18118.62155 | CA81: 18118.62155 | CB81: 18118.62155 | CC81: 18118.62155 | CD81: 18118.62155 | CE81: 18118.62155 | CF81: 18118.62155 | CG81: 18118.62155 | CH81: 18118.62155 | CI81: 18118.62155 | CJ81: 18118.62155 | CK81: 18118.62155 | CL81: 18118.62155 | CM81: 18118.62155 | CN81: 18118.62155 | CO81: 18118.62155 | CP81: 18118.62155 | CQ81: 18118.62155 | CR81: 18118.62155 | CS81: 18118.62155 | CT81: 18118.62155 | CU81: 18118.62155 | CV81: 18118.62155 | CW81: 18118.62155 | CX81: 18118.62155 | CY81: 18118.62155 | CZ81: 18118.62155 | DA81: 18118.62155 | DB81: 18118.62155 | DC81: 18118.62155 | DD81: 18118.62155 | DE81: 18118.62155 | DF81: 18118.62155 | DG81: 18118.62155 | DH81: 18118.62155 | DI81: 18118.62155 | DJ81: 18118.62155 | DK81: 18118.62155 | DL81: 18118.62155 | DM81: 18118.62155 | DN81: 18118.62155 | DO81: 18118.62155 | DP81: 18118.62155 | DQ81: 18118.62155 | DR81: 18118.62155 | DS81: 18118.62155 | DT81: 18118.62155 | DU81: 18118.62155 | DV81: 18118.62155 | DW81: 18118.62155 | DX81: 18118.62155 | DY81: 18118.62155 | DZ81: 18118.62155 | EA81: 18118.62155 | EB81: 18118.62155 | EC81: 18118.62155 | ED81: 18118.62155 | EE81: 18118.62155
D82: Add: Equity Draws (Min Fund, Remaining) | F82: EUR'000 | L82: =MIN(L79,L73) -> 532.2329978 | M82: =MIN(M79,M73) -> 17586.38855 | N82: 0 | O82: 0 | P82: 0 | Q82: 0 | R82: 0 | S82: 0 | T82: 0 | U82: 0 | V82: 0 | W82: 0 | X82: 0 | Y82: 0 | Z82: 0 | AA82: 0 | AB82: 0 | AC82: 0 | AD82: 0 | AE82: 0 | AF82: 0 | AG82: 0 | AH82: 0 | AI82: 0 | AJ82: 0 | AK82: 0 | AL82: 0 | AM82: 0 | AN82: 0 | AO82: 0 | AP82: 0 | AQ82: 0 | AR82: 0 | AS82: 0 | AT82: 0 | AU82: 0 | AV82: 0 | AW82: 0 | AX82: 0 | AY82: 0 | AZ82: 0 | BA82: 0 | BB82: 0 | BC82: 0 | BD82: 0 | BE82: 0 | BF82: 0 | BG82: 0 | BH82: 0 | BI82: 0 | BJ82: 0 | BK82: 0 | BL82: 0 | BM82: 0 | BN82: 0 | BO82: 0 | BP82: 0 | BQ82: 0 | BR82: 0 | BS82: 0 | BT82: 0 | BU82: 0 | BV82: 0 | BW82: 0 | BX82: 0 | BY82: =MIN(BY79,BY73) -> 0 | BZ82: 0 | CA82: 0 | CB82: 0 | CC82: 0 | CD82: 0 | CE82: 0 | CF82: 0 | CG82: 0 | CH82: 0 | CI82: 0 | CJ82: 0 | CK82: 0 | CL82: 0 | CM82: 0 | CN82: 0 | CO82: 0 | CP82: 0 | CQ82: 0 | CR82: 0 | CS82: 0 | CT82: 0 | CU82: 0 | CV82: 0 | CW82: 0 | CX82: 0 | CY82: 0 | CZ82: 0 | DA82: 0 | DB82: 0 | DC82: 0 | DD82: 0 | DE82: 0 | DF82: 0 | DG82: 0 | DH82: 0 | DI82: 0 | DJ82: 0 | DK82: 0 | DL82: 0 | DM82: 0 | DN82: 0 | DO82: 0 | DP82: 0 | DQ82: 0 | DR82: 0 | DS82: 0 | DT82: 0 | DU82: 0 | DV82: 0 | DW82: 0 | DX82: 0 | DY82: 0 | DZ82: 0 | EA82: 0 | EB82: 0 | EC82: 0 | ED82: 0 | EE82: 0
D83: Closing Balance | F83: EUR'000 | L83: =L81+L82 -> 532.2329978 | M83: =M81+M82 -> 18118.62155 | N83: 18118.62155 | O83: 18118.62155 | P83: 18118.62155 | Q83: 18118.62155 | R83: 18118.62155 | S83: 18118.62155 | T83: 18118.62155 | U83: 18118.62155 | V83: 18118.62155 | W83: 18118.62155 | X83: 18118.62155 | Y83: 18118.62155 | Z83: 18118.62155 | AA83: 18118.62155 | AB83: 18118.62155 | AC83: 18118.62155 | AD83: 18118.62155 | AE83: 18118.62155 | AF83: 18118.62155 | AG83: 18118.62155 | AH83: 18118.62155 | AI83: 18118.62155 | AJ83: 18118.62155 | AK83: 18118.62155 | AL83: 18118.62155 | AM83: 18118.62155 | AN83: 18118.62155 | AO83: 18118.62155 | AP83: 18118.62155 | AQ83: 18118.62155 | AR83: 18118.62155 | AS83: 18118.62155 | AT83: 18118.62155 | AU83: 18118.62155 | AV83: 18118.62155 | AW83: 18118.62155 | AX83: 18118.62155 | AY83: 18118.62155 | AZ83: 18118.62155 | BA83: 18118.62155 | BB83: 18118.62155 | BC83: 18118.62155 | BD83: 18118.62155 | BE83: 18118.62155 | BF83: 18118.62155 | BG83: 18118.62155 | BH83: 18118.62155 | BI83: 18118.62155 | BJ83: 18118.62155 | BK83: 18118.62155 | BL83: 18118.62155 | BM83: 18118.62155 | BN83: 18118.62155 | BO83: 18118.62155 | BP83: 18118.62155 | BQ83: 18118.62155 | BR83: 18118.62155 | BS83: 18118.62155 | BT83: 18118.62155 | BU83: 18118.62155 | BV83: 18118.62155 | BW83: 18118.62155 | BX83: 18118.62155 | BY83: =BY81+BY82 -> 18118.62155 | BZ83: 18118.62155 | CA83: 18118.62155 | CB83: 18118.62155 | CC83: 18118.62155 | CD83: 18118.62155 | CE83: 18118.62155 | CF83: 18118.62155 | CG83: 18118.62155 | CH83: 18118.62155 | CI83: 18118.62155 | CJ83: 18118.62155 | CK83: 18118.62155 | CL83: 18118.62155 | CM83: 18118.62155 | CN83: 18118.62155 | CO83: 18118.62155 | CP83: 18118.62155 | CQ83: 18118.62155 | CR83: 18118.62155 | CS83: 18118.62155 | CT83: 18118.62155 | CU83: 18118.62155 | CV83: 18118.62155 | CW83: 18118.62155 | CX83: 18118.62155 | CY83: 18118.62155 | CZ83: 18118.62155 | DA83: 18118.62155 | DB83: 18118.62155 | DC83: 18118.62155 | DD83: 18118.62155 | DE83: 18118.62155 | DF83: 18118.62155 | DG83: 18118.62155 | DH83: 18118.62155 | DI83: 18118.62155 | DJ83: 18118.62155 | DK83: 18118.62155 | DL83: 18118.62155 | DM83: 18118.62155 | DN83: 18118.62155 | DO83: 18118.62155 | DP83: 18118.62155 | DQ83: 18118.62155 | DR83: 18118.62155 | DS83: 18118.62155 | DT83: 18118.62155 | DU83: 18118.62155 | DV83: 18118.62155 | DW83: 18118.62155 | DX83: 18118.62155 | DY83: 18118.62155 | DZ83: 18118.62155 | EA83: 18118.62155 | EB83: 18118.62155 | EC83: 18118.62155 | ED83: 18118.62155 | EE83: 18118.62155
D85: Total Debt Draws (Equity First) | F85: EUR'000 | L85: =L73-L82 -> 0 | M85: =M73-M82 -> 4629.01842 | N85: 6472.157014 | O85: 77.28535866 | P85: 4359.105956 | Q85: 96.04504572 | R85: 8659.438759 | S85: 8696.055989 | T85: 8732.828059 | U85: 206.7680437 | V85: 207.6423813 | W85: 208.5204162 | X85: 4490.895953 | Y85: 2369.138304 | Z85: 0 | AA85: 0 | AB85: 0 | AC85: 0 | AD85: 0 | AE85: 0 | AF85: 0 | AG85: 0 | AH85: 0 | AI85: 0 | AJ85: 0 | AK85: 0 | AL85: 0 | AM85: 0 | AN85: 0 | AO85: 0 | AP85: 0 | AQ85: 0 | AR85: 0 | AS85: 0 | AT85: 0 | AU85: 0 | AV85: 0 | AW85: 0 | AX85: 0 | AY85: 0 | AZ85: 0 | BA85: 0 | BB85: 0 | BC85: 0 | BD85: 0 | BE85: 0 | BF85: 0 | BG85: 0 | BH85: 0 | BI85: 0 | BJ85: 0 | BK85: 0 | BL85: 0 | BM85: 0 | BN85: 0 | BO85: 0 | BP85: 0 | BQ85: 0 | BR85: 0 | BS85: 0 | BT85: 0 | BU85: 0 | BV85: 0 | BW85: 0 | BX85: 0 | BY85: =BY73-BY82 -> 0 | BZ85: 0 | CA85: 0 | CB85: 0 | CC85: 0 | CD85: 0 | CE85: 0 | CF85: 0 | CG85: 0 | CH85: 0 | CI85: 0 | CJ85: 0 | CK85: 0 | CL85: 0 | CM85: 0 | CN85: 0 | CO85: 0 | CP85: 0 | CQ85: 0 | CR85: 0 | CS85: 0 | CT85: 0 | CU85: 0 | CV85: 0 | CW85: 0 | CX85: 0 | CY85: 0 | CZ85: 0 | DA85: 0 | DB85: 0 | DC85: 0 | DD85: 0 | DE85: 0 | DF85: 0 | DG85: 0 | DH85: 0 | DI85: 0 | DJ85: 0 | DK85: 0 | DL85: 0 | DM85: 0 | DN85: 0 | DO85: 0 | DP85: 0 | DQ85: 0 | DR85: 0 | DS85: 0 | DT85: 0 | DU85: 0 | DV85: 0 | DW85: 0 | DX85: 0 | DY85: 0 | DZ85: 0 | EA85: 0 | EB85: 0 | EC85: 0 | ED85: 0 | EE85: 0
D87: Pro-Rata Equity | F87: EUR'000 | G87: % | H87: =I52 -> 0.2691276572 | L87: =$H$87*L73 -> 143.2386198 | M87: =$H$87*M73 -> 5978.780431 | N87: 1741.836454 | O87: 20.79962751 | P87: 1173.155973 | Q87: 25.84837814 | R87: 2330.494466 | S87: 2340.349175 | T87: 2350.245556 | U87: 55.64699919 | V87: 55.88230763 | W87: 56.11861108 | X87: 1208.624306 | Y87: 637.6006413 | Z87: 0 | AA87: 0 | AB87: 0 | AC87: 0 | AD87: 0 | AE87: 0 | AF87: 0 | AG87: 0 | AH87: 0 | AI87: 0 | AJ87: 0 | AK87: 0 | AL87: 0 | AM87: 0 | AN87: 0 | AO87: 0 | AP87: 0 | AQ87: 0 | AR87: 0 | AS87: 0 | AT87: 0 | AU87: 0 | AV87: 0 | AW87: 0 | AX87: 0 | AY87: 0 | AZ87: 0 | BA87: 0 | BB87: 0 | BC87: 0 | BD87: 0 | BE87: 0 | BF87: 0 | BG87: 0 | BH87: 0 | BI87: 0 | BJ87: 0 | BK87: 0 | BL87: 0 | BM87: 0 | BN87: 0 | BO87: 0 | BP87: 0 | BQ87: 0 | BR87: 0 | BS87: 0 | BT87: 0 | BU87: 0 | BV87: 0 | BW87: 0 | BX87: 0 | BY87: =$H$87*BY73 -> 0 | BZ87: 0 | CA87: 0 | CB87: 0 | CC87: 0 | CD87: 0 | CE87: 0 | CF87: 0 | CG87: 0 | CH87: 0 | CI87: 0 | CJ87: 0 | CK87: 0 | CL87: 0 | CM87: 0 | CN87: 0 | CO87: 0 | CP87: 0 | CQ87: 0 | CR87: 0 | CS87: 0 | CT87: 0 | CU87: 0 | CV87: 0 | CW87: 0 | CX87: 0 | CY87: 0 | CZ87: 0 | DA87: 0 | DB87: 0 | DC87: 0 | DD87: 0 | DE87: 0 | DF87: 0 | DG87: 0 | DH87: 0 | DI87: 0 | DJ87: 0 | DK87: 0 | DL87: 0 | DM87: 0 | DN87: 0 | DO87: 0 | DP87: 0 | DQ87: 0 | DR87: 0 | DS87: 0 | DT87: 0 | DU87: 0 | DV87: 0 | DW87: 0 | DX87: 0 | DY87: 0 | DZ87: 0 | EA87: 0 | EB87: 0 | EC87: 0 | ED87: 0 | EE87: 0
D88: Pro-Rata Debt | F88: EUR'000 | G88: % | H88: =I45 -> 0.7308723418 | L88: =$H$88*L73 -> 388.9943775 | M88: =$H$88*M73 -> 16236.62652 | N88: 4730.320554 | O88: 56.48573107 | P88: 3185.949978 | Q88: 70.19666749 | R88: 6328.944285 | S88: 6355.706806 | T88: 6382.582494 | U88: 151.1210443 | V88: 151.7600735 | W88: 152.4018049 | X88: 3282.271642 | Y88: 1731.53766 | Z88: 0 | AA88: 0 | AB88: 0 | AC88: 0 | AD88: 0 | AE88: 0 | AF88: 0 | AG88: 0 | AH88: 0 | AI88: 0 | AJ88: 0 | AK88: 0 | AL88: 0 | AM88: 0 | AN88: 0 | AO88: 0 | AP88: 0 | AQ88: 0 | AR88: 0 | AS88: 0 | AT88: 0 | AU88: 0 | AV88: 0 | AW88: 0 | AX88: 0 | AY88: 0 | AZ88: 0 | BA88: 0 | BB88: 0 | BC88: 0 | BD88: 0 | BE88: 0 | BF88: 0 | BG88: 0 | BH88: 0 | BI88: 0 | BJ88: 0 | BK88: 0 | BL88: 0 | BM88: 0 | BN88: 0 | BO88: 0 | BP88: 0 | BQ88: 0 | BR88: 0 | BS88: 0 | BT88: 0 | BU88: 0 | BV88: 0 | BW88: 0 | BX88: 0 | BY88: =$H$88*BY73 -> 0 | BZ88: 0 | CA88: 0 | CB88: 0 | CC88: 0 | CD88: 0 | CE88: 0 | CF88: 0 | CG88: 0 | CH88: 0 | CI88: 0 | CJ88: 0 | CK88: 0 | CL88: 0 | CM88: 0 | CN88: 0 | CO88: 0 | CP88: 0 | CQ88: 0 | CR88: 0 | CS88: 0 | CT88: 0 | CU88: 0 | CV88: 0 | CW88: 0 | CX88: 0 | CY88: 0 | CZ88: 0 | DA88: 0 | DB88: 0 | DC88: 0 | DD88: 0 | DE88: 0 | DF88: 0 | DG88: 0 | DH88: 0 | DI88: 0 | DJ88: 0 | DK88: 0 | DL88: 0 | DM88: 0 | DN88: 0 | DO88: 0 | DP88: 0 | DQ88: 0 | DR88: 0 | DS88: 0 | DT88: 0 | DU88: 0 | DV88: 0 | DW88: 0 | DX88: 0 | DY88: 0 | DZ88: 0 | EA88: 0 | EB88: 0 | EC88: 0 | ED88: 0 | EE88: 0
D90: Final Equity Funding | F90: EUR'000 | G90: Eq Fst | H90: ='InputC - Structure'!$G$31 -> TRUE | L90: =IF($H$90,L82,L87) -> 532.2329978 | M90: =IF($H$90,M82,M87) -> 17586.38855 | N90: 0 | O90: 0 | P90: 0 | Q90: 0 | R90: 0 | S90: 0 | T90: 0 | U90: 0 | V90: 0 | W90: 0 | X90: 0 | Y90: 0 | Z90: 0 | AA90: 0 | AB90: 0 | AC90: 0 | AD90: 0 | AE90: 0 | AF90: 0 | AG90: 0 | AH90: 0 | AI90: 0 | AJ90: 0 | AK90: 0 | AL90: 0 | AM90: 0 | AN90: 0 | AO90: 0 | AP90: 0 | AQ90: 0 | AR90: 0 | AS90: 0 | AT90: 0 | AU90: 0 | AV90: 0 | AW90: 0 | AX90: 0 | AY90: 0 | AZ90: 0 | BA90: 0 | BB90: 0 | BC90: 0 | BD90: 0 | BE90: 0 | BF90: 0 | BG90: 0 | BH90: 0 | BI90: 0 | BJ90: 0 | BK90: 0 | BL90: 0 | BM90: 0 | BN90: 0 | BO90: 0 | BP90: 0 | BQ90: 0 | BR90: 0 | BS90: 0 | BT90: 0 | BU90: 0 | BV90: 0 | BW90: 0 | BX90: 0 | BY90: =IF($H$90,BY82,BY87) -> 0 | BZ90: 0 | CA90: 0 | CB90: 0 | CC90: 0 | CD90: 0 | CE90: 0 | CF90: 0 | CG90: 0 | CH90: 0 | CI90: 0 | CJ90: 0 | CK90: 0 | CL90: 0 | CM90: 0 | CN90: 0 | CO90: 0 | CP90: 0 | CQ90: 0 | CR90: 0 | CS90: 0 | CT90: 0 | CU90: 0 | CV90: 0 | CW90: 0 | CX90: 0 | CY90: 0 | CZ90: 0 | DA90: 0 | DB90: 0 | DC90: 0 | DD90: 0 | DE90: 0 | DF90: 0 | DG90: 0 | DH90: 0 | DI90: 0 | DJ90: 0 | DK90: 0 | DL90: 0 | DM90: 0 | DN90: 0 | DO90: 0 | DP90: 0 | DQ90: 0 | DR90: 0 | DS90: 0 | DT90: 0 | DU90: 0 | DV90: 0 | DW90: 0 | DX90: 0 | DY90: 0 | DZ90: 0 | EA90: 0 | EB90: 0 | EC90: 0 | ED90: 0 | EE90: 0
D91: Final Debt Funding | F91: EUR'000 | G91: Eq Fst | H91: ='InputC - Structure'!$G$31 -> TRUE | L91: =IF($H$91,L85,L88) -> 0 | M91: =IF($H$91,M85,M88) -> 4629.01842 | N91: 6472.157014 | O91: 77.28535866 | P91: 4359.105956 | Q91: 96.04504572 | R91: 8659.438759 | S91: 8696.055989 | T91: 8732.828059 | U91: 206.7680437 | V91: 207.6423813 | W91: 208.5204162 | X91: 4490.895953 | Y91: 2369.138304 | Z91: 0 | AA91: 0 | AB91: 0 | AC91: 0 | AD91: 0 | AE91: 0 | AF91: 0 | AG91: 0 | AH91: 0 | AI91: 0 | AJ91: 0 | AK91: 0 | AL91: 0 | AM91: 0 | AN91: 0 | AO91: 0 | AP91: 0 | AQ91: 0 | AR91: 0 | AS91: 0 | AT91: 0 | AU91: 0 | AV91: 0 | AW91: 0 | AX91: 0 | AY91: 0 | AZ91: 0 | BA91: 0 | BB91: 0 | BC91: 0 | BD91: 0 | BE91: 0 | BF91: 0 | BG91: 0 | BH91: 0 | BI91: 0 | BJ91: 0 | BK91: 0 | BL91: 0 | BM91: 0 | BN91: 0 | BO91: 0 | BP91: 0 | BQ91: 0 | BR91: 0 | BS91: 0 | BT91: 0 | BU91: 0 | BV91: 0 | BW91: 0 | BX91: 0 | BY91: =IF($H$91,BY85,BY88) -> 0 | BZ91: 0 | CA91: 0 | CB91: 0 | CC91: 0 | CD91: 0 | CE91: 0 | CF91: 0 | CG91: 0 | CH91: 0 | CI91: 0 | CJ91: 0 | CK91: 0 | CL91: 0 | CM91: 0 | CN91: 0 | CO91: 0 | CP91: 0 | CQ91: 0 | CR91: 0 | CS91: 0 | CT91: 0 | CU91: 0 | CV91: 0 | CW91: 0 | CX91: 0 | CY91: 0 | CZ91: 0 | DA91: 0 | DB91: 0 | DC91: 0 | DD91: 0 | DE91: 0 | DF91: 0 | DG91: 0 | DH91: 0 | DI91: 0 | DJ91: 0 | DK91: 0 | DL91: 0 | DM91: 0 | DN91: 0 | DO91: 0 | DP91: 0 | DQ91: 0 | DR91: 0 | DS91: 0 | DT91: 0 | DU91: 0 | DV91: 0 | DW91: 0 | DX91: 0 | DY91: 0 | DZ91: 0 | EA91: 0 | EB91: 0 | EC91: 0 | ED91: 0 | EE91: 0
D93: =D48& " Funded" -> EIAF Funded | F93: EUR'000 | G93: % | H93: ='InputC - Structure'!G47 -> 0.4 | J93: =SUM(L93:XFD93) -> 19681.95988 | L93: =L$91*$H93 -> 0 | M93: =M$91*$H93 -> 1851.607368 | N93: 2588.862806 | O93: 30.91414346 | P93: 1743.642382 | Q93: 38.41801829 | R93: 3463.775504 | S93: 3478.422396 | T93: 3493.131223 | U93: 82.70721749 | V93: 83.05695254 | W93: 83.40816647 | X93: 1796.358381 | Y93: 947.6553216 | Z93: 0 | AA93: 0 | AB93: 0 | AC93: 0 | AD93: 0 | AE93: 0 | AF93: 0 | AG93: 0 | AH93: 0 | AI93: 0 | AJ93: 0 | AK93: 0 | AL93: 0 | AM93: 0 | AN93: 0 | AO93: 0 | AP93: 0 | AQ93: 0 | AR93: 0 | AS93: 0 | AT93: 0 | AU93: 0 | AV93: 0 | AW93: 0 | AX93: 0 | AY93: 0 | AZ93: 0 | BA93: 0 | BB93: 0 | BC93: 0 | BD93: 0 | BE93: 0 | BF93: 0 | BG93: 0 | BH93: 0 | BI93: 0 | BJ93: 0 | BK93: 0 | BL93: 0 | BM93: 0 | BN93: 0 | BO93: 0 | BP93: 0 | BQ93: 0 | BR93: 0 | BS93: 0 | BT93: 0 | BU93: 0 | BV93: 0 | BW93: 0 | BX93: 0 | BY93: =BY$91*$H93 -> 0 | BZ93: 0 | CA93: 0 | CB93: 0 | CC93: 0 | CD93: 0 | CE93: 0 | CF93: 0 | CG93: 0 | CH93: 0 | CI93: 0 | CJ93: 0 | CK93: 0 | CL93: 0 | CM93: 0 | CN93: 0 | CO93: 0 | CP93: 0 | CQ93: 0 | CR93: 0 | CS93: 0 | CT93: 0 | CU93: 0 | CV93: 0 | CW93: 0 | CX93: 0 | CY93: 0 | CZ93: 0 | DA93: 0 | DB93: 0 | DC93: 0 | DD93: 0 | DE93: 0 | DF93: 0 | DG93: 0 | DH93: 0 | DI93: 0 | DJ93: 0 | DK93: 0 | DL93: 0 | DM93: 0 | DN93: 0 | DO93: 0 | DP93: 0 | DQ93: 0 | DR93: 0 | DS93: 0 | DT93: 0 | DU93: 0 | DV93: 0 | DW93: 0 | DX93: 0 | DY93: 0 | DZ93: 0 | EA93: 0 | EB93: 0 | EC93: 0 | ED93: 0 | EE93: 0
D94: =D49& " Funded" -> AFDB Funded | F94: EUR'000 | G94: % | H94: ='InputC - Structure'!G48 -> 0.3 | J94: =SUM(L94:XFD94) -> 14761.46991 | L94: =L$91*$H94 -> 0 | M94: 1388.705526 | N94: 1941.647104 | O94: 23.1856076 | P94: 1307.731787 | Q94: 28.81351372 | R94: 2597.831628 | S94: 2608.816797 | T94: 2619.848418 | U94: 62.03041312 | V94: 62.2927144 | W94: 62.55612485 | X94: 1347.268786 | Y94: 710.7414912 | Z94: 0 | AA94: 0 | AB94: 0 | AC94: 0 | AD94: 0 | AE94: 0 | AF94: 0 | AG94: 0 | AH94: 0 | AI94: 0 | AJ94: 0 | AK94: 0 | AL94: 0 | AM94: 0 | AN94: 0 | AO94: 0 | AP94: 0 | AQ94: 0 | AR94: 0 | AS94: 0 | AT94: 0 | AU94: 0 | AV94: 0 | AW94: 0 | AX94: 0 | AY94: 0 | AZ94: 0 | BA94: 0 | BB94: 0 | BC94: 0 | BD94: 0 | BE94: 0 | BF94: 0 | BG94: 0 | BH94: 0 | BI94: 0 | BJ94: 0 | BK94: 0 | BL94: 0 | BM94: 0 | BN94: 0 | BO94: 0 | BP94: 0 | BQ94: 0 | BR94: 0 | BS94: 0 | BT94: 0 | BU94: 0 | BV94: 0 | BW94: 0 | BX94: 0 | BY94: 0 | BZ94: 0 | CA94: 0 | CB94: 0 | CC94: 0 | CD94: 0 | CE94: 0 | CF94: 0 | CG94: 0 | CH94: 0 | CI94: 0 | CJ94: 0 | CK94: 0 | CL94: 0 | CM94: 0 | CN94: 0 | CO94: 0 | CP94: 0 | CQ94: 0 | CR94: 0 | CS94: 0 | CT94: 0 | CU94: 0 | CV94: 0 | CW94: 0 | CX94: 0 | CY94: 0 | CZ94: 0 | DA94: 0 | DB94: 0 | DC94: 0 | DD94: 0 | DE94: 0 | DF94: 0 | DG94: 0 | DH94: 0 | DI94: 0 | DJ94: 0 | DK94: 0 | DL94: 0 | DM94: 0 | DN94: 0 | DO94: 0 | DP94: 0 | DQ94: 0 | DR94: 0 | DS94: 0 | DT94: 0 | DU94: 0 | DV94: 0 | DW94: 0 | DX94: 0 | DY94: 0 | DZ94: 0 | EA94: 0 | EB94: 0 | EC94: 0 | ED94: 0 | EE94: 0
D95: IFC Funded | F95: EUR'000 | G95: % | H95: ='InputC - Structure'!G49 -> 0.1 | J95: =SUM(L95:XFD95) -> 4920.48997 | L95: 0 | M95: 462.901842 | N95: 647.2157014 | O95: 7.728535866 | P95: 435.9105956 | Q95: 9.604504572 | R95: 865.9438759 | S95: 869.6055989 | T95: 873.2828059 | U95: 20.67680437 | V95: 20.76423813 | W95: 20.85204162 | X95: 449.0895953 | Y95: 236.9138304 | Z95: 0 | AA95: 0 | AB95: 0 | AC95: 0 | AD95: 0 | AE95: 0 | AF95: 0 | AG95: 0 | AH95: 0 | AI95: 0 | AJ95: 0 | AK95: 0 | AL95: 0 | AM95: 0 | AN95: 0 | AO95: 0 | AP95: 0 | AQ95: 0 | AR95: 0 | AS95: 0 | AT95: 0 | AU95: 0 | AV95: 0 | AW95: 0 | AX95: 0 | AY95: 0 | AZ95: 0 | BA95: 0 | BB95: 0 | BC95: 0 | BD95: 0 | BE95: 0 | BF95: 0 | BG95: 0 | BH95: 0 | BI95: 0 | BJ95: 0 | BK95: 0 | BL95: 0 | BM95: 0 | BN95: 0 | BO95: 0 | BP95: 0 | BQ95: 0 | BR95: 0 | BS95: 0 | BT95: 0 | BU95: 0 | BV95: 0 | BW95: 0 | BX95: 0 | BY95: 0 | BZ95: 0 | CA95: 0 | CB95: 0 | CC95: 0 | CD95: 0 | CE95: 0 | CF95: 0 | CG95: 0 | CH95: 0 | CI95: 0 | CJ95: 0 | CK95: 0 | CL95: 0 | CM95: 0 | CN95: 0 | CO95: 0 | CP95: 0 | CQ95: 0 | CR95: 0 | CS95: 0 | CT95: 0 | CU95: 0 | CV95: 0 | CW95: 0 | CX95: 0 | CY95: 0 | CZ95: 0 | DA95: 0 | DB95: 0 | DC95: 0 | DD95: 0 | DE95: 0 | DF95: 0 | DG95: 0 | DH95: 0 | DI95: 0 | DJ95: 0 | DK95: 0 | DL95: 0 | DM95: 0 | DN95: 0 | DO95: 0 | DP95: 0 | DQ95: 0 | DR95: 0 | DS95: 0 | DT95: 0 | DU95: 0 | DV95: 0 | DW95: 0 | DX95: 0 | DY95: 0 | DZ95: 0 | EA95: 0 | EB95: 0 | EC95: 0 | ED95: 0 | EE95: 0
D96: GFW Funded | F96: EUR'000 | G96: % | H96: ='InputC - Structure'!G50 -> 0.2 | J96: =SUM(L96:XFD96) -> 9840.97994 | L96: 0 | M96: 925.803684 | N96: 1294.431403 | O96: 15.45707173 | P96: 871.8211912 | Q96: 19.20900914 | R96: 1731.887752 | S96: 1739.211198 | T96: 1746.565612 | U96: 41.35360875 | V96: 41.52847627 | W96: 41.70408324 | X96: 898.1791906 | Y96: 473.8276608 | Z96: 0 | AA96: 0 | AB96: 0 | AC96: 0 | AD96: 0 | AE96: 0 | AF96: 0 | AG96: 0 | AH96: 0 | AI96: 0 | AJ96: 0 | AK96: 0 | AL96: 0 | AM96: 0 | AN96: 0 | AO96: 0 | AP96: 0 | AQ96: 0 | AR96: 0 | AS96: 0 | AT96: 0 | AU96: 0 | AV96: 0 | AW96: 0 | AX96: 0 | AY96: 0 | AZ96: 0 | BA96: 0 | BB96: 0 | BC96: 0 | BD96: 0 | BE96: 0 | BF96: 0 | BG96: 0 | BH96: 0 | BI96: 0 | BJ96: 0 | BK96: 0 | BL96: 0 | BM96: 0 | BN96: 0 | BO96: 0 | BP96: 0 | BQ96: 0 | BR96: 0 | BS96: 0 | BT96: 0 | BU96: 0 | BV96: 0 | BW96: 0 | BX96: 0 | BY96: 0 | BZ96: 0 | CA96: 0 | CB96: 0 | CC96: 0 | CD96: 0 | CE96: 0 | CF96: 0 | CG96: 0 | CH96: 0 | CI96: 0 | CJ96: 0 | CK96: 0 | CL96: 0 | CM96: 0 | CN96: 0 | CO96: 0 | CP96: 0 | CQ96: 0 | CR96: 0 | CS96: 0 | CT96: 0 | CU96: 0 | CV96: 0 | CW96: 0 | CX96: 0 | CY96: 0 | CZ96: 0 | DA96: 0 | DB96: 0 | DC96: 0 | DD96: 0 | DE96: 0 | DF96: 0 | DG96: 0 | DH96: 0 | DI96: 0 | DJ96: 0 | DK96: 0 | DL96: 0 | DM96: 0 | DN96: 0 | DO96: 0 | DP96: 0 | DQ96: 0 | DR96: 0 | DS96: 0 | DT96: 0 | DU96: 0 | DV96: 0 | DW96: 0 | DX96: 0 | DY96: 0 | DZ96: 0 | EA96: 0 | EB96: 0 | EC96: 0 | ED96: 0 | EE96: 0
B98: Debt Balance and Repayment
D99: Financial Close Flag | F99: Flag | G99: Date | H99: ='Structuring Model'!L4 -> 2022-11-01 | L99: =(L4=$H$99)*1 -> 1 | M99: =(M4=$H$99)*1 -> 0 | N99: 0 | O99: 0 | P99: 0 | Q99: 0 | R99: 0 | S99: 0 | T99: 0 | U99: 0 | V99: 0 | W99: 0 | X99: 0 | Y99: 0 | Z99: 0 | AA99: 0 | AB99: 0 | AC99: 0 | AD99: 0 | AE99: 0 | AF99: 0 | AG99: 0 | AH99: 0 | AI99: 0 | AJ99: 0 | AK99: 0 | AL99: 0 | AM99: 0 | AN99: 0 | AO99: 0 | AP99: 0 | AQ99: 0 | AR99: 0 | AS99: 0 | AT99: 0 | AU99: 0 | AV99: 0 | AW99: 0 | AX99: 0 | AY99: 0 | AZ99: 0 | BA99: 0 | BB99: 0 | BC99: 0 | BD99: 0 | BE99: 0 | BF99: 0 | BG99: 0 | BH99: 0 | BI99: 0 | BJ99: 0 | BK99: 0 | BL99: 0 | BM99: 0 | BN99: 0 | BO99: 0 | BP99: 0 | BQ99: 0 | BR99: 0 | BS99: 0 | BT99: 0 | BU99: 0 | BV99: 0 | BW99: 0 | BX99: 0 | BY99: =(BY4=$H$99)*1 -> 0 | BZ99: 0 | CA99: 0 | CB99: 0 | CC99: 0 | CD99: 0 | CE99: 0 | CF99: 0 | CG99: 0 | CH99: 0 | CI99: 0 | CJ99: 0 | CK99: 0 | CL99: 0 | CM99: 0 | CN99: 0 | CO99: 0 | CP99: 0 | CQ99: 0 | CR99: 0 | CS99: 0 | CT99: 0 | CU99: 0 | CV99: 0 | CW99: 0 | CX99: 0 | CY99: 0 | CZ99: 0 | DA99: 0 | DB99: 0 | DC99: 0 | DD99: 0 | DE99: 0 | DF99: 0 | DG99: 0 | DH99: 0 | DI99: 0 | DJ99: 0 | DK99: 0 | DL99: 0 | DM99: 0 | DN99: 0 | DO99: 0 | DP99: 0 | DQ99: 0 | DR99: 0 | DS99: 0 | DT99: 0 | DU99: 0 | DV99: 0 | DW99: 0 | DX99: 0 | DY99: 0 | DZ99: 0 | EA99: 0 | EB99: 0 | EC99: 0 | ED99: 0 | EE99: 0
D101: =D48&" Repayment" -> EIAF Repayment | F101: EUR'000 | J101: =SUM(L101:XFD101) -> 19681.95988 | L101: =IF(ISNUMBER(UDFOutput!J8),UDFOutput!J8,0) -> 0 | M101: =IF(ISNUMBER(UDFOutput!K8),UDFOutput!K8,0) -> 0 | N101: =IF(ISNUMBER(UDFOutput!L8),UDFOutput!L8,0) -> 0 | O101: =IF(ISNUMBER(UDFOutput!M8),UDFOutput!M8,0) -> 0 | P101: =IF(ISNUMBER(UDFOutput!N8),UDFOutput!N8,0) -> 0 | Q101: =IF(ISNUMBER(UDFOutput!O8),UDFOutput!O8,0) -> 0 | R101: =IF(ISNUMBER(UDFOutput!P8),UDFOutput!P8,0) -> 0 | S101: =IF(ISNUMBER(UDFOutput!Q8),UDFOutput!Q8,0) -> 0 | T101: =IF(ISNUMBER(UDFOutput!R8),UDFOutput!R8,0) -> 0 | U101: =IF(ISNUMBER(UDFOutput!S8),UDFOutput!S8,0) -> 0 | V101: =IF(ISNUMBER(UDFOutput!T8),UDFOutput!T8,0) -> 0 | W101: =IF(ISNUMBER(UDFOutput!U8),UDFOutput!U8,0) -> 0 | X101: =IF(ISNUMBER(UDFOutput!V8),UDFOutput!V8,0) -> 0 | Y101: =IF(ISNUMBER(UDFOutput!W8),UDFOutput!W8,0) -> 0 | Z101: =IF(ISNUMBER(UDFOutput!X8),UDFOutput!X8,0) -> 279.6175638 | AA101: =IF(ISNUMBER(UDFOutput!Y8),UDFOutput!Y8,0) -> 303.8150568 | AB101: =IF(ISNUMBER(UDFOutput!Z8),UDFOutput!Z8,0) -> 331.0952983 | AC101: =IF(ISNUMBER(UDFOutput!AA8),UDFOutput!AA8,0) -> 320.4839368 | AD101: =IF(ISNUMBER(UDFOutput!AB8),UDFOutput!AB8,0) -> 358.799132 | AE101: =IF(ISNUMBER(UDFOutput!AC8),UDFOutput!AC8,0) -> 351.3195294 | AF101: =IF(ISNUMBER(UDFOutput!AD8),UDFOutput!AD8,0) -> 384.0847813 | AG101: =IF(ISNUMBER(UDFOutput!AE8),UDFOutput!AE8,0) -> 353.0677836 | AH101: =IF(ISNUMBER(UDFOutput!AF8),UDFOutput!AF8,0) -> 388.5451322 | AI101: =IF(ISNUMBER(UDFOutput!AG8),UDFOutput!AG8,0) -> 381.1894931 | AJ101: =IF(ISNUMBER(UDFOutput!AH8),UDFOutput!AH8,0) -> 415.7328903 | AK101: =IF(ISNUMBER(UDFOutput!AI8),UDFOutput!AI8,0) -> 409.8637413 | AL101: =IF(ISNUMBER(UDFOutput!AJ8),UDFOutput!AJ8,0) -> 446.0996764 | AM101: =IF(ISNUMBER(UDFOutput!AK8),UDFOutput!AK8,0) -> 440.8621976 | AN101: =IF(ISNUMBER(UDFOutput!AL8),UDFOutput!AL8,0) -> 479.7887293 | AO101: =IF(ISNUMBER(UDFOutput!AM8),UDFOutput!AM8,0) -> 473.2987814 | AP101: =IF(ISNUMBER(UDFOutput!AN8),UDFOutput!AN8,0) -> 515.2631058 | AQ101: =IF(ISNUMBER(UDFOutput!AO8),UDFOutput!AO8,0) -> 514.5490644 | AR101: =IF(ISNUMBER(UDFOutput!AP8),UDFOutput!AP8,0) -> 557.5776718 | AS101: =IF(ISNUMBER(UDFOutput!AQ8),UDFOutput!AQ8,0) -> 525.4139679 | AT101: =IF(ISNUMBER(UDFOutput!AR8),UDFOutput!AR8,0) -> 588.0619682 | AU101: =IF(ISNUMBER(UDFOutput!AS8),UDFOutput!AS8,0) -> 586.6855349 | AV101: =IF(ISNUMBER(UDFOutput!AT8),UDFOutput!AT8,0) -> 634.3967497 | AW101: =IF(ISNUMBER(UDFOutput!AU8),UDFOutput!AU8,0) -> 631.9917921 | AX101: =IF(ISNUMBER(UDFOutput!AV8),UDFOutput!AV8,0) -> 682.4414388 | AY101: =IF(ISNUMBER(UDFOutput!AW8),UDFOutput!AW8,0) -> 685.2584828 | AZ101: =IF(ISNUMBER(UDFOutput!AX8),UDFOutput!AX8,0) -> 738.4386041 | BA101: =IF(ISNUMBER(UDFOutput!AY8),UDFOutput!AY8,0) -> 740.6079374 | BB101: =IF(ISNUMBER(UDFOutput!AZ8),UDFOutput!AZ8,0) -> 797.1033467 | BC101: =IF(ISNUMBER(UDFOutput!BA8),UDFOutput!BA8,0) -> 800.7221712 | BD101: =IF(ISNUMBER(UDFOutput!BB8),UDFOutput!BB8,0) -> 860.6410759 | BE101: =IF(ISNUMBER(UDFOutput!BC8),UDFOutput!BC8,0) -> 863.6278947 | BF101: =IF(ISNUMBER(UDFOutput!BD8),UDFOutput!BD8,0) -> 900.8802547 | BG101: =IF(ISNUMBER(UDFOutput!BE8),UDFOutput!BE8,0) -> 967.0787829 | BH101: =IF(ISNUMBER(UDFOutput!BF8),UDFOutput!BF8,0) -> 973.5563131 | BI101: =IF(ISNUMBER(UDFOutput!BG8),UDFOutput!BG8,0) -> 0 | BJ101: =IF(ISNUMBER(UDFOutput!BH8),UDFOutput!BH8,0) -> 0 | BK101: =IF(ISNUMBER(UDFOutput!BI8),UDFOutput!BI8,0) -> 0 | BL101: =IF(ISNUMBER(UDFOutput!BJ8),UDFOutput!BJ8,0) -> 0 | BM101: =IF(ISNUMBER(UDFOutput!BK8),UDFOutput!BK8,0) -> 0 | BN101: =IF(ISNUMBER(UDFOutput!BL8),UDFOutput!BL8,0) -> 0 | BO101: =IF(ISNUMBER(UDFOutput!BM8),UDFOutput!BM8,0) -> 0 | BP101: =IF(ISNUMBER(UDFOutput!BN8),UDFOutput!BN8,0) -> 0 | BQ101: =IF(ISNUMBER(UDFOutput!BO8),UDFOutput!BO8,0) -> 0 | BR101: =IF(ISNUMBER(UDFOutput!BP8),UDFOutput!BP8,0) -> 0 | BS101: =IF(ISNUMBER(UDFOutput!BQ8),UDFOutput!BQ8,0) -> 0 | BT101: =IF(ISNUMBER(UDFOutput!BR8),UDFOutput!BR8,0) -> 0 | BU101: =IF(ISNUMBER(UDFOutput!BS8),UDFOutput!BS8,0) -> 0 | BV101: =IF(ISNUMBER(UDFOutput!BT8),UDFOutput!BT8,0) -> 0 | BW101: =IF(ISNUMBER(UDFOutput!BU8),UDFOutput!BU8,0) -> 0 | BX101: =IF(ISNUMBER(UDFOutput!BV8),UDFOutput!BV8,0) -> 0 | BY101: =IF(ISNUMBER(UDFOutput!BW8),UDFOutput!BW8,0) -> 0 | BZ101: =IF(ISNUMBER(UDFOutput!BX8),UDFOutput!BX8,0) -> 0 | CA101: =IF(ISNUMBER(UDFOutput!BY8),UDFOutput!BY8,0) -> 0 | CB101: =IF(ISNUMBER(UDFOutput!BZ8),UDFOutput!BZ8,0) -> 0 | CC101: =IF(ISNUMBER(UDFOutput!CA8),UDFOutput!CA8,0) -> 0 | CD101: =IF(ISNUMBER(UDFOutput!CB8),UDFOutput!CB8,0) -> 0 | CE101: =IF(ISNUMBER(UDFOutput!CC8),UDFOutput!CC8,0) -> 0 | CF101: =IF(ISNUMBER(UDFOutput!CD8),UDFOutput!CD8,0) -> 0 | CG101: =IF(ISNUMBER(UDFOutput!CE8),UDFOutput!CE8,0) -> 0 | CH101: =IF(ISNUMBER(UDFOutput!CF8),UDFOutput!CF8,0) -> 0 | CI101: =IF(ISNUMBER(UDFOutput!CG8),UDFOutput!CG8,0) -> 0 | CJ101: =IF(ISNUMBER(UDFOutput!CH8),UDFOutput!CH8,0) -> 0 | CK101: =IF(ISNUMBER(UDFOutput!CI8),UDFOutput!CI8,0) -> 0 | CL101: =IF(ISNUMBER(UDFOutput!CJ8),UDFOutput!CJ8,0) -> 0 | CM101: =IF(ISNUMBER(UDFOutput!CK8),UDFOutput!CK8,0) -> 0 | CN101: =IF(ISNUMBER(UDFOutput!CL8),UDFOutput!CL8,0) -> 0 | CO101: =IF(ISNUMBER(UDFOutput!CM8),UDFOutput!CM8,0) -> 0 | CP101: =IF(ISNUMBER(UDFOutput!CN8),UDFOutput!CN8,0) -> 0 | CQ101: =IF(ISNUMBER(UDFOutput!CO8),UDFOutput!CO8,0) -> 0 | CR101: =IF(ISNUMBER(UDFOutput!CP8),UDFOutput!CP8,0) -> 0 | CS101: =IF(ISNUMBER(UDFOutput!CQ8),UDFOutput!CQ8,0) -> 0 | CT101: =IF(ISNUMBER(UDFOutput!CR8),UDFOutput!CR8,0) -> 0 | CU101: =IF(ISNUMBER(UDFOutput!CS8),UDFOutput!CS8,0) -> 0 | CV101: =IF(ISNUMBER(UDFOutput!CT8),UDFOutput!CT8,0) -> 0 | CW101: =IF(ISNUMBER(UDFOutput!CU8),UDFOutput!CU8,0) -> 0 | CX101: =IF(ISNUMBER(UDFOutput!CV8),UDFOutput!CV8,0) -> 0 | CY101: =IF(ISNUMBER(UDFOutput!CW8),UDFOutput!CW8,0) -> 0 | CZ101: =IF(ISNUMBER(UDFOutput!CX8),UDFOutput!CX8,0) -> 0 | DA101: =IF(ISNUMBER(UDFOutput!CY8),UDFOutput!CY8,0) -> 0 | DB101: =IF(ISNUMBER(UDFOutput!CZ8),UDFOutput!CZ8,0) -> 0 | DC101: =IF(ISNUMBER(UDFOutput!DA8),UDFOutput!DA8,0) -> 0 | DD101: =IF(ISNUMBER(UDFOutput!DB8),UDFOutput!DB8,0) -> 0 | DE101: =IF(ISNUMBER(UDFOutput!DC8),UDFOutput!DC8,0) -> 0 | DF101: =IF(ISNUMBER(UDFOutput!DD8),UDFOutput!DD8,0) -> 0 | DG101: =IF(ISNUMBER(UDFOutput!DE8),UDFOutput!DE8,0) -> 0 | DH101: =IF(ISNUMBER(UDFOutput!DF8),UDFOutput!DF8,0) -> 0 | DI101: =IF(ISNUMBER(UDFOutput!DG8),UDFOutput!DG8,0) -> 0 | DJ101: =IF(ISNUMBER(UDFOutput!DH8),UDFOutput!DH8,0) -> 0 | DK101: =IF(ISNUMBER(UDFOutput!DI8),UDFOutput!DI8,0) -> 0 | DL101: =IF(ISNUMBER(UDFOutput!DJ8),UDFOutput!DJ8,0) -> 0 | DM101: =IF(ISNUMBER(UDFOutput!DK8),UDFOutput!DK8,0) -> 0 | DN101: =IF(ISNUMBER(UDFOutput!DL8),UDFOutput!DL8,0) -> 0 | DO101: =IF(ISNUMBER(UDFOutput!DM8),UDFOutput!DM8,0) -> 0 | DP101: =IF(ISNUMBER(UDFOutput!DN8),UDFOutput!DN8,0) -> 0 | DQ101: =IF(ISNUMBER(UDFOutput!DO8),UDFOutput!DO8,0) -> 0 | DR101: =IF(ISNUMBER(UDFOutput!DP8),UDFOutput!DP8,0) -> 0 | DS101: =IF(ISNUMBER(UDFOutput!DQ8),UDFOutput!DQ8,0) -> 0 | DT101: =IF(ISNUMBER(UDFOutput!DR8),UDFOutput!DR8,0) -> 0 | DU101: =IF(ISNUMBER(UDFOutput!DS8),UDFOutput!DS8,0) -> 0 | DV101: =IF(ISNUMBER(UDFOutput!DT8),UDFOutput!DT8,0) -> 0 | DW101: =IF(ISNUMBER(UDFOutput!DU8),UDFOutput!DU8,0) -> 0 | DX101: =IF(ISNUMBER(UDFOutput!DV8),UDFOutput!DV8,0) -> 0 | DY101: =IF(ISNUMBER(UDFOutput!DW8),UDFOutput!DW8,0) -> 0 | DZ101: =IF(ISNUMBER(UDFOutput!DX8),UDFOutput!DX8,0) -> 0 | EA101: =IF(ISNUMBER(UDFOutput!DY8),UDFOutput!DY8,0) -> 0 | EB101: =IF(ISNUMBER(UDFOutput!DZ8),UDFOutput!DZ8,0) -> 0 | EC101: =IF(ISNUMBER(UDFOutput!EA8),UDFOutput!EA8,0) -> 0 | ED101: =IF(ISNUMBER(UDFOutput!EB8),UDFOutput!EB8,0) -> 0 | EE101: =IF(ISNUMBER(UDFOutput!EC8),UDFOutput!EC8,0) -> 0
D102: =D49&" Repayment" -> AFDB Repayment | F102: EUR'000 | J102: =SUM(L102:XFD102) -> 14761.46984 | L102: =IF(ISNUMBER(UDFOutput!J9),UDFOutput!J9,0) -> 0 | M102: =IF(ISNUMBER(UDFOutput!K9),UDFOutput!K9,0) -> 0 | N102: =IF(ISNUMBER(UDFOutput!L9),UDFOutput!L9,0) -> 0 | O102: =IF(ISNUMBER(UDFOutput!M9),UDFOutput!M9,0) -> 0 | P102: =IF(ISNUMBER(UDFOutput!N9),UDFOutput!N9,0) -> 0 | Q102: =IF(ISNUMBER(UDFOutput!O9),UDFOutput!O9,0) -> 0 | R102: =IF(ISNUMBER(UDFOutput!P9),UDFOutput!P9,0) -> 0 | S102: =IF(ISNUMBER(UDFOutput!Q9),UDFOutput!Q9,0) -> 0 | T102: =IF(ISNUMBER(UDFOutput!R9),UDFOutput!R9,0) -> 0 | U102: =IF(ISNUMBER(UDFOutput!S9),UDFOutput!S9,0) -> 0 | V102: =IF(ISNUMBER(UDFOutput!T9),UDFOutput!T9,0) -> 0 | W102: =IF(ISNUMBER(UDFOutput!U9),UDFOutput!U9,0) -> 0 | X102: =IF(ISNUMBER(UDFOutput!V9),UDFOutput!V9,0) -> 0 | Y102: =IF(ISNUMBER(UDFOutput!W9),UDFOutput!W9,0) -> 0 | Z102: =IF(ISNUMBER(UDFOutput!X9),UDFOutput!X9,0) -> 87.56316624 | AA102: =IF(ISNUMBER(UDFOutput!Y9),UDFOutput!Y9,0) -> 80.18450577 | AB102: =IF(ISNUMBER(UDFOutput!Z9),UDFOutput!Z9,0) -> 113.4304438 | AC102: =IF(ISNUMBER(UDFOutput!AA9),UDFOutput!AA9,0) -> 84.71752318 | AD102: =IF(ISNUMBER(UDFOutput!AB9),UDFOutput!AB9,0) -> 123.1503605 | AE102: =IF(ISNUMBER(UDFOutput!AC9),UDFOutput!AC9,0) -> 96.61671041 | AF102: =IF(ISNUMBER(UDFOutput!AD9),UDFOutput!AD9,0) -> 130.7130609 | AG102: =IF(ISNUMBER(UDFOutput!AE9),UDFOutput!AE9,0) -> 90.95766441 | AH102: =IF(ISNUMBER(UDFOutput!AF9),UDFOutput!AF9,0) -> 120.2647765 | AI102: =IF(ISNUMBER(UDFOutput!AG9),UDFOutput!AG9,0) -> 97.02730873 | AJ102: =IF(ISNUMBER(UDFOutput!AH9),UDFOutput!AH9,0) -> 131.1798448 | AK102: =IF(ISNUMBER(UDFOutput!AI9),UDFOutput!AI9,0) -> 105.8455326 | AL102: =IF(ISNUMBER(UDFOutput!AJ9),UDFOutput!AJ9,0) -> 139.7685008 | AM102: =IF(ISNUMBER(UDFOutput!AK9),UDFOutput!AK9,0) -> 114.8529389 | AN102: =IF(ISNUMBER(UDFOutput!AL9),UDFOutput!AL9,0) -> 148.9357271 | AO102: =IF(ISNUMBER(UDFOutput!AM9),UDFOutput!AM9,0) -> 125.390369 | AP102: =IF(ISNUMBER(UDFOutput!AN9),UDFOutput!AN9,0) -> 156.3513514 | AQ102: =IF(ISNUMBER(UDFOutput!AO9),UDFOutput!AO9,0) -> 137.655778 | AR102: =IF(ISNUMBER(UDFOutput!AP9),UDFOutput!AP9,0) -> 173.097917 | AS102: =IF(ISNUMBER(UDFOutput!AQ9),UDFOutput!AQ9,0) -> 130.6667062 | AT102: =IF(ISNUMBER(UDFOutput!AR9),UDFOutput!AR9,0) -> 177.9929849 | AU102: =IF(ISNUMBER(UDFOutput!AS9),UDFOutput!AS9,0) -> 156.246341 | AV102: =IF(ISNUMBER(UDFOutput!AT9),UDFOutput!AT9,0) -> 192.3719994 | AW102: =IF(ISNUMBER(UDFOutput!AU9),UDFOutput!AU9,0) -> 171.444786 | AX102: =IF(ISNUMBER(UDFOutput!AV9),UDFOutput!AV9,0) -> 204.0746924 | AY102: =IF(ISNUMBER(UDFOutput!AW9),UDFOutput!AW9,0) -> 188.003403 | AZ102: =IF(ISNUMBER(UDFOutput!AX9),UDFOutput!AX9,0) -> 224.9786118 | BA102: =IF(ISNUMBER(UDFOutput!AY9),UDFOutput!AY9,0) -> 206.1036932 | BB102: =IF(ISNUMBER(UDFOutput!AZ9),UDFOutput!AZ9,0) -> 243.7261611 | BC102: =IF(ISNUMBER(UDFOutput!BA9),UDFOutput!BA9,0) -> 226.0344937 | BD102: =IF(ISNUMBER(UDFOutput!BB9),UDFOutput!BB9,0) -> 264.2554305 | BE102: =IF(ISNUMBER(UDFOutput!BC9),UDFOutput!BC9,0) -> 254.8874171 | BF102: =IF(ISNUMBER(UDFOutput!BD9),UDFOutput!BD9,0) -> 267.9703153 | BG102: =IF(ISNUMBER(UDFOutput!BE9),UDFOutput!BE9,0) -> 299.9878259 | BH102: =IF(ISNUMBER(UDFOutput!BF9),UDFOutput!BF9,0) -> 291.6749776 | BI102: =IF(ISNUMBER(UDFOutput!BG9),UDFOutput!BG9,0) -> 1533.787482 | BJ102: =IF(ISNUMBER(UDFOutput!BH9),UDFOutput!BH9,0) -> 1544.285658 | BK102: =IF(ISNUMBER(UDFOutput!BI9),UDFOutput!BI9,0) -> 1946.201581 | BL102: =IF(ISNUMBER(UDFOutput!BJ9),UDFOutput!BJ9,0) -> 1897.902501 | BM102: =IF(ISNUMBER(UDFOutput!BK9),UDFOutput!BK9,0) -> 2081.169302 | BN102: =IF(ISNUMBER(UDFOutput!BL9),UDFOutput!BL9,0) -> 0 | BO102: =IF(ISNUMBER(UDFOutput!BM9),UDFOutput!BM9,0) -> 0 | BP102: =IF(ISNUMBER(UDFOutput!BN9),UDFOutput!BN9,0) -> 0 | BQ102: =IF(ISNUMBER(UDFOutput!BO9),UDFOutput!BO9,0) -> 0 | BR102: =IF(ISNUMBER(UDFOutput!BP9),UDFOutput!BP9,0) -> 0 | BS102: =IF(ISNUMBER(UDFOutput!BQ9),UDFOutput!BQ9,0) -> 0 | BT102: =IF(ISNUMBER(UDFOutput!BR9),UDFOutput!BR9,0) -> 0 | BU102: =IF(ISNUMBER(UDFOutput!BS9),UDFOutput!BS9,0) -> 0 | BV102: =IF(ISNUMBER(UDFOutput!BT9),UDFOutput!BT9,0) -> 0 | BW102: =IF(ISNUMBER(UDFOutput!BU9),UDFOutput!BU9,0) -> 0 | BX102: =IF(ISNUMBER(UDFOutput!BV9),UDFOutput!BV9,0) -> 0 | BY102: =IF(ISNUMBER(UDFOutput!BW9),UDFOutput!BW9,0) -> 0 | BZ102: =IF(ISNUMBER(UDFOutput!BX9),UDFOutput!BX9,0) -> 0 | CA102: =IF(ISNUMBER(UDFOutput!BY9),UDFOutput!BY9,0) -> 0 | CB102: =IF(ISNUMBER(UDFOutput!BZ9),UDFOutput!BZ9,0) -> 0 | CC102: =IF(ISNUMBER(UDFOutput!CA9),UDFOutput!CA9,0) -> 0 | CD102: =IF(ISNUMBER(UDFOutput!CB9),UDFOutput!CB9,0) -> 0 | CE102: =IF(ISNUMBER(UDFOutput!CC9),UDFOutput!CC9,0) -> 0 | CF102: =IF(ISNUMBER(UDFOutput!CD9),UDFOutput!CD9,0) -> 0 | CG102: =IF(ISNUMBER(UDFOutput!CE9),UDFOutput!CE9,0) -> 0 | CH102: =IF(ISNUMBER(UDFOutput!CF9),UDFOutput!CF9,0) -> 0 | CI102: =IF(ISNUMBER(UDFOutput!CG9),UDFOutput!CG9,0) -> 0 | CJ102: =IF(ISNUMBER(UDFOutput!CH9),UDFOutput!CH9,0) -> 0 | CK102: =IF(ISNUMBER(UDFOutput!CI9),UDFOutput!CI9,0) -> 0 | CL102: =IF(ISNUMBER(UDFOutput!CJ9),UDFOutput!CJ9,0) -> 0 | CM102: =IF(ISNUMBER(UDFOutput!CK9),UDFOutput!CK9,0) -> 0 | CN102: =IF(ISNUMBER(UDFOutput!CL9),UDFOutput!CL9,0) -> 0 | CO102: =IF(ISNUMBER(UDFOutput!CM9),UDFOutput!CM9,0) -> 0 | CP102: =IF(ISNUMBER(UDFOutput!CN9),UDFOutput!CN9,0) -> 0 | CQ102: =IF(ISNUMBER(UDFOutput!CO9),UDFOutput!CO9,0) -> 0 | CR102: =IF(ISNUMBER(UDFOutput!CP9),UDFOutput!CP9,0) -> 0 | CS102: =IF(ISNUMBER(UDFOutput!CQ9),UDFOutput!CQ9,0) -> 0 | CT102: =IF(ISNUMBER(UDFOutput!CR9),UDFOutput!CR9,0) -> 0 | CU102: =IF(ISNUMBER(UDFOutput!CS9),UDFOutput!CS9,0) -> 0 | CV102: =IF(ISNUMBER(UDFOutput!CT9),UDFOutput!CT9,0) -> 0 | CW102: =IF(ISNUMBER(UDFOutput!CU9),UDFOutput!CU9,0) -> 0 | CX102: =IF(ISNUMBER(UDFOutput!CV9),UDFOutput!CV9,0) -> 0 | CY102: =IF(ISNUMBER(UDFOutput!CW9),UDFOutput!CW9,0) -> 0 | CZ102: =IF(ISNUMBER(UDFOutput!CX9),UDFOutput!CX9,0) -> 0 | DA102: =IF(ISNUMBER(UDFOutput!CY9),UDFOutput!CY9,0) -> 0 | DB102: =IF(ISNUMBER(UDFOutput!CZ9),UDFOutput!CZ9,0) -> 0 | DC102: =IF(ISNUMBER(UDFOutput!DA9),UDFOutput!DA9,0) -> 0 | DD102: =IF(ISNUMBER(UDFOutput!DB9),UDFOutput!DB9,0) -> 0 | DE102: =IF(ISNUMBER(UDFOutput!DC9),UDFOutput!DC9,0) -> 0 | DF102: =IF(ISNUMBER(UDFOutput!DD9),UDFOutput!DD9,0) -> 0 | DG102: =IF(ISNUMBER(UDFOutput!DE9),UDFOutput!DE9,0) -> 0 | DH102: =IF(ISNUMBER(UDFOutput!DF9),UDFOutput!DF9,0) -> 0 | DI102: =IF(ISNUMBER(UDFOutput!DG9),UDFOutput!DG9,0) -> 0 | DJ102: =IF(ISNUMBER(UDFOutput!DH9),UDFOutput!DH9,0) -> 0 | DK102: =IF(ISNUMBER(UDFOutput!DI9),UDFOutput!DI9,0) -> 0 | DL102: =IF(ISNUMBER(UDFOutput!DJ9),UDFOutput!DJ9,0) -> 0 | DM102: =IF(ISNUMBER(UDFOutput!DK9),UDFOutput!DK9,0) -> 0 | DN102: =IF(ISNUMBER(UDFOutput!DL9),UDFOutput!DL9,0) -> 0 | DO102: =IF(ISNUMBER(UDFOutput!DM9),UDFOutput!DM9,0) -> 0 | DP102: =IF(ISNUMBER(UDFOutput!DN9),UDFOutput!DN9,0) -> 0 | DQ102: =IF(ISNUMBER(UDFOutput!DO9),UDFOutput!DO9,0) -> 0 | DR102: =IF(ISNUMBER(UDFOutput!DP9),UDFOutput!DP9,0) -> 0 | DS102: =IF(ISNUMBER(UDFOutput!DQ9),UDFOutput!DQ9,0) -> 0 | DT102: =IF(ISNUMBER(UDFOutput!DR9),UDFOutput!DR9,0) -> 0 | DU102: =IF(ISNUMBER(UDFOutput!DS9),UDFOutput!DS9,0) -> 0 | DV102: =IF(ISNUMBER(UDFOutput!DT9),UDFOutput!DT9,0) -> 0 | DW102: =IF(ISNUMBER(UDFOutput!DU9),UDFOutput!DU9,0) -> 0 | DX102: =IF(ISNUMBER(UDFOutput!DV9),UDFOutput!DV9,0) -> 0 | DY102: =IF(ISNUMBER(UDFOutput!DW9),UDFOutput!DW9,0) -> 0 | DZ102: =IF(ISNUMBER(UDFOutput!DX9),UDFOutput!DX9,0) -> 0 | EA102: =IF(ISNUMBER(UDFOutput!DY9),UDFOutput!DY9,0) -> 0 | EB102: =IF(ISNUMBER(UDFOutput!DZ9),UDFOutput!DZ9,0) -> 0 | EC102: =IF(ISNUMBER(UDFOutput!EA9),UDFOutput!EA9,0) -> 0 | ED102: =IF(ISNUMBER(UDFOutput!EB9),UDFOutput!EB9,0) -> 0 | EE102: =IF(ISNUMBER(UDFOutput!EC9),UDFOutput!EC9,0) -> 0
D103: =D50&" Repayment" -> IFC Repayment | F103: EUR'000 | J103: =SUM(L103:XFD103) -> 4920.48997 | L103: =IF(ISNUMBER(UDFOutput!J10),UDFOutput!J10,0) -> 0 | M103: =IF(ISNUMBER(UDFOutput!K10),UDFOutput!K10,0) -> 0 | N103: =IF(ISNUMBER(UDFOutput!L10),UDFOutput!L10,0) -> 0 | O103: =IF(ISNUMBER(UDFOutput!M10),UDFOutput!M10,0) -> 0 | P103: =IF(ISNUMBER(UDFOutput!N10),UDFOutput!N10,0) -> 0 | Q103: =IF(ISNUMBER(UDFOutput!O10),UDFOutput!O10,0) -> 0 | R103: =IF(ISNUMBER(UDFOutput!P10),UDFOutput!P10,0) -> 0 | S103: =IF(ISNUMBER(UDFOutput!Q10),UDFOutput!Q10,0) -> 0 | T103: =IF(ISNUMBER(UDFOutput!R10),UDFOutput!R10,0) -> 0 | U103: =IF(ISNUMBER(UDFOutput!S10),UDFOutput!S10,0) -> 0 | V103: =IF(ISNUMBER(UDFOutput!T10),UDFOutput!T10,0) -> 0 | W103: =IF(ISNUMBER(UDFOutput!U10),UDFOutput!U10,0) -> 0 | X103: =IF(ISNUMBER(UDFOutput!V10),UDFOutput!V10,0) -> 0 | Y103: =IF(ISNUMBER(UDFOutput!W10),UDFOutput!W10,0) -> 0 | Z103: =IF(ISNUMBER(UDFOutput!X10),UDFOutput!X10,0) -> 119.4748518 | AA103: =IF(ISNUMBER(UDFOutput!Y10),UDFOutput!Y10,0) -> 120.6696003 | AB103: =IF(ISNUMBER(UDFOutput!Z10),UDFOutput!Z10,0) -> 126.4996274 | AC103: =IF(ISNUMBER(UDFOutput!AA10),UDFOutput!AA10,0) -> 122.1543421 | AD103: =IF(ISNUMBER(UDFOutput!AB10),UDFOutput!AB10,0) -> 129.6038497 | AE103: =IF(ISNUMBER(UDFOutput!AC10),UDFOutput!AC10,0) -> 125.6660905 | AF103: =IF(ISNUMBER(UDFOutput!AD10),UDFOutput!AD10,0) -> 131.9810661 | AG103: =IF(ISNUMBER(UDFOutput!AE10),UDFOutput!AE10,0) -> 124.7343011 | AH103: =IF(ISNUMBER(UDFOutput!AF10),UDFOutput!AF10,0) -> 130.7357563 | AI103: =IF(ISNUMBER(UDFOutput!AG10),UDFOutput!AG10,0) -> 126.7167734 | AJ103: =IF(ISNUMBER(UDFOutput!AH10),UDFOutput!AH10,0) -> 133.0385385 | AK103: =IF(ISNUMBER(UDFOutput!AI10),UDFOutput!AI10,0) -> 129.3000256 | AL103: =IF(ISNUMBER(UDFOutput!AJ10),UDFOutput!AJ10,0) -> 135.6779492 | AM103: =IF(ISNUMBER(UDFOutput!AK10),UDFOutput!AK10,0) -> 131.9720014 | AN103: =IF(ISNUMBER(UDFOutput!AL10),UDFOutput!AL10,0) -> 138.3871894 | AO103: =IF(ISNUMBER(UDFOutput!AM10),UDFOutput!AM10,0) -> 134.7246902 | AP103: =IF(ISNUMBER(UDFOutput!AN10),UDFOutput!AN10,0) -> 140.8815445 | AQ103: =IF(ISNUMBER(UDFOutput!AO10),UDFOutput!AO10,0) -> 137.5811805 | AR103: =IF(ISNUMBER(UDFOutput!AP10),UDFOutput!AP10,0) -> 144.059276 | AS103: =IF(ISNUMBER(UDFOutput!AQ10),UDFOutput!AQ10,0) -> 135.5131529 | AT103: =IF(ISNUMBER(UDFOutput!AR10),UDFOutput!AR10,0) -> 144.9863164 | AU103: =IF(ISNUMBER(UDFOutput!AS10),UDFOutput!AS10,0) -> 141.3846848 | AV103: =IF(ISNUMBER(UDFOutput!AT10),UDFOutput!AT10,0) -> 147.9833659 | AW103: =IF(ISNUMBER(UDFOutput!AU10),UDFOutput!AU10,0) -> 144.4081241 | AX103: =IF(ISNUMBER(UDFOutput!AV10),UDFOutput!AV10,0) -> 150.7408964 | AY103: =IF(ISNUMBER(UDFOutput!AW10),UDFOutput!AW10,0) -> 147.5450082 | AZ103: =IF(ISNUMBER(UDFOutput!AX10),UDFOutput!AX10,0) -> 154.2130997 | BA103: =IF(ISNUMBER(UDFOutput!AY10),UDFOutput!AY10,0) -> 150.7396369 | BB103: =IF(ISNUMBER(UDFOutput!AZ10),UDFOutput!AZ10,0) -> 157.483864 | BC103: =IF(ISNUMBER(UDFOutput!BA10),UDFOutput!BA10,0) -> 154.0671924 | BD103: =IF(ISNUMBER(UDFOutput!BB10),UDFOutput!BB10,0) -> 160.8647159 | BE103: =IF(ISNUMBER(UDFOutput!BC10),UDFOutput!BC10,0) -> 157.5301013 | BF103: =IF(ISNUMBER(UDFOutput!BD10),UDFOutput!BD10,0) -> 159.7226618 | BG103: =IF(ISNUMBER(UDFOutput!BE10),UDFOutput!BE10,0) -> 166.4153564 | BH103: =IF(ISNUMBER(UDFOutput!BF10),UDFOutput!BF10,0) -> 163.0331389 | BI103: =IF(ISNUMBER(UDFOutput!BG10),UDFOutput!BG10,0) -> 0 | BJ103: =IF(ISNUMBER(UDFOutput!BH10),UDFOutput!BH10,0) -> 0 | BK103: =IF(ISNUMBER(UDFOutput!BI10),UDFOutput!BI10,0) -> 0 | BL103: =IF(ISNUMBER(UDFOutput!BJ10),UDFOutput!BJ10,0) -> 0 | BM103: =IF(ISNUMBER(UDFOutput!BK10),UDFOutput!BK10,0) -> 0 | BN103: =IF(ISNUMBER(UDFOutput!BL10),UDFOutput!BL10,0) -> 0 | BO103: =IF(ISNUMBER(UDFOutput!BM10),UDFOutput!BM10,0) -> 0 | BP103: =IF(ISNUMBER(UDFOutput!BN10),UDFOutput!BN10,0) -> 0 | BQ103: =IF(ISNUMBER(UDFOutput!BO10),UDFOutput!BO10,0) -> 0 | BR103: =IF(ISNUMBER(UDFOutput!BP10),UDFOutput!BP10,0) -> 0 | BS103: =IF(ISNUMBER(UDFOutput!BQ10),UDFOutput!BQ10,0) -> 0 | BT103: =IF(ISNUMBER(UDFOutput!BR10),UDFOutput!BR10,0) -> 0 | BU103: =IF(ISNUMBER(UDFOutput!BS10),UDFOutput!BS10,0) -> 0 | BV103: =IF(ISNUMBER(UDFOutput!BT10),UDFOutput!BT10,0) -> 0 | BW103: =IF(ISNUMBER(UDFOutput!BU10),UDFOutput!BU10,0) -> 0 | BX103: =IF(ISNUMBER(UDFOutput!BV10),UDFOutput!BV10,0) -> 0 | BY103: =IF(ISNUMBER(UDFOutput!BW10),UDFOutput!BW10,0) -> 0 | BZ103: =IF(ISNUMBER(UDFOutput!BX10),UDFOutput!BX10,0) -> 0 | CA103: =IF(ISNUMBER(UDFOutput!BY10),UDFOutput!BY10,0) -> 0 | CB103: =IF(ISNUMBER(UDFOutput!BZ10),UDFOutput!BZ10,0) -> 0 | CC103: =IF(ISNUMBER(UDFOutput!CA10),UDFOutput!CA10,0) -> 0 | CD103: =IF(ISNUMBER(UDFOutput!CB10),UDFOutput!CB10,0) -> 0 | CE103: =IF(ISNUMBER(UDFOutput!CC10),UDFOutput!CC10,0) -> 0 | CF103: =IF(ISNUMBER(UDFOutput!CD10),UDFOutput!CD10,0) -> 0 | CG103: =IF(ISNUMBER(UDFOutput!CE10),UDFOutput!CE10,0) -> 0 | CH103: =IF(ISNUMBER(UDFOutput!CF10),UDFOutput!CF10,0) -> 0 | CI103: =IF(ISNUMBER(UDFOutput!CG10),UDFOutput!CG10,0) -> 0 | CJ103: =IF(ISNUMBER(UDFOutput!CH10),UDFOutput!CH10,0) -> 0 | CK103: =IF(ISNUMBER(UDFOutput!CI10),UDFOutput!CI10,0) -> 0 | CL103: =IF(ISNUMBER(UDFOutput!CJ10),UDFOutput!CJ10,0) -> 0 | CM103: =IF(ISNUMBER(UDFOutput!CK10),UDFOutput!CK10,0) -> 0 | CN103: =IF(ISNUMBER(UDFOutput!CL10),UDFOutput!CL10,0) -> 0 | CO103: =IF(ISNUMBER(UDFOutput!CM10),UDFOutput!CM10,0) -> 0 | CP103: =IF(ISNUMBER(UDFOutput!CN10),UDFOutput!CN10,0) -> 0 | CQ103: =IF(ISNUMBER(UDFOutput!CO10),UDFOutput!CO10,0) -> 0 | CR103: =IF(ISNUMBER(UDFOutput!CP10),UDFOutput!CP10,0) -> 0 | CS103: =IF(ISNUMBER(UDFOutput!CQ10),UDFOutput!CQ10,0) -> 0 | CT103: =IF(ISNUMBER(UDFOutput!CR10),UDFOutput!CR10,0) -> 0 | CU103: =IF(ISNUMBER(UDFOutput!CS10),UDFOutput!CS10,0) -> 0 | CV103: =IF(ISNUMBER(UDFOutput!CT10),UDFOutput!CT10,0) -> 0 | CW103: =IF(ISNUMBER(UDFOutput!CU10),UDFOutput!CU10,0) -> 0 | CX103: =IF(ISNUMBER(UDFOutput!CV10),UDFOutput!CV10,0) -> 0 | CY103: =IF(ISNUMBER(UDFOutput!CW10),UDFOutput!CW10,0) -> 0 | CZ103: =IF(ISNUMBER(UDFOutput!CX10),UDFOutput!CX10,0) -> 0 | DA103: =IF(ISNUMBER(UDFOutput!CY10),UDFOutput!CY10,0) -> 0 | DB103: =IF(ISNUMBER(UDFOutput!CZ10),UDFOutput!CZ10,0) -> 0 | DC103: =IF(ISNUMBER(UDFOutput!DA10),UDFOutput!DA10,0) -> 0 | DD103: =IF(ISNUMBER(UDFOutput!DB10),UDFOutput!DB10,0) -> 0 | DE103: =IF(ISNUMBER(UDFOutput!DC10),UDFOutput!DC10,0) -> 0 | DF103: =IF(ISNUMBER(UDFOutput!DD10),UDFOutput!DD10,0) -> 0 | DG103: =IF(ISNUMBER(UDFOutput!DE10),UDFOutput!DE10,0) -> 0 | DH103: =IF(ISNUMBER(UDFOutput!DF10),UDFOutput!DF10,0) -> 0 | DI103: =IF(ISNUMBER(UDFOutput!DG10),UDFOutput!DG10,0) -> 0 | DJ103: =IF(ISNUMBER(UDFOutput!DH10),UDFOutput!DH10,0) -> 0 | DK103: =IF(ISNUMBER(UDFOutput!DI10),UDFOutput!DI10,0) -> 0 | DL103: =IF(ISNUMBER(UDFOutput!DJ10),UDFOutput!DJ10,0) -> 0 | DM103: =IF(ISNUMBER(UDFOutput!DK10),UDFOutput!DK10,0) -> 0 | DN103: =IF(ISNUMBER(UDFOutput!DL10),UDFOutput!DL10,0) -> 0 | DO103: =IF(ISNUMBER(UDFOutput!DM10),UDFOutput!DM10,0) -> 0 | DP103: =IF(ISNUMBER(UDFOutput!DN10),UDFOutput!DN10,0) -> 0 | DQ103: =IF(ISNUMBER(UDFOutput!DO10),UDFOutput!DO10,0) -> 0 | DR103: =IF(ISNUMBER(UDFOutput!DP10),UDFOutput!DP10,0) -> 0 | DS103: =IF(ISNUMBER(UDFOutput!DQ10),UDFOutput!DQ10,0) -> 0 | DT103: =IF(ISNUMBER(UDFOutput!DR10),UDFOutput!DR10,0) -> 0 | DU103: =IF(ISNUMBER(UDFOutput!DS10),UDFOutput!DS10,0) -> 0 | DV103: =IF(ISNUMBER(UDFOutput!DT10),UDFOutput!DT10,0) -> 0 | DW103: =IF(ISNUMBER(UDFOutput!DU10),UDFOutput!DU10,0) -> 0 | DX103: =IF(ISNUMBER(UDFOutput!DV10),UDFOutput!DV10,0) -> 0 | DY103: =IF(ISNUMBER(UDFOutput!DW10),UDFOutput!DW10,0) -> 0 | DZ103: =IF(ISNUMBER(UDFOutput!DX10),UDFOutput!DX10,0) -> 0 | EA103: =IF(ISNUMBER(UDFOutput!DY10),UDFOutput!DY10,0) -> 0 | EB103: =IF(ISNUMBER(UDFOutput!DZ10),UDFOutput!DZ10,0) -> 0 | EC103: =IF(ISNUMBER(UDFOutput!EA10),UDFOutput!EA10,0) -> 0 | ED103: =IF(ISNUMBER(UDFOutput!EB10),UDFOutput!EB10,0) -> 0 | EE103: =IF(ISNUMBER(UDFOutput!EC10),UDFOutput!EC10,0) -> 0
D104: =D51&" Repayment" -> GFW Repayment | F104: EUR'000 | J104: =SUM(L104:XFD104) -> 9840.97994 | L104: =IF(ISNUMBER(UDFOutput!J11),UDFOutput!J11,0) -> 0 | M104: =IF(ISNUMBER(UDFOutput!K11),UDFOutput!K11,0) -> 0 | N104: =IF(ISNUMBER(UDFOutput!L11),UDFOutput!L11,0) -> 0 | O104: =IF(ISNUMBER(UDFOutput!M11),UDFOutput!M11,0) -> 0 | P104: =IF(ISNUMBER(UDFOutput!N11),UDFOutput!N11,0) -> 0 | Q104: =IF(ISNUMBER(UDFOutput!O11),UDFOutput!O11,0) -> 0 | R104: =IF(ISNUMBER(UDFOutput!P11),UDFOutput!P11,0) -> 0 | S104: =IF(ISNUMBER(UDFOutput!Q11),UDFOutput!Q11,0) -> 0 | T104: =IF(ISNUMBER(UDFOutput!R11),UDFOutput!R11,0) -> 0 | U104: =IF(ISNUMBER(UDFOutput!S11),UDFOutput!S11,0) -> 0 | V104: =IF(ISNUMBER(UDFOutput!T11),UDFOutput!T11,0) -> 0 | W104: =IF(ISNUMBER(UDFOutput!U11),UDFOutput!U11,0) -> 0 | X104: =IF(ISNUMBER(UDFOutput!V11),UDFOutput!V11,0) -> 0 | Y104: =IF(ISNUMBER(UDFOutput!W11),UDFOutput!W11,0) -> 0 | Z104: =IF(ISNUMBER(UDFOutput!X11),UDFOutput!X11,0) -> 258.9746965 | AA104: =IF(ISNUMBER(UDFOutput!Y11),UDFOutput!Y11,0) -> 259.4926459 | AB104: =IF(ISNUMBER(UDFOutput!Z11),UDFOutput!Z11,0) -> 267.6493113 | AC104: =IF(ISNUMBER(UDFOutput!AA11),UDFOutput!AA11,0) -> 258.916501 | AD104: =IF(ISNUMBER(UDFOutput!AB11),UDFOutput!AB11,0) -> 269.7228461 | AE104: =IF(ISNUMBER(UDFOutput!AC11),UDFOutput!AC11,0) -> 261.6161292 | AF104: =IF(ISNUMBER(UDFOutput!AD11),UDFOutput!AD11,0) -> 270.4956285 | AG104: =IF(ISNUMBER(UDFOutput!AE11),UDFOutput!AE11,0) -> 256.8847532 | AH104: =IF(ISNUMBER(UDFOutput!AF11),UDFOutput!AF11,0) -> 265.2522515 | AI104: =IF(ISNUMBER(UDFOutput!AG11),UDFOutput!AG11,0) -> 256.9837139 | AJ104: =IF(ISNUMBER(UDFOutput!AH11),UDFOutput!AH11,0) -> 265.8478076 | AK104: =IF(ISNUMBER(UDFOutput!AI11),UDFOutput!AI11,0) -> 258.005752 | AL104: =IF(ISNUMBER(UDFOutput!AJ11),UDFOutput!AJ11,0) -> 266.9219879 | AM104: =IF(ISNUMBER(UDFOutput!AK11),UDFOutput!AK11,0) -> 259.0922751 | AN104: =IF(ISNUMBER(UDFOutput!AL11),UDFOutput!AL11,0) -> 268.0281035 | AO104: =IF(ISNUMBER(UDFOutput!AM11),UDFOutput!AM11,0) -> 260.2276233 | AP104: =IF(ISNUMBER(UDFOutput!AN11),UDFOutput!AN11,0) -> 268.6934846 | AQ104: =IF(ISNUMBER(UDFOutput!AO11),UDFOutput!AO11,0) -> 261.4513712 | AR104: =IF(ISNUMBER(UDFOutput!AP11),UDFOutput!AP11,0) -> 270.4031772 | AS104: =IF(ISNUMBER(UDFOutput!AQ11),UDFOutput!AQ11,0) -> 254.4460647 | AT104: =IF(ISNUMBER(UDFOutput!AR11),UDFOutput!AR11,0) -> 268.3658352 | AU104: =IF(ISNUMBER(UDFOutput!AS11),UDFOutput!AS11,0) -> 260.5575663 | AV104: =IF(ISNUMBER(UDFOutput!AT11),UDFOutput!AT11,0) -> 269.643957 | AW104: =IF(ISNUMBER(UDFOutput!AU11),UDFOutput!AU11,0) -> 261.832329 | AX104: =IF(ISNUMBER(UDFOutput!AV11),UDFOutput!AV11,0) -> 270.432045 | AY104: =IF(ISNUMBER(UDFOutput!AW11),UDFOutput!AW11,0) -> 263.2031261 | AZ104: =IF(ISNUMBER(UDFOutput!AX11),UDFOutput!AX11,0) -> 272.3077053 | BA104: =IF(ISNUMBER(UDFOutput!AY11),UDFOutput!AY11,0) -> 264.566628 | BB104: =IF(ISNUMBER(UDFOutput!AZ11),UDFOutput!AZ11,0) -> 273.7469344 | BC104: =IF(ISNUMBER(UDFOutput!BA11),UDFOutput!BA11,0) -> 266.0485211 | BD104: =IF(ISNUMBER(UDFOutput!BB11),UDFOutput!BB11,0) -> 275.2648655 | BE104: =IF(ISNUMBER(UDFOutput!BC11),UDFOutput!BC11,0) -> 267.649194 | BF104: =IF(ISNUMBER(UDFOutput!BD11),UDFOutput!BD11,0) -> 269.2041967 | BG104: =IF(ISNUMBER(UDFOutput!BE11),UDFOutput!BE11,0) -> 278.160249 | BH104: =IF(ISNUMBER(UDFOutput!BF11),UDFOutput!BF11,0) -> 270.380033 | BI104: =IF(ISNUMBER(UDFOutput!BG11),UDFOutput!BG11,0) -> 278.8661991 | BJ104: =IF(ISNUMBER(UDFOutput!BH11),UDFOutput!BH11,0) -> 271.6444312 | BK104: =IF(ISNUMBER(UDFOutput!BI11),UDFOutput!BI11,0) -> 0 | BL104: =IF(ISNUMBER(UDFOutput!BJ11),UDFOutput!BJ11,0) -> 0 | BM104: =IF(ISNUMBER(UDFOutput!BK11),UDFOutput!BK11,0) -> 0 | BN104: =IF(ISNUMBER(UDFOutput!BL11),UDFOutput!BL11,0) -> 0 | BO104: =IF(ISNUMBER(UDFOutput!BM11),UDFOutput!BM11,0) -> 0 | BP104: =IF(ISNUMBER(UDFOutput!BN11),UDFOutput!BN11,0) -> 0 | BQ104: =IF(ISNUMBER(UDFOutput!BO11),UDFOutput!BO11,0) -> 0 | BR104: =IF(ISNUMBER(UDFOutput!BP11),UDFOutput!BP11,0) -> 0 | BS104: =IF(ISNUMBER(UDFOutput!BQ11),UDFOutput!BQ11,0) -> 0 | BT104: =IF(ISNUMBER(UDFOutput!BR11),UDFOutput!BR11,0) -> 0 | BU104: =IF(ISNUMBER(UDFOutput!BS11),UDFOutput!BS11,0) -> 0 | BV104: =IF(ISNUMBER(UDFOutput!BT11),UDFOutput!BT11,0) -> 0 | BW104: =IF(ISNUMBER(UDFOutput!BU11),UDFOutput!BU11,0) -> 0 | BX104: =IF(ISNUMBER(UDFOutput!BV11),UDFOutput!BV11,0) -> 0 | BY104: =IF(ISNUMBER(UDFOutput!BW11),UDFOutput!BW11,0) -> 0 | BZ104: =IF(ISNUMBER(UDFOutput!BX11),UDFOutput!BX11,0) -> 0 | CA104: =IF(ISNUMBER(UDFOutput!BY11),UDFOutput!BY11,0) -> 0 | CB104: =IF(ISNUMBER(UDFOutput!BZ11),UDFOutput!BZ11,0) -> 0 | CC104: =IF(ISNUMBER(UDFOutput!CA11),UDFOutput!CA11,0) -> 0 | CD104: =IF(ISNUMBER(UDFOutput!CB11),UDFOutput!CB11,0) -> 0 | CE104: =IF(ISNUMBER(UDFOutput!CC11),UDFOutput!CC11,0) -> 0 | CF104: =IF(ISNUMBER(UDFOutput!CD11),UDFOutput!CD11,0) -> 0 | CG104: =IF(ISNUMBER(UDFOutput!CE11),UDFOutput!CE11,0) -> 0 | CH104: =IF(ISNUMBER(UDFOutput!CF11),UDFOutput!CF11,0) -> 0 | CI104: =IF(ISNUMBER(UDFOutput!CG11),UDFOutput!CG11,0) -> 0 | CJ104: =IF(ISNUMBER(UDFOutput!CH11),UDFOutput!CH11,0) -> 0 | CK104: =IF(ISNUMBER(UDFOutput!CI11),UDFOutput!CI11,0) -> 0 | CL104: =IF(ISNUMBER(UDFOutput!CJ11),UDFOutput!CJ11,0) -> 0 | CM104: =IF(ISNUMBER(UDFOutput!CK11),UDFOutput!CK11,0) -> 0 | CN104: =IF(ISNUMBER(UDFOutput!CL11),UDFOutput!CL11,0) -> 0 | CO104: =IF(ISNUMBER(UDFOutput!CM11),UDFOutput!CM11,0) -> 0 | CP104: =IF(ISNUMBER(UDFOutput!CN11),UDFOutput!CN11,0) -> 0 | CQ104: =IF(ISNUMBER(UDFOutput!CO11),UDFOutput!CO11,0) -> 0 | CR104: =IF(ISNUMBER(UDFOutput!CP11),UDFOutput!CP11,0) -> 0 | CS104: =IF(ISNUMBER(UDFOutput!CQ11),UDFOutput!CQ11,0) -> 0 | CT104: =IF(ISNUMBER(UDFOutput!CR11),UDFOutput!CR11,0) -> 0 | CU104: =IF(ISNUMBER(UDFOutput!CS11),UDFOutput!CS11,0) -> 0 | CV104: =IF(ISNUMBER(UDFOutput!CT11),UDFOutput!CT11,0) -> 0 | CW104: =IF(ISNUMBER(UDFOutput!CU11),UDFOutput!CU11,0) -> 0 | CX104: =IF(ISNUMBER(UDFOutput!CV11),UDFOutput!CV11,0) -> 0 | CY104: =IF(ISNUMBER(UDFOutput!CW11),UDFOutput!CW11,0) -> 0 | CZ104: =IF(ISNUMBER(UDFOutput!CX11),UDFOutput!CX11,0) -> 0 | DA104: =IF(ISNUMBER(UDFOutput!CY11),UDFOutput!CY11,0) -> 0 | DB104: =IF(ISNUMBER(UDFOutput!CZ11),UDFOutput!CZ11,0) -> 0 | DC104: =IF(ISNUMBER(UDFOutput!DA11),UDFOutput!DA11,0) -> 0 | DD104: =IF(ISNUMBER(UDFOutput!DB11),UDFOutput!DB11,0) -> 0 | DE104: =IF(ISNUMBER(UDFOutput!DC11),UDFOutput!DC11,0) -> 0 | DF104: =IF(ISNUMBER(UDFOutput!DD11),UDFOutput!DD11,0) -> 0 | DG104: =IF(ISNUMBER(UDFOutput!DE11),UDFOutput!DE11,0) -> 0 | DH104: =IF(ISNUMBER(UDFOutput!DF11),UDFOutput!DF11,0) -> 0 | DI104: =IF(ISNUMBER(UDFOutput!DG11),UDFOutput!DG11,0) -> 0 | DJ104: =IF(ISNUMBER(UDFOutput!DH11),UDFOutput!DH11,0) -> 0 | DK104: =IF(ISNUMBER(UDFOutput!DI11),UDFOutput!DI11,0) -> 0 | DL104: =IF(ISNUMBER(UDFOutput!DJ11),UDFOutput!DJ11,0) -> 0 | DM104: =IF(ISNUMBER(UDFOutput!DK11),UDFOutput!DK11,0) -> 0 | DN104: =IF(ISNUMBER(UDFOutput!DL11),UDFOutput!DL11,0) -> 0 | DO104: =IF(ISNUMBER(UDFOutput!DM11),UDFOutput!DM11,0) -> 0 | DP104: =IF(ISNUMBER(UDFOutput!DN11),UDFOutput!DN11,0) -> 0 | DQ104: =IF(ISNUMBER(UDFOutput!DO11),UDFOutput!DO11,0) -> 0 | DR104: =IF(ISNUMBER(UDFOutput!DP11),UDFOutput!DP11,0) -> 0 | DS104: =IF(ISNUMBER(UDFOutput!DQ11),UDFOutput!DQ11,0) -> 0 | DT104: =IF(ISNUMBER(UDFOutput!DR11),UDFOutput!DR11,0) -> 0 | DU104: =IF(ISNUMBER(UDFOutput!DS11),UDFOutput!DS11,0) -> 0 | DV104: =IF(ISNUMBER(UDFOutput!DT11),UDFOutput!DT11,0) -> 0 | DW104: =IF(ISNUMBER(UDFOutput!DU11),UDFOutput!DU11,0) -> 0 | DX104: =IF(ISNUMBER(UDFOutput!DV11),UDFOutput!DV11,0) -> 0 | DY104: =IF(ISNUMBER(UDFOutput!DW11),UDFOutput!DW11,0) -> 0 | DZ104: =IF(ISNUMBER(UDFOutput!DX11),UDFOutput!DX11,0) -> 0 | EA104: =IF(ISNUMBER(UDFOutput!DY11),UDFOutput!DY11,0) -> 0 | EB104: =IF(ISNUMBER(UDFOutput!DZ11),UDFOutput!DZ11,0) -> 0 | EC104: =IF(ISNUMBER(UDFOutput!EA11),UDFOutput!EA11,0) -> 0 | ED104: =IF(ISNUMBER(UDFOutput!EB11),UDFOutput!EB11,0) -> 0 | EE104: =IF(ISNUMBER(UDFOutput!EC11),UDFOutput!EC11,0) -> 0
C106: =D48 -> EIAF
E107: Opening | F107: EUR'000 | L107: =K110 -> 0 | M107: =L110 -> 0 | N107: 1851.607368 | O107: 4440.470174 | P107: 4471.384317 | Q107: 6215.0267 | R107: 6253.444718 | S107: 9717.220222 | T107: 13195.64262 | U107: 16688.77384 | V107: 16771.48106 | W107: 16854.53801 | X107: 16937.94618 | Y107: 18734.30456 | Z107: 19681.95988 | AA107: 19402.34232 | AB107: 19098.52726 | AC107: 18767.43196 | AD107: 18446.94802 | AE107: 18088.14889 | AF107: 17736.82936 | AG107: 17352.74458 | AH107: 16999.6768 | AI107: 16611.13167 | AJ107: 16229.94217 | AK107: 15814.20928 | AL107: 15404.34554 | AM107: 14958.24586 | AN107: 14517.38367 | AO107: 14037.59494 | AP107: 13564.29616 | AQ107: 13049.03305 | AR107: 12534.48399 | AS107: 11976.90631 | AT107: 11451.49235 | AU107: 10863.43038 | AV107: 10276.74484 | AW107: 9642.348094 | AX107: 9010.356302 | AY107: 8327.914863 | AZ107: 7642.65638 | BA107: 6904.217776 | BB107: 6163.609839 | BC107: 5366.506492 | BD107: 4565.784321 | BE107: 3705.143245 | BF107: 2841.51535 | BG107: 1940.635096 | BH107: 973.5563127 | BI107: -4.497629789e-07 | BJ107: -4.497629789e-07 | BK107: -4.497629789e-07 | BL107: -4.497629789e-07 | BM107: -4.497629789e-07 | BN107: -4.497629789e-07 | BO107: -4.497629789e-07 | BP107: -4.497629789e-07 | BQ107: -4.497629789e-07 | BR107: -4.497629789e-07 | BS107: -4.497629789e-07 | BT107: -4.497629789e-07 | BU107: -4.497629789e-07 | BV107: -4.497629789e-07 | BW107: -4.497629789e-07 | BX107: -4.497629789e-07 | BY107: =BX110 -> -4.497629789e-07 | BZ107: -4.497629789e-07 | CA107: -4.497629789e-07 | CB107: -4.497629789e-07 | CC107: -4.497629789e-07 | CD107: -4.497629789e-07 | CE107: -4.497629789e-07 | CF107: -4.497629789e-07 | CG107: -4.497629789e-07 | CH107: -4.497629789e-07 | CI107: -4.497629789e-07 | CJ107: -4.497629789e-07 | CK107: -4.497629789e-07 | CL107: -4.497629789e-07 | CM107: -4.497629789e-07 | CN107: -4.497629789e-07 | CO107: -4.497629789e-07 | CP107: -4.497629789e-07 | CQ107: -4.497629789e-07 | CR107: -4.497629789e-07 | CS107: -4.497629789e-07 | CT107: -4.497629789e-07 | CU107: -4.497629789e-07 | CV107: -4.497629789e-07 | CW107: -4.497629789e-07 | CX107: -4.497629789e-07 | CY107: -4.497629789e-07 | CZ107: -4.497629789e-07 | DA107: -4.497629789e-07 | DB107: -4.497629789e-07 | DC107: -4.497629789e-07 | DD107: -4.497629789e-07 | DE107: -4.497629789e-07 | DF107: -4.497629789e-07 | DG107: -4.497629789e-07 | DH107: -4.497629789e-07 | DI107: -4.497629789e-07 | DJ107: -4.497629789e-07 | DK107: -4.497629789e-07 | DL107: -4.497629789e-07 | DM107: -4.497629789e-07 | DN107: -4.497629789e-07 | DO107: -4.497629789e-07 | DP107: -4.497629789e-07 | DQ107: -4.497629789e-07 | DR107: -4.497629789e-07 | DS107: -4.497629789e-07 | DT107: -4.497629789e-07 | DU107: -4.497629789e-07 | DV107: -4.497629789e-07 | DW107: -4.497629789e-07 | DX107: -4.497629789e-07 | DY107: -4.497629789e-07 | DZ107: -4.497629789e-07 | EA107: -4.497629789e-07 | EB107: -4.497629789e-07 | EC107: -4.497629789e-07 | ED107: -4.497629789e-07 | EE107: -4.497629789e-07
E108: Add: Draws | F108: EUR'000 | L108: =L93 -> 0 | M108: =M93 -> 1851.607368 | N108: 2588.862806 | O108: 30.91414346 | P108: 1743.642382 | Q108: 38.41801829 | R108: 3463.775504 | S108: 3478.422396 | T108: 3493.131223 | U108: 82.70721749 | V108: 83.05695254 | W108: 83.40816647 | X108: 1796.358381 | Y108: 947.6553216 | Z108: 0 | AA108: 0 | AB108: 0 | AC108: 0 | AD108: 0 | AE108: 0 | AF108: 0 | AG108: 0 | AH108: 0 | AI108: 0 | AJ108: 0 | AK108: 0 | AL108: 0 | AM108: 0 | AN108: 0 | AO108: 0 | AP108: 0 | AQ108: 0 | AR108: 0 | AS108: 0 | AT108: 0 | AU108: 0 | AV108: 0 | AW108: 0 | AX108: 0 | AY108: 0 | AZ108: 0 | BA108: 0 | BB108: 0 | BC108: 0 | BD108: 0 | BE108: 0 | BF108: 0 | BG108: 0 | BH108: 0 | BI108: 0 | BJ108: 0 | BK108: 0 | BL108: 0 | BM108: 0 | BN108: 0 | BO108: 0 | BP108: 0 | BQ108: 0 | BR108: 0 | BS108: 0 | BT108: 0 | BU108: 0 | BV108: 0 | BW108: 0 | BX108: 0 | BY108: =BY93 -> 0 | BZ108: 0 | CA108: 0 | CB108: 0 | CC108: 0 | CD108: 0 | CE108: 0 | CF108: 0 | CG108: 0 | CH108: 0 | CI108: 0 | CJ108: 0 | CK108: 0 | CL108: 0 | CM108: 0 | CN108: 0 | CO108: 0 | CP108: 0 | CQ108: 0 | CR108: 0 | CS108: 0 | CT108: 0 | CU108: 0 | CV108: 0 | CW108: 0 | CX108: 0 | CY108: 0 | CZ108: 0 | DA108: 0 | DB108: 0 | DC108: 0 | DD108: 0 | DE108: 0 | DF108: 0 | DG108: 0 | DH108: 0 | DI108: 0 | DJ108: 0 | DK108: 0 | DL108: 0 | DM108: 0 | DN108: 0 | DO108: 0 | DP108: 0 | DQ108: 0 | DR108: 0 | DS108: 0 | DT108: 0 | DU108: 0 | DV108: 0 | DW108: 0 | DX108: 0 | DY108: 0 | DZ108: 0 | EA108: 0 | EB108: 0 | EC108: 0 | ED108: 0 | EE108: 0
E109: Less: Repayment | F109: EUR'000 | L109: =L101 -> 0 | M109: =M101 -> 0 | N109: 0 | O109: 0 | P109: 0 | Q109: 0 | R109: 0 | S109: 0 | T109: 0 | U109: 0 | V109: 0 | W109: 0 | X109: 0 | Y109: 0 | Z109: 279.6175638 | AA109: 303.8150568 | AB109: 331.0952983 | AC109: 320.4839368 | AD109: 358.799132 | AE109: 351.3195294 | AF109: 384.0847813 | AG109: 353.0677836 | AH109: 388.5451322 | AI109: 381.1894931 | AJ109: 415.7328903 | AK109: 409.8637413 | AL109: 446.0996764 | AM109: 440.8621976 | AN109: 479.7887293 | AO109: 473.2987814 | AP109: 515.2631058 | AQ109: 514.5490644 | AR109: 557.5776718 | AS109: 525.4139679 | AT109: 588.0619682 | AU109: 586.6855349 | AV109: 634.3967497 | AW109: 631.9917921 | AX109: 682.4414388 | AY109: 685.2584828 | AZ109: 738.4386041 | BA109: 740.6079374 | BB109: 797.1033467 | BC109: 800.7221712 | BD109: 860.6410759 | BE109: 863.6278947 | BF109: 900.8802547 | BG109: 967.0787829 | BH109: 973.5563131 | BI109: 0 | BJ109: 0 | BK109: 0 | BL109: 0 | BM109: 0 | BN109: 0 | BO109: 0 | BP109: 0 | BQ109: 0 | BR109: 0 | BS109: 0 | BT109: 0 | BU109: 0 | BV109: 0 | BW109: 0 | BX109: 0 | BY109: =BY101 -> 0 | BZ109: 0 | CA109: 0 | CB109: 0 | CC109: 0 | CD109: 0 | CE109: 0 | CF109: 0 | CG109: 0 | CH109: 0 | CI109: 0 | CJ109: 0 | CK109: 0 | CL109: 0 | CM109: 0 | CN109: 0 | CO109: 0 | CP109: 0 | CQ109: 0 | CR109: 0 | CS109: 0 | CT109: 0 | CU109: 0 | CV109: 0 | CW109: 0 | CX109: 0 | CY109: 0 | CZ109: 0 | DA109: 0 | DB109: 0 | DC109: 0 | DD109: 0 | DE109: 0 | DF109: 0 | DG109: 0 | DH109: 0 | DI109: 0 | DJ109: 0 | DK109: 0 | DL109: 0 | DM109: 0 | DN109: 0 | DO109: 0 | DP109: 0 | DQ109: 0 | DR109: 0 | DS109: 0 | DT109: 0 | DU109: 0 | DV109: 0 | DW109: 0 | DX109: 0 | DY109: 0 | DZ109: 0 | EA109: 0 | EB109: 0 | EC109: 0 | ED109: 0 | EE109: 0
E110: Closing | F110: EUR'000 | L110: =L107+L108-L109 -> 0 | M110: =M107+M108-M109 -> 1851.607368 | N110: 4440.470174 | O110: 4471.384317 | P110: 6215.0267 | Q110: 6253.444718 | R110: 9717.220222 | S110: 13195.64262 | T110: 16688.77384 | U110: 16771.48106 | V110: 16854.53801 | W110: 16937.94618 | X110: 18734.30456 | Y110: 19681.95988 | Z110: 19402.34232 | AA110: 19098.52726 | AB110: 18767.43196 | AC110: 18446.94802 | AD110: 18088.14889 | AE110: 17736.82936 | AF110: 17352.74458 | AG110: 16999.6768 | AH110: 16611.13167 | AI110: 16229.94217 | AJ110: 15814.20928 | AK110: 15404.34554 | AL110: 14958.24586 | AM110: 14517.38367 | AN110: 14037.59494 | AO110: 13564.29616 | AP110: 13049.03305 | AQ110: 12534.48399 | AR110: 11976.90631 | AS110: 11451.49235 | AT110: 10863.43038 | AU110: 10276.74484 | AV110: 9642.348094 | AW110: 9010.356302 | AX110: 8327.914863 | AY110: 7642.65638 | AZ110: 6904.217776 | BA110: 6163.609839 | BB110: 5366.506492 | BC110: 4565.784321 | BD110: 3705.143245 | BE110: 2841.51535 | BF110: 1940.635096 | BG110: 973.5563127 | BH110: -4.497629789e-07 | BI110: -4.497629789e-07 | BJ110: -4.497629789e-07 | BK110: -4.497629789e-07 | BL110: -4.497629789e-07 | BM110: -4.497629789e-07 | BN110: -4.497629789e-07 | BO110: -4.497629789e-07 | BP110: -4.497629789e-07 | BQ110: -4.497629789e-07 | BR110: -4.497629789e-07 | BS110: -4.497629789e-07 | BT110: -4.497629789e-07 | BU110: -4.497629789e-07 | BV110: -4.497629789e-07 | BW110: -4.497629789e-07 | BX110: -4.497629789e-07 | BY110: =BY107+BY108-BY109 -> -4.497629789e-07 | BZ110: -4.497629789e-07 | CA110: -4.497629789e-07 | CB110: -4.497629789e-07 | CC110: -4.497629789e-07 | CD110: -4.497629789e-07 | CE110: -4.497629789e-07 | CF110: -4.497629789e-07 | CG110: -4.497629789e-07 | CH110: -4.497629789e-07 | CI110: -4.497629789e-07 | CJ110: -4.497629789e-07 | CK110: -4.497629789e-07 | CL110: -4.497629789e-07 | CM110: -4.497629789e-07 | CN110: -4.497629789e-07 | CO110: -4.497629789e-07 | CP110: -4.497629789e-07 | CQ110: -4.497629789e-07 | CR110: -4.497629789e-07 | CS110: -4.497629789e-07 | CT110: -4.497629789e-07 | CU110: -4.497629789e-07 | CV110: -4.497629789e-07 | CW110: -4.497629789e-07 | CX110: -4.497629789e-07 | CY110: -4.497629789e-07 | CZ110: -4.497629789e-07 | DA110: -4.497629789e-07 | DB110: -4.497629789e-07 | DC110: -4.497629789e-07 | DD110: -4.497629789e-07 | DE110: -4.497629789e-07 | DF110: -4.497629789e-07 | DG110: -4.497629789e-07 | DH110: -4.497629789e-07 | DI110: -4.497629789e-07 | DJ110: -4.497629789e-07 | DK110: -4.497629789e-07 | DL110: -4.497629789e-07 | DM110: -4.497629789e-07 | DN110: -4.497629789e-07 | DO110: -4.497629789e-07 | DP110: -4.497629789e-07 | DQ110: -4.497629789e-07 | DR110: -4.497629789e-07 | DS110: -4.497629789e-07 | DT110: -4.497629789e-07 | DU110: -4.497629789e-07 | DV110: -4.497629789e-07 | DW110: -4.497629789e-07 | DX110: -4.497629789e-07 | DY110: -4.497629789e-07 | DZ110: -4.497629789e-07 | EA110: -4.497629789e-07 | EB110: -4.497629789e-07 | EC110: -4.497629789e-07 | ED110: -4.497629789e-07 | EE110: -4.497629789e-07
E112: Interest Rate | F112: % p.p. | L112: =LOOKUP(L$8,'InputS- Structure'!$14:$14,'InputS- Structure'!56:56)/12*L3 -> 0.006404556361 | M112: =LOOKUP(M$8,'InputS- Structure'!$14:$14,'InputS- Structure'!56:56)/12*M3 -> 0.006404556361 | N112: =LOOKUP(N$8,'InputS- Structure'!$14:$14,'InputS- Structure'!56:56)/12*N3 -> 0.006404556361 | O112: =LOOKUP(O$8,'InputS- Structure'!$14:$14,'InputS- Structure'!56:56)/12*O3 -> 0.006404556361 | P112: =LOOKUP(P$8,'InputS- Structure'!$14:$14,'InputS- Structure'!56:56)/12*P3 -> 0.006404556361 | Q112: =LOOKUP(Q$8,'InputS- Structure'!$14:$14,'InputS- Structure'!56:56)/12*Q3 -> 0.006404556361 | R112: =LOOKUP(R$8,'InputS- Structure'!$14:$14,'InputS- Structure'!56:56)/12*R3 -> 0.006404556361 | S112: =LOOKUP(S$8,'InputS- Structure'!$14:$14,'InputS- Structure'!56:56)/12*S3 -> 0.006404556361 | T112: =LOOKUP(T$8,'InputS- Structure'!$14:$14,'InputS- Structure'!56:56)/12*T3 -> 0.006404556361 | U112: =LOOKUP(U$8,'InputS- Structure'!$14:$14,'InputS- Structure'!56:56)/12*U3 -> 0.006404556361 | V112: =LOOKUP(V$8,'InputS- Structure'!$14:$14,'InputS- Structure'!56:56)/12*V3 -> 0.006404556361 | W112: =LOOKUP(W$8,'InputS- Structure'!$14:$14,'InputS- Structure'!56:56)/12*W3 -> 0.006404556361 | X112: =LOOKUP(X$8,'InputS- Structure'!$14:$14,'InputS- Structure'!56:56)/12*X3 -> 0.006404556361 | Y112: =LOOKUP(Y$8,'InputS- Structure'!$14:$14,'InputS- Structure'!56:56)/12*Y3 -> 0.006404556361 | Z112: =LOOKUP(Z$8,'InputS- Structure'!$14:$14,'InputS- Structure'!56:56)/12*Z3 -> 0.03842733817 | AA112: =LOOKUP(AA$8,'InputS- Structure'!$14:$14,'InputS- Structure'!56:56)/12*AA3 -> 0.03773399227 | AB112: =LOOKUP(AB$8,'InputS- Structure'!$14:$14,'InputS- Structure'!56:56)/12*AB3 -> 0.03839257695 | AC112: =LOOKUP(AC$8,'InputS- Structure'!$14:$14,'InputS- Structure'!56:56)/12*AC3 -> 0.03779939752 | AD112: =LOOKUP(AD$8,'InputS- Structure'!$14:$14,'InputS- Structure'!56:56)/12*AD3 -> 0.03845250315 | AE112: =LOOKUP(AE$8,'InputS- Structure'!$14:$14,'InputS- Structure'!56:56)/12*AE3 -> 0.03785172732 | AF112: =LOOKUP(AF$8,'InputS- Structure'!$14:$14,'InputS- Structure'!56:56)/12*AF3 -> 0.03850563926 | AG112: =LOOKUP(AG$8,'InputS- Structure'!$14:$14,'InputS- Structure'!56:56)/12*AG3 -> 0.03811348206 | AH112: =LOOKUP(AH$8,'InputS- Structure'!$14:$14,'InputS- Structure'!56:56)/12*AH3 -> 0.03853564108 | AI112: =LOOKUP(AI$8,'InputS- Structure'!$14:$14,'InputS- Structure'!56:56)/12*AI3 -> 0.03791057078 | AJ112: =LOOKUP(AJ$8,'InputS- Structure'!$14:$14,'InputS- Structure'!56:56)/12*AJ3 -> 0.03858527498 | AK112: =LOOKUP(AK$8,'InputS- Structure'!$14:$14,'InputS- Structure'!56:56)/12*AK3 -> 0.03800224185 | AL112: =LOOKUP(AL$8,'InputS- Structure'!$14:$14,'InputS- Structure'!56:56)/12*AL3 -> 0.03868833061 | AM112: =LOOKUP(AM$8,'InputS- Structure'!$14:$14,'InputS- Structure'!56:56)/12*AM3 -> 0.03811364456 | AN112: =LOOKUP(AN$8,'InputS- Structure'!$14:$14,'InputS- Structure'!56:56)/12*AN3 -> 0.0387453035 | AO112: =LOOKUP(AO$8,'InputS- Structure'!$14:$14,'InputS- Structure'!56:56)/12*AO3 -> 0.03832410125 | AP112: =LOOKUP(AP$8,'InputS- Structure'!$14:$14,'InputS- Structure'!56:56)/12*AP3 -> 0.03874524522 | AQ112: =LOOKUP(AQ$8,'InputS- Structure'!$14:$14,'InputS- Structure'!56:56)/12*AQ3 -> 0.03811352927 | AR112: =LOOKUP(AR$8,'InputS- Structure'!$14:$14,'InputS- Structure'!56:56)/12*AR3 -> 0.03874524522 | AS112: =LOOKUP(AS$8,'InputS- Structure'!$14:$14,'InputS- Structure'!56:56)/12*AS3 -> 0.03811352927 | AT112: =LOOKUP(AT$8,'InputS- Structure'!$14:$14,'InputS- Structure'!56:56)/12*AT3 -> 0.03874524522 | AU112: =LOOKUP(AU$8,'InputS- Structure'!$14:$14,'InputS- Structure'!56:56)/12*AU3 -> 0.03811352927 | AV112: =LOOKUP(AV$8,'InputS- Structure'!$14:$14,'InputS- Structure'!56:56)/12*AV3 -> 0.03874524522 | AW112: =LOOKUP(AW$8,'InputS- Structure'!$14:$14,'InputS- Structure'!56:56)/12*AW3 -> 0.03832410125 | AX112: =LOOKUP(AX$8,'InputS- Structure'!$14:$14,'InputS- Structure'!56:56)/12*AX3 -> 0.03874524522 | AY112: =LOOKUP(AY$8,'InputS- Structure'!$14:$14,'InputS- Structure'!56:56)/12*AY3 -> 0.03811352927 | AZ112: =LOOKUP(AZ$8,'InputS- Structure'!$14:$14,'InputS- Structure'!56:56)/12*AZ3 -> 0.03874524522 | BA112: =LOOKUP(BA$8,'InputS- Structure'!$14:$14,'InputS- Structure'!56:56)/12*BA3 -> 0.03811352927 | BB112: =LOOKUP(BB$8,'InputS- Structure'!$14:$14,'InputS- Structure'!56:56)/12*BB3 -> 0.03874524522 | BC112: =LOOKUP(BC$8,'InputS- Structure'!$14:$14,'InputS- Structure'!56:56)/12*BC3 -> 0.03811352927 | BD112: =LOOKUP(BD$8,'InputS- Structure'!$14:$14,'InputS- Structure'!56:56)/12*BD3 -> 0.03874524522 | BE112: =LOOKUP(BE$8,'InputS- Structure'!$14:$14,'InputS- Structure'!56:56)/12*BE3 -> 0.03874524522 | BF112: =LOOKUP(BF$8,'InputS- Structure'!$14:$14,'InputS- Structure'!56:56)/12*BF3 -> 0.03874524522 | BG112: =LOOKUP(BG$8,'InputS- Structure'!$14:$14,'InputS- Structure'!56:56)/12*BG3 -> 0.03874524522 | BH112: =LOOKUP(BH$8,'InputS- Structure'!$14:$14,'InputS- Structure'!56:56)/12*BH3 -> 0.03874524522 | BI112: =LOOKUP(BI$8,'InputS- Structure'!$14:$14,'InputS- Structure'!56:56)/12*BI3 -> 0.03874524522 | BJ112: =LOOKUP(BJ$8,'InputS- Structure'!$14:$14,'InputS- Structure'!56:56)/12*BJ3 -> 0.03874524522 | BK112: =LOOKUP(BK$8,'InputS- Structure'!$14:$14,'InputS- Structure'!56:56)/12*BK3 -> 0.03874524522 | BL112: =LOOKUP(BL$8,'InputS- Structure'!$14:$14,'InputS- Structure'!56:56)/12*BL3 -> 0.03874524522 | BM112: =LOOKUP(BM$8,'InputS- Structure'!$14:$14,'InputS- Structure'!56:56)/12*BM3 -> 0.03874524522 | BN112: =LOOKUP(BN$8,'InputS- Structure'!$14:$14,'InputS- Structure'!56:56)/12*BN3 -> 0.03874524522 | BO112: =LOOKUP(BO$8,'InputS- Structure'!$14:$14,'InputS- Structure'!56:56)/12*BO3 -> 0.03874524522 | BP112: =LOOKUP(BP$8,'InputS- Structure'!$14:$14,'InputS- Structure'!56:56)/12*BP3 -> 0.03874524522 | BQ112: =LOOKUP(BQ$8,'InputS- Structure'!$14:$14,'InputS- Structure'!56:56)/12*BQ3 -> 0.03874524522 | BR112: =LOOKUP(BR$8,'InputS- Structure'!$14:$14,'InputS- Structure'!56:56)/12*BR3 -> 0.03874524522 | BS112: =LOOKUP(BS$8,'InputS- Structure'!$14:$14,'InputS- Structure'!56:56)/12*BS3 -> 0.03874524522 | BT112: =LOOKUP(BT$8,'InputS- Structure'!$14:$14,'InputS- Structure'!56:56)/12*BT3 -> 0.03874524522 | BU112: =LOOKUP(BU$8,'InputS- Structure'!$14:$14,'InputS- Structure'!56:56)/12*BU3 -> 0.03874524522 | BV112: =LOOKUP(BV$8,'InputS- Structure'!$14:$14,'InputS- Structure'!56:56)/12*BV3 -> 0.03874524522 | BW112: =LOOKUP(BW$8,'InputS- Structure'!$14:$14,'InputS- Structure'!56:56)/12*BW3 -> 0.03874524522 | BX112: =LOOKUP(BX$8,'InputS- Structure'!$14:$14,'InputS- Structure'!56:56)/12*BX3 -> 0.03874524522 | BY112: =LOOKUP(BY$8,'InputS- Structure'!$14:$14,'InputS- Structure'!56:56)/12*BY3 -> 0.03874524522 | BZ112: =LOOKUP(BZ$8,'InputS- Structure'!$14:$14,'InputS- Structure'!56:56)/12*BZ3 -> 0.03874524522 | CA112: =LOOKUP(CA$8,'InputS- Structure'!$14:$14,'InputS- Structure'!56:56)/12*CA3 -> 0.03874524522 | CB112: =LOOKUP(CB$8,'InputS- Structure'!$14:$14,'InputS- Structure'!56:56)/12*CB3 -> 0.03874524522 | CC112: =LOOKUP(CC$8,'InputS- Structure'!$14:$14,'InputS- Structure'!56:56)/12*CC3 -> 0.03874524522 | CD112: =LOOKUP(CD$8,'InputS- Structure'!$14:$14,'InputS- Structure'!56:56)/12*CD3 -> 0.03874524522 | CE112: =LOOKUP(CE$8,'InputS- Structure'!$14:$14,'InputS- Structure'!56:56)/12*CE3 -> 0.03874524522 | CF112: =LOOKUP(CF$8,'InputS- Structure'!$14:$14,'InputS- Structure'!56:56)/12*CF3 -> 0.03874524522 | CG112: =LOOKUP(CG$8,'InputS- Structure'!$14:$14,'InputS- Structure'!56:56)/12*CG3 -> 0.03874524522 | CH112: =LOOKUP(CH$8,'InputS- Structure'!$14:$14,'InputS- Structure'!56:56)/12*CH3 -> 0.03874524522 | CI112: =LOOKUP(CI$8,'InputS- Structure'!$14:$14,'InputS- Structure'!56:56)/12*CI3 -> 0.03874524522 | CJ112: =LOOKUP(CJ$8,'InputS- Structure'!$14:$14,'InputS- Structure'!56:56)/12*CJ3 -> 0.03874524522 | CK112: =LOOKUP(CK$8,'InputS- Structure'!$14:$14,'InputS- Structure'!56:56)/12*CK3 -> 0.03874524522 | CL112: =LOOKUP(CL$8,'InputS- Structure'!$14:$14,'InputS- Structure'!56:56)/12*CL3 -> 0.03874524522 | CM112: =LOOKUP(CM$8,'InputS- Structure'!$14:$14,'InputS- Structure'!56:56)/12*CM3 -> 0.03874524522 | CN112: =LOOKUP(CN$8,'InputS- Structure'!$14:$14,'InputS- Structure'!56:56)/12*CN3 -> 0.03874524522 | CO112: =LOOKUP(CO$8,'InputS- Structure'!$14:$14,'InputS- Structure'!56:56)/12*CO3 -> 0.03874524522 | CP112: =LOOKUP(CP$8,'InputS- Structure'!$14:$14,'InputS- Structure'!56:56)/12*CP3 -> 0.03874524522 | CQ112: =LOOKUP(CQ$8,'InputS- Structure'!$14:$14,'InputS- Structure'!56:56)/12*CQ3 -> 0.03874524522 | CR112: =LOOKUP(CR$8,'InputS- Structure'!$14:$14,'InputS- Structure'!56:56)/12*CR3 -> 0.03874524522 | CS112: =LOOKUP(CS$8,'InputS- Structure'!$14:$14,'InputS- Structure'!56:56)/12*CS3 -> 0.03874524522 | CT112: =LOOKUP(CT$8,'InputS- Structure'!$14:$14,'InputS- Structure'!56:56)/12*CT3 -> 0.03874524522 | CU112: =LOOKUP(CU$8,'InputS- Structure'!$14:$14,'InputS- Structure'!56:56)/12*CU3 -> 0.03874524522 | CV112: =LOOKUP(CV$8,'InputS- Structure'!$14:$14,'InputS- Structure'!56:56)/12*CV3 -> 0.03874524522 | CW112: =LOOKUP(CW$8,'InputS- Structure'!$14:$14,'InputS- Structure'!56:56)/12*CW3 -> 0.03874524522 | CX112: =LOOKUP(CX$8,'InputS- Structure'!$14:$14,'InputS- Structure'!56:56)/12*CX3 -> 0.03874524522 | CY112: =LOOKUP(CY$8,'InputS- Structure'!$14:$14,'InputS- Structure'!56:56)/12*CY3 -> 0.03874524522 | CZ112: =LOOKUP(CZ$8,'InputS- Structure'!$14:$14,'InputS- Structure'!56:56)/12*CZ3 -> 0.03874524522 | DA112: =LOOKUP(DA$8,'InputS- Structure'!$14:$14,'InputS- Structure'!56:56)/12*DA3 -> 0.03874524522 | DB112: =LOOKUP(DB$8,'InputS- Structure'!$14:$14,'InputS- Structure'!56:56)/12*DB3 -> 0.03874524522 | DC112: =LOOKUP(DC$8,'InputS- Structure'!$14:$14,'InputS- Structure'!56:56)/12*DC3 -> 0.03874524522 | DD112: =LOOKUP(DD$8,'InputS- Structure'!$14:$14,'InputS- Structure'!56:56)/12*DD3 -> 0.03874524522 | DE112: =LOOKUP(DE$8,'InputS- Structure'!$14:$14,'InputS- Structure'!56:56)/12*DE3 -> 0.03874524522 | DF112: =LOOKUP(DF$8,'InputS- Structure'!$14:$14,'InputS- Structure'!56:56)/12*DF3 -> 0.03874524522 | DG112: =LOOKUP(DG$8,'InputS- Structure'!$14:$14,'InputS- Structure'!56:56)/12*DG3 -> 0.03874524522 | DH112: =LOOKUP(DH$8,'InputS- Structure'!$14:$14,'InputS- Structure'!56:56)/12*DH3 -> 0.03874524522 | DI112: =LOOKUP(DI$8,'InputS- Structure'!$14:$14,'InputS- Structure'!56:56)/12*DI3 -> 0.03874524522 | DJ112: =LOOKUP(DJ$8,'InputS- Structure'!$14:$14,'InputS- Structure'!56:56)/12*DJ3 -> 0.03874524522 | DK112: =LOOKUP(DK$8,'InputS- Structure'!$14:$14,'InputS- Structure'!56:56)/12*DK3 -> 0.03874524522 | DL112: =LOOKUP(DL$8,'InputS- Structure'!$14:$14,'InputS- Structure'!56:56)/12*DL3 -> 0.03874524522 | DM112: =LOOKUP(DM$8,'InputS- Structure'!$14:$14,'InputS- Structure'!56:56)/12*DM3 -> 0.03874524522 | DN112: =LOOKUP(DN$8,'InputS- Structure'!$14:$14,'InputS- Structure'!56:56)/12*DN3 -> 0.03874524522 | DO112: =LOOKUP(DO$8,'InputS- Structure'!$14:$14,'InputS- Structure'!56:56)/12*DO3 -> 0.03874524522 | DP112: =LOOKUP(DP$8,'InputS- Structure'!$14:$14,'InputS- Structure'!56:56)/12*DP3 -> 0.03874524522 | DQ112: =LOOKUP(DQ$8,'InputS- Structure'!$14:$14,'InputS- Structure'!56:56)/12*DQ3 -> 0.03874524522 | DR112: =LOOKUP(DR$8,'InputS- Structure'!$14:$14,'InputS- Structure'!56:56)/12*DR3 -> 0.03874524522 | DS112: =LOOKUP(DS$8,'InputS- Structure'!$14:$14,'InputS- Structure'!56:56)/12*DS3 -> 0.03874524522 | DT112: =LOOKUP(DT$8,'InputS- Structure'!$14:$14,'InputS- Structure'!56:56)/12*DT3 -> 0.03874524522 | DU112: =LOOKUP(DU$8,'InputS- Structure'!$14:$14,'InputS- Structure'!56:56)/12*DU3 -> 0.03874524522 | DV112: =LOOKUP(DV$8,'InputS- Structure'!$14:$14,'InputS- Structure'!56:56)/12*DV3 -> 0.03874524522 | DW112: =LOOKUP(DW$8,'InputS- Structure'!$14:$14,'InputS- Structure'!56:56)/12*DW3 -> 0.03874524522 | DX112: =LOOKUP(DX$8,'InputS- Structure'!$14:$14,'InputS- Structure'!56:56)/12*DX3 -> 0.03874524522 | DY112: =LOOKUP(DY$8,'InputS- Structure'!$14:$14,'InputS- Structure'!56:56)/12*DY3 -> 0.03874524522 | DZ112: =LOOKUP(DZ$8,'InputS- Structure'!$14:$14,'InputS- Structure'!56:56)/12*DZ3 -> 0.03874524522 | EA112: =LOOKUP(EA$8,'InputS- Structure'!$14:$14,'InputS- Structure'!56:56)/12*EA3 -> 0.03874524522 | EB112: =LOOKUP(EB$8,'InputS- Structure'!$14:$14,'InputS- Structure'!56:56)/12*EB3 -> 0.03874524522 | EC112: =LOOKUP(EC$8,'InputS- Structure'!$14:$14,'InputS- Structure'!56:56)/12*EC3 -> 0.03874524522 | ED112: =LOOKUP(ED$8,'InputS- Structure'!$14:$14,'InputS- Structure'!56:56)/12*ED3 -> 0.03874524522 | EE112: =LOOKUP(EE$8,'InputS- Structure'!$14:$14,'InputS- Structure'!56:56)/12*EE3 -> 0.03874524522
E113: Interest Cost | F113: EUR'000 | L113: =L112*L107 -> 0 | M113: =M112*M107 -> 0 | N113: 11.85872375 | O113: 28.4392415 | P113: 28.63723287 | Q113: 39.80448878 | R113: 40.05053915 | S113: 62.23448458 | T113: 84.51223686 | U113: 106.8841927 | V113: 107.4138957 | W113: 107.9458386 | X113: 108.4800309 | Y113: 119.9849094 | Z113: 756.3253281 | AA113: 732.127835 | AB113: 733.2416774 | AC113: 709.3976211 | AD113: 709.3313271 | AE113: 684.6676795 | AF113: 682.967953 | AG113: 661.3735193 | AH113: 655.0934436 | AI113: 629.7374827 | AJ113: 626.2367817 | AK113: 600.9754058 | AL113: 595.9684132 | AM113: 570.1132662 | AN113: 562.4804363 | AO113: 537.9782098 | AP113: 525.5519809 | AQ113: 497.3447031 | AR113: 485.6516558 | AS113: 456.4821694 | AT113: 443.6908792 | AU113: 414.0436717 | AV113: 398.1749991 | AW113: 369.5343247 | AX113: 349.1084645 | AY113: 317.4062269 | AZ113: 296.1165956 | BA113: 263.1441063 | BB113: 238.8105747 | BC113: 204.5365023 | BD113: 176.9024331 | BE113: 143.5566836 | BF113: 110.0952091 | BG113: 75.19038267 | BH113: 37.72067807 | BI113: -1.742617691e-08 | BJ113: -1.742617691e-08 | BK113: -1.742617691e-08 | BL113: -1.742617691e-08 | BM113: -1.742617691e-08 | BN113: -1.742617691e-08 | BO113: -1.742617691e-08 | BP113: -1.742617691e-08 | BQ113: -1.742617691e-08 | BR113: -1.742617691e-08 | BS113: -1.742617691e-08 | BT113: -1.742617691e-08 | BU113: -1.742617691e-08 | BV113: -1.742617691e-08 | BW113: -1.742617691e-08 | BX113: -1.742617691e-08 | BY113: =BY112*BY107 -> -1.742617691e-08 | BZ113: -1.742617691e-08 | CA113: -1.742617691e-08 | CB113: -1.742617691e-08 | CC113: -1.742617691e-08 | CD113: -1.742617691e-08 | CE113: -1.742617691e-08 | CF113: -1.742617691e-08 | CG113: -1.742617691e-08 | CH113: -1.742617691e-08 | CI113: -1.742617691e-08 | CJ113: -1.742617691e-08 | CK113: -1.742617691e-08 | CL113: -1.742617691e-08 | CM113: -1.742617691e-08 | CN113: -1.742617691e-08 | CO113: -1.742617691e-08 | CP113: -1.742617691e-08 | CQ113: -1.742617691e-08 | CR113: -1.742617691e-08 | CS113: -1.742617691e-08 | CT113: -1.742617691e-08 | CU113: -1.742617691e-08 | CV113: -1.742617691e-08 | CW113: -1.742617691e-08 | CX113: -1.742617691e-08 | CY113: -1.742617691e-08 | CZ113: -1.742617691e-08 | DA113: -1.742617691e-08 | DB113: -1.742617691e-08 | DC113: -1.742617691e-08 | DD113: -1.742617691e-08 | DE113: -1.742617691e-08 | DF113: -1.742617691e-08 | DG113: -1.742617691e-08 | DH113: -1.742617691e-08 | DI113: -1.742617691e-08 | DJ113: -1.742617691e-08 | DK113: -1.742617691e-08 | DL113: -1.742617691e-08 | DM113: -1.742617691e-08 | DN113: -1.742617691e-08 | DO113: -1.742617691e-08 | DP113: -1.742617691e-08 | DQ113: -1.742617691e-08 | DR113: -1.742617691e-08 | DS113: -1.742617691e-08 | DT113: -1.742617691e-08 | DU113: -1.742617691e-08 | DV113: -1.742617691e-08 | DW113: -1.742617691e-08 | DX113: -1.742617691e-08 | DY113: -1.742617691e-08 | DZ113: -1.742617691e-08 | EA113: -1.742617691e-08 | EB113: -1.742617691e-08 | EC113: -1.742617691e-08 | ED113: -1.742617691e-08 | EE113: -1.742617691e-08
E114: Interest During Construction | F114: EUR'000 | L114: =L113*L6 -> 0 | M114: =M113*M6 -> 0 | N114: 11.85872375 | O114: 28.4392415 | P114: 28.63723287 | Q114: 39.80448878 | R114: 40.05053915 | S114: 62.23448458 | T114: 84.51223686 | U114: 106.8841927 | V114: 107.4138957 | W114: 107.9458386 | X114: 108.4800309 | Y114: 119.9849094 | Z114: 0 | AA114: 0 | AB114: 0 | AC114: 0 | AD114: 0 | AE114: 0 | AF114: 0 | AG114: 0 | AH114: 0 | AI114: 0 | AJ114: 0 | AK114: 0 | AL114: 0 | AM114: 0 | AN114: 0 | AO114: 0 | AP114: 0 | AQ114: 0 | AR114: 0 | AS114: 0 | AT114: 0 | AU114: 0 | AV114: 0 | AW114: 0 | AX114: 0 | AY114: 0 | AZ114: 0 | BA114: 0 | BB114: 0 | BC114: 0 | BD114: 0 | BE114: 0 | BF114: 0 | BG114: 0 | BH114: 0 | BI114: 0 | BJ114: 0 | BK114: 0 | BL114: 0 | BM114: 0 | BN114: 0 | BO114: 0 | BP114: 0 | BQ114: 0 | BR114: 0 | BS114: 0 | BT114: 0 | BU114: 0 | BV114: 0 | BW114: 0 | BX114: 0 | BY114: =BY113*BY6 -> 0 | BZ114: 0 | CA114: 0 | CB114: 0 | CC114: 0 | CD114: 0 | CE114: 0 | CF114: 0 | CG114: 0 | CH114: 0 | CI114: 0 | CJ114: 0 | CK114: 0 | CL114: 0 | CM114: 0 | CN114: 0 | CO114: 0 | CP114: 0 | CQ114: 0 | CR114: 0 | CS114: 0 | CT114: 0 | CU114: 0 | CV114: 0 | CW114: 0 | CX114: 0 | CY114: 0 | CZ114: 0 | DA114: 0 | DB114: 0 | DC114: 0 | DD114: 0 | DE114: 0 | DF114: 0 | DG114: 0 | DH114: 0 | DI114: 0 | DJ114: 0 | DK114: 0 | DL114: 0 | DM114: 0 | DN114: 0 | DO114: 0 | DP114: 0 | DQ114: 0 | DR114: 0 | DS114: 0 | DT114: 0 | DU114: 0 | DV114: 0 | DW114: 0 | DX114: 0 | DY114: 0 | DZ114: 0 | EA114: 0 | EB114: 0 | EC114: 0 | ED114: 0 | EE114: 0
E115: Interest Expense | F115: EUR'000 | L115: =L113-L114 -> 0 | M115: =M113-M114 -> 0 | N115: 0 | O115: 0 | P115: 0 | Q115: 0 | R115: 0 | S115: 0 | T115: 0 | U115: 0 | V115: 0 | W115: 0 | X115: 0 | Y115: 0 | Z115: 756.3253281 | AA115: 732.127835 | AB115: 733.2416774 | AC115: 709.3976211 | AD115: 709.3313271 | AE115: 684.6676795 | AF115: 682.967953 | AG115: 661.3735193 | AH115: 655.0934436 | AI115: 629.7374827 | AJ115: 626.2367817 | AK115: 600.9754058 | AL115: 595.9684132 | AM115: 570.1132662 | AN115: 562.4804363 | AO115: 537.9782098 | AP115: 525.5519809 | AQ115: 497.3447031 | AR115: 485.6516558 | AS115: 456.4821694 | AT115: 443.6908792 | AU115: 414.0436717 | AV115: 398.1749991 | AW115: 369.5343247 | AX115: 349.1084645 | AY115: 317.4062269 | AZ115: 296.1165956 | BA115: 263.1441063 | BB115: 238.8105747 | BC115: 204.5365023 | BD115: 176.9024331 | BE115: 143.5566836 | BF115: 110.0952091 | BG115: 75.19038267 | BH115: 37.72067807 | BI115: -1.742617691e-08 | BJ115: -1.742617691e-08 | BK115: -1.742617691e-08 | BL115: -1.742617691e-08 | BM115: -1.742617691e-08 | BN115: -1.742617691e-08 | BO115: -1.742617691e-08 | BP115: -1.742617691e-08 | BQ115: -1.742617691e-08 | BR115: -1.742617691e-08 | BS115: -1.742617691e-08 | BT115: -1.742617691e-08 | BU115: -1.742617691e-08 | BV115: -1.742617691e-08 | BW115: -1.742617691e-08 | BX115: -1.742617691e-08 | BY115: =BY113-BY114 -> -1.742617691e-08 | BZ115: -1.742617691e-08 | CA115: -1.742617691e-08 | CB115: -1.742617691e-08 | CC115: -1.742617691e-08 | CD115: -1.742617691e-08 | CE115: -1.742617691e-08 | CF115: -1.742617691e-08 | CG115: -1.742617691e-08 | CH115: -1.742617691e-08 | CI115: -1.742617691e-08 | CJ115: -1.742617691e-08 | CK115: -1.742617691e-08 | CL115: -1.742617691e-08 | CM115: -1.742617691e-08 | CN115: -1.742617691e-08 | CO115: -1.742617691e-08 | CP115: -1.742617691e-08 | CQ115: -1.742617691e-08 | CR115: -1.742617691e-08 | CS115: -1.742617691e-08 | CT115: -1.742617691e-08 | CU115: -1.742617691e-08 | CV115: -1.742617691e-08 | CW115: -1.742617691e-08 | CX115: -1.742617691e-08 | CY115: -1.742617691e-08 | CZ115: -1.742617691e-08 | DA115: -1.742617691e-08 | DB115: -1.742617691e-08 | DC115: -1.742617691e-08 | DD115: -1.742617691e-08 | DE115: -1.742617691e-08 | DF115: -1.742617691e-08 | DG115: -1.742617691e-08 | DH115: -1.742617691e-08 | DI115: -1.742617691e-08 | DJ115: -1.742617691e-08 | DK115: -1.742617691e-08 | DL115: -1.742617691e-08 | DM115: -1.742617691e-08 | DN115: -1.742617691e-08 | DO115: -1.742617691e-08 | DP115: -1.742617691e-08 | DQ115: -1.742617691e-08 | DR115: -1.742617691e-08 | DS115: -1.742617691e-08 | DT115: -1.742617691e-08 | DU115: -1.742617691e-08 | DV115: -1.742617691e-08 | DW115: -1.742617691e-08 | DX115: -1.742617691e-08 | DY115: -1.742617691e-08 | DZ115: -1.742617691e-08 | EA115: -1.742617691e-08 | EB115: -1.742617691e-08 | EC115: -1.742617691e-08 | ED115: -1.742617691e-08 | EE115: -1.742617691e-08
E117: Up-Front Fee | F117: EUR'000 | G117: % | H117: ='InputC - Structure'!G55 -> 0.01 | I117: =H48 -> 19681.95988 | L117: =$H117*$I117*L$99 -> 196.8195988 | M117: =$H117*$I117*M$99 -> 0 | N117: 0 | O117: 0 | P117: 0 | Q117: 0 | R117: 0 | S117: 0 | T117: 0 | U117: 0 | V117: 0 | W117: 0 | X117: 0 | Y117: 0 | Z117: 0 | AA117: 0 | AB117: 0 | AC117: 0 | AD117: 0 | AE117: 0 | AF117: 0 | AG117: 0 | AH117: 0 | AI117: 0 | AJ117: 0 | AK117: 0 | AL117: 0 | AM117: 0 | AN117: 0 | AO117: 0 | AP117: 0 | AQ117: 0 | AR117: 0 | AS117: 0 | AT117: 0 | AU117: 0 | AV117: 0 | AW117: 0 | AX117: 0 | AY117: 0 | AZ117: 0 | BA117: 0 | BB117: 0 | BC117: 0 | BD117: 0 | BE117: 0 | BF117: 0 | BG117: 0 | BH117: 0 | BI117: 0 | BJ117: 0 | BK117: 0 | BL117: 0 | BM117: 0 | BN117: 0 | BO117: 0 | BP117: 0 | BQ117: 0 | BR117: 0 | BS117: 0 | BT117: 0 | BU117: 0 | BV117: 0 | BW117: 0 | BX117: 0 | BY117: =$H117*$I117*BY$99 -> 0 | BZ117: 0 | CA117: 0 | CB117: 0 | CC117: 0 | CD117: 0 | CE117: 0 | CF117: 0 | CG117: 0 | CH117: 0 | CI117: 0 | CJ117: 0 | CK117: 0 | CL117: 0 | CM117: 0 | CN117: 0 | CO117: 0 | CP117: 0 | CQ117: 0 | CR117: 0 | CS117: 0 | CT117: 0 | CU117: 0 | CV117: 0 | CW117: 0 | CX117: 0 | CY117: 0 | CZ117: 0 | DA117: 0 | DB117: 0 | DC117: 0 | DD117: 0 | DE117: 0 | DF117: 0 | DG117: 0 | DH117: 0 | DI117: 0 | DJ117: 0 | DK117: 0 | DL117: 0 | DM117: 0 | DN117: 0 | DO117: 0 | DP117: 0 | DQ117: 0 | DR117: 0 | DS117: 0 | DT117: 0 | DU117: 0 | DV117: 0 | DW117: 0 | DX117: 0 | DY117: 0 | DZ117: 0 | EA117: 0 | EB117: 0 | EC117: 0 | ED117: 0 | EE117: 0
E119: Commitment Fee
E120: Undrawn Balance | F120: EUR'000 | G120: EUR'000 | H120: =H48 -> 19681.95988 | L120: =$H120-L107 -> 19681.95988 | M120: =$H120-M107 -> 19681.95988 | N120: 17830.35251 | O120: 15241.48971 | P120: 15210.57556 | Q120: 13466.93318 | R120: 13428.51516 | S120: 9964.739659 | T120: 6486.317263 | U120: 2993.18604 | V120: 2910.478822 | W120: 2827.42187 | X120: 2744.013703 | Y120: 947.6553221 | Z120: 4.49756044e-07 | AA120: 279.6175642 | AB120: 583.432621 | AC120: 914.5279193 | AD120: 1235.011856 | AE120: 1593.810988 | AF120: 1945.130517 | AG120: 2329.215299 | AH120: 2682.283082 | AI120: 3070.828214 | AJ120: 3452.017708 | AK120: 3867.750598 | AL120: 4277.614339 | AM120: 4723.714016 | AN120: 5164.576213 | AO120: 5644.364942 | AP120: 6117.663724 | AQ120: 6632.92683 | AR120: 7147.475894 | AS120: 7705.053566 | AT120: 8230.467534 | AU120: 8818.529502 | AV120: 9405.215037 | AW120: 10039.61179 | AX120: 10671.60358 | AY120: 11354.04502 | AZ120: 12039.3035 | BA120: 12777.7421 | BB120: 13518.35004 | BC120: 14315.45339 | BD120: 15116.17556 | BE120: 15976.81664 | BF120: 16840.44453 | BG120: 17741.32478 | BH120: 18708.40357 | BI120: 19681.95988 | BJ120: 19681.95988 | BK120: 19681.95988 | BL120: 19681.95988 | BM120: 19681.95988 | BN120: 19681.95988 | BO120: 19681.95988 | BP120: 19681.95988 | BQ120: 19681.95988 | BR120: 19681.95988 | BS120: 19681.95988 | BT120: 19681.95988 | BU120: 19681.95988 | BV120: 19681.95988 | BW120: 19681.95988 | BX120: 19681.95988 | BY120: =$H120-BY107 -> 19681.95988 | BZ120: 19681.95988 | CA120: 19681.95988 | CB120: 19681.95988 | CC120: 19681.95988 | CD120: 19681.95988 | CE120: 19681.95988 | CF120: 19681.95988 | CG120: 19681.95988 | CH120: 19681.95988 | CI120: 19681.95988 | CJ120: 19681.95988 | CK120: 19681.95988 | CL120: 19681.95988 | CM120: 19681.95988 | CN120: 19681.95988 | CO120: 19681.95988 | CP120: 19681.95988 | CQ120: 19681.95988 | CR120: 19681.95988 | CS120: 19681.95988 | CT120: 19681.95988 | CU120: 19681.95988 | CV120: 19681.95988 | CW120: 19681.95988 | CX120: 19681.95988 | CY120: 19681.95988 | CZ120: 19681.95988 | DA120: 19681.95988 | DB120: 19681.95988 | DC120: 19681.95988 | DD120: 19681.95988 | DE120: 19681.95988 | DF120: 19681.95988 | DG120: 19681.95988 | DH120: 19681.95988 | DI120: 19681.95988 | DJ120: 19681.95988 | DK120: 19681.95988 | DL120: 19681.95988 | DM120: 19681.95988 | DN120: 19681.95988 | DO120: 19681.95988 | DP120: 19681.95988 | DQ120: 19681.95988 | DR120: 19681.95988 | DS120: 19681.95988 | DT120: 19681.95988 | DU120: 19681.95988 | DV120: 19681.95988 | DW120: 19681.95988 | DX120: 19681.95988 | DY120: 19681.95988 | DZ120: 19681.95988 | EA120: 19681.95988 | EB120: 19681.95988 | EC120: 19681.95988 | ED120: 19681.95988 | EE120: 19681.95988
E121: Periodic Commitment Fee | F121: EUR'000 | G121: % | H121: ='InputC - Structure'!G61 -> 0.007 | I121: =H121/12 -> 0.0005833333333 | L121: =$I$121*L120*L6 -> 11.48114326 | M121: =$I$121*M120*M6 -> 11.48114326 | N121: 10.40103897 | O121: 8.890868996 | P121: 8.872835745 | Q121: 7.855711022 | R121: 7.833300511 | S121: 5.812764801 | T121: 3.78368507 | U121: 1.74602519 | V121: 1.697779313 | W121: 1.649329424 | X121: 1.60067466 | Y121: 0.5527989379 | Z121: 0 | AA121: 0 | AB121: 0 | AC121: 0 | AD121: 0 | AE121: 0 | AF121: 0 | AG121: 0 | AH121: 0 | AI121: 0 | AJ121: 0 | AK121: 0 | AL121: 0 | AM121: 0 | AN121: 0 | AO121: 0 | AP121: 0 | AQ121: 0 | AR121: 0 | AS121: 0 | AT121: 0 | AU121: 0 | AV121: 0 | AW121: 0 | AX121: 0 | AY121: 0 | AZ121: 0 | BA121: 0 | BB121: 0 | BC121: 0 | BD121: 0 | BE121: 0 | BF121: 0 | BG121: 0 | BH121: 0 | BI121: 0 | BJ121: 0 | BK121: 0 | BL121: 0 | BM121: 0 | BN121: 0 | BO121: 0 | BP121: 0 | BQ121: 0 | BR121: 0 | BS121: 0 | BT121: 0 | BU121: 0 | BV121: 0 | BW121: 0 | BX121: 0 | BY121: =$I$121*BY120*BY6 -> 0 | BZ121: 0 | CA121: 0 | CB121: 0 | CC121: 0 | CD121: 0 | CE121: 0 | CF121: 0 | CG121: 0 | CH121: 0 | CI121: 0 | CJ121: 0 | CK121: 0 | CL121: 0 | CM121: 0 | CN121: 0 | CO121: 0 | CP121: 0 | CQ121: 0 | CR121: 0 | CS121: 0 | CT121: 0 | CU121: 0 | CV121: 0 | CW121: 0 | CX121: 0 | CY121: 0 | CZ121: 0 | DA121: 0 | DB121: 0 | DC121: 0 | DD121: 0 | DE121: 0 | DF121: 0 | DG121: 0 | DH121: 0 | DI121: 0 | DJ121: 0 | DK121: 0 | DL121: 0 | DM121: 0 | DN121: 0 | DO121: 0 | DP121: 0 | DQ121: 0 | DR121: 0 | DS121: 0 | DT121: 0 | DU121: 0 | DV121: 0 | DW121: 0 | DX121: 0 | DY121: 0 | DZ121: 0 | EA121: 0 | EB121: 0 | EC121: 0 | ED121: 0 | EE121: 0
C123: =D49 -> AFDB
E124: Opening | F124: EUR'000 | L124: =K127 -> 0 | M124: =L127 -> 0 | N124: 1388.705526 | O124: 3330.35263 | P124: 3353.538238 | Q124: 4661.270025 | R124: 4690.083538 | S124: 7287.915166 | T124: 9896.731963 | U124: 12516.58038 | V124: 12578.61079 | W124: 12640.90351 | X124: 12703.45963 | Y124: 14050.72842 | Z124: 14761.46991 | AA124: 14673.90674 | AB124: 14593.72224 | AC124: 14480.29179 | AD124: 14395.57427 | AE124: 14272.42391 | AF124: 14175.8072 | AG124: 14045.09414 | AH124: 13954.13647 | AI124: 13833.8717 | AJ124: 13736.84439 | AK124: 13605.66454 | AL124: 13499.81901 | AM124: 13360.05051 | AN124: 13245.19757 | AO124: 13096.26185 | AP124: 12970.87148 | AQ124: 12814.52012 | AR124: 12676.86435 | AS124: 12503.76643 | AT124: 12373.09972 | AU124: 12195.10674 | AV124: 12038.8604 | AW124: 11846.4884 | AX124: 11675.04361 | AY124: 11470.96892 | AZ124: 11282.96552 | BA124: 11057.98691 | BB124: 10851.88321 | BC124: 10608.15705 | BD124: 10382.12256 | BE124: 10117.86713 | BF124: 9862.97971 | BG124: 9595.009394 | BH124: 9295.021568 | BI124: 9003.346591 | BJ124: 7469.559109 | BK124: 5925.273451 | BL124: 3979.07187 | BM124: 2081.169368 | BN124: 6.623813761e-05 | BO124: 6.623813761e-05 | BP124: 6.623813761e-05 | BQ124: 6.623813761e-05 | BR124: 6.623813761e-05 | BS124: 6.623813761e-05 | BT124: 6.623813761e-05 | BU124: 6.623813761e-05 | BV124: 6.623813761e-05 | BW124: 6.623813761e-05 | BX124: 6.623813761e-05 | BY124: =BX127 -> 6.623813761e-05 | BZ124: 6.623813761e-05 | CA124: 6.623813761e-05 | CB124: 6.623813761e-05 | CC124: 6.623813761e-05 | CD124: 6.623813761e-05 | CE124: 6.623813761e-05 | CF124: 6.623813761e-05 | CG124: 6.623813761e-05 | CH124: 6.623813761e-05 | CI124: 6.623813761e-05 | CJ124: 6.623813761e-05 | CK124: 6.623813761e-05 | CL124: 6.623813761e-05 | CM124: 6.623813761e-05 | CN124: 6.623813761e-05 | CO124: 6.623813761e-05 | CP124: 6.623813761e-05 | CQ124: 6.623813761e-05 | CR124: 6.623813761e-05 | CS124: 6.623813761e-05 | CT124: 6.623813761e-05 | CU124: 6.623813761e-05 | CV124: 6.623813761e-05 | CW124: 6.623813761e-05 | CX124: 6.623813761e-05 | CY124: 6.623813761e-05 | CZ124: 6.623813761e-05 | DA124: 6.623813761e-05 | DB124: 6.623813761e-05 | DC124: 6.623813761e-05 | DD124: 6.623813761e-05 | DE124: 6.623813761e-05 | DF124: 6.623813761e-05 | DG124: 6.623813761e-05 | DH124: 6.623813761e-05 | DI124: 6.623813761e-05 | DJ124: 6.623813761e-05 | DK124: 6.623813761e-05 | DL124: 6.623813761e-05 | DM124: 6.623813761e-05 | DN124: 6.623813761e-05 | DO124: 6.623813761e-05 | DP124: 6.623813761e-05 | DQ124: 6.623813761e-05 | DR124: 6.623813761e-05 | DS124: 6.623813761e-05 | DT124: 6.623813761e-05 | DU124: 6.623813761e-05 | DV124: 6.623813761e-05 | DW124: 6.623813761e-05 | DX124: 6.623813761e-05 | DY124: 6.623813761e-05 | DZ124: 6.623813761e-05 | EA124: 6.623813761e-05 | EB124: 6.623813761e-05 | EC124: 6.623813761e-05 | ED124: 6.623813761e-05 | EE124: 6.623813761e-05
E125: Add: Draws | F125: EUR'000 | L125: =L94 -> 0 | M125: =M94 -> 1388.705526 | N125: 1941.647104 | O125: 23.1856076 | P125: 1307.731787 | Q125: 28.81351372 | R125: 2597.831628 | S125: 2608.816797 | T125: 2619.848418 | U125: 62.03041312 | V125: 62.2927144 | W125: 62.55612485 | X125: 1347.268786 | Y125: 710.7414912 | Z125: 0 | AA125: 0 | AB125: 0 | AC125: 0 | AD125: 0 | AE125: 0 | AF125: 0 | AG125: 0 | AH125: 0 | AI125: 0 | AJ125: 0 | AK125: 0 | AL125: 0 | AM125: 0 | AN125: 0 | AO125: 0 | AP125: 0 | AQ125: 0 | AR125: 0 | AS125: 0 | AT125: 0 | AU125: 0 | AV125: 0 | AW125: 0 | AX125: 0 | AY125: 0 | AZ125: 0 | BA125: 0 | BB125: 0 | BC125: 0 | BD125: 0 | BE125: 0 | BF125: 0 | BG125: 0 | BH125: 0 | BI125: 0 | BJ125: 0 | BK125: 0 | BL125: 0 | BM125: 0 | BN125: 0 | BO125: 0 | BP125: 0 | BQ125: 0 | BR125: 0 | BS125: 0 | BT125: 0 | BU125: 0 | BV125: 0 | BW125: 0 | BX125: 0 | BY125: =BY94 -> 0 | BZ125: 0 | CA125: 0 | CB125: 0 | CC125: 0 | CD125: 0 | CE125: 0 | CF125: 0 | CG125: 0 | CH125: 0 | CI125: 0 | CJ125: 0 | CK125: 0 | CL125: 0 | CM125: 0 | CN125: 0 | CO125: 0 | CP125: 0 | CQ125: 0 | CR125: 0 | CS125: 0 | CT125: 0 | CU125: 0 | CV125: 0 | CW125: 0 | CX125: 0 | CY125: 0 | CZ125: 0 | DA125: 0 | DB125: 0 | DC125: 0 | DD125: 0 | DE125: 0 | DF125: 0 | DG125: 0 | DH125: 0 | DI125: 0 | DJ125: 0 | DK125: 0 | DL125: 0 | DM125: 0 | DN125: 0 | DO125: 0 | DP125: 0 | DQ125: 0 | DR125: 0 | DS125: 0 | DT125: 0 | DU125: 0 | DV125: 0 | DW125: 0 | DX125: 0 | DY125: 0 | DZ125: 0 | EA125: 0 | EB125: 0 | EC125: 0 | ED125: 0 | EE125: 0
E126: Less: Repayment | F126: EUR'000 | L126: =L102 -> 0 | M126: =M102 -> 0 | N126: 0 | O126: 0 | P126: 0 | Q126: 0 | R126: 0 | S126: 0 | T126: 0 | U126: 0 | V126: 0 | W126: 0 | X126: 0 | Y126: 0 | Z126: 87.56316624 | AA126: 80.18450577 | AB126: 113.4304438 | AC126: 84.71752318 | AD126: 123.1503605 | AE126: 96.61671041 | AF126: 130.7130609 | AG126: 90.95766441 | AH126: 120.2647765 | AI126: 97.02730873 | AJ126: 131.1798448 | AK126: 105.8455326 | AL126: 139.7685008 | AM126: 114.8529389 | AN126: 148.9357271 | AO126: 125.390369 | AP126: 156.3513514 | AQ126: 137.655778 | AR126: 173.097917 | AS126: 130.6667062 | AT126: 177.9929849 | AU126: 156.246341 | AV126: 192.3719994 | AW126: 171.444786 | AX126: 204.0746924 | AY126: 188.003403 | AZ126: 224.9786118 | BA126: 206.1036932 | BB126: 243.7261611 | BC126: 226.0344937 | BD126: 264.2554305 | BE126: 254.8874171 | BF126: 267.9703153 | BG126: 299.9878259 | BH126: 291.6749776 | BI126: 1533.787482 | BJ126: 1544.285658 | BK126: 1946.201581 | BL126: 1897.902501 | BM126: 2081.169302 | BN126: 0 | BO126: 0 | BP126: 0 | BQ126: 0 | BR126: 0 | BS126: 0 | BT126: 0 | BU126: 0 | BV126: 0 | BW126: 0 | BX126: 0 | BY126: =BY102 -> 0 | BZ126: 0 | CA126: 0 | CB126: 0 | CC126: 0 | CD126: 0 | CE126: 0 | CF126: 0 | CG126: 0 | CH126: 0 | CI126: 0 | CJ126: 0 | CK126: 0 | CL126: 0 | CM126: 0 | CN126: 0 | CO126: 0 | CP126: 0 | CQ126: 0 | CR126: 0 | CS126: 0 | CT126: 0 | CU126: 0 | CV126: 0 | CW126: 0 | CX126: 0 | CY126: 0 | CZ126: 0 | DA126: 0 | DB126: 0 | DC126: 0 | DD126: 0 | DE126: 0 | DF126: 0 | DG126: 0 | DH126: 0 | DI126: 0 | DJ126: 0 | DK126: 0 | DL126: 0 | DM126: 0 | DN126: 0 | DO126: 0 | DP126: 0 | DQ126: 0 | DR126: 0 | DS126: 0 | DT126: 0 | DU126: 0 | DV126: 0 | DW126: 0 | DX126: 0 | DY126: 0 | DZ126: 0 | EA126: 0 | EB126: 0 | EC126: 0 | ED126: 0 | EE126: 0
E127: Closing | F127: EUR'000 | L127: =L124+L125-L126 -> 0 | M127: =M124+M125-M126 -> 1388.705526 | N127: =N124+N125-N126 -> 3330.35263 | O127: =O124+O125-O126 -> 3353.538238 | P127: =P124+P125-P126 -> 4661.270025 | Q127: =Q124+Q125-Q126 -> 4690.083538 | R127: =R124+R125-R126 -> 7287.915166 | S127: =S124+S125-S126 -> 9896.731963 | T127: =T124+T125-T126 -> 12516.58038 | U127: =U124+U125-U126 -> 12578.61079 | V127: =V124+V125-V126 -> 12640.90351 | W127: =W124+W125-W126 -> 12703.45963 | X127: =X124+X125-X126 -> 14050.72842 | Y127: =Y124+Y125-Y126 -> 14761.46991 | Z127: =Z124+Z125-Z126 -> 14673.90674 | AA127: =AA124+AA125-AA126 -> 14593.72224 | AB127: =AB124+AB125-AB126 -> 14480.29179 | AC127: =AC124+AC125-AC126 -> 14395.57427 | AD127: =AD124+AD125-AD126 -> 14272.42391 | AE127: =AE124+AE125-AE126 -> 14175.8072 | AF127: =AF124+AF125-AF126 -> 14045.09414 | AG127: =AG124+AG125-AG126 -> 13954.13647 | AH127: =AH124+AH125-AH126 -> 13833.8717 | AI127: =AI124+AI125-AI126 -> 13736.84439 | AJ127: =AJ124+AJ125-AJ126 -> 13605.66454 | AK127: =AK124+AK125-AK126 -> 13499.81901 | AL127: =AL124+AL125-AL126 -> 13360.05051 | AM127: =AM124+AM125-AM126 -> 13245.19757 | AN127: =AN124+AN125-AN126 -> 13096.26185 | AO127: =AO124+AO125-AO126 -> 12970.87148 | AP127: =AP124+AP125-AP126 -> 12814.52012 | AQ127: =AQ124+AQ125-AQ126 -> 12676.86435 | AR127: =AR124+AR125-AR126 -> 12503.76643 | AS127: =AS124+AS125-AS126 -> 12373.09972 | AT127: =AT124+AT125-AT126 -> 12195.10674 | AU127: =AU124+AU125-AU126 -> 12038.8604 | AV127: =AV124+AV125-AV126 -> 11846.4884 | AW127: =AW124+AW125-AW126 -> 11675.04361 | AX127: =AX124+AX125-AX126 -> 11470.96892 | AY127: =AY124+AY125-AY126 -> 11282.96552 | AZ127: =AZ124+AZ125-AZ126 -> 11057.98691 | BA127: =BA124+BA125-BA126 -> 10851.88321 | BB127: =BB124+BB125-BB126 -> 10608.15705 | BC127: =BC124+BC125-BC126 -> 10382.12256 | BD127: =BD124+BD125-BD126 -> 10117.86713 | BE127: =BE124+BE125-BE126 -> 9862.97971 | BF127: =BF124+BF125-BF126 -> 9595.009394 | BG127: =BG124+BG125-BG126 -> 9295.021568 | BH127: =BH124+BH125-BH126 -> 9003.346591 | BI127: =BI124+BI125-BI126 -> 7469.559109 | BJ127: =BJ124+BJ125-BJ126 -> 5925.273451 | BK127: =BK124+BK125-BK126 -> 3979.07187 | BL127: =BL124+BL125-BL126 -> 2081.169368 | BM127: =BM124+BM125-BM126 -> 6.623813761e-05 | BN127: =BN124+BN125-BN126 -> 6.623813761e-05 | BO127: =BO124+BO125-BO126 -> 6.623813761e-05 | BP127: =BP124+BP125-BP126 -> 6.623813761e-05 | BQ127: =BQ124+BQ125-BQ126 -> 6.623813761e-05 | BR127: =BR124+BR125-BR126 -> 6.623813761e-05 | BS127: =BS124+BS125-BS126 -> 6.623813761e-05 | BT127: =BT124+BT125-BT126 -> 6.623813761e-05 | BU127: =BU124+BU125-BU126 -> 6.623813761e-05 | BV127: =BV124+BV125-BV126 -> 6.623813761e-05 | BW127: =BW124+BW125-BW126 -> 6.623813761e-05 | BX127: =BX124+BX125-BX126 -> 6.623813761e-05 | BY127: =BY124+BY125-BY126 -> 6.623813761e-05 | BZ127: =BZ124+BZ125-BZ126 -> 6.623813761e-05 | CA127: =CA124+CA125-CA126 -> 6.623813761e-05 | CB127: =CB124+CB125-CB126 -> 6.623813761e-05 | CC127: =CC124+CC125-CC126 -> 6.623813761e-05 | CD127: =CD124+CD125-CD126 -> 6.623813761e-05 | CE127: =CE124+CE125-CE126 -> 6.623813761e-05 | CF127: =CF124+CF125-CF126 -> 6.623813761e-05 | CG127: =CG124+CG125-CG126 -> 6.623813761e-05 | CH127: =CH124+CH125-CH126 -> 6.623813761e-05 | CI127: =CI124+CI125-CI126 -> 6.623813761e-05 | CJ127: =CJ124+CJ125-CJ126 -> 6.623813761e-05 | CK127: =CK124+CK125-CK126 -> 6.623813761e-05 | CL127: =CL124+CL125-CL126 -> 6.623813761e-05 | CM127: =CM124+CM125-CM126 -> 6.623813761e-05 | CN127: =CN124+CN125-CN126 -> 6.623813761e-05 | CO127: =CO124+CO125-CO126 -> 6.623813761e-05 | CP127: =CP124+CP125-CP126 -> 6.623813761e-05 | CQ127: =CQ124+CQ125-CQ126 -> 6.623813761e-05 | CR127: =CR124+CR125-CR126 -> 6.623813761e-05 | CS127: =CS124+CS125-CS126 -> 6.623813761e-05 | CT127: =CT124+CT125-CT126 -> 6.623813761e-05 | CU127: =CU124+CU125-CU126 -> 6.623813761e-05 | CV127: =CV124+CV125-CV126 -> 6.623813761e-05 | CW127: =CW124+CW125-CW126 -> 6.623813761e-05 | CX127: =CX124+CX125-CX126 -> 6.623813761e-05 | CY127: =CY124+CY125-CY126 -> 6.623813761e-05 | CZ127: =CZ124+CZ125-CZ126 -> 6.623813761e-05 | DA127: =DA124+DA125-DA126 -> 6.623813761e-05 | DB127: =DB124+DB125-DB126 -> 6.623813761e-05 | DC127: =DC124+DC125-DC126 -> 6.623813761e-05 | DD127: =DD124+DD125-DD126 -> 6.623813761e-05 | DE127: =DE124+DE125-DE126 -> 6.623813761e-05 | DF127: =DF124+DF125-DF126 -> 6.623813761e-05 | DG127: =DG124+DG125-DG126 -> 6.623813761e-05 | DH127: =DH124+DH125-DH126 -> 6.623813761e-05 | DI127: =DI124+DI125-DI126 -> 6.623813761e-05 | DJ127: =DJ124+DJ125-DJ126 -> 6.623813761e-05 | DK127: =DK124+DK125-DK126 -> 6.623813761e-05 | DL127: =DL124+DL125-DL126 -> 6.623813761e-05 | DM127: =DM124+DM125-DM126 -> 6.623813761e-05 | DN127: =DN124+DN125-DN126 -> 6.623813761e-05 | DO127: =DO124+DO125-DO126 -> 6.623813761e-05 | DP127: =DP124+DP125-DP126 -> 6.623813761e-05 | DQ127: =DQ124+DQ125-DQ126 -> 6.623813761e-05 | DR127: =DR124+DR125-DR126 -> 6.623813761e-05 | DS127: =DS124+DS125-DS126 -> 6.623813761e-05 | DT127: =DT124+DT125-DT126 -> 6.623813761e-05 | DU127: =DU124+DU125-DU126 -> 6.623813761e-05 | DV127: =DV124+DV125-DV126 -> 6.623813761e-05 | DW127: =DW124+DW125-DW126 -> 6.623813761e-05 | DX127: =DX124+DX125-DX126 -> 6.623813761e-05 | DY127: =DY124+DY125-DY126 -> 6.623813761e-05 | DZ127: =DZ124+DZ125-DZ126 -> 6.623813761e-05 | EA127: =EA124+EA125-EA126 -> 6.623813761e-05 | EB127: =EB124+EB125-EB126 -> 6.623813761e-05 | EC127: =EC124+EC125-EC126 -> 6.623813761e-05 | ED127: =ED124+ED125-ED126 -> 6.623813761e-05 | EE127: =EE124+EE125-EE126 -> 6.623813761e-05
E129: Interest Rate | F129: % p.p. | L129: =LOOKUP(L$8,'InputS- Structure'!$14:$14,'InputS- Structure'!57:57)/12*L3 -> 0.006833674638 | M129: =LOOKUP(M$8,'InputS- Structure'!$14:$14,'InputS- Structure'!57:57)/12*M3 -> 0.006833674638 | N129: =LOOKUP(N$8,'InputS- Structure'!$14:$14,'InputS- Structure'!57:57)/12*N3 -> 0.006833674638 | O129: =LOOKUP(O$8,'InputS- Structure'!$14:$14,'InputS- Structure'!57:57)/12*O3 -> 0.006833674638 | P129: =LOOKUP(P$8,'InputS- Structure'!$14:$14,'InputS- Structure'!57:57)/12*P3 -> 0.006833674638 | Q129: =LOOKUP(Q$8,'InputS- Structure'!$14:$14,'InputS- Structure'!57:57)/12*Q3 -> 0.006833674638 | R129: =LOOKUP(R$8,'InputS- Structure'!$14:$14,'InputS- Structure'!57:57)/12*R3 -> 0.006833674638 | S129: =LOOKUP(S$8,'InputS- Structure'!$14:$14,'InputS- Structure'!57:57)/12*S3 -> 0.006833674638 | T129: =LOOKUP(T$8,'InputS- Structure'!$14:$14,'InputS- Structure'!57:57)/12*T3 -> 0.006833674638 | U129: =LOOKUP(U$8,'InputS- Structure'!$14:$14,'InputS- Structure'!57:57)/12*U3 -> 0.006833674638 | V129: =LOOKUP(V$8,'InputS- Structure'!$14:$14,'InputS- Structure'!57:57)/12*V3 -> 0.006833674638 | W129: =LOOKUP(W$8,'InputS- Structure'!$14:$14,'InputS- Structure'!57:57)/12*W3 -> 0.006833674638 | X129: =LOOKUP(X$8,'InputS- Structure'!$14:$14,'InputS- Structure'!57:57)/12*X3 -> 0.006833674638 | Y129: =LOOKUP(Y$8,'InputS- Structure'!$14:$14,'InputS- Structure'!57:57)/12*Y3 -> 0.006833674638 | Z129: =LOOKUP(Z$8,'InputS- Structure'!$14:$14,'InputS- Structure'!57:57)/12*Z3 -> 0.04100204783 | AA129: =LOOKUP(AA$8,'InputS- Structure'!$14:$14,'InputS- Structure'!57:57)/12*AA3 -> 0.04174956039 | AB129: =LOOKUP(AB$8,'InputS- Structure'!$14:$14,'InputS- Structure'!57:57)/12*AB3 -> 0.04100204783 | AC129: =LOOKUP(AC$8,'InputS- Structure'!$14:$14,'InputS- Structure'!57:57)/12*AC3 -> 0.04171479917 | AD129: =LOOKUP(AD$8,'InputS- Structure'!$14:$14,'InputS- Structure'!57:57)/12*AD3 -> 0.04106745307 | AE129: =LOOKUP(AE$8,'InputS- Structure'!$14:$14,'InputS- Structure'!57:57)/12*AE3 -> 0.04177472537 | AF129: =LOOKUP(AF$8,'InputS- Structure'!$14:$14,'InputS- Structure'!57:57)/12*AF3 -> 0.04111978287 | AG129: =LOOKUP(AG$8,'InputS- Structure'!$14:$14,'InputS- Structure'!57:57)/12*AG3 -> 0.04182786148 | AH129: =LOOKUP(AH$8,'InputS- Structure'!$14:$14,'InputS- Structure'!57:57)/12*AH3 -> 0.04139959317 | AI129: =LOOKUP(AI$8,'InputS- Structure'!$14:$14,'InputS- Structure'!57:57)/12*AI3 -> 0.04185786331 | AJ129: =LOOKUP(AJ$8,'InputS- Structure'!$14:$14,'InputS- Structure'!57:57)/12*AJ3 -> 0.04117862633 | AK129: =LOOKUP(AK$8,'InputS- Structure'!$14:$14,'InputS- Structure'!57:57)/12*AK3 -> 0.0419074972 | AL129: =LOOKUP(AL$8,'InputS- Structure'!$14:$14,'InputS- Structure'!57:57)/12*AL3 -> 0.0412702974 | AM129: =LOOKUP(AM$8,'InputS- Structure'!$14:$14,'InputS- Structure'!57:57)/12*AM3 -> 0.04201055284 | AN129: =LOOKUP(AN$8,'InputS- Structure'!$14:$14,'InputS- Structure'!57:57)/12*AN3 -> 0.04138170012 | AO129: =LOOKUP(AO$8,'InputS- Structure'!$14:$14,'InputS- Structure'!57:57)/12*AO3 -> 0.04206752573 | AP129: =LOOKUP(AP$8,'InputS- Structure'!$14:$14,'InputS- Structure'!57:57)/12*AP3 -> 0.04161021237 | AQ129: =LOOKUP(AQ$8,'InputS- Structure'!$14:$14,'InputS- Structure'!57:57)/12*AQ3 -> 0.04206746745 | AR129: =LOOKUP(AR$8,'InputS- Structure'!$14:$14,'InputS- Structure'!57:57)/12*AR3 -> 0.04138158482 | AS129: =LOOKUP(AS$8,'InputS- Structure'!$14:$14,'InputS- Structure'!57:57)/12*AS3 -> 0.04206746745 | AT129: =LOOKUP(AT$8,'InputS- Structure'!$14:$14,'InputS- Structure'!57:57)/12*AT3 -> 0.04138158482 | AU129: =LOOKUP(AU$8,'InputS- Structure'!$14:$14,'InputS- Structure'!57:57)/12*AU3 -> 0.04206746745 | AV129: =LOOKUP(AV$8,'InputS- Structure'!$14:$14,'InputS- Structure'!57:57)/12*AV3 -> 0.04138158482 | AW129: =LOOKUP(AW$8,'InputS- Structure'!$14:$14,'InputS- Structure'!57:57)/12*AW3 -> 0.04206746745 | AX129: =LOOKUP(AX$8,'InputS- Structure'!$14:$14,'InputS- Structure'!57:57)/12*AX3 -> 0.04161021237 | AY129: =LOOKUP(AY$8,'InputS- Structure'!$14:$14,'InputS- Structure'!57:57)/12*AY3 -> 0.04206746745 | AZ129: =LOOKUP(AZ$8,'InputS- Structure'!$14:$14,'InputS- Structure'!57:57)/12*AZ3 -> 0.04138158482 | BA129: =LOOKUP(BA$8,'InputS- Structure'!$14:$14,'InputS- Structure'!57:57)/12*BA3 -> 0.04206746745 | BB129: =LOOKUP(BB$8,'InputS- Structure'!$14:$14,'InputS- Structure'!57:57)/12*BB3 -> 0.04138158482 | BC129: =LOOKUP(BC$8,'InputS- Structure'!$14:$14,'InputS- Structure'!57:57)/12*BC3 -> 0.04206746745 | BD129: =LOOKUP(BD$8,'InputS- Structure'!$14:$14,'InputS- Structure'!57:57)/12*BD3 -> 0.04138158482 | BE129: =LOOKUP(BE$8,'InputS- Structure'!$14:$14,'InputS- Structure'!57:57)/12*BE3 -> 0.04138158482 | BF129: =LOOKUP(BF$8,'InputS- Structure'!$14:$14,'InputS- Structure'!57:57)/12*BF3 -> 0.04138158482 | BG129: =LOOKUP(BG$8,'InputS- Structure'!$14:$14,'InputS- Structure'!57:57)/12*BG3 -> 0.04138158482 | BH129: =LOOKUP(BH$8,'InputS- Structure'!$14:$14,'InputS- Structure'!57:57)/12*BH3 -> 0.04138158482 | BI129: =LOOKUP(BI$8,'InputS- Structure'!$14:$14,'InputS- Structure'!57:57)/12*BI3 -> 0.04138158482 | BJ129: =LOOKUP(BJ$8,'InputS- Structure'!$14:$14,'InputS- Structure'!57:57)/12*BJ3 -> 0.04138158482 | BK129: =LOOKUP(BK$8,'InputS- Structure'!$14:$14,'InputS- Structure'!57:57)/12*BK3 -> 0.04138158482 | BL129: =LOOKUP(BL$8,'InputS- Structure'!$14:$14,'InputS- Structure'!57:57)/12*BL3 -> 0.04138158482 | BM129: =LOOKUP(BM$8,'InputS- Structure'!$14:$14,'InputS- Structure'!57:57)/12*BM3 -> 0.04138158482 | BN129: =LOOKUP(BN$8,'InputS- Structure'!$14:$14,'InputS- Structure'!57:57)/12*BN3 -> 0.04138158482 | BO129: =LOOKUP(BO$8,'InputS- Structure'!$14:$14,'InputS- Structure'!57:57)/12*BO3 -> 0.04138158482 | BP129: =LOOKUP(BP$8,'InputS- Structure'!$14:$14,'InputS- Structure'!57:57)/12*BP3 -> 0.04138158482 | BQ129: =LOOKUP(BQ$8,'InputS- Structure'!$14:$14,'InputS- Structure'!57:57)/12*BQ3 -> 0.04138158482 | BR129: =LOOKUP(BR$8,'InputS- Structure'!$14:$14,'InputS- Structure'!57:57)/12*BR3 -> 0.04138158482 | BS129: =LOOKUP(BS$8,'InputS- Structure'!$14:$14,'InputS- Structure'!57:57)/12*BS3 -> 0.04138158482 | BT129: =LOOKUP(BT$8,'InputS- Structure'!$14:$14,'InputS- Structure'!57:57)/12*BT3 -> 0.04138158482 | BU129: =LOOKUP(BU$8,'InputS- Structure'!$14:$14,'InputS- Structure'!57:57)/12*BU3 -> 0.04138158482 | BV129: =LOOKUP(BV$8,'InputS- Structure'!$14:$14,'InputS- Structure'!57:57)/12*BV3 -> 0.04138158482 | BW129: =LOOKUP(BW$8,'InputS- Structure'!$14:$14,'InputS- Structure'!57:57)/12*BW3 -> 0.04138158482 | BX129: =LOOKUP(BX$8,'InputS- Structure'!$14:$14,'InputS- Structure'!57:57)/12*BX3 -> 0.04138158482 | BY129: =LOOKUP(BY$8,'InputS- Structure'!$14:$14,'InputS- Structure'!57:57)/12*BY3 -> 0.04138158482 | BZ129: =LOOKUP(BZ$8,'InputS- Structure'!$14:$14,'InputS- Structure'!57:57)/12*BZ3 -> 0.04138158482 | CA129: =LOOKUP(CA$8,'InputS- Structure'!$14:$14,'InputS- Structure'!57:57)/12*CA3 -> 0.04138158482 | CB129: =LOOKUP(CB$8,'InputS- Structure'!$14:$14,'InputS- Structure'!57:57)/12*CB3 -> 0.04138158482 | CC129: =LOOKUP(CC$8,'InputS- Structure'!$14:$14,'InputS- Structure'!57:57)/12*CC3 -> 0.04138158482 | CD129: =LOOKUP(CD$8,'InputS- Structure'!$14:$14,'InputS- Structure'!57:57)/12*CD3 -> 0.04138158482 | CE129: =LOOKUP(CE$8,'InputS- Structure'!$14:$14,'InputS- Structure'!57:57)/12*CE3 -> 0.04138158482 | CF129: =LOOKUP(CF$8,'InputS- Structure'!$14:$14,'InputS- Structure'!57:57)/12*CF3 -> 0.04138158482 | CG129: =LOOKUP(CG$8,'InputS- Structure'!$14:$14,'InputS- Structure'!57:57)/12*CG3 -> 0.04138158482 | CH129: =LOOKUP(CH$8,'InputS- Structure'!$14:$14,'InputS- Structure'!57:57)/12*CH3 -> 0.04138158482 | CI129: =LOOKUP(CI$8,'InputS- Structure'!$14:$14,'InputS- Structure'!57:57)/12*CI3 -> 0.04138158482 | CJ129: =LOOKUP(CJ$8,'InputS- Structure'!$14:$14,'InputS- Structure'!57:57)/12*CJ3 -> 0.04138158482 | CK129: =LOOKUP(CK$8,'InputS- Structure'!$14:$14,'InputS- Structure'!57:57)/12*CK3 -> 0.04138158482 | CL129: =LOOKUP(CL$8,'InputS- Structure'!$14:$14,'InputS- Structure'!57:57)/12*CL3 -> 0.04138158482 | CM129: =LOOKUP(CM$8,'InputS- Structure'!$14:$14,'InputS- Structure'!57:57)/12*CM3 -> 0.04138158482 | CN129: =LOOKUP(CN$8,'InputS- Structure'!$14:$14,'InputS- Structure'!57:57)/12*CN3 -> 0.04138158482 | CO129: =LOOKUP(CO$8,'InputS- Structure'!$14:$14,'InputS- Structure'!57:57)/12*CO3 -> 0.04138158482 | CP129: =LOOKUP(CP$8,'InputS- Structure'!$14:$14,'InputS- Structure'!57:57)/12*CP3 -> 0.04138158482 | CQ129: =LOOKUP(CQ$8,'InputS- Structure'!$14:$14,'InputS- Structure'!57:57)/12*CQ3 -> 0.04138158482 | CR129: =LOOKUP(CR$8,'InputS- Structure'!$14:$14,'InputS- Structure'!57:57)/12*CR3 -> 0.04138158482 | CS129: =LOOKUP(CS$8,'InputS- Structure'!$14:$14,'InputS- Structure'!57:57)/12*CS3 -> 0.04138158482 | CT129: =LOOKUP(CT$8,'InputS- Structure'!$14:$14,'InputS- Structure'!57:57)/12*CT3 -> 0.04138158482 | CU129: =LOOKUP(CU$8,'InputS- Structure'!$14:$14,'InputS- Structure'!57:57)/12*CU3 -> 0.04138158482 | CV129: =LOOKUP(CV$8,'InputS- Structure'!$14:$14,'InputS- Structure'!57:57)/12*CV3 -> 0.04138158482 | CW129: =LOOKUP(CW$8,'InputS- Structure'!$14:$14,'InputS- Structure'!57:57)/12*CW3 -> 0.04138158482 | CX129: =LOOKUP(CX$8,'InputS- Structure'!$14:$14,'InputS- Structure'!57:57)/12*CX3 -> 0.04138158482 | CY129: =LOOKUP(CY$8,'InputS- Structure'!$14:$14,'InputS- Structure'!57:57)/12*CY3 -> 0.04138158482 | CZ129: =LOOKUP(CZ$8,'InputS- Structure'!$14:$14,'InputS- Structure'!57:57)/12*CZ3 -> 0.04138158482 | DA129: =LOOKUP(DA$8,'InputS- Structure'!$14:$14,'InputS- Structure'!57:57)/12*DA3 -> 0.04138158482 | DB129: =LOOKUP(DB$8,'InputS- Structure'!$14:$14,'InputS- Structure'!57:57)/12*DB3 -> 0.04138158482 | DC129: =LOOKUP(DC$8,'InputS- Structure'!$14:$14,'InputS- Structure'!57:57)/12*DC3 -> 0.04138158482 | DD129: =LOOKUP(DD$8,'InputS- Structure'!$14:$14,'InputS- Structure'!57:57)/12*DD3 -> 0.04138158482 | DE129: =LOOKUP(DE$8,'InputS- Structure'!$14:$14,'InputS- Structure'!57:57)/12*DE3 -> 0.04138158482 | DF129: =LOOKUP(DF$8,'InputS- Structure'!$14:$14,'InputS- Structure'!57:57)/12*DF3 -> 0.04138158482 | DG129: =LOOKUP(DG$8,'InputS- Structure'!$14:$14,'InputS- Structure'!57:57)/12*DG3 -> 0.04138158482 | DH129: =LOOKUP(DH$8,'InputS- Structure'!$14:$14,'InputS- Structure'!57:57)/12*DH3 -> 0.04138158482 | DI129: =LOOKUP(DI$8,'InputS- Structure'!$14:$14,'InputS- Structure'!57:57)/12*DI3 -> 0.04138158482 | DJ129: =LOOKUP(DJ$8,'InputS- Structure'!$14:$14,'InputS- Structure'!57:57)/12*DJ3 -> 0.04138158482 | DK129: =LOOKUP(DK$8,'InputS- Structure'!$14:$14,'InputS- Structure'!57:57)/12*DK3 -> 0.04138158482 | DL129: =LOOKUP(DL$8,'InputS- Structure'!$14:$14,'InputS- Structure'!57:57)/12*DL3 -> 0.04138158482 | DM129: =LOOKUP(DM$8,'InputS- Structure'!$14:$14,'InputS- Structure'!57:57)/12*DM3 -> 0.04138158482 | DN129: =LOOKUP(DN$8,'InputS- Structure'!$14:$14,'InputS- Structure'!57:57)/12*DN3 -> 0.04138158482 | DO129: =LOOKUP(DO$8,'InputS- Structure'!$14:$14,'InputS- Structure'!57:57)/12*DO3 -> 0.04138158482 | DP129: =LOOKUP(DP$8,'InputS- Structure'!$14:$14,'InputS- Structure'!57:57)/12*DP3 -> 0.04138158482 | DQ129: =LOOKUP(DQ$8,'InputS- Structure'!$14:$14,'InputS- Structure'!57:57)/12*DQ3 -> 0.04138158482 | DR129: =LOOKUP(DR$8,'InputS- Structure'!$14:$14,'InputS- Structure'!57:57)/12*DR3 -> 0.04138158482 | DS129: =LOOKUP(DS$8,'InputS- Structure'!$14:$14,'InputS- Structure'!57:57)/12*DS3 -> 0.04138158482 | DT129: =LOOKUP(DT$8,'InputS- Structure'!$14:$14,'InputS- Structure'!57:57)/12*DT3 -> 0.04138158482 | DU129: =LOOKUP(DU$8,'InputS- Structure'!$14:$14,'InputS- Structure'!57:57)/12*DU3 -> 0.04138158482 | DV129: =LOOKUP(DV$8,'InputS- Structure'!$14:$14,'InputS- Structure'!57:57)/12*DV3 -> 0.04138158482 | DW129: =LOOKUP(DW$8,'InputS- Structure'!$14:$14,'InputS- Structure'!57:57)/12*DW3 -> 0.04138158482 | DX129: =LOOKUP(DX$8,'InputS- Structure'!$14:$14,'InputS- Structure'!57:57)/12*DX3 -> 0.04138158482 | DY129: =LOOKUP(DY$8,'InputS- Structure'!$14:$14,'InputS- Structure'!57:57)/12*DY3 -> 0.04138158482 | DZ129: =LOOKUP(DZ$8,'InputS- Structure'!$14:$14,'InputS- Structure'!57:57)/12*DZ3 -> 0.04138158482 | EA129: =LOOKUP(EA$8,'InputS- Structure'!$14:$14,'InputS- Structure'!57:57)/12*EA3 -> 0.04138158482 | EB129: =LOOKUP(EB$8,'InputS- Structure'!$14:$14,'InputS- Structure'!57:57)/12*EB3 -> 0.04138158482 | EC129: =LOOKUP(EC$8,'InputS- Structure'!$14:$14,'InputS- Structure'!57:57)/12*EC3 -> 0.04138158482 | ED129: =LOOKUP(ED$8,'InputS- Structure'!$14:$14,'InputS- Structure'!57:57)/12*ED3 -> 0.04138158482 | EE129: =LOOKUP(EE$8,'InputS- Structure'!$14:$14,'InputS- Structure'!57:57)/12*EE3 -> 0.04138158482
E130: Interest Cost | F130: EUR'000 | L130: =L129*L124 -> 0 | M130: =M129*M124 -> 0 | N130: =N129*N124 -> 9.489961733 | O130: =O129*O124 -> 22.75854631 | P130: =P129*P124 -> 22.9169892 | Q130: =Q129*Q124 -> 31.85360275 | R130: =R129*R124 -> 32.05050493 | S130: =S129*S124 -> 49.80324104 | T130: =T129*T124 -> 67.63104621 | U130: =U129*U124 -> 85.5342379 | V130: =V129*V124 -> 85.95813356 | W130: =W129*W124 -> 86.3838217 | X130: =X129*X124 -> 86.81130991 | Y130: =Y129*Y124 -> 96.01810644 | Z130: =Z129*Z124 -> 605.2504953 | AA130: =AA129*AA124 -> 612.6291557 | AB130: =AB129*AB124 -> 598.3724972 | AC130: =AC129*AC124 -> 604.0424641 | AD130: =AD129*AD124 -> 591.1895708 | AE130: =AE129*AE124 -> 596.2265893 | AF130: =AF129*AF124 -> 582.9061141 | AG130: =AG129*AG124 -> 587.4762521 | AH130: =AH129*AH124 -> 577.6955731 | AI130: =AI129*AI124 -> 579.0563105 | AJ130: =AJ129*AJ124 -> 565.6643821 | AK130: =AK129*AK124 -> 570.1793489 | AL130: =AL129*AL124 -> 557.1415455 | AM130: =AM129*AM124 -> 561.2631079 | AN130: =AN129*AN124 -> 548.1087939 | AO130: =AO129*AO124 -> 550.9273321 | AP130: =AP129*AP124 -> 539.7207167 | AQ130: =AQ129*AQ124 -> 539.0744082 | AR130: =AR129*AR124 -> 524.5887373 | AS130: =AS129*AS124 -> 526.0017872 | AT130: =AT129*AT124 -> 512.0184758 | AU130: =AU129*AU124 -> 513.0172557 | AV130: =AV129*AV124 -> 498.1871227 | AW130: =AW129*AW124 -> 498.351765 | AX130: =AX129*AX124 -> 485.8010441 | AY130: =AY129*AY124 -> 482.5546116 | AZ130: =AZ129*AZ124 -> 466.9069946 | BA130: =BA129*BA124 -> 465.1815041 | BB130: =BB129*BB124 -> 449.0681256 | BC130: =BC129*BC124 -> 446.2583014 | BD130: =BD129*BD124 -> 429.6286853 | BE130: =BE129*BE124 -> 418.6933767 | BF130: =BF129*BF124 -> 408.1457315 | BG130: =BG129*BG124 -> 397.0566951 | BH130: =BH129*BH124 -> 384.6427235 | BI130: =BI129*BI124 -> 372.5727506 | BJ130: =BJ129*BJ124 -> 309.1021939 | BK130: =BK129*BK124 -> 245.1972059 | BL130: =BL129*BL124 -> 164.6603001 | BM130: =BM129*BM124 -> 86.12208675 | BN130: =BN129*BN124 -> 2.74103911e-06 | BO130: =BO129*BO124 -> 2.74103911e-06 | BP130: =BP129*BP124 -> 2.74103911e-06 | BQ130: =BQ129*BQ124 -> 2.74103911e-06 | BR130: =BR129*BR124 -> 2.74103911e-06 | BS130: =BS129*BS124 -> 2.74103911e-06 | BT130: =BT129*BT124 -> 2.74103911e-06 | BU130: =BU129*BU124 -> 2.74103911e-06 | BV130: =BV129*BV124 -> 2.74103911e-06 | BW130: =BW129*BW124 -> 2.74103911e-06 | BX130: =BX129*BX124 -> 2.74103911e-06 | BY130: =BY129*BY124 -> 2.74103911e-06 | BZ130: =BZ129*BZ124 -> 2.74103911e-06 | CA130: =CA129*CA124 -> 2.74103911e-06 | CB130: =CB129*CB124 -> 2.74103911e-06 | CC130: =CC129*CC124 -> 2.74103911e-06 | CD130: =CD129*CD124 -> 2.74103911e-06 | CE130: =CE129*CE124 -> 2.74103911e-06 | CF130: =CF129*CF124 -> 2.74103911e-06 | CG130: =CG129*CG124 -> 2.74103911e-06 | CH130: =CH129*CH124 -> 2.74103911e-06 | CI130: =CI129*CI124 -> 2.74103911e-06 | CJ130: =CJ129*CJ124 -> 2.74103911e-06 | CK130: =CK129*CK124 -> 2.74103911e-06 | CL130: =CL129*CL124 -> 2.74103911e-06 | CM130: =CM129*CM124 -> 2.74103911e-06 | CN130: =CN129*CN124 -> 2.74103911e-06 | CO130: =CO129*CO124 -> 2.74103911e-06 | CP130: =CP129*CP124 -> 2.74103911e-06 | CQ130: =CQ129*CQ124 -> 2.74103911e-06 | CR130: =CR129*CR124 -> 2.74103911e-06 | CS130: =CS129*CS124 -> 2.74103911e-06 | CT130: =CT129*CT124 -> 2.74103911e-06 | CU130: =CU129*CU124 -> 2.74103911e-06 | CV130: =CV129*CV124 -> 2.74103911e-06 | CW130: =CW129*CW124 -> 2.74103911e-06 | CX130: =CX129*CX124 -> 2.74103911e-06 | CY130: =CY129*CY124 -> 2.74103911e-06 | CZ130: =CZ129*CZ124 -> 2.74103911e-06 | DA130: =DA129*DA124 -> 2.74103911e-06 | DB130: =DB129*DB124 -> 2.74103911e-06 | DC130: =DC129*DC124 -> 2.74103911e-06 | DD130: =DD129*DD124 -> 2.74103911e-06 | DE130: =DE129*DE124 -> 2.74103911e-06 | DF130: =DF129*DF124 -> 2.74103911e-06 | DG130: =DG129*DG124 -> 2.74103911e-06 | DH130: =DH129*DH124 -> 2.74103911e-06 | DI130: =DI129*DI124 -> 2.74103911e-06 | DJ130: =DJ129*DJ124 -> 2.74103911e-06 | DK130: =DK129*DK124 -> 2.74103911e-06 | DL130: =DL129*DL124 -> 2.74103911e-06 | DM130: =DM129*DM124 -> 2.74103911e-06 | DN130: =DN129*DN124 -> 2.74103911e-06 | DO130: =DO129*DO124 -> 2.74103911e-06 | DP130: =DP129*DP124 -> 2.74103911e-06 | DQ130: =DQ129*DQ124 -> 2.74103911e-06 | DR130: =DR129*DR124 -> 2.74103911e-06 | DS130: =DS129*DS124 -> 2.74103911e-06 | DT130: =DT129*DT124 -> 2.74103911e-06 | DU130: =DU129*DU124 -> 2.74103911e-06 | DV130: =DV129*DV124 -> 2.74103911e-06 | DW130: =DW129*DW124 -> 2.74103911e-06 | DX130: =DX129*DX124 -> 2.74103911e-06 | DY130: =DY129*DY124 -> 2.74103911e-06 | DZ130: =DZ129*DZ124 -> 2.74103911e-06 | EA130: =EA129*EA124 -> 2.74103911e-06 | EB130: =EB129*EB124 -> 2.74103911e-06 | EC130: =EC129*EC124 -> 2.74103911e-06 | ED130: =ED129*ED124 -> 2.74103911e-06 | EE130: =EE129*EE124 -> 2.74103911e-06
E131: Interest During Construction | F131: EUR'000 | L131: =L130*L$6 -> 0 | M131: =M130*M$6 -> 0 | N131: 9.489961733 | O131: 22.75854631 | P131: 22.9169892 | Q131: 31.85360275 | R131: 32.05050493 | S131: 49.80324104 | T131: 67.63104621 | U131: 85.5342379 | V131: 85.95813356 | W131: 86.3838217 | X131: 86.81130991 | Y131: 96.01810644 | Z131: 0 | AA131: 0 | AB131: 0 | AC131: 0 | AD131: 0 | AE131: 0 | AF131: 0 | AG131: 0 | AH131: 0 | AI131: 0 | AJ131: 0 | AK131: 0 | AL131: 0 | AM131: 0 | AN131: 0 | AO131: 0 | AP131: 0 | AQ131: 0 | AR131: 0 | AS131: 0 | AT131: 0 | AU131: 0 | AV131: 0 | AW131: 0 | AX131: 0 | AY131: 0 | AZ131: 0 | BA131: 0 | BB131: 0 | BC131: 0 | BD131: 0 | BE131: 0 | BF131: 0 | BG131: 0 | BH131: 0 | BI131: 0 | BJ131: 0 | BK131: 0 | BL131: 0 | BM131: 0 | BN131: 0 | BO131: 0 | BP131: 0 | BQ131: 0 | BR131: 0 | BS131: 0 | BT131: 0 | BU131: 0 | BV131: 0 | BW131: 0 | BX131: 0 | BY131: =BY130*BY$6 -> 0 | BZ131: 0 | CA131: 0 | CB131: 0 | CC131: 0 | CD131: 0 | CE131: 0 | CF131: 0 | CG131: 0 | CH131: 0 | CI131: 0 | CJ131: 0 | CK131: 0 | CL131: 0 | CM131: 0 | CN131: 0 | CO131: 0 | CP131: 0 | CQ131: 0 | CR131: 0 | CS131: 0 | CT131: 0 | CU131: 0 | CV131: 0 | CW131: 0 | CX131: 0 | CY131: 0 | CZ131: 0 | DA131: 0 | DB131: 0 | DC131: 0 | DD131: 0 | DE131: 0 | DF131: 0 | DG131: 0 | DH131: 0 | DI131: 0 | DJ131: 0 | DK131: 0 | DL131: 0 | DM131: 0 | DN131: 0 | DO131: 0 | DP131: 0 | DQ131: 0 | DR131: 0 | DS131: 0 | DT131: 0 | DU131: 0 | DV131: 0 | DW131: 0 | DX131: 0 | DY131: 0 | DZ131: 0 | EA131: 0 | EB131: 0 | EC131: 0 | ED131: 0 | EE131: 0
E132: Interest Expense | F132: EUR'000 | L132: =L130-L131 -> 0 | M132: =M130-M131 -> 0 | N132: =N130-N131 -> 0 | O132: =O130-O131 -> 0 | P132: =P130-P131 -> 0 | Q132: =Q130-Q131 -> 0 | R132: =R130-R131 -> 0 | S132: =S130-S131 -> 0 | T132: =T130-T131 -> 0 | U132: =U130-U131 -> 0 | V132: =V130-V131 -> 0 | W132: =W130-W131 -> 0 | X132: =X130-X131 -> 0 | Y132: =Y130-Y131 -> 0 | Z132: =Z130-Z131 -> 605.2504953 | AA132: =AA130-AA131 -> 612.6291557 | AB132: =AB130-AB131 -> 598.3724972 | AC132: =AC130-AC131 -> 604.0424641 | AD132: =AD130-AD131 -> 591.1895708 | AE132: =AE130-AE131 -> 596.2265893 | AF132: =AF130-AF131 -> 582.9061141 | AG132: =AG130-AG131 -> 587.4762521 | AH132: =AH130-AH131 -> 577.6955731 | AI132: =AI130-AI131 -> 579.0563105 | AJ132: =AJ130-AJ131 -> 565.6643821 | AK132: =AK130-AK131 -> 570.1793489 | AL132: =AL130-AL131 -> 557.1415455 | AM132: =AM130-AM131 -> 561.2631079 | AN132: =AN130-AN131 -> 548.1087939 | AO132: =AO130-AO131 -> 550.9273321 | AP132: =AP130-AP131 -> 539.7207167 | AQ132: =AQ130-AQ131 -> 539.0744082 | AR132: =AR130-AR131 -> 524.5887373 | AS132: =AS130-AS131 -> 526.0017872 | AT132: =AT130-AT131 -> 512.0184758 | AU132: =AU130-AU131 -> 513.0172557 | AV132: =AV130-AV131 -> 498.1871227 | AW132: =AW130-AW131 -> 498.351765 | AX132: =AX130-AX131 -> 485.8010441 | AY132: =AY130-AY131 -> 482.5546116 | AZ132: =AZ130-AZ131 -> 466.9069946 | BA132: =BA130-BA131 -> 465.1815041 | BB132: =BB130-BB131 -> 449.0681256 | BC132: =BC130-BC131 -> 446.2583014 | BD132: =BD130-BD131 -> 429.6286853 | BE132: =BE130-BE131 -> 418.6933767 | BF132: =BF130-BF131 -> 408.1457315 | BG132: =BG130-BG131 -> 397.0566951 | BH132: =BH130-BH131 -> 384.6427235 | BI132: =BI130-BI131 -> 372.5727506 | BJ132: =BJ130-BJ131 -> 309.1021939 | BK132: =BK130-BK131 -> 245.1972059 | BL132: =BL130-BL131 -> 164.6603001 | BM132: =BM130-BM131 -> 86.12208675 | BN132: =BN130-BN131 -> 2.74103911e-06 | BO132: =BO130-BO131 -> 2.74103911e-06 | BP132: =BP130-BP131 -> 2.74103911e-06 | BQ132: =BQ130-BQ131 -> 2.74103911e-06 | BR132: =BR130-BR131 -> 2.74103911e-06 | BS132: =BS130-BS131 -> 2.74103911e-06 | BT132: =BT130-BT131 -> 2.74103911e-06 | BU132: =BU130-BU131 -> 2.74103911e-06 | BV132: =BV130-BV131 -> 2.74103911e-06 | BW132: =BW130-BW131 -> 2.74103911e-06 | BX132: =BX130-BX131 -> 2.74103911e-06 | BY132: =BY130-BY131 -> 2.74103911e-06 | BZ132: =BZ130-BZ131 -> 2.74103911e-06 | CA132: =CA130-CA131 -> 2.74103911e-06 | CB132: =CB130-CB131 -> 2.74103911e-06 | CC132: =CC130-CC131 -> 2.74103911e-06 | CD132: =CD130-CD131 -> 2.74103911e-06 | CE132: =CE130-CE131 -> 2.74103911e-06 | CF132: =CF130-CF131 -> 2.74103911e-06 | CG132: =CG130-CG131 -> 2.74103911e-06 | CH132: =CH130-CH131 -> 2.74103911e-06 | CI132: =CI130-CI131 -> 2.74103911e-06 | CJ132: =CJ130-CJ131 -> 2.74103911e-06 | CK132: =CK130-CK131 -> 2.74103911e-06 | CL132: =CL130-CL131 -> 2.74103911e-06 | CM132: =CM130-CM131 -> 2.74103911e-06 | CN132: =CN130-CN131 -> 2.74103911e-06 | CO132: =CO130-CO131 -> 2.74103911e-06 | CP132: =CP130-CP131 -> 2.74103911e-06 | CQ132: =CQ130-CQ131 -> 2.74103911e-06 | CR132: =CR130-CR131 -> 2.74103911e-06 | CS132: =CS130-CS131 -> 2.74103911e-06 | CT132: =CT130-CT131 -> 2.74103911e-06 | CU132: =CU130-CU131 -> 2.74103911e-06 | CV132: =CV130-CV131 -> 2.74103911e-06 | CW132: =CW130-CW131 -> 2.74103911e-06 | CX132: =CX130-CX131 -> 2.74103911e-06 | CY132: =CY130-CY131 -> 2.74103911e-06 | CZ132: =CZ130-CZ131 -> 2.74103911e-06 | DA132: =DA130-DA131 -> 2.74103911e-06 | DB132: =DB130-DB131 -> 2.74103911e-06 | DC132: =DC130-DC131 -> 2.74103911e-06 | DD132: =DD130-DD131 -> 2.74103911e-06 | DE132: =DE130-DE131 -> 2.74103911e-06 | DF132: =DF130-DF131 -> 2.74103911e-06 | DG132: =DG130-DG131 -> 2.74103911e-06 | DH132: =DH130-DH131 -> 2.74103911e-06 | DI132: =DI130-DI131 -> 2.74103911e-06 | DJ132: =DJ130-DJ131 -> 2.74103911e-06 | DK132: =DK130-DK131 -> 2.74103911e-06 | DL132: =DL130-DL131 -> 2.74103911e-06 | DM132: =DM130-DM131 -> 2.74103911e-06 | DN132: =DN130-DN131 -> 2.74103911e-06 | DO132: =DO130-DO131 -> 2.74103911e-06 | DP132: =DP130-DP131 -> 2.74103911e-06 | DQ132: =DQ130-DQ131 -> 2.74103911e-06 | DR132: =DR130-DR131 -> 2.74103911e-06 | DS132: =DS130-DS131 -> 2.74103911e-06 | DT132: =DT130-DT131 -> 2.74103911e-06 | DU132: =DU130-DU131 -> 2.74103911e-06 | DV132: =DV130-DV131 -> 2.74103911e-06 | DW132: =DW130-DW131 -> 2.74103911e-06 | DX132: =DX130-DX131 -> 2.74103911e-06 | DY132: =DY130-DY131 -> 2.74103911e-06 | DZ132: =DZ130-DZ131 -> 2.74103911e-06 | EA132: =EA130-EA131 -> 2.74103911e-06 | EB132: =EB130-EB131 -> 2.74103911e-06 | EC132: =EC130-EC131 -> 2.74103911e-06 | ED132: =ED130-ED131 -> 2.74103911e-06 | EE132: =EE130-EE131 -> 2.74103911e-06
E134: Up-Front Fee | F134: EUR'000 | G134: % | H134: =H49 -> 14761.46984 | I134: ='InputC - Structure'!G56 -> 0.009 | L134: =$H134*$I134*L$99 -> 132.8532286 | M134: =$H134*$I134*M$99 -> 0 | N134: 0 | O134: 0 | P134: 0 | Q134: 0 | R134: 0 | S134: 0 | T134: 0 | U134: 0 | V134: 0 | W134: 0 | X134: 0 | Y134: 0 | Z134: 0 | AA134: 0 | AB134: 0 | AC134: 0 | AD134: 0 | AE134: 0 | AF134: 0 | AG134: 0 | AH134: 0 | AI134: 0 | AJ134: 0 | AK134: 0 | AL134: 0 | AM134: 0 | AN134: 0 | AO134: 0 | AP134: 0 | AQ134: 0 | AR134: 0 | AS134: 0 | AT134: 0 | AU134: 0 | AV134: 0 | AW134: 0 | AX134: 0 | AY134: 0 | AZ134: 0 | BA134: 0 | BB134: 0 | BC134: 0 | BD134: 0 | BE134: 0 | BF134: 0 | BG134: 0 | BH134: 0 | BI134: 0 | BJ134: 0 | BK134: 0 | BL134: 0 | BM134: 0 | BN134: 0 | BO134: 0 | BP134: 0 | BQ134: 0 | BR134: 0 | BS134: 0 | BT134: 0 | BU134: 0 | BV134: 0 | BW134: 0 | BX134: 0 | BY134: =$H134*$I134*BY$99 -> 0 | BZ134: 0 | CA134: 0 | CB134: 0 | CC134: 0 | CD134: 0 | CE134: 0 | CF134: 0 | CG134: 0 | CH134: 0 | CI134: 0 | CJ134: 0 | CK134: 0 | CL134: 0 | CM134: 0 | CN134: 0 | CO134: 0 | CP134: 0 | CQ134: 0 | CR134: 0 | CS134: 0 | CT134: 0 | CU134: 0 | CV134: 0 | CW134: 0 | CX134: 0 | CY134: 0 | CZ134: 0 | DA134: 0 | DB134: 0 | DC134: 0 | DD134: 0 | DE134: 0 | DF134: 0 | DG134: 0 | DH134: 0 | DI134: 0 | DJ134: 0 | DK134: 0 | DL134: 0 | DM134: 0 | DN134: 0 | DO134: 0 | DP134: 0 | DQ134: 0 | DR134: 0 | DS134: 0 | DT134: 0 | DU134: 0 | DV134: 0 | DW134: 0 | DX134: 0 | DY134: 0 | DZ134: 0 | EA134: 0 | EB134: 0 | EC134: 0 | ED134: 0 | EE134: 0
E136: Commitment Fee
E137: Undrawn Balance | F137: EUR'000 | G137: EUR'000 | H137: =H49 -> 14761.46984 | L137: =$H137-L124 -> 14761.46984 | M137: =$H137-M124 -> 14761.46984 | N137: 13372.76432 | O137: 11431.11721 | P137: 11407.93161 | Q137: 10100.19982 | R137: 10071.38631 | S137: 7473.554678 | T137: 4864.737881 | U137: 2244.889463 | V137: 2182.85905 | W137: 2120.566336 | X137: 2058.010211 | Y137: 710.741425 | Z137: -6.623813533e-05 | AA137: 87.5631 | AB137: 167.7476058 | AC137: 281.1780496 | AD137: 365.8955728 | AE137: 489.0459333 | AF137: 585.6626437 | AG137: 716.3757047 | AH137: 807.3333691 | AI137: 927.5981456 | AJ137: 1024.625454 | AK137: 1155.805299 | AL137: 1261.650832 | AM137: 1401.419333 | AN137: 1516.272271 | AO137: 1665.207998 | AP137: 1790.598367 | AQ137: 1946.949719 | AR137: 2084.605497 | AS137: 2257.703414 | AT137: 2388.37012 | AU137: 2566.363105 | AV137: 2722.609446 | AW137: 2914.981445 | AX137: 3086.426231 | AY137: 3290.500924 | AZ137: 3478.504327 | BA137: 3703.482939 | BB137: 3909.586632 | BC137: 4153.312793 | BD137: 4379.347287 | BE137: 4643.602717 | BF137: 4898.490134 | BG137: 5166.460449 | BH137: 5466.448275 | BI137: 5758.123253 | BJ137: 7291.910735 | BK137: 8836.196393 | BL137: 10782.39797 | BM137: 12680.30048 | BN137: 14761.46978 | BO137: 14761.46978 | BP137: 14761.46978 | BQ137: 14761.46978 | BR137: 14761.46978 | BS137: 14761.46978 | BT137: 14761.46978 | BU137: 14761.46978 | BV137: 14761.46978 | BW137: 14761.46978 | BX137: 14761.46978 | BY137: =$H137-BY124 -> 14761.46978 | BZ137: 14761.46978 | CA137: 14761.46978 | CB137: 14761.46978 | CC137: 14761.46978 | CD137: 14761.46978 | CE137: 14761.46978 | CF137: 14761.46978 | CG137: 14761.46978 | CH137: 14761.46978 | CI137: 14761.46978 | CJ137: 14761.46978 | CK137: 14761.46978 | CL137: 14761.46978 | CM137: 14761.46978 | CN137: 14761.46978 | CO137: 14761.46978 | CP137: 14761.46978 | CQ137: 14761.46978 | CR137: 14761.46978 | CS137: 14761.46978 | CT137: 14761.46978 | CU137: 14761.46978 | CV137: 14761.46978 | CW137: 14761.46978 | CX137: 14761.46978 | CY137: 14761.46978 | CZ137: 14761.46978 | DA137: 14761.46978 | DB137: 14761.46978 | DC137: 14761.46978 | DD137: 14761.46978 | DE137: 14761.46978 | DF137: 14761.46978 | DG137: 14761.46978 | DH137: 14761.46978 | DI137: 14761.46978 | DJ137: 14761.46978 | DK137: 14761.46978 | DL137: 14761.46978 | DM137: 14761.46978 | DN137: 14761.46978 | DO137: 14761.46978 | DP137: 14761.46978 | DQ137: 14761.46978 | DR137: 14761.46978 | DS137: 14761.46978 | DT137: 14761.46978 | DU137: 14761.46978 | DV137: 14761.46978 | DW137: 14761.46978 | DX137: 14761.46978 | DY137: 14761.46978 | DZ137: 14761.46978 | EA137: 14761.46978 | EB137: 14761.46978 | EC137: 14761.46978 | ED137: 14761.46978 | EE137: 14761.46978
E138: Periodic Commitment Fee | F138: EUR'000 | G138: % | H138: ='InputC - Structure'!G62 -> 0.008 | I138: =H138/12 -> 0.0006666666667 | L138: =$I$138*L137*L$6 -> 9.840979896 | M138: =$I$138*M137*M$6 -> 9.840979896 | N138: 8.915176212 | O138: 7.620744809 | P138: 7.605287737 | Q138: 6.733466546 | R138: 6.714257537 | S138: 4.982369785 | T138: 3.243158587 | U138: 1.496592975 | V138: 1.455239367 | W138: 1.41371089 | X138: 1.372006807 | Y138: 0.4738276167 | Z138: 0 | AA138: 0 | AB138: 0 | AC138: 0 | AD138: 0 | AE138: 0 | AF138: 0 | AG138: 0 | AH138: 0 | AI138: 0 | AJ138: 0 | AK138: 0 | AL138: 0 | AM138: 0 | AN138: 0 | AO138: 0 | AP138: 0 | AQ138: 0 | AR138: 0 | AS138: 0 | AT138: 0 | AU138: 0 | AV138: 0 | AW138: 0 | AX138: 0 | AY138: 0 | AZ138: 0 | BA138: 0 | BB138: 0 | BC138: 0 | BD138: 0 | BE138: 0 | BF138: 0 | BG138: 0 | BH138: 0 | BI138: 0 | BJ138: 0 | BK138: 0 | BL138: 0 | BM138: 0 | BN138: 0 | BO138: 0 | BP138: 0 | BQ138: 0 | BR138: 0 | BS138: 0 | BT138: 0 | BU138: 0 | BV138: 0 | BW138: 0 | BX138: 0 | BY138: =$I$138*BY137*BY$6 -> 0 | BZ138: 0 | CA138: 0 | CB138: 0 | CC138: 0 | CD138: 0 | CE138: 0 | CF138: 0 | CG138: 0 | CH138: 0 | CI138: 0 | CJ138: 0 | CK138: 0 | CL138: 0 | CM138: 0 | CN138: 0 | CO138: 0 | CP138: 0 | CQ138: 0 | CR138: 0 | CS138: 0 | CT138: 0 | CU138: 0 | CV138: 0 | CW138: 0 | CX138: 0 | CY138: 0 | CZ138: 0 | DA138: 0 | DB138: 0 | DC138: 0 | DD138: 0 | DE138: 0 | DF138: 0 | DG138: 0 | DH138: 0 | DI138: 0 | DJ138: 0 | DK138: 0 | DL138: 0 | DM138: 0 | DN138: 0 | DO138: 0 | DP138: 0 | DQ138: 0 | DR138: 0 | DS138: 0 | DT138: 0 | DU138: 0 | DV138: 0 | DW138: 0 | DX138: 0 | DY138: 0 | DZ138: 0 | EA138: 0 | EB138: 0 | EC138: 0 | ED138: 0 | EE138: 0
C140: =D50 -> IFC
E141: Opening | F141: EUR'000 | L141: =K144 -> 0 | M141: =L144 -> 0 | N141: 462.901842 | O141: 1110.117543 | P141: 1117.846079 | Q141: 1553.756675 | R141: 1563.361179 | S141: 2429.305055 | T141: 3298.910654 | U141: 4172.19346 | V141: 4192.870265 | W141: 4213.634503 | X141: 4234.486544 | Y141: 4683.57614 | Z141: 4920.48997 | AA141: 4801.015118 | AB141: 4680.345518 | AC141: 4553.84589 | AD141: 4431.691548 | AE141: 4302.087699 | AF141: 4176.421608 | AG141: 4044.440542 | AH141: 3919.706241 | AI141: 3788.970485 | AJ141: 3662.253711 | AK141: 3529.215173 | AL141: 3399.915147 | AM141: 3264.237198 | AN141: 3132.265197 | AO141: 2993.878007 | AP141: 2859.153317 | AQ141: 2718.271772 | AR141: 2580.690592 | AS141: 2436.631316 | AT141: 2301.118163 | AU141: 2156.131847 | AV141: 2014.747162 | AW141: 1866.763796 | AX141: 1722.355672 | AY141: 1571.614775 | AZ141: 1424.069767 | BA141: 1269.856667 | BB141: 1119.117031 | BC141: 961.6331665 | BD141: 807.5659741 | BE141: 646.7012583 | BF141: 489.171157 | BG141: 329.4484952 | BH141: 163.0331388 | BI141: -1.124405173e-07 | BJ141: -1.124405173e-07 | BK141: -1.124405173e-07 | BL141: -1.124405173e-07 | BM141: -1.124405173e-07 | BN141: -1.124405173e-07 | BO141: -1.124405173e-07 | BP141: -1.124405173e-07 | BQ141: -1.124405173e-07 | BR141: -1.124405173e-07 | BS141: -1.124405173e-07 | BT141: -1.124405173e-07 | BU141: -1.124405173e-07 | BV141: -1.124405173e-07 | BW141: -1.124405173e-07 | BX141: -1.124405173e-07 | BY141: =BX144 -> -1.124405173e-07 | BZ141: -1.124405173e-07 | CA141: -1.124405173e-07 | CB141: -1.124405173e-07 | CC141: -1.124405173e-07 | CD141: -1.124405173e-07 | CE141: -1.124405173e-07 | CF141: -1.124405173e-07 | CG141: -1.124405173e-07 | CH141: -1.124405173e-07 | CI141: -1.124405173e-07 | CJ141: -1.124405173e-07 | CK141: -1.124405173e-07 | CL141: -1.124405173e-07 | CM141: -1.124405173e-07 | CN141: -1.124405173e-07 | CO141: -1.124405173e-07 | CP141: -1.124405173e-07 | CQ141: -1.124405173e-07 | CR141: -1.124405173e-07 | CS141: -1.124405173e-07 | CT141: -1.124405173e-07 | CU141: -1.124405173e-07 | CV141: -1.124405173e-07 | CW141: -1.124405173e-07 | CX141: -1.124405173e-07 | CY141: -1.124405173e-07 | CZ141: -1.124405173e-07 | DA141: -1.124405173e-07 | DB141: -1.124405173e-07 | DC141: -1.124405173e-07 | DD141: -1.124405173e-07 | DE141: -1.124405173e-07 | DF141: -1.124405173e-07 | DG141: -1.124405173e-07 | DH141: -1.124405173e-07 | DI141: -1.124405173e-07 | DJ141: -1.124405173e-07 | DK141: -1.124405173e-07 | DL141: -1.124405173e-07 | DM141: -1.124405173e-07 | DN141: -1.124405173e-07 | DO141: -1.124405173e-07 | DP141: -1.124405173e-07 | DQ141: -1.124405173e-07 | DR141: -1.124405173e-07 | DS141: -1.124405173e-07 | DT141: -1.124405173e-07 | DU141: -1.124405173e-07 | DV141: -1.124405173e-07 | DW141: -1.124405173e-07 | DX141: -1.124405173e-07 | DY141: -1.124405173e-07 | DZ141: -1.124405173e-07 | EA141: -1.124405173e-07 | EB141: -1.124405173e-07 | EC141: -1.124405173e-07 | ED141: -1.124405173e-07 | EE141: -1.124405173e-07
E142: Add: Draws | F142: EUR'000 | L142: =L95 -> 0 | M142: =M95 -> 462.901842 | N142: 647.2157014 | O142: 7.728535866 | P142: 435.9105956 | Q142: 9.604504572 | R142: 865.9438759 | S142: 869.6055989 | T142: 873.2828059 | U142: 20.67680437 | V142: 20.76423813 | W142: 20.85204162 | X142: 449.0895953 | Y142: 236.9138304 | Z142: 0 | AA142: 0 | AB142: 0 | AC142: 0 | AD142: 0 | AE142: 0 | AF142: 0 | AG142: 0 | AH142: 0 | AI142: 0 | AJ142: 0 | AK142: 0 | AL142: 0 | AM142: 0 | AN142: 0 | AO142: 0 | AP142: 0 | AQ142: 0 | AR142: 0 | AS142: 0 | AT142: 0 | AU142: 0 | AV142: 0 | AW142: 0 | AX142: 0 | AY142: 0 | AZ142: 0 | BA142: 0 | BB142: 0 | BC142: 0 | BD142: 0 | BE142: 0 | BF142: 0 | BG142: 0 | BH142: 0 | BI142: 0 | BJ142: 0 | BK142: 0 | BL142: 0 | BM142: 0 | BN142: 0 | BO142: 0 | BP142: 0 | BQ142: 0 | BR142: 0 | BS142: 0 | BT142: 0 | BU142: 0 | BV142: 0 | BW142: 0 | BX142: 0 | BY142: =BY95 -> 0 | BZ142: 0 | CA142: 0 | CB142: 0 | CC142: 0 | CD142: 0 | CE142: 0 | CF142: 0 | CG142: 0 | CH142: 0 | CI142: 0 | CJ142: 0 | CK142: 0 | CL142: 0 | CM142: 0 | CN142: 0 | CO142: 0 | CP142: 0 | CQ142: 0 | CR142: 0 | CS142: 0 | CT142: 0 | CU142: 0 | CV142: 0 | CW142: 0 | CX142: 0 | CY142: 0 | CZ142: 0 | DA142: 0 | DB142: 0 | DC142: 0 | DD142: 0 | DE142: 0 | DF142: 0 | DG142: 0 | DH142: 0 | DI142: 0 | DJ142: 0 | DK142: 0 | DL142: 0 | DM142: 0 | DN142: 0 | DO142: 0 | DP142: 0 | DQ142: 0 | DR142: 0 | DS142: 0 | DT142: 0 | DU142: 0 | DV142: 0 | DW142: 0 | DX142: 0 | DY142: 0 | DZ142: 0 | EA142: 0 | EB142: 0 | EC142: 0 | ED142: 0 | EE142: 0
E143: Less: Repayment | F143: EUR'000 | L143: =L103 -> 0 | M143: =M103 -> 0 | N143: 0 | O143: 0 | P143: 0 | Q143: 0 | R143: 0 | S143: 0 | T143: 0 | U143: 0 | V143: 0 | W143: 0 | X143: 0 | Y143: 0 | Z143: 119.4748518 | AA143: 120.6696003 | AB143: 126.4996274 | AC143: 122.1543421 | AD143: 129.6038497 | AE143: 125.6660905 | AF143: 131.9810661 | AG143: 124.7343011 | AH143: 130.7357563 | AI143: 126.7167734 | AJ143: 133.0385385 | AK143: 129.3000256 | AL143: 135.6779492 | AM143: 131.9720014 | AN143: 138.3871894 | AO143: 134.7246902 | AP143: 140.8815445 | AQ143: 137.5811805 | AR143: 144.059276 | AS143: 135.5131529 | AT143: 144.9863164 | AU143: 141.3846848 | AV143: 147.9833659 | AW143: 144.4081241 | AX143: 150.7408964 | AY143: 147.5450082 | AZ143: 154.2130997 | BA143: 150.7396369 | BB143: 157.483864 | BC143: 154.0671924 | BD143: 160.8647159 | BE143: 157.5301013 | BF143: 159.7226618 | BG143: 166.4153564 | BH143: 163.0331389 | BI143: 0 | BJ143: 0 | BK143: 0 | BL143: 0 | BM143: 0 | BN143: 0 | BO143: 0 | BP143: 0 | BQ143: 0 | BR143: 0 | BS143: 0 | BT143: 0 | BU143: 0 | BV143: 0 | BW143: 0 | BX143: 0 | BY143: =BY103 -> 0 | BZ143: 0 | CA143: 0 | CB143: 0 | CC143: 0 | CD143: 0 | CE143: 0 | CF143: 0 | CG143: 0 | CH143: 0 | CI143: 0 | CJ143: 0 | CK143: 0 | CL143: 0 | CM143: 0 | CN143: 0 | CO143: 0 | CP143: 0 | CQ143: 0 | CR143: 0 | CS143: 0 | CT143: 0 | CU143: 0 | CV143: 0 | CW143: 0 | CX143: 0 | CY143: 0 | CZ143: 0 | DA143: 0 | DB143: 0 | DC143: 0 | DD143: 0 | DE143: 0 | DF143: 0 | DG143: 0 | DH143: 0 | DI143: 0 | DJ143: 0 | DK143: 0 | DL143: 0 | DM143: 0 | DN143: 0 | DO143: 0 | DP143: 0 | DQ143: 0 | DR143: 0 | DS143: 0 | DT143: 0 | DU143: 0 | DV143: 0 | DW143: 0 | DX143: 0 | DY143: 0 | DZ143: 0 | EA143: 0 | EB143: 0 | EC143: 0 | ED143: 0 | EE143: 0
E144: Closing | F144: EUR'000 | L144: =L141+L142-L143 -> 0 | M144: =M141+M142-M143 -> 462.901842 | N144: 1110.117543 | O144: 1117.846079 | P144: 1553.756675 | Q144: 1563.361179 | R144: 2429.305055 | S144: 3298.910654 | T144: 4172.19346 | U144: 4192.870265 | V144: 4213.634503 | W144: 4234.486544 | X144: 4683.57614 | Y144: 4920.48997 | Z144: 4801.015118 | AA144: 4680.345518 | AB144: 4553.84589 | AC144: 4431.691548 | AD144: 4302.087699 | AE144: 4176.421608 | AF144: 4044.440542 | AG144: 3919.706241 | AH144: 3788.970485 | AI144: 3662.253711 | AJ144: 3529.215173 | AK144: 3399.915147 | AL144: 3264.237198 | AM144: 3132.265197 | AN144: 2993.878007 | AO144: 2859.153317 | AP144: 2718.271772 | AQ144: 2580.690592 | AR144: 2436.631316 | AS144: 2301.118163 | AT144: 2156.131847 | AU144: 2014.747162 | AV144: 1866.763796 | AW144: 1722.355672 | AX144: 1571.614775 | AY144: 1424.069767 | AZ144: 1269.856667 | BA144: 1119.117031 | BB144: 961.6331665 | BC144: 807.5659741 | BD144: 646.7012583 | BE144: 489.171157 | BF144: 329.4484952 | BG144: 163.0331388 | BH144: -1.124405173e-07 | BI144: -1.124405173e-07 | BJ144: -1.124405173e-07 | BK144: -1.124405173e-07 | BL144: -1.124405173e-07 | BM144: -1.124405173e-07 | BN144: -1.124405173e-07 | BO144: -1.124405173e-07 | BP144: -1.124405173e-07 | BQ144: -1.124405173e-07 | BR144: -1.124405173e-07 | BS144: -1.124405173e-07 | BT144: -1.124405173e-07 | BU144: -1.124405173e-07 | BV144: -1.124405173e-07 | BW144: -1.124405173e-07 | BX144: -1.124405173e-07 | BY144: =BY141+BY142-BY143 -> -1.124405173e-07 | BZ144: -1.124405173e-07 | CA144: -1.124405173e-07 | CB144: -1.124405173e-07 | CC144: -1.124405173e-07 | CD144: -1.124405173e-07 | CE144: -1.124405173e-07 | CF144: -1.124405173e-07 | CG144: -1.124405173e-07 | CH144: -1.124405173e-07 | CI144: -1.124405173e-07 | CJ144: -1.124405173e-07 | CK144: -1.124405173e-07 | CL144: -1.124405173e-07 | CM144: -1.124405173e-07 | CN144: -1.124405173e-07 | CO144: -1.124405173e-07 | CP144: -1.124405173e-07 | CQ144: -1.124405173e-07 | CR144: -1.124405173e-07 | CS144: -1.124405173e-07 | CT144: -1.124405173e-07 | CU144: -1.124405173e-07 | CV144: -1.124405173e-07 | CW144: -1.124405173e-07 | CX144: -1.124405173e-07 | CY144: -1.124405173e-07 | CZ144: -1.124405173e-07 | DA144: -1.124405173e-07 | DB144: -1.124405173e-07 | DC144: -1.124405173e-07 | DD144: -1.124405173e-07 | DE144: -1.124405173e-07 | DF144: -1.124405173e-07 | DG144: -1.124405173e-07 | DH144: -1.124405173e-07 | DI144: -1.124405173e-07 | DJ144: -1.124405173e-07 | DK144: -1.124405173e-07 | DL144: -1.124405173e-07 | DM144: -1.124405173e-07 | DN144: -1.124405173e-07 | DO144: -1.124405173e-07 | DP144: -1.124405173e-07 | DQ144: -1.124405173e-07 | DR144: -1.124405173e-07 | DS144: -1.124405173e-07 | DT144: -1.124405173e-07 | DU144: -1.124405173e-07 | DV144: -1.124405173e-07 | DW144: -1.124405173e-07 | DX144: -1.124405173e-07 | DY144: -1.124405173e-07 | DZ144: -1.124405173e-07 | EA144: -1.124405173e-07 | EB144: -1.124405173e-07 | EC144: -1.124405173e-07 | ED144: -1.124405173e-07 | EE144: -1.124405173e-07
